Workbook

Sheet Ark1 (hidden)
A1: Dato | B1: MÅNEDLIG PEJLING AF OLIETANK
B3: Uge | C3: Pejling | D3: Fyldt på | E3: Beholdning | F3: Plads til | G3: Forbrugt
D4: Liter | F4: Liter
A5: 2011-01-04 | B5: =IF(A5="","",TRUNC((A5-WEEKDAY(A5,2)-DATE(YEAR(A5+4-WEEKDAY(A5,2)),1,-10))/7)) -> 1 | E5: =IF(C5<>"",SUM(C5:D5),"") ->  | F5: =IF(E5<>"",1200-E5,"") -> 
A6: 2011-02-04 | B6: =IF(A6="","",TRUNC((A6-WEEKDAY(A6,2)-DATE(YEAR(A6+4-WEEKDAY(A6,2)),1,-10))/7)) -> 5 | E6: =IF(C6<>"",SUM(C6:D6),"") ->  | G6: =IF(C6<>"",E5-C6,"") -> 
A7: 2011-03-04 | B7: 9 | E7: =IF(C7<>"",SUM(C7:D7),"") -> 
A8: 2011-04-04 | B8: 14
A9: 2011-05-04 | B9: 18
A10: 2011-06-04 | B10: 22
A11: 2011-07-04 | B11: 27
A12: 2011-08-04 | B12: 31
A13: 2011-09-04 | B13: 35
A14: 2011-10-04 | B14: 40
A15: 2011-11-04 | B15: 44
A16: 2011-12-04 | B16: 48
A17: 2012-01-01 | B17: 52
E18: Års forbrug | G18: =SUM(G6:G17) -> 0
B19: MÅNEDLIG AFLÆSNING AF VANDMÅLER
A21: Dato | B21: Uge | D21: forbrug | E21: Dato | F21: Uge | H21: forbrug
C22: m³ | D22: m³ | G22: m³ | H22: m³
A23: 2011-01-04 | B23: =IF(A23="","",TRUNC((A23-WEEKDAY(A23,2)-DATE(YEAR(A23+4-WEEKDAY(A23,2)),1,-10))/7)) -> 1
A24: 2011-02-04 | B24: =IF(A24="","",TRUNC((A24-WEEKDAY(A24,2)-DATE(YEAR(A24+4-WEEKDAY(A24,2)),1,-10))/7)) -> 5 | D24: =IF(C24<>"",C24-C23,"") ->  | E24: 2011-08-04 | F24: =IF(E24="","",TRUNC((E24-WEEKDAY(E24,2)-DATE(YEAR(E24+4-WEEKDAY(E24,2)),1,-10))/7)) -> 31 | H24: =IF(G24<>"",G24-C29,"") -> 
A25: 2011-03-04 | B25: 9 | E25: 2011-09-04 | F25: 35 | H25: =IF(G25<>"",G25-G24,"") -> 
A26: 2011-04-04 | B26: 14 | E26: 2011-10-04 | F26: 40 | H26: =IF(G26<>"",G26-G25,"") -> 
A27: 2011-05-04 | B27: 18 | E27: 2011-11-04 | F27: 44 | H27: =IF(G27<>"",G27-G26,"") -> 
A28: 2011-06-04 | B28: 22 | E28: 2011-12-04 | F28: 48 | H28: =IF(G28<>"",G28-G27,"") -> 
A29: 2011-07-04 | B29: =IF(A29="","",TRUNC((A29-WEEKDAY(A29,2)-DATE(YEAR(A29+4-WEEKDAY(A29,2)),1,-10))/7)) -> 27 | E29: 2012-01-04 | F29: 1 | H29: =IF(G29<>"",G29-G28,"") -> 
F30: Års forbrug | H30: =SUM(D24:D29,H24:H29) -> 0
A32: MÅNEDLIG AFLÆSNING AF ELMÅLER
A34: Dato | B34: Uge | D34: forbrug | E34: Dato | F34: Uge | H34: forbrug
C35: Kw | D35: Kw | G35: Kw | H35: Kw
A36: 2011-01-04 | B36: =IF(A36="","",TRUNC((A36-WEEKDAY(A36,2)-DATE(YEAR(A36+4-WEEKDAY(A36,2)),1,-10))/7)) -> 1 | H36: =IF(G36<>"",G36-C43,"") -> 
A37: 2011-02-04 | B37: 5 | D37: =IF(C37<>"",C37-C36,"") ->  | E37: 2011-08-04 | F37: =IF(E37="","",TRUNC((E37-WEEKDAY(E37,2)-DATE(YEAR(E37+4-WEEKDAY(E37,2)),1,-10))/7)) -> 31 | H37: =IF(G37<>"",G37-G36,"") -> 
A38: 2011-03-04 | B38: 9 | E38: 2011-09-04 | F38: 35
A39: 2011-04-04 | B39: 14 | D39: =IF(C39<>"",C39-C37,"") ->  | E39: 2011-10-04 | F39: 40 | H39: =IF(G39<>"",G39-G37,"") -> 
A40: 2011-05-04 | B40: 18 | E40: 2011-11-04 | F40: 44
A41: 2011-06-04 | B41: 22 | D41: =IF(C41<>"",C41-C39,"") ->  | E41: 2011-12-04 | F41: 48 | H41: =IF(G41<>"",G41-G39,"") -> 
A42: 2011-07-04 | B42: 27 | D42: =IF(C42<>"",C42-C41,"") ->  | E42: 2012-01-04 | F42: 1 | H42: =IF(G42<>"",G42-G41,"") -> 
D43: =IF(C43<>"",C43-C42,"") ->  | F43: Års forbrug | H43: =SUM(D37:D43,H36:H42) -> 0

Sheet nytark2 (hidden)
N1: 2012 | Q1: 2013 | T1: +/- | U1: % | V1: Forventet forbrug
A2: =System!A19 -> Version: 2.0.2 / Bjarne Hansen | J2: Olie | K2: Dage | L2: Liter pr dag | N2: Olie | O2: Liter | P2: % | R2: Liter | S2: % | T2: Liter | V2: % | W2: Liter
A3: Aflæsningsskema til Olieforbrug samt EL og Vand | J3: =IF(A11="","",VLOOKUP(MONTH(A11),T!A$1:B$12,2,FALSE)) -> Januar | K3: =A11-A10 -> 31 | L3: =IF(G11<>"",G11/K3,"") ->  | N3: =IF(A11="","",VLOOKUP(MONTH(A11),T!$A$1:$B$12,2,FALSE)) -> Januar | O3: ='2012'!G11 -> 362 | P3: =IF(O3="","",O3/(O$16/100)) -> 16.22590766 | Q3: =IF(A11="","",VLOOKUP(MONTH(A11),T!$A$1:$B$12,2,FALSE)) -> Januar | R3: =G11 ->  | S3: =IF(R3="","",R3/(R$16/100)) ->  | T3: =IF(R3<>"",R3-O3,"") ->  | U3: =IF(R3<>"",T3/(O3/100),"") ->  | V3: =IF(A11="","",VLOOKUP(MONTH(A11),'Beregn varme 2013'!A$2:G$13,7,FALSE)) -> 13.90884055 | W3: =IF(R3="","",VLOOKUP(MONTH(A11),'Beregn varme 2011'!A$2:F$13,6,FALSE)) -> 
A4: Navn : | B4: Bjarne Hansen, Lyrsbyvej 31 | J4: =IF(A12="","",VLOOKUP(MONTH(A12),T!A$1:B$12,2,FALSE)) -> Februar | K4: =IF(A12="","",A12-A11) -> 28 | N4: =IF(A12="","",VLOOKUP(MONTH(A12),T!A$1:B$12,2,FALSE)) -> Februar | O4: ='2012'!G12 -> 388 | P4: 17.39130435 | Q4: =IF(A12="","",VLOOKUP(MONTH(A12),T!$A$1:$B$12,2,FALSE)) -> Februar | T4: =IF(R4<>"",R4-O4,"") ->  | U4: =IF(R4<>"",T4/(O4/100),"") ->  | V4: =IF(A12="","",VLOOKUP(MONTH(A12),'Beregn varme 2013'!A$2:G$13,7,FALSE)) -> 12.81307613 | W4: =IF(R4="","",VLOOKUP(MONTH(A12),'Beregn varme 2011'!A$2:F$13,6,FALSE)) -> 
J5: =IF(A13="","",VLOOKUP(MONTH(A13),T!A$1:B$12,2,FALSE)) -> Marts | K5: 31 | N5: =IF(A13="","",VLOOKUP(MONTH(A13),T!A$1:B$12,2,FALSE)) -> Marts | O5: ='2012'!G13 -> 260 | P5: 11.65396683 | Q5: =IF(A13="","",VLOOKUP(MONTH(A13),T!$A$1:$B$12,2,FALSE)) -> Marts | V5: =IF(A13="","",VLOOKUP(MONTH(A13),'Beregn varme 2013'!A$2:G$13,7,FALSE)) -> 12.70564824 | W5: =IF(R5="","",VLOOKUP(MONTH(A13),'Beregn varme 2011'!A$2:F$13,6,FALSE)) -> 
A6: MÅNEDLIG PEJLING AF OLIETANK | J6: =IF(A14="","",VLOOKUP(MONTH(A14),T!A$1:B$12,2,FALSE)) -> April | K6: 30 | N6: =IF(A14="","",VLOOKUP(MONTH(A14),T!A$1:B$12,2,FALSE)) -> April | O6: ='2012'!G14 -> 201 | P6: 9.009412819 | Q6: =IF(A14="","",VLOOKUP(MONTH(A14),T!$A$1:$B$12,2,FALSE)) -> April | V6: =IF(A14="","",VLOOKUP(MONTH(A14),'Beregn varme 2013'!A$2:G$13,7,FALSE)) -> 8.838244392 | W6: =IF(R6="","",VLOOKUP(MONTH(A14),'Beregn varme 2011'!A$2:F$13,6,FALSE)) -> 
J7: =IF(A15="","",VLOOKUP(MONTH(A15),T!A$1:B$12,2,FALSE)) -> Maj | K7: 31 | N7: =IF(A15="","",VLOOKUP(MONTH(A15),T!A$1:B$12,2,FALSE)) -> Maj | O7: ='2012'!G15 -> 82 | P7: 3.675481847 | Q7: =IF(A15="","",VLOOKUP(MONTH(A15),T!$A$1:$B$12,2,FALSE)) -> Maj | V7: =IF(A15="","",VLOOKUP(MONTH(A15),'Beregn varme 2013'!A$2:G$13,7,FALSE)) -> 4.734499194 | W7: =IF(R7="","",VLOOKUP(MONTH(A15),'Beregn varme 2011'!A$2:F$13,6,FALSE)) -> 
A8: Dato | B8: Pejling | D8: Fyldt på | E8: Beholdning | F8: Plads til | G8: Forbrug | H8: Bemærkning: | J8: =IF(A16="","",VLOOKUP(MONTH(A16),T!A$1:B$12,2,FALSE)) -> Juni | K8: 30 | N8: =IF(A16="","",VLOOKUP(MONTH(A16),T!A$1:B$12,2,FALSE)) -> Juni | O8: ='2012'!G16 -> 43 | P8: 1.927386822 | Q8: =IF(A16="","",VLOOKUP(MONTH(A16),T!$A$1:$B$12,2,FALSE)) -> Juni | V8: =IF(A16="","",VLOOKUP(MONTH(A16),'Beregn varme 2013'!A$2:G$13,7,FALSE)) -> 3.488335731 | W8: =IF(R8="","",VLOOKUP(MONTH(A16),'Beregn varme 2011'!A$2:F$13,6,FALSE)) -> 
B9: i cm | C9: Liter | D9: Liter | F9: Liter | G9: Liter | J9: =IF(A17="","",VLOOKUP(MONTH(A17),T!A$1:B$12,2,FALSE)) -> Juli | K9: 31 | N9: =IF(A17="","",VLOOKUP(MONTH(A17),T!A$1:B$12,2,FALSE)) -> Juli | O9: ='2012'!G17 -> 6 | P9: 0.2689376961 | Q9: =IF(A17="","",VLOOKUP(MONTH(A17),T!$A$1:$B$12,2,FALSE)) -> Juli | V9: =IF(A17="","",VLOOKUP(MONTH(A17),'Beregn varme 2013'!A$2:G$13,7,FALSE)) -> 3.488335731 | W9: =IF(R9="","",VLOOKUP(MONTH(A17),'Beregn varme 2011'!A$2:F$13,6,FALSE)) -> 
A10: 2012-12-31 | B10: ='2012'!B22 -> 58.5 | C10: =IF(B10="","",VLOOKUP(B10,Pejletabel1800!A$3:B$201,2,FALSE)) -> 670 | E10: =IF(C10<>"",SUM(C10:D10),"") -> 670 | F10: =IF(E10<>"",1800-E10,"") -> 1130 | J10: =IF(A18="","",VLOOKUP(MONTH(A18),T!A$1:B$12,2,FALSE)) -> August | K10: 31 | N10: =IF(A18="","",VLOOKUP(MONTH(A18),T!A$1:B$12,2,FALSE)) -> August | O10: ='2012'!G18 -> 0 | P10: 0 | Q10: =IF(A18="","",VLOOKUP(MONTH(A18),T!$A$1:$B$12,2,FALSE)) -> August | V10: =IF(A18="","",VLOOKUP(MONTH(A18),'Beregn varme 2013'!A$2:G$13,7,FALSE)) -> 3.488335731 | W10: =IF(R10="","",VLOOKUP(MONTH(A18),'Beregn varme 2011'!A$2:F$13,6,FALSE)) -> 
A11: 2013-01-31 | C11: =IF(B11="","",VLOOKUP(B11,Pejletabel1800!A$3:B$201,2,FALSE)) ->  | E11: =IF(C11<>"",C11+D11,"") ->  | F11: =IF(E11<>"",1800-E11,"") ->  | G11: =IF(C11<>"",E10-C11,"") ->  | J11: =IF(A19="","",VLOOKUP(MONTH(A19),T!A$1:B$12,2,FALSE)) -> September | K11: 30 | N11: =IF(A19="","",VLOOKUP(MONTH(A19),T!A$1:B$12,2,FALSE)) -> September | O11: ='2012'!G19 -> 73 | P11: 3.272075303 | Q11: =IF(A19="","",VLOOKUP(MONTH(A19),T!$A$1:$B$12,2,FALSE)) -> September | V11: =IF(A19="","",VLOOKUP(MONTH(A19),'Beregn varme 2013'!A$2:G$13,7,FALSE)) -> 4.046960732 | W11: =IF(R11="","",VLOOKUP(MONTH(A19),'Beregn varme 2011'!A$2:F$13,6,FALSE)) -> 
A12: 2013-02-28 | C12: =IF(B12="","",VLOOKUP(B12,Pejletabel1800!A$3:B$201,2,FALSE)) ->  | E12: =IF(C12<>"",C12+D12,"") ->  | F12: =IF(E12<>"",1800-E12,"") ->  | G12: =IF(C12<>"",E11-C12,"") ->  | J12: =IF(A20="","",VLOOKUP(MONTH(A20),T!A$1:B$12,2,FALSE)) -> Oktober | K12: 31 | N12: =IF(A20="","",VLOOKUP(MONTH(A20),T!A$1:B$12,2,FALSE)) -> Oktober | O12: ='2012'!G20 -> 188 | P12: 8.426714478 | Q12: =IF(A20="","",VLOOKUP(MONTH(A20),T!$A$1:$B$12,2,FALSE)) -> Oktober | V12: =IF(A20="","",VLOOKUP(MONTH(A20),'Beregn varme 2013'!A$2:G$13,7,FALSE)) -> 7.849907852 | W12: =IF(R12="","",VLOOKUP(MONTH(A20),'Beregn varme 2011'!A$2:F$13,6,FALSE)) -> 
A13: 2013-03-31 | C13: =IF(B13="","",VLOOKUP(B13,Pejletabel1800!A$3:B$201,2,FALSE)) ->  | E13: =IF(C13<>"",C13+D13,"") ->  | J13: =IF(A21="","",VLOOKUP(MONTH(A21),T!A$1:B$12,2,FALSE)) -> November | K13: 30 | N13: =IF(A21="","",VLOOKUP(MONTH(A21),T!A$1:B$12,2,FALSE)) -> November | O13: ='2012'!G21 -> 289 | P13: 12.95383236 | Q13: =IF(A21="","",VLOOKUP(MONTH(A21),T!$A$1:$B$12,2,FALSE)) -> November | V13: =IF(A21="","",VLOOKUP(MONTH(A21),'Beregn varme 2013'!A$2:G$13,7,FALSE)) -> 11.07274439 | W13: =IF(R13="","",VLOOKUP(MONTH(A21),'Beregn varme 2011'!A$2:F$13,6,FALSE)) -> 
A14: 2013-04-30 | C14: =IF(B14="","",VLOOKUP(B14,Pejletabel1800!A$3:B$201,2,FALSE)) ->  | J14: =IF(A22="","",VLOOKUP(MONTH(A22),T!A$1:B$12,2,FALSE)) -> December | K14: 31 | N14: =IF(A22="","",VLOOKUP(MONTH(A22),T!A$1:B$12,2,FALSE)) -> December | O14: ='2012'!G22 -> 339 | P14: 15.19497983 | Q14: =IF(A22="","",VLOOKUP(MONTH(A22),T!$A$1:$B$12,2,FALSE)) -> December | V14: =IF(A22="","",VLOOKUP(MONTH(A22),'Beregn varme 2013'!A$2:G$13,7,FALSE)) -> 13.56507132 | W14: =IF(R14="","",VLOOKUP(MONTH(A22),'Beregn varme 2011'!A$2:F$13,6,FALSE)) -> 
A15: 2013-05-31 | C15: =IF(B15="","",VLOOKUP(B15,Pejletabel1800!A$3:B$201,2,FALSE)) -> 
A16: 2013-06-30 | C16: =IF(B16="","",VLOOKUP(B16,Pejletabel1800!A$3:B$201,2,FALSE)) ->  | J16: Hele året | K16: =SUM(K3:K14) -> 365 | L16: =G23/K16 -> 0 | N16: Års Total | O16: ='2012'!G23 -> 2231 | P16: =SUM(P3:P14) -> 100 | R16: =G23 -> 0 | T16: =IF(R16<>0,R16-O16,"") ->  | U16: =IF(R16<>0,T16/(R16/100),"") ->  | V16: =SUM(V3:V14) -> 100 | W16: =SUM(W3:W14) -> 0
A17: 2013-07-31 | C17: =IF(B17="","",VLOOKUP(B17,Pejletabel1800!A$3:B$201,2,FALSE)) -> 
A18: 2013-08-31 | C18: =IF(B18="","",VLOOKUP(B18,Pejletabel1800!A$3:B$201,2,FALSE)) ->  | N18: 2012 | Q18: 2013 | T18: +/- | U18: % | V18: Forventet forbrug
A19: 2013-09-30 | C19: =IF(B19="","",VLOOKUP(B19,Pejletabel1800!A$3:B$201,2,FALSE)) ->  | J19: Vand | K19: Dage | L19: m³ pr. dag | N19: Vand | O19: m³ | R19: m³ | T19: m³ | V19: % | W19: m³
A20: 2013-10-31 | C20: =IF(B20="","",VLOOKUP(B20,Pejletabel1800!A$3:B$201,2,FALSE)) ->  | J20: =IF(A29="","",VLOOKUP(MONTH(A29),T!A$1:B$12,2,FALSE)) -> Januar | K20: =A29-A28 -> 31 | L20: =IF(D29<>"",D29/K20,"") ->  | N20: =IF(A29="","",VLOOKUP(MONTH(A29),T!A$1:B$12,2,FALSE)) -> Januar | O20: ='2012'!D29 -> 7 | Q20: Januar | R20: =D29 ->  | T20: =IF(R20<>"",R20-O20,"") ->  | U20: =IF(T20<>"",T20/(O20/100),"") ->  | V20: =IF(A29="","",VLOOKUP(MONTH(A29),'Beregn varme 2013'!A$2:H$13,8,FALSE)) -> 8.493150685 | W20: =IF(R20="","",O$33/100*V20) -> 
A21: 2013-11-30 | C21: =IF(B21="","",VLOOKUP(B21,Pejletabel1800!A$3:B$201,2,FALSE)) ->  | F21: =IF(E21<>"",1800-E21,"") ->  | J21: =IF(A30="","",VLOOKUP(MONTH(A30),T!A$1:B$12,2,FALSE)) -> Februar | K21: =IF(A30="","",A30-A29) -> 28 | N21: =IF(A30="","",VLOOKUP(MONTH(A30),T!A$1:B$12,2,FALSE)) -> Februar | O21: ='2012'!D30 -> 7 | Q21: Februar | T21: =IF(R21<>"",R21-O21,"") ->  | U21: =IF(T21<>"",T21/(O21/100),"") ->  | V21: =IF(A30="","",VLOOKUP(MONTH(A30),'Beregn varme 2013'!A$2:H$13,8,FALSE)) -> 7.671232877
A22: 2013-12-31 | C22: =IF(B22="","",VLOOKUP(B22,Pejletabel1800!A$3:B$201,2,FALSE)) ->  | F22: =IF(E22<>"",1800-E22,"") ->  | J22: =IF(A31="","",VLOOKUP(MONTH(A31),T!A$1:B$12,2,FALSE)) -> Marts | K22: =IF(A31="","",A31-A30) -> 31 | N22: =IF(A31="","",VLOOKUP(MONTH(A31),T!A$1:B$12,2,FALSE)) -> Marts | O22: ='2012'!D31 -> 6 | Q22: Marts | V22: =IF(A31="","",VLOOKUP(MONTH(A31),'Beregn varme 2013'!A$2:H$13,8,FALSE)) -> 8.493150685
E23: Års forbrug | G23: =SUM(G11:G22) -> 0 | J23: =IF(A32="","",VLOOKUP(MONTH(A32),T!A$1:B$12,2,FALSE)) -> April | K23: =IF(A32="","",A32-A31) -> 30 | N23: =IF(A32="","",VLOOKUP(MONTH(A32),T!A$1:B$12,2,FALSE)) -> April | O23: ='2012'!D32 -> 8 | Q23: April | V23: =IF(A32="","",VLOOKUP(MONTH(A32),'Beregn varme 2013'!A$2:H$13,8,FALSE)) -> 8.219178082
A24: MÅNEDLIG AFLÆSNING AF VANDMÅLER | J24: =IF(A33="","",VLOOKUP(MONTH(A33),T!A$1:B$12,2,FALSE)) -> Maj | K24: =IF(A33="","",A33-A32) -> 31 | N24: =IF(A33="","",VLOOKUP(MONTH(A33),T!A$1:B$12,2,FALSE)) -> Maj | O24: ='2012'!D33 -> 7 | Q24: Maj | V24: =IF(A33="","",VLOOKUP(MONTH(A33),'Beregn varme 2013'!A$2:H$13,8,FALSE)) -> 8.493150685
J25: =IF(A34="","",VLOOKUP(MONTH(A34),T!A$1:B$12,2,FALSE)) -> Juni | K25: =IF(E29="","",A34-A33) -> 30 | N25: Juni | O25: ='2012'!D34 -> 7 | Q25: Juni | V25: =IF(A34="","",VLOOKUP(MONTH(A34),'Beregn varme 2013'!A$2:H$13,8,FALSE)) -> 8.219178082
A26: Dato | B26: Aflæst | D26: Forbrug | E26: Dato | F26: Aflæst | G26: Forbrug | H26: Bemærkning: | J26: =IF(E29="","",VLOOKUP(MONTH(E29),T!A$1:B$12,2,FALSE)) -> Juli | K26: =IF(E29="","",E29-A34) -> 31 | L26: =IF(G29<>"",G29/K26,"") ->  | N26: Juli | O26: ='2012'!G29 -> 416 | Q26: Juli | R26: =G29 ->  | V26: =IF(E29="","",VLOOKUP(MONTH(E29),'Beregn varme 2013'!A$2:H$13,8,FALSE)) -> 8.493150685
B27: m³ | D27: m³ | F27: m³ | G27: m³ | J27: =IF(E30="","",VLOOKUP(MONTH(E30),T!A$1:B$12,2,FALSE)) -> August | K27: =IF(E30="","",E30-E29) -> 31 | N27: August | O27: ='2012'!G30 -> 404 | Q27: August | V27: =IF(E30="","",VLOOKUP(MONTH(E30),'Beregn varme 2013'!A$2:H$13,8,FALSE)) -> 8.493150685
A28: 2012-12-31 | B28: ='2012'!F34 -> 17567 | J28: =IF(E31="","",VLOOKUP(MONTH(E31),T!A$1:B$12,2,FALSE)) -> September | K28: =IF(E31="","",E31-E30) -> 30 | N28: September | O28: ='2012'!G31 -> 403 | Q28: September | V28: =IF(E31="","",VLOOKUP(MONTH(E31),'Beregn varme 2013'!A$2:H$13,8,FALSE)) -> 8.219178082
A29: 2013-01-31 | D29: =IF(B29<>"",B29-B28,"") ->  | E29: 2013-07-31 | G29: =IF(F29<>"",F29-C34,"") ->  | J29: =IF(E32="","",VLOOKUP(MONTH(E32),T!A$1:B$12,2,FALSE)) -> Oktober | K29: =IF(E32="","",E32-E31) -> 31 | N29: Oktober | O29: ='2012'!G32 -> 403 | Q29: Oktober | V29: =IF(E32="","",VLOOKUP(MONTH(E32),'Beregn varme 2013'!A$2:H$13,8,FALSE)) -> 8.493150685
A30: 2013-02-28 | D30: =IF(B30<>"",B30-B29,"") ->  | E30: 2013-08-31 | G30: =IF(F30<>"",F30-F29,"") ->  | J30: =IF(E33="","",VLOOKUP(MONTH(E33),T!A$1:B$12,2,FALSE)) -> November | K30: =IF(E33="","",E33-E32) -> 30 | N30: November | O30: ='2012'!G33 -> 375 | Q30: November | V30: =IF(E33="","",VLOOKUP(MONTH(E33),'Beregn varme 2013'!A$2:H$13,8,FALSE)) -> 8.219178082
A31: 2013-03-31 | E31: 2013-09-30 | G31: =IF(F31<>"",F31-F30,"") ->  | J31: =IF(E34="","",VLOOKUP(MONTH(E34),T!A$1:B$12,2,FALSE)) -> December | K31: =IF(E34="","",E34-E33) -> 31 | N31: December | O31: ='2012'!G34 -> 369 | Q31: December | V31: =IF(E34="","",VLOOKUP(MONTH(E34),'Beregn varme 2013'!A$2:H$13,8,FALSE)) -> 8.493150685
A32: 2013-04-30 | E32: 2013-10-31 | G32: =IF(F32<>"",F32-F31,"") -> 
A33: 2013-05-31 | E33: 2013-11-30 | G33: =IF(F33<>"",F33-F32,"") ->  | J33: Hele året | K33: =SUM(K20:K31) -> 365 | L33: =G35/K33 -> 0 | N33: Års Total | O33: =SUM(O20:O31) -> 2412 | R33: =G35 -> 0 | T33: =IF(R33<>0,R33-O33,"") ->  | U33: =IF(T33<>"",T33/(R33/100),"") ->  | V33: =SUM(V20:V31) -> 100 | W33: =SUM(W20:W31) -> 0
A34: 2013-06-30 | D34: =IF(C34<>"",C34-C33,"") ->  | E34: 2013-12-31 | G34: =IF(F34<>"",F34-F33,"") -> 
E35: Års forbrug | G35: =SUM(D29:D34,G29:G34) -> 0 | N35: 2011/2012 | Q35: 2012/2013 | T35: +/- | U35: % | V35: Forventet forbrug
A36: MÅNEDLIG AFLÆSNING AF ELMÅLER | J36: EL | K36: Dage | L36: KWh pr. dag | N36: EL | O36: KWh | R36: KWh | T36: KWh | V36: % | W36: KWh
J37: =IF(A41="","",VLOOKUP(MONTH(A41),T!A$1:B$12,2,FALSE)) -> August | K37: =A41-A40 -> 31 | L37: =IF(D41<>"",D41/K37,"") ->  | N37: =J37 -> August | O37: ='2012'!D63 -> 335 | Q37: =J37 -> August | R37: =D41 ->  | T37: =IF(R37="","",R37-O37) ->  | U37: =IF(R37<>"",T37/(O37/100),"") ->  | V37: =IF(A41="","",VLOOKUP(MONTH(A41),'Beregn varme 2013'!A$2:I$13,9,FALSE)) -> 7 | W37: =IF(R37="","",O$50/100*V37) -> 
A38: Dato | B38: Aflæst | D38: Forbrug | E38: Dato | F38: Aflæst | G38: Forbrug | H38: Bemærkning: | J38: =IF(A42="","",VLOOKUP(MONTH(A42),T!A$1:B$12,2,FALSE)) -> September | K38: 30 | N38: =J38 -> September | O38: ='2012'!D64 -> 333 | Q38: =J38 -> September | R38: =IF(D42<>"",D42,"") ->  | T38: =IF(R38<>"",R38-O38,"") ->  | U38: =IF(R38<>"",T38/(O38/100),"") ->  | V38: =IF(A42="","",VLOOKUP(MONTH(A42),'Beregn varme 2013'!A$2:I$13,9,FALSE)) -> 8
B39: KWh | D39: KWh | F39: KWh | G39: KWh | J39: =IF(A43="","",VLOOKUP(MONTH(A43),T!A$1:B$12,2,FALSE)) -> Oktober | K39: =IF(A43="","",A43-A42) -> 31 | N39: Oktober | O39: ='2012'!D65 -> 403 | Q39: Oktober | R39: =IF(D43<>"",D43,"") ->  | T39: =IF(R39<>"",R39-O39,"") ->  | U39: =IF(R39<>"",T39/(O39/100),"") ->  | V39: =IF(A43="","",VLOOKUP(MONTH(A43),'Beregn varme 2013'!A$2:I$13,9,FALSE)) -> 9
A40: 2012-07-31 | B40: ='2012'!F66 -> 17925 | J40: =IF(A44="","",VLOOKUP(MONTH(A44),T!A$1:B$12,2,FALSE)) -> November | K40: =IF(A44="","",A44-A43) -> 30 | N40: November | O40: ='2012'!D66+'2012 2'!D61 -> 500 | Q40: November | R40: =IF(D44<>"",D44,"") ->  | T40: =IF(R40<>"",R40-O40,"") ->  | U40: =IF(R40<>"",T40/(O40/100),"") ->  | V40: =IF(A44="","",VLOOKUP(MONTH(A44),'Beregn varme 2013'!A$2:I$13,9,FALSE)) -> 9
A41: 2012-08-31 | D41: =IF(B41<>"",B41-B40,"") ->  | E41: 2013-02-28 | J41: =IF(A45="","",VLOOKUP(MONTH(A45),T!A$1:B$12,2,FALSE)) -> December | K41: =IF(A45="","",A45-A44) -> 31 | N41: December | O41: ='2012 2'!D62 -> 329 | Q41: December | R41: =IF(D45<>"",D45,"") ->  | T41: =IF(R41<>"",R41-O41,"") ->  | U41: =IF(R41<>"",T41/(O41/100),"") ->  | V41: =IF(A45="","",VLOOKUP(MONTH(A45),'Beregn varme 2013'!A$2:I$13,9,FALSE)) -> 10
A42: 2012-09-30 | D42: =IF(B42<>"",B42-B41,"") ->  | E42: 2013-03-31 | G42: =IF(F42<>"",F42-F41,"") ->  | J42: =IF(A46="","",VLOOKUP(MONTH(A46),T!A$1:B$12,2,FALSE)) -> Januar | K42: 1 | N42: Januar | O42: ='2012 2'!D63 -> 416 | Q42: Januar | R42: =IF(D46<>"",D46,"") ->  | T42: =IF(R42<>"",R42-O42,"") ->  | V42: =IF(A46="","",VLOOKUP(MONTH(A46),'Beregn varme 2013'!A$2:I$13,9,FALSE)) -> 10
A43: 2012-10-31 | D43: =IF(B43<>"",B43-B42,"") ->  | E43: 2013-04-30 | G43: =IF(F43<>"",F43-F42,"") ->  | J43: =IF(E41="","",VLOOKUP(MONTH(E41),T!A$1:B$12,2,FALSE)) -> Februar | K43: =IF(E41="","",E41-A46) -> 58 | L43: =IF(G41<>"",G41/K43,"") ->  | N43: Februar | O43: ='2012 2'!D64 -> 404 | Q43: Februar | R43: =IF(G41<>"",G41,"") ->  | V43: =IF(E41="","",VLOOKUP(MONTH(E41),'Beregn varme 2013'!A$2:I$13,9,FALSE)) -> 9
A44: 2012-11-30 | D44: =IF(B44<>"",B44-B43,"") ->  | E44: 2013-05-31 | G44: =IF(F44<>"",F44-F43,"") ->  | J44: =IF(E42="","",VLOOKUP(MONTH(E42),T!A$1:B$12,2,FALSE)) -> Marts | K44: =IF(E42="","",E42-E41) -> 31 | N44: Marts | O44: ='2012 2'!D65 -> 403 | Q44: Marts | V44: =IF(E42="","",VLOOKUP(MONTH(E42),'Beregn varme 2013'!A$2:I$13,9,FALSE)) -> 9
A45: 2012-12-31 | E45: 2013-06-30 | G45: =IF(F45<>"",F45-F44,"") ->  | J45: =IF(E43="","",VLOOKUP(MONTH(E43),T!A$1:B$12,2,FALSE)) -> April | K45: =IF(E43="","",E43-E42) -> 30 | N45: April | O45: ='2012 2'!D66 -> 403 | Q45: April | V45: =IF(E43="","",VLOOKUP(MONTH(E43),'Beregn varme 2013'!A$2:I$13,9,FALSE)) -> 8
A46: 2013-01-01 | E46: 2013-07-31 | G46: =IF(F46<>"",F46-F45,"") ->  | J46: =IF(E44="","",VLOOKUP(MONTH(E44),T!A$1:B$12,2,FALSE)) -> Maj | K46: =IF(E44="","",E44-E43) -> 31 | N46: Maj | O46: ='2012 2'!G61 -> 375 | Q46: Maj | V46: =IF(E44="","",VLOOKUP(MONTH(E44),'Beregn varme 2013'!A$2:I$13,9,FALSE)) -> 7
E47: Års forbrug | G47: =SUM(D41:D46,G41:G46) -> 0 | J47: =IF(E45="","",VLOOKUP(MONTH(E45),T!A$1:B$12,2,FALSE)) -> Juni | K47: =IF(E45="","",E45-E44) -> 30 | N47: Juni | O47: ='2012 2'!G62 -> 369 | Q47: Juni | V47: =IF(E45="","",VLOOKUP(MONTH(E45),'Beregn varme 2013'!A$2:I$13,9,FALSE)) -> 7
J48: =IF(E46="","",VLOOKUP(MONTH(E46),T!A$1:B$12,2,FALSE)) -> Juli | K48: =IF(E46="","",E46-E45) -> 31 | N48: =J48 -> Juli | O48: ='2012 2'!G63 -> 358 | Q48: =J48 -> Juli | U48: =IF(R48<>"",T48/(R48/100),"") ->  | V48: =IF(E46="","",VLOOKUP(MONTH(E46),'Beregn varme 2013'!A$2:I$13,9,FALSE)) -> 7
J50: Hele året | K50: =SUM(K37:K48) -> 365 | L50: =G47/K50 -> 0 | N50: Års Total | O50: =SUM(O37:O48) -> 4628 | R50: =SUM(R37:R48) -> 0 | T50: =IF(R50<>0,R50-O50,"") ->  | U50: =IF(T50<>"",T50/(O50/100),"") ->  | V50: =SUM(V37:V48) -> 100 | W50: =SUM(W37:W48) -> 0

Sheet Tomt1 ark (hidden)
C1: MÅNEDLIG PEJLING AF OLIETANK | H1: Olie | I1: Dage | J1: Liter pr dag | L1: 2009 | O1: 2010 | R1: +/- | S1: %
H2: Januar | I2: =A6-A5 -> 31 | J2: =IF(F6<>"",F6/I2,"") ->  | L2: Olie | M2: Liter | N2: % | P2: Liter | Q2: % | R2: Liter
A3: Dato | C3: Fyldt på | E3: Plads til | H3: Februar | I3: 28 | L3: Januar | M3: ='2009'!F6 -> 187 | N3: =IF(M3="","",M3/(M$16/100)) -> 14.0813253 | O3: Januar | P3: ='2010'!F6 -> 210 | Q3: =IF(P3="","",P3/(P$16/100)) -> 13.96276596 | R3: =P3-M3 -> 23 | S3: =IF(P3<>"",R3/(M3/100),"") -> 12.29946524
B4: Pejling | C4: Liter | D4: Beholdning | E4: Liter | F4: Forbrugt | H4: marts | I4: 31 | L4: Februar | M4: ='2009'!F7 -> 179 | N4: =IF(M4="","",M4/(M$16/100)) -> 13.47891566 | O4: Februar | P4: ='2010'!F7 -> 172 | Q4: =IF(P4="","",P4/(P$16/100)) -> 11.43617021 | R4: =P4-M4 -> -7 | S4: =IF(P4<>"",R4/(M4/100),"") -> -3.910614525
A5: 2011-01-04 | B5: ='2011'!B22 -> 0 | D5: =IF(B5<>"",SUM(B5:C5),"") -> 0 | E5: =IF(D5<>"",1200-D5,"") -> 1200 | H5: april | I5: 30 | L5: Marts | M5: ='2009'!F8 -> 175 | N5: 13.17771084 | O5: Marts | P5: ='2010'!F8 -> 169 | Q5: 11.23670213 | R5: =P5-M5 -> -6 | S5: -3.428571429
A6: 2011-02-04 | D6: =IF(B6<>"",B6+C6,"") ->  | E6: =IF(D6<>"",1200-D6,"") ->  | F6: =IF(B6<>"",D5-B6,"") ->  | H6: maj | I6: 31 | L6: April | M6: ='2009'!F9 -> 72 | N6: 5.421686747 | O6: April | P6: ='2010'!F9 -> 151 | Q6: 10.03989362 | R6: =P6-M6 -> 79 | S6: 109.7222222
A7: 2011-03-04 | D7: =IF(B7<>"",B7+C7,"") ->  | E7: =IF(D7<>"",1200-D7,"") ->  | F7: =IF(B7<>"",D6-B7,"") ->  | H7: juni | I7: 30 | L7: Maj | M7: ='2009'!F10 -> 70 | N7: 5.271084337 | O7: Maj | P7: ='2010'!F10 -> 96 | Q7: 6.382978723 | R7: =P7-M7 -> 26 | S7: 37.14285714
A8: 2011-04-04 | H8: juli | I8: 31 | L8: Juni | M8: ='2009'!F11 -> 46 | N8: 3.463855422 | O8: Juni | P8: ='2010'!F11 -> 62 | Q8: 4.122340426 | R8: =IF(P8<>0,P8-M8,"") -> 16 | S8: =IF(P8<>0,R8/(M8/100),"") -> 34.7826087
A9: 2011-05-04 | H9: august | I9: 31 | L9: Juli | M9: ='2009'!F12 -> 49 | N9: 3.689759036 | O9: Juli | P9: ='2010'!F12 -> 40 | Q9: 2.659574468 | R9: =IF(P9<>"",P9-M9,"") -> -9 | S9: =IF(P9<>"",R9/(M9/100),"") -> -18.36734694
A10: 2011-06-04 | H10: september | I10: 30 | L10: August | M10: ='2009'!F13 -> 35 | N10: 2.635542169 | O10: August | P10: ='2010'!F13 -> 42 | Q10: 2.792553191 | R10: =IF(P10<>"",P10-M10,"") -> 7 | S10: =IF(P10<>"",R10/(M10/100),"") -> 20
A11: 2011-07-04 | H11: oktober | I11: 31 | L11: September | M11: ='2009'!F14 -> 45 | N11: 3.388554217 | O11: September | P11: ='2010'!F14 -> 85 | Q11: =IF(P11="","",P11/(P$16/100)) -> 5.651595745 | R11: 40 | S11: 88.88888889
A12: 2011-08-04 | H12: november | I12: 30 | L12: Oktober | M12: ='2009'!F15 -> 135 | N12: 10.16566265 | O12: Oktober | P12: ='2010'!F15 -> 102 | Q12: =IF(P12="","",P12/(P$16/100)) -> 6.781914894 | R12: -33 | S12: -24.44444444
A13: 2011-09-04 | H13: december | I13: 31 | L13: November | M13: ='2009'!F16 -> 138 | N13: 10.39156627 | O13: November | P13: ='2010'!F16 -> 167 | Q13: 11.1037234 | R13: 29 | S13: 21.01449275
A14: 2011-10-04 | L14: December | M14: ='2009'!F17 -> 197 | N14: 14.83433735 | O14: December | P14: ='2010'!F17 -> 208 | Q14: 13.82978723 | R14: 11 | S14: 5.583756345
A15: 2011-11-04 | H15: Hele året | I15: =A17-A5 -> 365 | J15: =F18/I15 -> 0
A16: 2011-12-04 | L16: Års Total | M16: =SUM(M3:M15) -> 1328 | N16: =SUM(N3:N14) -> 100 | P16: =SUM(P3:P15) -> 1504 | Q16: =SUM(Q3:Q14) -> 100 | R16: =P16-M16 -> 176 | S16: =R16/(M16/100) -> 13.25301205
A17: 2012-01-04 | H17: Vand | I17: Dage | J17: m³ pr. dag
D18: Års forbrug | F18: =SUM(F6:F17) -> 0 | H18: januar | I18: =A24-A23 -> 31 | J18: =IF(C24<>"",C24/I18,"") ->  | L18: 2009 | O18: 2010 | R18: +/- | S18: %
B19: MÅNEDLIG AFLÆSNING AF VANDMÅLER | H19: februar | I19: 28 | L19: Vand | M19: m3 | P19: m3 | R19: m3
H20: marts | I20: 31 | L20: Januar | M20: ='2009'!C24 -> 11 | O20: Januar | P20: 10 | R20: =P20-M20 -> -1 | S20: =IF(R20<>"",R20/(M20/100),"") -> -9.090909091
A21: Dato | C21: forbrug | D21: Dato | F21: forbrug | H21: april | I21: 30 | L21: Februar | M21: ='2009'!C25 -> 7 | O21: Februar | P21: 9 | R21: 2 | S21: =IF(R21<>"",R21/(M21/100),"") -> 28.57142857
B22: m³ | C22: m³ | E22: m³ | F22: m³ | H22: maj | I22: 31 | L22: Marts | M22: ='2009'!C26 -> 8 | O22: Marts | P22: 10 | R22: 2 | S22: 25
A23: 2011-01-04 | B23: ='2011'!E34 -> 1525 | H23: juni | I23: 30 | L23: April | M23: ='2009'!C27 -> 8 | O23: April | P23: 9 | R23: 1 | S23: 12.5
A24: 2011-02-04 | C24: =IF(B24<>"",B24-B23,"") ->  | D24: 2011-08-04 | F24: =IF(E24<>"",E24-B29,"") ->  | H24: juli | I24: =D24-A29 -> 31 | J24: =IF(F24<>"",F24/I24,"") ->  | L24: Maj | M24: ='2009'!C28 -> 9 | O24: Maj | P24: 8 | R24: -1 | S24: -11.11111111
A25: 2011-03-04 | D25: 2011-09-04 | F25: =IF(E25<>"",E25-E24,"") ->  | H25: august | I25: =D25-D24 -> 31 | L25: Juni | M25: ='2009'!C29 -> 9 | O25: Juni | P25: 9 | R25: =IF(P25<>0,P25-M25,"") -> 0 | S25: 0
A26: 2011-04-04 | D26: 2011-10-04 | F26: =IF(E26<>"",E26-E25,"") ->  | H26: september | I26: =D26-D25 -> 30 | L26: Juli | M26: ='2009'!F23 -> 9 | O26: Juli | R26: =IF(P26<>"",P26-M26,"") ->  | S26: =IF(R26<>"",R26/(M26/100),"") -> 
A27: 2011-05-04 | D27: 2011-11-04 | F27: =IF(E27<>"",E27-E26,"") ->  | H27: oktober | I27: =D27-D26 -> 31 | L27: August | M27: ='2009'!F24 -> 7 | O27: August | S27: =IF(R27<>"",R27/(P27/100),"") -> 
A28: 2011-06-04 | D28: 2011-12-04 | F28: =IF(E28<>"",E28-E27,"") ->  | H28: november | I28: =D28-D27 -> 30 | L28: September | M28: ='2009'!F25 -> 8 | O28: September
A29: 2011-07-04 | C29: =IF(B29<>"",B29-B28,"") ->  | D29: 2012-01-04 | F29: =IF(E29<>"",E29-E28,"") ->  | H29: december | I29: =D29-D28 -> 31 | L29: Oktober | M29: ='2009'!F26 -> 9 | O29: Oktober
D30: Års forbrug | F30: =SUM(C24:C29,F24:F29) -> 0 | L30: November | M30: ='2009'!F27 -> 8 | O30: November
B31: MÅNEDLIG AFLÆSNING AF ELMÅLER | H31: hele året | I31: =D29-A23 -> 365 | J31: =F30/I31 -> 0 | L31: December | M31: ='2009'!F28 -> 6 | O31: December
A33: Dato | C33: forbrug | D33: Dato | F33: forbrug | H33: EL | I33: Dage | J33: Kw pr. dag | L33: Års Total | M33: =SUM(M20:M32) -> 99 | P33: =SUM(P20:P32) -> 55 | R33: -44 | S33: =R33/(M33/100) -> -44.44444444
B34: Kw | C34: Kw | E34: Kw | F34: Kw | H34: Juni | I34: =A36-A35 -> 30 | J34: =IF(B36<>"",C36/I34,"") -> 
A35: 2011-06-04 | B35: ='2011'!E46 -> 60055 | H35: Juli | I35: 31 | L35: 2008/2009 | O35: 2009/2010 | R35: +/- | S35: %
A36: 2011-07-04 | C36: =IF(B36<>"",B36-B35,"") ->  | D36: 2012-01-04 | F36: =IF(E36<>"",E36-B41,"") ->  | H36: August | I36: 31 | L36: EL | M36: Kw | P36: Kw | R36: Kw
A37: 2011-08-04 | D37: 2012-02-04 | F37: =IF(E37<>"",E37-E36,"") ->  | H37: September | I37: 30 | L37: Juni | M37: 262 | O37: Juni | P37: 334 | R37: =P37-M37 -> 72 | S37: =R37/(M37/100) -> 27.48091603
A38: 2011-09-04 | C38: =IF(B38<>"",B38-B36,"") ->  | D38: 2012-03-04 | H38: Oktober | I38: 31 | L38: Juli | M38: 262 | O38: Juli | P38: 291 | R38: 29 | S38: =R38/(M38/100) -> 11.06870229
A39: 2011-10-04 | C39: =IF(B39<>"",B39-B38,"") ->  | D39: 2012-04-04 | F39: =IF(E39<>"",E39-E37,"") ->  | H39: November | I39: 30 | L39: August | M39: 278 | O39: August | P39: 264 | R39: -14 | S39: -5.035971223
A40: 2011-11-04 | C40: =IF(B40<>"",B40-B39,"") ->  | D40: 2012-05-04 | F40: =IF(E40<>"",E40-E39,"") ->  | H40: December | I40: =D36-A41 -> 31 | J40: =IF(E36<>"",F36/I40,"") ->  | L40: September | M40: 384 | O40: September | P40: 326 | R40: -58 | S40: -15.10416667
A41: 2011-12-04 | C41: =IF(B41<>"",B41-B40,"") ->  | D41: 2012-06-04 | F41: =IF(E41<>"",E41-E40,"") ->  | H41: Januar | I41: =D37-D36 -> 31 | L41: Oktober | M41: 438 | O41: Oktober | P41: 453 | R41: 15 | S41: 3.424657534
D42: Års forbrug | F42: =SUM(C36:C41,F36:F41) -> 0 | H42: Februar | I42: =D38-D37 -> 29 | L42: November | M42: 507 | O42: November | P42: 477 | R42: -30 | S42: -5.917159763
A43: Bemærkning: | H43: Marts | I43: =D39-D38 -> 31 | L43: December | M43: 506 | O43: December | P43: 549 | R43: 43 | S43: 8.498023715
H44: April | I44: =D40-D39 -> 30 | L44: Januar | M44: 671 | O44: Januar | P44: 614 | R44: -57 | S44: -8.494783905
H45: Maj | I45: =D41-D40 -> 31 | L45: Februar | M45: 565 | O45: Februar | P45: 596 | R45: 31 | S45: 5.486725664
L46: Marts | M46: 568 | O46: Marts | P46: 586 | R46: 18 | S46: 3.169014085
H47: Hele året | I47: =D41-A35 -> 366 | J47: =F42/I47 -> 0 | L47: April | M47: 412 | O47: April | P47: 477 | R47: 65 | S47: 15.77669903
L48: Maj | M48: 360 | O48: Maj | P48: 437 | R48: 77 | S48: 21.38888889
L50: Års Total | M50: =SUM(M37:M49) -> 5213 | P50: =SUM(P37:P49) -> 5404 | R50: 191 | S50: =R50/(M50/100) -> 3.66391713

Sheet nytark (hidden)
N1: 2012 | Q1: 2013 | T1: +/- | U1: % | V1: Forventet forbrug
A2: =System!A19 -> Version: 2.0.2 / Bjarne Hansen | J2: Olie | K2: Dage | L2: Liter pr dag | N2: Olie | O2: Liter | P2: % | R2: Liter | S2: % | T2: Liter | V2: % | W2: Liter
A3: Aflæsningsskema til Olieforbrug samt EL og Vand | J3: =IF(A11="","",VLOOKUP(MONTH(A11),T!A$1:B$12,2,FALSE)) -> Januar | K3: =A11-A10 -> 31 | L3: =IF(G11<>"",G11/K3,"") ->  | N3: =IF(A11="","",VLOOKUP(MONTH(A11),T!$A$1:$B$12,2,FALSE)) -> Januar | O3: ='2012'!G11 -> 362 | P3: =IF(O3="","",O3/(O$16/100)) -> 16.22590766 | Q3: =IF(A11="","",VLOOKUP(MONTH(A11),T!$A$1:$B$12,2,FALSE)) -> Januar | R3: =G11 ->  | S3: =IF(R3="","",R3/(R$16/100)) ->  | T3: =IF(R3<>"",R3-O3,"") ->  | U3: =IF(R3<>"",T3/(O3/100),"") ->  | V3: =IF(A11="","",VLOOKUP(MONTH(A11),'Beregn varme 2013'!A$2:G$13,7,FALSE)) -> 13.90884055 | W3: =IF(R3="","",VLOOKUP(MONTH(A11),'Beregn varme 2011'!A$2:F$13,6,FALSE)) -> 
A4: Navn : | B4: Bjarne Hansen, Lyrsbyvej 31 | J4: =IF(A12="","",VLOOKUP(MONTH(A12),T!A$1:B$12,2,FALSE)) -> Februar | K4: =IF(A12="","",A12-A11) -> 28 | N4: =IF(A12="","",VLOOKUP(MONTH(A12),T!A$1:B$12,2,FALSE)) -> Februar | O4: ='2012'!G12 -> 388 | P4: 17.39130435 | Q4: =IF(A12="","",VLOOKUP(MONTH(A12),T!$A$1:$B$12,2,FALSE)) -> Februar | T4: =IF(R4<>"",R4-O4,"") ->  | U4: =IF(R4<>"",T4/(O4/100),"") ->  | V4: =IF(A12="","",VLOOKUP(MONTH(A12),'Beregn varme 2013'!A$2:G$13,7,FALSE)) -> 12.81307613 | W4: =IF(R4="","",VLOOKUP(MONTH(A12),'Beregn varme 2011'!A$2:F$13,6,FALSE)) -> 
A5: Tankstørrelse: | C5: =System!F8 -> 1800 | D5: Liter | J5: =IF(A13="","",VLOOKUP(MONTH(A13),T!A$1:B$12,2,FALSE)) -> Marts | K5: 31 | N5: =IF(A13="","",VLOOKUP(MONTH(A13),T!A$1:B$12,2,FALSE)) -> Marts | O5: ='2012'!G13 -> 260 | P5: 11.65396683 | Q5: =IF(A13="","",VLOOKUP(MONTH(A13),T!$A$1:$B$12,2,FALSE)) -> Marts | V5: =IF(A13="","",VLOOKUP(MONTH(A13),'Beregn varme 2013'!A$2:G$13,7,FALSE)) -> 12.70564824 | W5: =IF(R5="","",VLOOKUP(MONTH(A13),'Beregn varme 2011'!A$2:F$13,6,FALSE)) -> 
A6: MÅNEDLIG PEJLING AF OLIETANK | J6: =IF(A14="","",VLOOKUP(MONTH(A14),T!A$1:B$12,2,FALSE)) -> April | K6: 30 | N6: =IF(A14="","",VLOOKUP(MONTH(A14),T!A$1:B$12,2,FALSE)) -> April | O6: ='2012'!G14 -> 201 | P6: 9.009412819 | Q6: =IF(A14="","",VLOOKUP(MONTH(A14),T!$A$1:$B$12,2,FALSE)) -> April | V6: =IF(A14="","",VLOOKUP(MONTH(A14),'Beregn varme 2013'!A$2:G$13,7,FALSE)) -> 8.838244392 | W6: =IF(R6="","",VLOOKUP(MONTH(A14),'Beregn varme 2011'!A$2:F$13,6,FALSE)) -> 
J7: =IF(A15="","",VLOOKUP(MONTH(A15),T!A$1:B$12,2,FALSE)) -> Maj | K7: 31 | N7: =IF(A15="","",VLOOKUP(MONTH(A15),T!A$1:B$12,2,FALSE)) -> Maj | O7: ='2012'!G15 -> 82 | P7: 3.675481847 | Q7: =IF(A15="","",VLOOKUP(MONTH(A15),T!$A$1:$B$12,2,FALSE)) -> Maj | V7: =IF(A15="","",VLOOKUP(MONTH(A15),'Beregn varme 2013'!A$2:G$13,7,FALSE)) -> 4.734499194 | W7: =IF(R7="","",VLOOKUP(MONTH(A15),'Beregn varme 2011'!A$2:F$13,6,FALSE)) -> 
A8: Dato | B8: Pejling | D8: Fyldt på | E8: Beholdning | F8: Plads til | G8: Forbrug | H8: Bemærkning: | J8: =IF(A16="","",VLOOKUP(MONTH(A16),T!A$1:B$12,2,FALSE)) -> Juni | K8: 30 | N8: =IF(A16="","",VLOOKUP(MONTH(A16),T!A$1:B$12,2,FALSE)) -> Juni | O8: ='2012'!G16 -> 43 | P8: 1.927386822 | Q8: =IF(A16="","",VLOOKUP(MONTH(A16),T!$A$1:$B$12,2,FALSE)) -> Juni | V8: =IF(A16="","",VLOOKUP(MONTH(A16),'Beregn varme 2013'!A$2:G$13,7,FALSE)) -> 3.488335731 | W8: =IF(R8="","",VLOOKUP(MONTH(A16),'Beregn varme 2011'!A$2:F$13,6,FALSE)) -> 
B9: i cm | C9: Liter | D9: Liter | F9: Liter | G9: Liter | J9: =IF(A17="","",VLOOKUP(MONTH(A17),T!A$1:B$12,2,FALSE)) -> Juli | K9: 31 | N9: =IF(A17="","",VLOOKUP(MONTH(A17),T!A$1:B$12,2,FALSE)) -> Juli | O9: ='2012'!G17 -> 6 | P9: 0.2689376961 | Q9: =IF(A17="","",VLOOKUP(MONTH(A17),T!$A$1:$B$12,2,FALSE)) -> Juli | V9: =IF(A17="","",VLOOKUP(MONTH(A17),'Beregn varme 2013'!A$2:G$13,7,FALSE)) -> 3.488335731 | W9: =IF(R9="","",VLOOKUP(MONTH(A17),'Beregn varme 2011'!A$2:F$13,6,FALSE)) -> 
A10: 2012-12-31 | B10: ='2012'!B22 -> 58.5 | C10: =IF(B10="","",IF(System!E$8=1,VLOOKUP(B10,Pejletabel!A$3:G$336,2,FALSE),IF(System!E$8=2,VLOOKUP(B10,Pejletabel!A$3:G$357,3,FALSE),IF(System!E$8=3,VLOOKUP(B10,Pejletabel!A$3:G$357,4,FALSE),IF(System!E$8=4,VLOOKUP(B10,Pejletabel!A$3:G$357,5,FALSE),IF(System!E8=5,VLOOKUP(B10,Pejletabel!A3:G358,6,FALSE),IF(System!E$8=6,VLOOKUP(B10,Pejletabel!A$3:G$357,7,FALSE)))))))) -> 670 | E10: =IF(C10<>"",SUM(C10:D10),"") -> 670 | F10: =IF(E10<>"",System!F$8-E10,"") -> 1130 | J10: =IF(A18="","",VLOOKUP(MONTH(A18),T!A$1:B$12,2,FALSE)) -> August | K10: 31 | N10: =IF(A18="","",VLOOKUP(MONTH(A18),T!A$1:B$12,2,FALSE)) -> August | O10: ='2012'!G18 -> 0 | P10: 0 | Q10: =IF(A18="","",VLOOKUP(MONTH(A18),T!$A$1:$B$12,2,FALSE)) -> August | V10: =IF(A18="","",VLOOKUP(MONTH(A18),'Beregn varme 2013'!A$2:G$13,7,FALSE)) -> 3.488335731 | W10: =IF(R10="","",VLOOKUP(MONTH(A18),'Beregn varme 2011'!A$2:F$13,6,FALSE)) -> 
A11: 2013-01-31 | C11: =IF(B11="","",IF(System!E$8=1,VLOOKUP(B11,Pejletabel!A$3:G$336,2,FALSE),IF(System!E$8=2,VLOOKUP(B11,Pejletabel!A$3:G$357,3,FALSE),IF(System!E$8=3,VLOOKUP(B11,Pejletabel!A$3:G$357,4,FALSE),IF(System!E$8=4,VLOOKUP(B11,Pejletabel!A$3:G$357,5,FALSE),IF(System!E$8=5,VLOOKUP(B11,Pejletabel!A$3:G$357,6,FALSE),IF(System!E8=6,VLOOKUP(B11,Pejletabel!A3:G357,7,FALSE)))))))) ->  | E11: =IF(C11<>"",C11+D11,"") ->  | F11: =IF(E11<>"",1800-E11,"") ->  | G11: =IF(C11<>"",E10-C11,"") ->  | J11: =IF(A19="","",VLOOKUP(MONTH(A19),T!A$1:B$12,2,FALSE)) -> September | K11: 30 | N11: =IF(A19="","",VLOOKUP(MONTH(A19),T!A$1:B$12,2,FALSE)) -> September | O11: ='2012'!G19 -> 73 | P11: 3.272075303 | Q11: =IF(A19="","",VLOOKUP(MONTH(A19),T!$A$1:$B$12,2,FALSE)) -> September | V11: =IF(A19="","",VLOOKUP(MONTH(A19),'Beregn varme 2013'!A$2:G$13,7,FALSE)) -> 4.046960732 | W11: =IF(R11="","",VLOOKUP(MONTH(A19),'Beregn varme 2011'!A$2:F$13,6,FALSE)) -> 
A12: 2013-02-28 | C12: =IF(B12="","",IF(System!E$8=1,VLOOKUP(B12,Pejletabel!A$3:G$336,2,FALSE),IF(System!E$8=2,VLOOKUP(B12,Pejletabel!A$3:G$357,3,FALSE),IF(System!E$8=3,VLOOKUP(B12,Pejletabel!A$3:G$357,4,FALSE),IF(System!E$8=4,VLOOKUP(B12,Pejletabel!A$3:G$357,5,FALSE),IF(System!E$8=5,VLOOKUP(B12,Pejletabel!A$3:G$357,6,FALSE),IF(System!E13=6,VLOOKUP(B12,Pejletabel!A4:G358,7,FALSE)))))))) ->  | E12: =IF(C12<>"",C12+D12,"") ->  | F12: =IF(E12<>"",1800-E12,"") ->  | G12: =IF(C12<>"",E11-C12,"") ->  | J12: =IF(A20="","",VLOOKUP(MONTH(A20),T!A$1:B$12,2,FALSE)) -> Oktober | K12: 31 | N12: =IF(A20="","",VLOOKUP(MONTH(A20),T!A$1:B$12,2,FALSE)) -> Oktober | O12: ='2012'!G20 -> 188 | P12: 8.426714478 | Q12: =IF(A20="","",VLOOKUP(MONTH(A20),T!$A$1:$B$12,2,FALSE)) -> Oktober | V12: =IF(A20="","",VLOOKUP(MONTH(A20),'Beregn varme 2013'!A$2:G$13,7,FALSE)) -> 7.849907852 | W12: =IF(R12="","",VLOOKUP(MONTH(A20),'Beregn varme 2011'!A$2:F$13,6,FALSE)) -> 
A13: 2013-03-31 | C13: =IF(B13="","",IF(System!E$8=1,VLOOKUP(B13,Pejletabel!A$3:G$336,2,FALSE),IF(System!E$8=2,VLOOKUP(B13,Pejletabel!A$3:G$357,3,FALSE),IF(System!E$8=3,VLOOKUP(B13,Pejletabel!A$3:G$357,4,FALSE),IF(System!E$8=4,VLOOKUP(B13,Pejletabel!A$3:G$357,5,FALSE),IF(System!E$8=5,VLOOKUP(B13,Pejletabel!A$3:G$357,6,FALSE),IF(System!E19=6,VLOOKUP(B13,Pejletabel!A5:G359,7,FALSE)))))))) ->  | E13: =IF(C13<>"",C13+D13,"") ->  | J13: =IF(A21="","",VLOOKUP(MONTH(A21),T!A$1:B$12,2,FALSE)) -> November | K13: 30 | N13: =IF(A21="","",VLOOKUP(MONTH(A21),T!A$1:B$12,2,FALSE)) -> November | O13: ='2012'!G21 -> 289 | P13: 12.95383236 | Q13: =IF(A21="","",VLOOKUP(MONTH(A21),T!$A$1:$B$12,2,FALSE)) -> November | V13: =IF(A21="","",VLOOKUP(MONTH(A21),'Beregn varme 2013'!A$2:G$13,7,FALSE)) -> 11.07274439 | W13: =IF(R13="","",VLOOKUP(MONTH(A21),'Beregn varme 2011'!A$2:F$13,6,FALSE)) -> 
A14: 2013-04-30 | C14: =IF(B14="","",IF(System!E$8=1,VLOOKUP(B14,Pejletabel!A$3:G$336,2,FALSE),IF(System!E$8=2,VLOOKUP(B14,Pejletabel!A$3:G$357,3,FALSE),IF(System!E$8=3,VLOOKUP(B14,Pejletabel!A$3:G$357,4,FALSE),IF(System!E$8=4,VLOOKUP(B14,Pejletabel!A$3:G$357,5,FALSE),IF(System!E$8=5,VLOOKUP(B14,Pejletabel!A$3:G$357,6,FALSE),IF(System!E20=6,VLOOKUP(B14,Pejletabel!A6:G360,7,FALSE)))))))) ->  | J14: =IF(A22="","",VLOOKUP(MONTH(A22),T!A$1:B$12,2,FALSE)) -> December | K14: 31 | N14: =IF(A22="","",VLOOKUP(MONTH(A22),T!A$1:B$12,2,FALSE)) -> December | O14: ='2012'!G22 -> 339 | P14: 15.19497983 | Q14: =IF(A22="","",VLOOKUP(MONTH(A22),T!$A$1:$B$12,2,FALSE)) -> December | V14: =IF(A22="","",VLOOKUP(MONTH(A22),'Beregn varme 2013'!A$2:G$13,7,FALSE)) -> 13.56507132 | W14: =IF(R14="","",VLOOKUP(MONTH(A22),'Beregn varme 2011'!A$2:F$13,6,FALSE)) -> 
A15: 2013-05-31 | C15: =IF(B15="","",IF(System!E$8=1,VLOOKUP(B15,Pejletabel!A$3:G$336,2,FALSE),IF(System!E$8=2,VLOOKUP(B15,Pejletabel!A$3:G$357,3,FALSE),IF(System!E$8=3,VLOOKUP(B15,Pejletabel!A$3:G$357,4,FALSE),IF(System!E$8=4,VLOOKUP(B15,Pejletabel!A$3:G$357,5,FALSE),IF(System!E$8=5,VLOOKUP(B15,Pejletabel!A$3:G$357,6,FALSE),IF(System!E21=6,VLOOKUP(B15,Pejletabel!A7:G361,7,FALSE)))))))) -> 
A16: 2013-06-30 | C16: =IF(B16="","",IF(System!E$8=1,VLOOKUP(B16,Pejletabel!A$3:G$336,2,FALSE),IF(System!E$8=2,VLOOKUP(B16,Pejletabel!A$3:G$357,3,FALSE),IF(System!E$8=3,VLOOKUP(B16,Pejletabel!A$3:G$357,4,FALSE),IF(System!E$8=4,VLOOKUP(B16,Pejletabel!A$3:G$357,5,FALSE),IF(System!E$8=5,VLOOKUP(B16,Pejletabel!A$3:G$357,6,FALSE),IF(System!E22=6,VLOOKUP(B16,Pejletabel!A8:G362,7,FALSE)))))))) ->  | J16: Hele året | K16: =SUM(K3:K14) -> 365 | L16: =G23/K16 -> 0 | N16: Års Total | O16: ='2012'!G23 -> 2231 | P16: =SUM(P3:P14) -> 100 | R16: =G23 -> 0 | T16: =IF(R16<>0,R16-O16,"") ->  | U16: =IF(R16<>0,T16/(R16/100),"") ->  | V16: =SUM(V3:V14) -> 100 | W16: =SUM(W3:W14) -> 0
A17: 2013-07-31 | C17: =IF(B17="","",IF(System!E$8=1,VLOOKUP(B17,Pejletabel!A$3:G$336,2,FALSE),IF(System!E$8=2,VLOOKUP(B17,Pejletabel!A$3:G$357,3,FALSE),IF(System!E$8=3,VLOOKUP(B17,Pejletabel!A$3:G$357,4,FALSE),IF(System!E$8=4,VLOOKUP(B17,Pejletabel!A$3:G$357,5,FALSE),IF(System!E$8=5,VLOOKUP(B17,Pejletabel!A$3:G$357,6,FALSE),IF(System!E23=6,VLOOKUP(B17,Pejletabel!A9:G363,7,FALSE)))))))) -> 
A18: 2013-08-31 | C18: =IF(B18="","",IF(System!E$8=1,VLOOKUP(B18,Pejletabel!A$3:G$336,2,FALSE),IF(System!E$8=2,VLOOKUP(B18,Pejletabel!A$3:G$357,3,FALSE),IF(System!E$8=3,VLOOKUP(B18,Pejletabel!A$3:G$357,4,FALSE),IF(System!E$8=4,VLOOKUP(B18,Pejletabel!A$3:G$357,5,FALSE),IF(System!E$8=5,VLOOKUP(B18,Pejletabel!A$3:G$357,6,FALSE),IF(System!E24=6,VLOOKUP(B18,Pejletabel!A10:G364,7,FALSE)))))))) ->  | N18: 2012 | Q18: 2013 | T18: +/- | U18: % | V18: Forventet forbrug
A19: 2013-09-30 | C19: =IF(B19="","",IF(System!E$8=1,VLOOKUP(B19,Pejletabel!A$3:G$336,2,FALSE),IF(System!E$8=2,VLOOKUP(B19,Pejletabel!A$3:G$357,3,FALSE),IF(System!E$8=3,VLOOKUP(B19,Pejletabel!A$3:G$357,4,FALSE),IF(System!E$8=4,VLOOKUP(B19,Pejletabel!A$3:G$357,5,FALSE),IF(System!E$8=5,VLOOKUP(B19,Pejletabel!A$3:G$357,6,FALSE),IF(System!E25=6,VLOOKUP(B19,Pejletabel!A11:G365,7,FALSE)))))))) ->  | J19: Vand | K19: Dage | L19: m³ pr. dag | N19: Vand | O19: m³ | R19: m³ | T19: m³ | V19: % | W19: m³
A20: 2013-10-31 | C20: =IF(B20="","",IF(System!E$8=1,VLOOKUP(B20,Pejletabel!A$3:G$336,2,FALSE),IF(System!E$8=2,VLOOKUP(B20,Pejletabel!A$3:G$357,3,FALSE),IF(System!E$8=3,VLOOKUP(B20,Pejletabel!A$3:G$357,4,FALSE),IF(System!E$8=4,VLOOKUP(B20,Pejletabel!A$3:G$357,5,FALSE),IF(System!E$8=5,VLOOKUP(B20,Pejletabel!A$3:G$357,6,FALSE),IF(System!E26=6,VLOOKUP(B20,Pejletabel!A12:G366,7,FALSE)))))))) ->  | J20: =IF(A29="","",VLOOKUP(MONTH(A29),T!A$1:B$12,2,FALSE)) -> Januar | K20: =A29-A28 -> 31 | L20: =IF(D29<>"",D29/K20,"") ->  | N20: =IF(A29="","",VLOOKUP(MONTH(A29),T!A$1:B$12,2,FALSE)) -> Januar | O20: ='2012'!D29 -> 7 | Q20: Januar | R20: =D29 ->  | T20: =IF(R20<>"",R20-O20,"") ->  | U20: =IF(T20<>"",T20/(O20/100),"") ->  | V20: =IF(A29="","",VLOOKUP(MONTH(A29),'Beregn varme 2013'!A$2:H$13,8,FALSE)) -> 8.493150685 | W20: =IF(R20="","",O$33/100*V20) -> 
A21: 2013-11-30 | C21: =IF(B21="","",IF(System!E$8=1,VLOOKUP(B21,Pejletabel!A$3:G$336,2,FALSE),IF(System!E$8=2,VLOOKUP(B21,Pejletabel!A$3:G$357,3,FALSE),IF(System!E$8=3,VLOOKUP(B21,Pejletabel!A$3:G$357,4,FALSE),IF(System!E$8=4,VLOOKUP(B21,Pejletabel!A$3:G$357,5,FALSE),IF(System!E$8=5,VLOOKUP(B21,Pejletabel!A$3:G$357,6,FALSE),IF(System!E27=6,VLOOKUP(B21,Pejletabel!A13:G367,7,FALSE)))))))) ->  | F21: =IF(E21<>"",1800-E21,"") ->  | J21: =IF(A30="","",VLOOKUP(MONTH(A30),T!A$1:B$12,2,FALSE)) -> Februar | K21: =IF(A30="","",A30-A29) -> 28 | N21: =IF(A30="","",VLOOKUP(MONTH(A30),T!A$1:B$12,2,FALSE)) -> Februar | O21: ='2012'!D30 -> 7 | Q21: Februar | T21: =IF(R21<>"",R21-O21,"") ->  | U21: =IF(T21<>"",T21/(O21/100),"") ->  | V21: =IF(A30="","",VLOOKUP(MONTH(A30),'Beregn varme 2013'!A$2:H$13,8,FALSE)) -> 7.671232877
A22: 2013-12-31 | C22: =IF(B22="","",IF(System!E$8=1,VLOOKUP(B22,Pejletabel!A$3:G$336,2,FALSE),IF(System!E$8=2,VLOOKUP(B22,Pejletabel!A$3:G$357,3,FALSE),IF(System!E$8=3,VLOOKUP(B22,Pejletabel!A$3:G$357,4,FALSE),IF(System!E$8=4,VLOOKUP(B22,Pejletabel!A$3:G$357,5,FALSE),IF(System!E$8=5,VLOOKUP(B22,Pejletabel!A$3:G$357,6,FALSE),IF(System!E28=6,VLOOKUP(B22,Pejletabel!A14:G368,7,FALSE)))))))) ->  | F22: =IF(E22<>"",1800-E22,"") ->  | J22: =IF(A31="","",VLOOKUP(MONTH(A31),T!A$1:B$12,2,FALSE)) -> Marts | K22: =IF(A31="","",A31-A30) -> 31 | N22: =IF(A31="","",VLOOKUP(MONTH(A31),T!A$1:B$12,2,FALSE)) -> Marts | O22: ='2012'!D31 -> 6 | Q22: Marts | V22: =IF(A31="","",VLOOKUP(MONTH(A31),'Beregn varme 2013'!A$2:H$13,8,FALSE)) -> 8.493150685
E23: Års forbrug | G23: =SUM(G11:G22) -> 0 | J23: =IF(A32="","",VLOOKUP(MONTH(A32),T!A$1:B$12,2,FALSE)) -> April | K23: =IF(A32="","",A32-A31) -> 30 | N23: =IF(A32="","",VLOOKUP(MONTH(A32),T!A$1:B$12,2,FALSE)) -> April | O23: ='2012'!D32 -> 8 | Q23: April | V23: =IF(A32="","",VLOOKUP(MONTH(A32),'Beregn varme 2013'!A$2:H$13,8,FALSE)) -> 8.219178082
A24: MÅNEDLIG AFLÆSNING AF VANDMÅLER | J24: =IF(A33="","",VLOOKUP(MONTH(A33),T!A$1:B$12,2,FALSE)) -> Maj | K24: =IF(A33="","",A33-A32) -> 31 | N24: =IF(A33="","",VLOOKUP(MONTH(A33),T!A$1:B$12,2,FALSE)) -> Maj | O24: ='2012'!D33 -> 7 | Q24: Maj | V24: =IF(A33="","",VLOOKUP(MONTH(A33),'Beregn varme 2013'!A$2:H$13,8,FALSE)) -> 8.493150685
J25: =IF(A34="","",VLOOKUP(MONTH(A34),T!A$1:B$12,2,FALSE)) -> Juni | K25: =IF(E29="","",A34-A33) -> 30 | N25: Juni | O25: ='2012'!D34 -> 7 | Q25: Juni | V25: =IF(A34="","",VLOOKUP(MONTH(A34),'Beregn varme 2013'!A$2:H$13,8,FALSE)) -> 8.219178082
A26: Dato | B26: Aflæst | D26: Forbrug | E26: Dato | F26: Aflæst | G26: Forbrug | H26: Bemærkning: | J26: =IF(E29="","",VLOOKUP(MONTH(E29),T!A$1:B$12,2,FALSE)) -> Juli | K26: =IF(E29="","",E29-A34) -> 31 | L26: =IF(G29<>"",G29/K26,"") ->  | N26: Juli | O26: ='2012'!G29 -> 416 | Q26: Juli | R26: =G29 ->  | V26: =IF(E29="","",VLOOKUP(MONTH(E29),'Beregn varme 2013'!A$2:H$13,8,FALSE)) -> 8.493150685
B27: m³ | D27: m³ | F27: m³ | G27: m³ | J27: =IF(E30="","",VLOOKUP(MONTH(E30),T!A$1:B$12,2,FALSE)) -> August | K27: =IF(E30="","",E30-E29) -> 31 | N27: August | O27: ='2012'!G30 -> 404 | Q27: August | V27: =IF(E30="","",VLOOKUP(MONTH(E30),'Beregn varme 2013'!A$2:H$13,8,FALSE)) -> 8.493150685
A28: 2012-12-31 | B28: ='2012'!F34 -> 17567 | J28: =IF(E31="","",VLOOKUP(MONTH(E31),T!A$1:B$12,2,FALSE)) -> September | K28: =IF(E31="","",E31-E30) -> 30 | N28: September | O28: ='2012'!G31 -> 403 | Q28: September | V28: =IF(E31="","",VLOOKUP(MONTH(E31),'Beregn varme 2013'!A$2:H$13,8,FALSE)) -> 8.219178082
A29: 2013-01-31 | D29: =IF(B29<>"",B29-B28,"") ->  | E29: 2013-07-31 | G29: =IF(F29<>"",F29-C34,"") ->  | J29: =IF(E32="","",VLOOKUP(MONTH(E32),T!A$1:B$12,2,FALSE)) -> Oktober | K29: =IF(E32="","",E32-E31) -> 31 | N29: Oktober | O29: ='2012'!G32 -> 403 | Q29: Oktober | V29: =IF(E32="","",VLOOKUP(MONTH(E32),'Beregn varme 2013'!A$2:H$13,8,FALSE)) -> 8.493150685
A30: 2013-02-28 | D30: =IF(B30<>"",B30-B29,"") ->  | E30: 2013-08-31 | G30: =IF(F30<>"",F30-F29,"") ->  | J30: =IF(E33="","",VLOOKUP(MONTH(E33),T!A$1:B$12,2,FALSE)) -> November | K30: =IF(E33="","",E33-E32) -> 30 | N30: November | O30: ='2012'!G33 -> 375 | Q30: November | V30: =IF(E33="","",VLOOKUP(MONTH(E33),'Beregn varme 2013'!A$2:H$13,8,FALSE)) -> 8.219178082
A31: 2013-03-31 | E31: 2013-09-30 | G31: =IF(F31<>"",F31-F30,"") ->  | J31: =IF(E34="","",VLOOKUP(MONTH(E34),T!A$1:B$12,2,FALSE)) -> December | K31: =IF(E34="","",E34-E33) -> 31 | N31: December | O31: ='2012'!G34 -> 369 | Q31: December | V31: =IF(E34="","",VLOOKUP(MONTH(E34),'Beregn varme 2013'!A$2:H$13,8,FALSE)) -> 8.493150685
A32: 2013-04-30 | E32: 2013-10-31 | G32: =IF(F32<>"",F32-F31,"") -> 
A33: 2013-05-31 | E33: 2013-11-30 | G33: =IF(F33<>"",F33-F32,"") ->  | J33: Hele året | K33: =SUM(K20:K31) -> 365 | L33: =G35/K33 -> 0 | N33: Års Total | O33: =SUM(O20:O31) -> 2412 | R33: =G35 -> 0 | T33: =IF(R33<>0,R33-O33,"") ->  | U33: =IF(T33<>"",T33/(R33/100),"") ->  | V33: =SUM(V20:V31) -> 100 | W33: =SUM(W20:W31) -> 0
A34: 2013-06-30 | D34: =IF(C34<>"",C34-C33,"") ->  | E34: 2013-12-31 | G34: =IF(F34<>"",F34-F33,"") -> 
E35: Års forbrug | G35: =SUM(D29:D34,G29:G34) -> 0 | N35: 2011/2012 | Q35: 2012/2013 | T35: +/- | U35: % | V35: Forventet forbrug
A36: MÅNEDLIG AFLÆSNING AF ELMÅLER | J36: EL | K36: Dage | L36: KWh pr. dag | N36: EL | O36: KWh | R36: KWh | T36: KWh | V36: % | W36: KWh
J37: =IF(A41="","",VLOOKUP(MONTH(A41),T!A$1:B$12,2,FALSE)) -> August | K37: =A41-A40 -> 31 | L37: =IF(D41<>"",D41/K37,"") -> 12.32258065 | N37: =J37 -> August | O37: ='2012'!D63 -> 335 | Q37: =J37 -> August | R37: =D41 -> 382 | T37: =IF(R37="","",R37-O37) -> 47 | U37: =IF(R37<>"",T37/(O37/100),"") -> 14.02985075 | V37: =IF(A41="","",VLOOKUP(MONTH(A41),'Beregn varme 2013'!A$2:I$13,9,FALSE)) -> 7 | W37: =IF(R37="","",O$50/100*V37) -> 323.96
A38: Dato | B38: Aflæst | D38: Forbrug | E38: Dato | F38: Aflæst | G38: Forbrug | H38: Bemærkning: | J38: =IF(A42="","",VLOOKUP(MONTH(A42),T!A$1:B$12,2,FALSE)) -> September | K38: 30 | L38: 14.1 | N38: =J38 -> September | O38: ='2012'!D64 -> 333 | Q38: =J38 -> September | R38: =IF(D42<>"",D42,"") -> 423 | T38: =IF(R38<>"",R38-O38,"") -> 90 | U38: =IF(R38<>"",T38/(O38/100),"") -> 27.02702703 | V38: =IF(A42="","",VLOOKUP(MONTH(A42),'Beregn varme 2013'!A$2:I$13,9,FALSE)) -> 8 | W38: 370.24
B39: KWh | D39: KWh | F39: KWh | G39: KWh | J39: =IF(A43="","",VLOOKUP(MONTH(A43),T!A$1:B$12,2,FALSE)) -> Oktober | K39: =IF(A43="","",A43-A42) -> 31 | L39: 15.51612903 | N39: Oktober | O39: ='2012'!D65 -> 403 | Q39: Oktober | R39: =IF(D43<>"",D43,"") -> 481 | T39: =IF(R39<>"",R39-O39,"") -> 78 | U39: =IF(R39<>"",T39/(O39/100),"") -> 19.35483871 | V39: =IF(A43="","",VLOOKUP(MONTH(A43),'Beregn varme 2013'!A$2:I$13,9,FALSE)) -> 9 | W39: 416.52
A40: 2012-07-31 | B40: ='2012'!F66 -> 17925 | J40: =IF(A44="","",VLOOKUP(MONTH(A44),T!A$1:B$12,2,FALSE)) -> November | K40: =IF(A44="","",A44-A43) -> 30 | L40: 14.4 | N40: November | O40: ='2012'!D66+'2012 2'!D61 -> 500 | Q40: November | R40: =IF(D44<>"",D44,"") -> 432 | T40: =IF(R40<>"",R40-O40,"") -> -68 | U40: =IF(R40<>"",T40/(O40/100),"") -> -13.6 | V40: =IF(A44="","",VLOOKUP(MONTH(A44),'Beregn varme 2013'!A$2:I$13,9,FALSE)) -> 9 | W40: 416.52
A41: 2012-08-31 | B41: 18307 | D41: =IF(B41<>"",B41-B40,"") -> 382 | E41: 2013-02-28 | J41: =IF(A45="","",VLOOKUP(MONTH(A45),T!A$1:B$12,2,FALSE)) -> December | K41: =IF(A45="","",A45-A44) -> 31 | L41: 15.93548387 | N41: December | O41: ='2012 2'!D62 -> 329 | Q41: December | R41: =IF(D45<>"",D45,"") -> 494 | T41: =IF(R41<>"",R41-O41,"") -> 165 | U41: =IF(R41<>"",T41/(O41/100),"") -> 50.15197568 | V41: =IF(A45="","",VLOOKUP(MONTH(A45),'Beregn varme 2013'!A$2:I$13,9,FALSE)) -> 10 | W41: 462.8
A42: 2012-09-30 | B42: 18730 | D42: =IF(B42<>"",B42-B41,"") -> 423 | E42: 2013-03-31 | G42: =IF(F42<>"",F42-F41,"") ->  | J42: =IF(A46="","",VLOOKUP(MONTH(A46),T!A$1:B$12,2,FALSE)) -> Januar | K42: 1 | N42: Januar | O42: ='2012 2'!D63 -> 416 | Q42: Januar | R42: =IF(D46<>"",D46,"") ->  | T42: =IF(R42<>"",R42-O42,"") ->  | V42: =IF(A46="","",VLOOKUP(MONTH(A46),'Beregn varme 2013'!A$2:I$13,9,FALSE)) -> 10
A43: 2012-10-31 | B43: 19211 | D43: =IF(B43<>"",B43-B42,"") -> 481 | E43: 2013-04-30 | G43: =IF(F43<>"",F43-F42,"") ->  | J43: =IF(E41="","",VLOOKUP(MONTH(E41),T!A$1:B$12,2,FALSE)) -> Februar | K43: =IF(E41="","",E41-A46) -> 58 | L43: =IF(G41<>"",G41/K43,"") ->  | N43: Februar | O43: ='2012 2'!D64 -> 404 | Q43: Februar | R43: =IF(G41<>"",G41,"") ->  | V43: =IF(E41="","",VLOOKUP(MONTH(E41),'Beregn varme 2013'!A$2:I$13,9,FALSE)) -> 9
A44: 2012-11-30 | B44: 19643 | D44: =IF(B44<>"",B44-B43,"") -> 432 | E44: 2013-05-31 | G44: =IF(F44<>"",F44-F43,"") ->  | J44: =IF(E42="","",VLOOKUP(MONTH(E42),T!A$1:B$12,2,FALSE)) -> Marts | K44: =IF(E42="","",E42-E41) -> 31 | N44: Marts | O44: ='2012 2'!D65 -> 403 | Q44: Marts | V44: =IF(E42="","",VLOOKUP(MONTH(E42),'Beregn varme 2013'!A$2:I$13,9,FALSE)) -> 9
A45: 2012-12-31 | B45: 20137 | D45: 494 | E45: 2013-06-30 | G45: =IF(F45<>"",F45-F44,"") ->  | J45: =IF(E43="","",VLOOKUP(MONTH(E43),T!A$1:B$12,2,FALSE)) -> April | K45: =IF(E43="","",E43-E42) -> 30 | N45: April | O45: ='2012 2'!D66 -> 403 | Q45: April | V45: =IF(E43="","",VLOOKUP(MONTH(E43),'Beregn varme 2013'!A$2:I$13,9,FALSE)) -> 8
A46: 2013-01-01 | E46: 2013-07-31 | G46: =IF(F46<>"",F46-F45,"") ->  | J46: =IF(E44="","",VLOOKUP(MONTH(E44),T!A$1:B$12,2,FALSE)) -> Maj | K46: =IF(E44="","",E44-E43) -> 31 | N46: Maj | O46: ='2012 2'!G61 -> 375 | Q46: Maj | V46: =IF(E44="","",VLOOKUP(MONTH(E44),'Beregn varme 2013'!A$2:I$13,9,FALSE)) -> 7
E47: Års forbrug | G47: =SUM(D41:D46,G41:G46) -> 2212 | J47: =IF(E45="","",VLOOKUP(MONTH(E45),T!A$1:B$12,2,FALSE)) -> Juni | K47: =IF(E45="","",E45-E44) -> 30 | N47: Juni | O47: ='2012 2'!G62 -> 369 | Q47: Juni | V47: =IF(E45="","",VLOOKUP(MONTH(E45),'Beregn varme 2013'!A$2:I$13,9,FALSE)) -> 7
J48: =IF(E46="","",VLOOKUP(MONTH(E46),T!A$1:B$12,2,FALSE)) -> Juli | K48: =IF(E46="","",E46-E45) -> 31 | N48: =J48 -> Juli | O48: ='2012 2'!G63 -> 358 | Q48: =J48 -> Juli | U48: =IF(R48<>"",T48/(R48/100),"") ->  | V48: =IF(E46="","",VLOOKUP(MONTH(E46),'Beregn varme 2013'!A$2:I$13,9,FALSE)) -> 7
J50: Hele året | K50: =SUM(K37:K48) -> 365 | L50: =G47/K50 -> 6.060273973 | N50: Års Total | O50: =SUM(O37:O48) -> 4628 | R50: =SUM(R37:R48) -> 2212 | T50: =IF(R50<>0,R50-O50,"") -> -2416 | U50: =IF(T50<>"",T50/(O50/100),"") -> -52.2039758 | V50: =SUM(V37:V48) -> 100 | W50: =SUM(W37:W48) -> 1990.04

Sheet 2004 (hidden)
C1: MÅNEDLIG PEJLING AF OLIETANK | H1: Olie | I1: Dage | J1: Liter pr dag
H2: Marts | I2: =A6-A5 -> 37 | J2: =F6/I2 -> 4.297297297
A3: Dato | C3: Fyldt på | E3: Plads til | H3: April | I3: 36 | J3: 3.472222222
B4: Pejling | C4: Liter | D4: Beholdning | E4: Liter | F4: Forbrugt | H4: Maj | I4: 31 | J4: 2.903225806
A5: 2004-02-01 | B5: 450 | D5: =B5 -> 450 | E5: =IF(D5<>"",1200-D5,"") -> 750 | H5: Juni | I5: 31 | J5: 2.032258065
A6: 2004-03-09 | B6: 291 | C6: 769 | D6: =IF(B6<>"",B6+C6,"") -> 1060 | E6: =IF(D6<>"",1200-D6,"") -> 140 | F6: =IF(B6<>"",D5-B6,"") -> 159 | H6: Juli | I6: 32 | J6: 2.25
A7: 2004-04-14 | B7: 935 | D7: =IF(B7<>"",B7+C7,"") -> 935 | E7: =IF(D7<>"",1200-D7,"") -> 265 | F7: =IF(B7<>"",D6-B7,"") -> 125 | H7: August | I7: 28 | J7: 1.071428571
A8: 2004-05-15 | B8: 845 | D8: 845 | E8: 355 | F8: 90 | H8: September | I8: 31 | J8: =IF(F12<>"",F12/I8,"") -> 1.838709677
A9: 2004-06-15 | B9: 782 | D9: 782 | E9: 418 | F9: 63 | H9: Oktober | I9: 31 | J9: =IF(F13<>"",F13/I9,"") -> 2.516129032
A10: 2004-07-17 | B10: 710 | D10: 710 | E10: 490 | F10: 72 | H10: November | I10: 30 | J10: 3.5
A11: 2004-08-14 | B11: 680 | D11: 680 | E11: 520 | F11: 30 | H11: December | I11: 30 | J11: 6.333333333
A12: 2004-09-14 | B12: 623 | D12: 623 | E12: 577 | F12: 57
A13: 2004-10-15 | B13: 545 | D13: 545 | E13: 655 | F13: 78
A14: 2004-11-14 | B14: 440 | D14: 440 | E14: 760 | F14: 105
A15: 2004-12-14 | B15: 250 | C15: 802 | D15: 1052 | E15: 148 | F15: 190 | H15: Hele året | I15: =A15-A5 -> 317 | J15: =F18/I15 -> 3.056782334
H17: Vand | I17: Dage | J17: m³ pr. dag
D18: Års forbrug | F18: =SUM(F6:F17) -> 969 | H18: Hele året | I18: =A24-A23 -> 319 | J18: =C24/I18 -> 0.2884012539
B19: MÅNEDLIG AFLÆSNING AF VANDMÅLER
A21: Dato | C21: forbrug | D21: Dato | F21: forbrug
B22: m³ | C22: m³ | E22: m³ | F22: m³
A23: 2004-01-25 | B23: 385 | F23: =IF(E23<>"",E23-B29,"") -> 
A24: 2004-12-09 | B24: 477 | C24: =IF(B24<>"",B24-B23,"") -> 92 | F24: =IF(E24<>"",E24-E23,"") ->  | J24: =IF(F23<>"",F23/I24,"") -> 
F25: =IF(E25<>"",E25-E24,"") ->  | J25: =IF(F24<>"",F24/I25,"") -> 
F26: =IF(E26<>"",E26-E25,"") -> 
F27: =IF(E27<>"",E27-E26,"") -> 
F28: =IF(E28<>"",E28-E27,"") -> 
D29: Års forbrug | F29: =SUM(C24:C29,F23:F28) -> 92
B30: MÅNEDLIG AFLÆSNING AF ELMÅLER
H31: hele året | I31: =A24-A23 -> 319 | J31: =F29/I31 -> 0.2884012539
A32: Dato | C32: forbrug | D32: Dato | F32: forbrug
B33: Kw | C33: Kw | E33: Kw | F33: Kw | H33: EL | I33: Dage | J33: Kw pr. dag
A34: 2004-01-31 | B34: 22983 | F34: =IF(E34<>"",E34-B40,"") ->  | H34: Hele året | I34: =A35-A34 -> 117 | J34: =C35/I34 -> 8.982905983
A35: 2004-05-27 | B35: 24034 | C35: =IF(B35<>"",B35-B34,"") -> 1051 | F35: =IF(E35<>"",E35-E34,"") -> 
C37: =IF(B37<>"",B37-B35,"") ->  | F37: =IF(E37<>"",E37-E35,"") -> 
C38: =IF(B38<>"",B38-B37,"") ->  | F38: =IF(E38<>"",E38-E37,"") -> 
C39: =IF(B39<>"",B39-B38,"") ->  | F39: =IF(E39<>"",E39-E38,"") -> 
C40: =IF(B40<>"",B40-B39,"") ->  | D40: Års forbrug | F40: =SUM(C35:C40,F34:F39) -> 1051
H47: Hele året | I47: =A35-A34 -> 117 | J47: =F40/I47 -> 8.982905983

Sheet 2005 (hidden)
B1: MÅNEDLIG PEJLING AF OLIETANK | H1: Olie | I1: Dage | J1: Liter pr dag | L1: 2004 | O1: 2005 | R1: +/- | S1: %
H2: Januar | I2: =A6-A5 -> 31 | J2: =F6/I2 -> 3.290322581 | L2: Olie | M2: Liter | P2: Liter | R2: Liter
A3: Dato | C3: Fyldt på | E3: Plads til | H3: Februar | I3: 31 | J3: 5.483870968 | L3: Januar | M3: 0 | O3: Januar | P3: ='2005'!$F$6 -> 102 | R3: =P3-M3 -> 102 | S3: =IF(M3<>0,R3/(M3/100),"") -> 
B4: Pejling | C4: Liter | D4: Beholdning | E4: Liter | F4: Forbrugt | H4: marts | I4: 28 | J4: 6.785714286 | L4: Februar | M4: 0 | O4: Februar | P4: ='2005'!$F$7 -> 170 | R4: =P4-M4 -> 170 | S4: =IF(M4<>0,R4/(M4/100),"") -> 
A5: 2004-12-14 | B5: 1052 | D5: =B5 -> 1052 | E5: =IF(D5<>"",1200-D5,"") -> 148 | H5: april | I5: 25 | J5: 4.8 | L5: Marts | M5: ='2004'!$F$6 -> 159 | O5: Marts | P5: ='2005'!$F$8 -> 190 | R5: =P5-M5 -> 31 | S5: =R5/(M5/100) -> 19.49685535
A6: 2005-01-14 | B6: 950 | D6: =IF(B6<>"",B6+C6,"") -> 950 | E6: =IF(D6<>"",1200-D6,"") -> 250 | F6: =IF(B6<>"",D5-B6,"") -> 102 | H6: maj | I6: 30 | J6: 3.233333333 | L6: April | M6: ='2004'!$F$7 -> 125 | O6: April | P6: ='2005'!$F$9 -> 120 | R6: =P6-M6 -> -5 | S6: =R6/(M6/100) -> -4
A7: 2005-02-14 | B7: 780 | D7: =IF(B7<>"",B7+C7,"") -> 780 | E7: =IF(D7<>"",1200-D7,"") -> 420 | F7: =IF(B7<>"",D6-B7,"") -> 170 | H7: juni | I7: 31 | J7: 3.064516129 | L7: Maj | M7: ='2004'!$F$8 -> 90 | O7: Maj | P7: ='2005'!$F$10 -> 97 | R7: =P7-M7 -> 7 | S7: =R7/(M7/100) -> 7.777777778
A8: 2005-03-14 | B8: 590 | D8: 590 | E8: 610 | F8: 190 | H8: juli | I8: 30 | J8: =IF(F12<>"",F12/I8,"") -> 1.666666667 | L8: Juni | M8: ='2004'!$F$9 -> 63 | O8: Juni | P8: ='2005'!$F$11 -> 95 | R8: =P8-M8 -> 32 | S8: =R8/(M8/100) -> 50.79365079
A9: 2005-04-08 | B9: 470 | C9: 647 | D9: 1117 | E9: 83 | F9: 120 | H9: august | I9: 32 | J9: =IF(F13<>"",F13/I9,"") -> 1.5 | L9: Juli | M9: ='2004'!$F$10 -> 72 | O9: Juli | P9: ='2005'!$F$12 -> 50 | R9: -22 | S9: -30.55555556
A10: 2005-05-08 | B10: 1020 | D10: 1020 | E10: 180 | F10: 97 | H10: september | I10: 31 | J10: 1.419354839 | L10: August | M10: ='2004'!$F$11 -> 30 | O10: August | P10: ='2005'!$F$13 -> 48 | R10: 18 | S10: 60
A11: 2005-06-08 | B11: 925 | D11: 925 | E11: 275 | F11: 95 | H11: oktober | I11: 30 | J11: 2.366666667 | L11: September | M11: ='2004'!$F$12 -> 57 | O11: September | P11: ='2005'!$F$14 -> 44 | R11: -13 | S11: -22.80701754
A12: 2005-07-08 | B12: 875 | D12: 875 | E12: 325 | F12: 50 | H12: november | I12: 31 | J12: 3.290322581 | L12: Oktober | M12: ='2004'!$F$13 -> 78 | O12: Oktober | P12: ='2005'!$F$15 -> 71 | R12: -7 | S12: -8.974358974
A13: 2005-08-09 | B13: 827 | D13: 827 | E13: 373 | F13: 48 | H13: december | I13: 31 | J13: 4.580645161 | L13: November | M13: ='2004'!$F$14 -> 105 | O13: November | P13: ='2005'!$F$16 -> 102 | R13: -3 | S13: -2.857142857
A14: 2005-09-09 | B14: 783 | D14: 783 | E14: 417 | F14: 44 | L14: December | M14: ='2004'!$F$15 -> 190 | O14: December | P14: ='2005'!$F$17 -> 142 | R14: -48 | S14: -25.26315789
A15: 2005-10-09 | B15: 712 | D15: 712 | E15: 488 | F15: 71 | H15: Hele året | I15: =A17-A5 -> 361 | J15: =F18/I15 -> 3.409972299 | L15: Års Total | M15: ='2004'!$F$18 -> 969 | O15: Års Total | P15: ='2005'!$F$18 -> 1231 | R15: =P15-M15 -> 262 | S15: =R15/(M15/100) -> 27.03818369
A16: 2005-11-09 | B16: 610 | D16: 610 | E16: 590 | F16: 102
A17: 2005-12-10 | B17: 468 | D17: 468 | E17: 732 | F17: 142 | H17: Vand | I17: Dage | J17: m³ pr. dag | L17: 2004 | O17: 2005 | R17: +/- | S17: %
D18: Års forbrug | F18: =SUM(F6:F17) -> 1231 | H18: April | I18: =A24-A23 -> 150 | J18: =C24/I18 -> 0.3266666667 | L18: Vand | M18: m3 | P18: m3 | R18: m3
B19: MÅNEDLIG AFLÆSNING AF VANDMÅLER | H19: maj | I19: 31 | J19: 0.3870967742 | L19: Hele året | M19: ='2004'!$C$24 -> 92 | O19: Hele året | P19: ='2005'!$F$29 -> 129 | R19: =P19-M19 -> 37 | S19: =R19/(P19/100) -> 28.68217054
H20: Juni | I20: 30 | J20: 0.4333333333 | S20: =IF(R20<>0,R20/(P20/100),"") -> 
A21: Dato | C21: forbrug | D21: Dato | F21: forbrug | H21: Juli | I21: 32 | J21: 0.28125 | S21: =IF(R21<>0,R21/(P21/100),"") -> 
B22: m³ | C22: m³ | E22: m³ | F22: m³ | H22: August | I22: 31 | J22: 0.4193548387
A23: 2004-12-09 | B23: 477 | D23: 2005-11-09 | E23: 596 | F23: =IF(E23<>"",E23-B29,"") -> 10 | H23: September | I23: 30 | J23: 0.4333333333
A24: 2005-05-08 | B24: 526 | C24: =IF(B24<>"",B24-B23,"") -> 49 | D24: 2005-12-10 | E24: 606 | F24: =IF(E24<>"",E24-E23,"") -> 10 | H24: Oktober | I24: =D23-A29 -> 31 | J24: =IF(F23<>"",F23/I24,"") -> 0.3225806452
A25: 2005-06-08 | B25: 538 | C25: 12 | F25: =IF(E25<>"",E25-E24,"") ->  | H25: November | I25: =D24-D23 -> 31 | J25: =IF(F24<>"",F24/I25,"") -> 0.3225806452
A26: 2005-07-08 | B26: 551 | C26: 13 | F26: =IF(E26<>"",E26-E25,"") -> 
A27: 2005-08-09 | B27: 560 | C27: 9 | F27: =IF(E27<>"",E27-E26,"") -> 
A28: 2005-09-09 | B28: 573 | C28: 13 | F28: =IF(E28<>"",E28-E27,"") -> 
A29: 2005-10-09 | B29: 586 | C29: 13 | D29: Års forbrug | F29: =SUM(C24:C29,F23:F28) -> 129
B30: MÅNEDLIG AFLÆSNING AF ELMÅLER
H31: hele året | I31: =D24-A23 -> 366 | J31: =F29/I31 -> 0.3524590164 | L31: Års Total | M31: ='2004'!$F$29 -> 92 | O31: Års Total | P31: ='2005'!$F$29 -> 129 | R31: =P31-M31 -> 37 | S31: =R31/(M31/100) -> 40.2173913
A32: Dato | C32: forbrug | D32: Dato | F32: forbrug
B33: Kw | C33: Kw | E33: Kw | F33: Kw | H33: EL | I33: Dage | J33: Kw pr. dag | L33: 2003/2004 | O33: 2004/2005 | R33: +/- | S33: %
A34: 2004-05-27 | B34: 24034 | F34: =IF(E34<>"",E34-B40,"") ->  | H34: Hele året | I34: =A35-A34 -> 346 | J34: =C35/I34 -> 12.84104046 | L34: EL | M34: Kw | P34: Kw | R34: Kw
A35: 2005-05-08 | B35: 28477 | C35: =IF(B35<>"",B35-B34,"") -> 4443 | F35: =IF(E35<>"",E35-E34,"") ->  | L35: Hele året | M35: ='2004'!$F$40 -> 1051 | O35: Hele året | P35: ='2005'!$F$40 -> 4443 | R35: =P35-M35 -> 3392 | S35: =R35/(M35/100) -> 322.7402474
F37: =IF(E37<>"",E37-E35,"") -> 
F38: =IF(E38<>"",E38-E37,"") -> 
F39: =IF(E39<>"",E39-E38,"") -> 
D40: Års forbrug | F40: =SUM(C35:C40,F34:F39) -> 4443
A41: Bemærkning:
H47: Hele året | I47: =A35-A34 -> 346 | J47: =F40/I47 -> 12.84104046 | L47: Års Total | M47: ='2004'!$F$40 -> 1051 | O47: Års Total | P47: =F40 -> 4443 | R47: =P47-M47 -> 3392 | S47: =R47/(M47/100) -> 322.7402474

Sheet 2006 (hidden)
B1: MÅNEDLIG PEJLING AF OLIETANK | H1: Olie | I1: Dage | J1: Liter pr dag | L1: 2005 | O1: 2006 | R1: +/- | S1: %
H2: Januar | I2: =A6-A5 -> 31 | J2: =F6/I2 -> 6.161290323 | L2: Olie | M2: Liter | P2: Liter | R2: Liter
A3: Dato | C3: Fyldt på | E3: Plads til | H3: Februar | I3: 32 | J3: 6.125 | L3: Januar | M3: ='2005'!$F$6 -> 102 | O3: Januar | P3: ='2006'!$F$6 -> 191 | R3: =P3-M3 -> 89 | S3: =R3/(M3/100) -> 87.25490196
B4: Pejling | C4: Liter | D4: Beholdning | E4: Liter | F4: Forbrugt | H4: marts | I4: 30 | J4: 6.4 | L4: Februar | M4: ='2005'!$F$7 -> 170 | O4: Februar | P4: ='2006'!$F$7 -> 196 | R4: =P4-M4 -> 26 | S4: =R4/(M4/100) -> 15.29411765
A5: 2005-12-10 | B5: 468 | D5: =B5 -> 468 | E5: =IF(D5<>"",1200-D5,"") -> 732 | H5: april | I5: 31 | J5: 5.258064516 | L5: Marts | M5: ='2005'!$F$8 -> 190 | O5: Marts | P5: ='2006'!$F$8 -> 192 | R5: =P5-M5 -> 2 | S5: =R5/(M5/100) -> 1.052631579
A6: 2006-01-10 | B6: 277 | C6: 859 | D6: =IF(B6<>"",B6+C6,"") -> 1136 | E6: =IF(D6<>"",1200-D6,"") -> 64 | F6: =IF(B6<>"",D5-B6,"") -> 191 | H6: maj | I6: 31 | J6: 3.774193548 | L6: April | M6: ='2005'!$F$9 -> 120 | O6: April | P6: ='2006'!$F$9 -> 163 | R6: =P6-M6 -> 43 | S6: =R6/(M6/100) -> 35.83333333
A7: 2006-02-11 | B7: 940 | D7: =IF(B7<>"",B7+C7,"") -> 940 | E7: =IF(D7<>"",1200-D7,"") -> 260 | F7: =IF(B7<>"",D6-B7,"") -> 196 | H7: juni | I7: 34 | J7: 2.882352941 | L7: Maj | M7: ='2005'!$F$10 -> 97 | O7: Maj | P7: ='2006'!$F$10 -> 117 | R7: =P7-M7 -> 20 | S7: =R7/(M7/100) -> 20.6185567
A8: 2006-03-13 | B8: 748 | D8: 748 | E8: 452 | F8: 192 | H8: juli | I8: 31 | J8: =IF(F12<>"",F12/I8,"") -> 1.225806452 | L8: Juni | M8: ='2005'!$F$11 -> 95 | O8: Juni | P8: ='2006'!$F$11 -> 98 | R8: =P8-M8 -> 3 | S8: =R8/(M8/100) -> 3.157894737
A9: 2006-04-13 | B9: 585 | D9: 585 | E9: 615 | F9: 163 | H9: august | I9: 31 | J9: =IF(F13<>"",F13/I9,"") -> 1.451612903 | L9: Juli | M9: ='2005'!$F$12 -> 50 | O9: Juli | P9: ='2006'!$F$12 -> 38 | R9: -12 | S9: -24
A10: 2006-05-14 | B10: 468 | D10: 468 | E10: 732 | F10: 117 | H10: september | I10: 31 | J10: 1.838709677 | L10: August | M10: ='2005'!$F$13 -> 48 | O10: August | P10: ='2006'!$F$13 -> 45 | R10: -3 | S10: -6.25
A11: 2006-06-17 | B11: 370 | D11: 370 | E11: 830 | F11: 98 | H11: oktober | I11: 35 | J11: 1.571428571 | L11: September | M11: ='2005'!$F$14 -> 44 | O11: September | P11: ='2006'!$F$14 -> 57 | R11: 13 | S11: 29.54545455
A12: 2006-07-18 | B12: 332 | D12: 332 | E12: 868 | F12: 38 | H12: november | I12: 34 | J12: 4.029411765 | L12: Oktober | M12: ='2005'!$F$15 -> 71 | O12: Oktober | P12: ='2006'!$F$15 -> 55 | R12: -16 | S12: -22.53521127
A13: 2006-08-18 | B13: 287 | D13: 287 | E13: 913 | F13: 45 | H13: december | I13: 34 | J13: 4.029411765 | L13: November | M13: ='2005'!$F$16 -> 102 | O13: November | P13: ='2006'!$F$16 -> 137 | R13: 35 | S13: 34.31372549
A14: 2006-09-18 | B14: 230 | C14: 875 | D14: 1105 | E14: 95 | F14: 57 | L14: December | M14: ='2005'!$F$17 -> 142 | O14: December | P14: ='2006'!$F$17 -> 137 | R14: -5 | S14: -3.521126761
A15: 2006-10-23 | B15: 1050 | D15: 1050 | E15: 150 | F15: 55 | H15: Hele året | I15: =A17-A5 -> 385 | J15: =F18/I15 -> 3.703896104
A16: 2006-11-26 | B16: 913 | D16: 913 | E16: 287 | F16: 137 | L16: Års Total | M16: ='2005'!$F$18 -> 1231 | O16: Års Total | P16: ='2006'!$F$18 -> 1426 | R16: 195 | S16: =R16/(M16/100) -> 15.84077985
A17: 2006-12-30 | B17: 776 | D17: 776 | E17: 424 | F17: 137 | H17: Vand | I17: Dage | J17: m³ pr. dag
D18: Års forbrug | F18: =SUM(F6:F17) -> 1426 | H18: januar | I18: =A24-A23 -> 31 | J18: =C24/I18 -> 0.3548387097 | L18: 2005 | O18: 2006 | R18: +/- | S18: %
B19: MÅNEDLIG AFLÆSNING AF VANDMÅLER | H19: februar | I19: 32 | J19: 0.28125 | L19: Vand | M19: m3 | P19: m3 | R19: m3
H20: marts | I20: 30 | J20: 0.2666666667 | L20: Januar | O20: Januar | P20: ='2006'!$C$24 -> 11 | R20: =P20-M20 -> 11 | S20: =IF(M20<>"",R20/(M20/100),"") -> 
A21: Dato | C21: forbrug | D21: Dato | F21: forbrug | H21: april | I21: 31 | J21: 0.2903225806 | L21: Februar | O21: Februar | P21: ='2006'!$C$25 -> 9 | R21: 9 | S21: =IF(M21<>"",R21/(M21/100),"") -> 
B22: m³ | C22: m³ | E22: m³ | F22: m³ | H22: maj | I22: 31 | J22: 0.3225806452 | L22: Marts | O22: Marts | P22: ='2006'!$C$26 -> 8 | R22: 8 | S22: =IF(M22<>"",R22/(M22/100),"") -> 
A23: 2005-12-10 | B23: 606 | D23: 2006-07-18 | E23: 673 | F23: =IF(E23<>"",E23-B29,"") -> 9 | H23: juni | I23: 34 | J23: 0.3235294118 | L23: April | M23: ='2005'!$C$24 -> 49 | O23: April | P23: ='2006'!$C$27 -> 9 | R23: -40 | S23: =IF(M23<>"",R23/(M23/100),"") -> -81.63265306
A24: 2006-01-10 | B24: 617 | C24: =IF(B24<>"",B24-B23,"") -> 11 | D24: 2006-08-18 | E24: 682 | F24: =IF(E24<>"",E24-E23,"") -> 9 | H24: juli | I24: =D23-A29 -> 31 | J24: =IF(F23<>"",F23/I24,"") -> 0.2903225806 | L24: Maj | M24: ='2005'!$C$25 -> 12 | O24: Maj | P24: ='2006'!$C$28 -> 10 | R24: -2 | S24: -16.66666667
A25: 2006-02-11 | B25: 626 | C25: 9 | D25: 2006-09-18 | E25: 693 | F25: =IF(E25<>"",E25-E24,"") -> 11 | H25: august | I25: =D24-D23 -> 31 | J25: =IF(F24<>"",F24/I25,"") -> 0.2903225806 | L25: Juni | M25: ='2005'!$C$26 -> 13 | O25: Juni | P25: ='2006'!$C$29 -> 11 | R25: -2 | S25: -15.38461538
A26: 2006-03-13 | B26: 634 | C26: 8 | D26: 2006-10-23 | E26: 702 | F26: =IF(E26<>"",E26-E25,"") -> 9 | H26: september | I26: =D25-D24 -> 31 | J26: 0.3548387097 | L26: Juli | M26: ='2005'!$C$27 -> 9 | O26: Juli | P26: ='2006'!$F$23 -> 9 | R26: 0 | S26: 0
A27: 2006-04-13 | B27: 643 | C27: 9 | D27: 2006-11-26 | E27: 713 | F27: =IF(E27<>"",E27-E26,"") -> 11 | H27: oktober | I27: =D26-D25 -> 35 | J27: 0.2571428571 | L27: August | M27: ='2005'!$C$28 -> 13 | O27: August | P27: ='2006'!$F$24 -> 9 | R27: -4 | S27: -30.76923077
A28: 2006-05-14 | B28: 653 | C28: 10 | D28: 2006-12-06 | E28: 715 | F28: =IF(E28<>"",E28-E27,"") -> 2 | H28: november | I28: =D27-D26 -> 34 | J28: 0.3235294118 | L28: September | M28: ='2005'!$C$29 -> 13 | O28: September | P28: ='2006'!$F$25 -> 11 | R28: -2 | S28: -15.38461538
A29: 2006-06-17 | B29: 664 | C29: 11 | D29: Års forbrug | F29: =SUM(C24:C29,F23:F28) -> 109 | H29: december | I29: =D28-D27 -> 10 | J29: 0.2 | L29: Oktober | M29: ='2005'!$F$23 -> 10 | O29: Oktober | P29: ='2006'!$F$26 -> 9 | R29: -1 | S29: -10
B30: MÅNEDLIG AFLÆSNING AF ELMÅLER | L30: November | M30: ='2005'!$F$24 -> 10 | O30: November | P30: ='2006'!$F$27 -> 11 | R30: 1 | S30: 10
H31: hele året | I31: =D28-A23 -> 361 | J31: =F29/I31 -> 0.3019390582 | L31: December | O31: December | P31: ='2006'!$F$28 -> 2 | R31: 2
A32: Dato | C32: forbrug | D32: Dato | F32: forbrug
B33: Kw | C33: Kw | E33: Kw | F33: Kw | H33: EL | I33: Dage | J33: Kw pr. dag | L33: Års Total | M33: =SUM(M23:M30) -> 129 | O33: Års Total | P33: =SUM(P20:P31) -> 109 | R33: -20 | S33: =R33/(M33/100) -> -15.50387597
A34: 2005-05-08 | B34: 28477 | H34: Juni | I34: =A35-A34 -> 31 | J34: =C35/I34 -> 9.096774194
A35: 2005-06-08 | B35: 28759 | C35: =IF(B35<>"",B35-B34,"") -> 282 | D35: 2005-12-10 | E35: 30639 | F35: =IF(E35<>"",E35-B40,"") -> 483 | H35: Juli | I35: 30 | J35: 9 | L35: 2004/2005 | O35: 2005/5006 | R35: +/- | S35: %
A36: 2005-07-08 | B36: 29029 | C36: 270 | D36: 2006-01-10 | E36: 31185 | F36: =IF(E36<>"",E36-E35,"") -> 546 | H36: August | I36: 32 | J36: 7.4375 | L36: EL | M36: Kw | P36: Kw | R36: Kw
A37: 2005-08-09 | B37: 29267 | C37: 238 | D37: 2006-02-11 | E37: 31899 | F37: =IF(E37<>"",E37-E36,"") -> 714 | H37: September | I37: 31 | J37: 8.096774194 | O37: Juni | P37: ='2006'!$C$35 -> 282 | R37: =P37-M37 -> 282 | S37: =IF(M37<>"",R37/(M37/100),"") -> 
A38: 2005-09-09 | B38: 29518 | C38: 251 | D38: 2006-03-13 | E38: 32569 | F38: =IF(E38<>"",E38-E37,"") -> 670 | H38: Oktober | I38: 30 | J38: 9.033333333 | O38: Juli | P38: ='2006'!$C$36 -> 270 | R38: 270 | S38: =IF(M38<>"",R38/(M38/100),"") -> 
A39: 2005-10-09 | B39: 29789 | C39: 271 | D39: 2006-04-13 | E39: 33154 | F39: =IF(E39<>"",E39-E38,"") -> 585 | H39: November | I39: 31 | J39: 11.83870968 | O39: August | P39: ='2006'!$C$37 -> 238 | R39: 238
A40: 2005-11-09 | B40: 30156 | C40: 367 | D40: 2006-05-14 | E40: 33594 | F40: =IF(E40<>"",E40-E39,"") -> 440 | H40: December | I40: =D35-A40 -> 31 | J40: =F35/I40 -> 15.58064516 | O40: September | P40: ='2006'!$C$38 -> 251 | R40: 251
D41: Års forbrug | F41: =SUM(C35:C40,F35:F40) -> 5117 | H41: Januar | I41: =D36-D35 -> 31 | J41: 17.61290323 | O41: Oktober | P41: ='2006'!$C$39 -> 271 | R41: 271
H42: Februar | I42: =D37-D36 -> 32 | J42: 22.3125 | O42: November | P42: ='2006'!$C$40 -> 367 | R42: 367
H43: Marts | I43: =D38-D37 -> 30 | J43: 22.33333333 | O43: December | P43: ='2006'!$F$35 -> 483 | R43: 483
H44: April | I44: =D39-D38 -> 31 | J44: 18.87096774 | O44: Januar | P44: ='2006'!$F$36 -> 546 | R44: 546
H45: Maj | I45: =D40-D39 -> 31 | J45: 14.19354839 | O45: Februar | P45: ='2006'!$F$37 -> 714 | R45: 714
O46: Marts | P46: ='2006'!$F$38 -> 670 | R46: 670
H47: Hele året | I47: =D40-A34 -> 371 | J47: =F41/I47 -> 13.79245283 | O47: April | P47: ='2006'!$F$39 -> 585 | R47: 585
O48: Maj | P48: ='2006'!$F$40 -> 440 | R48: 440
L50: Års Total | M50: ='2005'!$F$40 -> 4443 | O50: Års Total | P50: ='2006'!$F$41 -> 5117 | R50: 674 | S50: =R50/(M50/100) -> 15.16993023

Sheet 2007 (hidden)
B1: MÅNEDLIG PEJLING AF OLIETANK | H1: Olie | I1: Dage | J1: Liter pr dag | L1: 2006 | O1: 2007 | R1: +/- | S1: %
H2: Januar | I2: =A6-A5 -> 35 | J2: =F6/I2 -> 3.6 | L2: Olie | M2: Liter | P2: Liter | R2: Liter
A3: Dato | C3: Fyldt på | E3: Plads til | H3: Februar | I3: 28 | J3: 6.785714286 | L3: Januar | M3: ='2006'!$F$6 -> 191 | O3: Januar | P3: ='2007'!$F$6 -> 126 | R3: =P3-M3 -> -65 | S3: =R3/(M3/100) -> -34.03141361
B4: Pejling | C4: Liter | D4: Beholdning | E4: Liter | F4: Forbrugt | H4: marts | I4: 31 | J4: 4.516129032 | L4: Februar | M4: ='2006'!$F$7 -> 196 | O4: Februar | P4: ='2007'!$F$7 -> 190 | R4: =P4-M4 -> -6 | S4: =R4/(M4/100) -> -3.06122449
A5: 2006-12-30 | B5: 776 | D5: =B5 -> 776 | E5: =IF(D5<>"",1200-D5,"") -> 424 | H5: april | I5: 29 | J5: 3.793103448 | L5: Marts | M5: ='2006'!$F$8 -> 192 | O5: Marts | P5: ='2007'!$F$8 -> 140 | R5: =P5-M5 -> -52 | S5: =R5/(M5/100) -> -27.08333333
A6: 2007-02-03 | B6: 650 | D6: =IF(B6<>"",B6+C6,"") -> 650 | E6: =IF(D6<>"",1200-D6,"") -> 550 | F6: =IF(B6<>"",D5-B6,"") -> 126 | H6: maj | I6: 26 | J6: 1.192307692 | L6: April | M6: ='2006'!$F$9 -> 163 | O6: April | P6: ='2007'!$F$9 -> 110 | R6: =P6-M6 -> -53 | S6: =R6/(M6/100) -> -32.51533742
A7: 2007-03-03 | B7: 460 | D7: =IF(B7<>"",B7+C7,"") -> 460 | E7: =IF(D7<>"",1200-D7,"") -> 740 | F7: =IF(B7<>"",D6-B7,"") -> 190 | H7: juni | I7: 31 | J7: 1.290322581 | L7: Maj | M7: ='2006'!$F$10 -> 117 | O7: Maj | P7: ='2007'!$F$10 -> 31 | R7: =P7-M7 -> -86 | S7: =R7/(M7/100) -> -73.5042735
A8: 2007-04-03 | B8: 320 | D8: 320 | E8: 880 | F8: 140 | H8: juli | I8: 31 | J8: =IF(F12<>"",F12/I8,"") -> 1.677419355 | L8: Juni | M8: ='2006'!$F$11 -> 98 | O8: Juni | P8: ='2007'!$F$11 -> 40 | R8: =P8-M8 -> -58 | S8: =R8/(M8/100) -> -59.18367347
A9: 2007-05-02 | B9: 210 | C9: 871 | D9: 1081 | E9: 119 | F9: 110 | H9: august | I9: 32 | J9: =IF(F13<>"",F13/I9,"") -> 1.1875 | L9: Juli | M9: ='2006'!$F$12 -> 38 | O9: Juli | P9: ='2007'!$F$12 -> 52 | R9: 14 | S9: 36.84210526
A10: 2007-05-28 | B10: 1050 | D10: 1050 | E10: 150 | F10: 31 | H10: september | I10: 31 | J10: 2.516129032 | L10: August | M10: ='2006'!$F$13 -> 45 | O10: August | P10: ='2007'!$F$13 -> 38 | R10: -7 | S10: -15.55555556
A11: 2007-06-28 | B11: 1010 | D11: 1010 | E11: 190 | F11: 40 | H11: oktober | I11: 32 | J11: 3.59375 | L11: September | M11: ='2006'!$F$14 -> 57 | O11: September | P11: ='2007'!$F$14 -> 78 | R11: 21 | S11: 36.84210526
A12: 2007-07-29 | B12: 958 | D12: 958 | E12: 242 | F12: 52 | H12: november | I12: 30 | J12: 4.833333333 | L12: Oktober | M12: ='2006'!$F$15 -> 55 | O12: Oktober | P12: ='2007'!$F$15 -> 115 | R12: 60 | S12: 109.0909091
A13: 2007-08-30 | B13: 920 | D13: 920 | E13: 280 | F13: 38 | H13: december | I13: 31 | J13: 5.161290323 | L13: November | M13: ='2006'!$F$16 -> 137 | O13: November | P13: ='2007'!$F$16 -> 145 | R13: 8 | S13: 5.839416058
A14: 2007-09-30 | B14: 842 | D14: 842 | E14: 358 | F14: 78 | L14: December | M14: ='2006'!$F$17 -> 137 | O14: December | P14: ='2007'!$F$17 -> 160 | R14: 23 | S14: 16.78832117
A15: 2007-11-01 | B15: 727 | D15: 727 | E15: 473 | F15: 115 | H15: Hele året | I15: =A17-A5 -> 367 | J15: =F18/I15 -> 3.337874659
A16: 2007-12-01 | B16: 582 | D16: 582 | E16: 618 | F16: 145 | L16: Års Total | M16: ='2006'!$F$18 -> 1426 | O16: Års Total | P16: ='2007'!$F$18 -> 1225 | R16: -201 | S16: =R16/(M16/100) -> -14.09537167
A17: 2008-01-01 | B17: 422 | D17: 422 | E17: 778 | F17: 160 | H17: Vand | I17: Dage | J17: m³ pr. dag
D18: Års forbrug | F18: =SUM(F6:F17) -> 1225 | H18: januar | I18: =A24-A23 -> 59 | J18: =C24/I18 -> 0.3389830508 | L18: 2006 | O18: 2007 | R18: +/- | S18: %
B19: MÅNEDLIG AFLÆSNING AF VANDMÅLER | H19: februar | I19: 28 | J19: 0.2857142857 | L19: Vand | M19: m3 | P19: m3 | R19: m3
H20: marts | I20: 31 | J20: 0.2903225806 | L20: Januar | M20: ='2006'!$C$24 -> 11 | O20: Januar | P20: ='2007'!$C$24 -> 20 | R20: =P20-M20 -> 9 | S20: =R20/(M20/100) -> 81.81818182
A21: Dato | C21: forbrug | D21: Dato | F21: forbrug | H21: april | I21: 29 | J21: 0.3793103448 | L21: Februar | M21: ='2006'!$C$25 -> 9 | O21: Februar | P21: ='2007'!$C$25 -> 8 | R21: -1 | S21: =R21/(M21/100) -> -11.11111111
B22: m³ | C22: m³ | E22: m³ | F22: m³ | H22: maj | I22: 26 | J22: 0.3461538462 | L22: Marts | M22: ='2006'!$C$26 -> 8 | O22: Marts | P22: ='2007'!$C$26 -> 9 | R22: 1 | S22: 12.5
A23: 2006-12-06 | B23: 715 | D23: 2007-07-29 | E23: 790 | F23: =IF(E23<>"",E23-B29,"") -> 8 | H23: juni | I23: 31 | J23: 0.3225806452 | L23: April | M23: ='2006'!$C$27 -> 9 | O23: April | P23: ='2007'!$C$27 -> 11 | R23: 2 | S23: 22.22222222
A24: 2007-02-03 | B24: 735 | C24: =IF(B24<>"",B24-B23,"") -> 20 | D24: 2007-08-30 | E24: 799 | F24: =IF(E24<>"",E24-E23,"") -> 9 | H24: juli | I24: =D23-A29 -> 31 | J24: =IF(F23<>"",F23/I24,"") -> 0.2580645161 | L24: Maj | M24: ='2006'!$C$28 -> 10 | O24: Maj | P24: ='2007'!$C$28 -> 9 | R24: -1 | S24: -10
A25: 2007-03-03 | B25: 743 | C25: 8 | D25: 2007-09-30 | E25: 809 | F25: =IF(E25<>"",E25-E24,"") -> 10 | H25: august | I25: =D24-D23 -> 32 | J25: =IF(F24<>"",F24/I25,"") -> 0.28125 | L25: Juni | M25: ='2006'!$C$29 -> 11 | O25: Juni | P25: ='2007'!$C$29 -> 10 | R25: -1 | S25: -9.090909091
A26: 2007-04-03 | B26: 752 | C26: 9 | D26: 2007-11-01 | E26: 818 | F26: =IF(E26<>"",E26-E25,"") -> 9 | H26: september | I26: =D25-D24 -> 31 | J26: 0.3225806452 | L26: Juli | M26: ='2006'!$F$23 -> 9 | O26: Juli | P26: ='2007'!$F$23 -> 8 | R26: -1 | S26: -11.11111111
A27: 2007-05-02 | B27: 763 | C27: 11 | D27: 2007-12-01 | E27: 827 | F27: =IF(E27<>"",E27-E26,"") -> 9 | H27: oktober | I27: =D26-D25 -> 32 | J27: 0.28125 | L27: August | M27: ='2006'!$F$24 -> 9 | O27: August | P27: ='2007'!$F$24 -> 9 | R27: 0 | S27: 0
A28: 2007-05-28 | B28: 772 | C28: 9 | D28: 2008-01-01 | E28: 837 | F28: =IF(E28<>"",E28-E27,"") -> 10 | H28: november | I28: =D27-D26 -> 30 | J28: 0.3 | L28: September | M28: ='2006'!$F$25 -> 11 | O28: September | P28: ='2007'!$F$25 -> 10 | R28: -1 | S28: -9.090909091
A29: 2007-06-28 | B29: 782 | C29: 10 | D29: Års forbrug | F29: =SUM(C24:C29,F23:F28) -> 122 | H29: december | I29: =D28-D27 -> 31 | J29: 0.3225806452 | L29: Oktober | M29: ='2006'!$F$26 -> 9 | O29: Oktober | P29: ='2007'!$F$26 -> 9 | R29: 0 | S29: 0
B30: MÅNEDLIG AFLÆSNING AF ELMÅLER | L30: November | M30: ='2006'!$F$27 -> 11 | O30: November | P30: ='2007'!$F$27 -> 9 | R30: -2 | S30: -18.18181818
H31: hele året | I31: =D28-A23 -> 391 | J31: =F29/I31 -> 0.3120204604 | L31: December | M31: ='2006'!$F$28 -> 2 | O31: December | P31: ='2007'!$F$28 -> 10 | R31: 8 | S31: 400
A32: Dato | C32: forbrug | D32: Dato | F32: forbrug
B33: Kw | C33: Kw | E33: Kw | F33: Kw | H33: EL | I33: Dage | J33: Kw pr. dag | L33: Års Total | M33: =SUM(M20:M31) -> 109 | O33: Års Total | P33: ='2007'!$F$29 -> 122 | R33: 13 | S33: =R33/(M33/100) -> 11.9266055
A34: 2006-05-14 | B34: 33594 | D34: 2006-12-30 | E34: 36263 | F34: =IF(E34<>"",E34-B40,"") -> 580 | H34: Juni | I34: =A35-A34 -> 34 | J34: =C35/I34 -> 10.85294118
A35: 2006-06-17 | B35: 33963 | C35: =IF(B35<>"",B35-B34,"") -> 369 | D35: 2007-02-03 | E35: 36898 | F35: =IF(E35<>"",E35-E34,"") -> 635 | H35: Juli | I35: 31 | J35: 8.225806452 | L35: 2005/2006 | O35: 2006/2007 | R35: +/- | S35: %
A36: 2006-07-18 | B36: 34218 | C36: 255 | D36: 2007-03-03 | E36: 37419 | F36: =IF(E36<>"",E36-E35,"") -> 521 | H36: August | I36: 31 | J36: 8.548387097 | L36: EL | M36: Kw | P36: Kw | R36: Kw
A37: 2006-08-18 | B37: 34483 | C37: 265 | D37: 2007-04-03 | E37: 37905 | F37: =IF(E37<>"",E37-E36,"") -> 486 | H37: September | I37: 31 | J37: 9.161290323 | L37: Juni | M37: ='2006'!$C$35 -> 282 | O37: Juni | P37: ='2007'!$C$35 -> 369 | R37: =P37-M37 -> 87 | S37: =R37/(M37/100) -> 30.85106383
A38: 2006-09-18 | B38: 34767 | C38: 284 | D38: 2007-05-02 | E38: 38296 | F38: =IF(E38<>"",E38-E37,"") -> 391 | H38: Oktober | I38: 35 | J38: 11.11428571 | L38: Juli | M38: ='2006'!$C$36 -> 270 | O38: Juli | P38: ='2007'!$C$36 -> 255 | R38: -15 | S38: =R38/(M38/100) -> -5.555555556
A39: 2006-10-23 | B39: 35156 | C39: 389 | D39: 2007-05-28 | E39: 38588 | F39: =IF(E39<>"",E39-E38,"") -> 292 | H39: November | I39: 34 | J39: 15.5 | L39: August | M39: ='2006'!$C$37 -> 238 | O39: August | P39: ='2007'!$C$37 -> 265 | R39: 27 | S39: 11.34453782
A40: 2006-11-26 | B40: 35683 | C40: 527 | D40: Års forbrug | F40: =SUM(C35:C40,F34:F39) -> 4994 | H40: December | I40: =D34-A40 -> 34 | J40: =F34/I40 -> 17.05882353 | L40: September | M40: ='2006'!$C$38 -> 251 | O40: September | P40: ='2007'!$C$38 -> 284 | R40: 33 | S40: 13.14741036
A41: Bemærkning: | H41: Januar | I41: =D35-D34 -> 35 | J41: 18.14285714 | L41: Oktober | M41: ='2006'!$C$39 -> 271 | O41: Oktober | P41: ='2007'!$C$39 -> 389 | R41: 118 | S41: 43.54243542
H42: Februar | I42: =D36-D35 -> 28 | J42: 18.60714286 | L42: November | M42: ='2006'!$C$40 -> 367 | O42: November | P42: ='2007'!$C$40 -> 527 | R42: 160 | S42: 43.59673025
H43: Marts | I43: =D37-D36 -> 31 | J43: 15.67741935 | L43: December | M43: ='2006'!$F$35 -> 483 | O43: December | P43: ='2007'!$F$34 -> 580 | R43: 97 | S43: 20.08281573
H44: April | I44: =D38-D37 -> 29 | J44: 13.48275862 | L44: Januar | M44: ='2006'!$F$36 -> 546 | O44: Januar | P44: ='2007'!$F$35 -> 635 | R44: 89 | S44: 16.3003663
H45: Maj | I45: =D39-D38 -> 26 | J45: 11.23076923 | L45: Februar | M45: ='2006'!$F$37 -> 714 | O45: Februar | P45: ='2007'!$F$36 -> 521 | R45: -193 | S45: -27.03081232
L46: Marts | M46: ='2006'!$F$38 -> 670 | O46: Marts | P46: ='2007'!$F$37 -> 486 | R46: -184 | S46: -27.46268657
H47: Hele året | I47: =D39-A34 -> 379 | J47: =F40/I47 -> 13.176781 | L47: April | M47: ='2006'!$F$39 -> 585 | O47: April | P47: ='2007'!$F$38 -> 391 | R47: -194 | S47: -33.16239316
L48: Maj | M48: ='2006'!$F$40 -> 440 | O48: Maj | P48: ='2007'!$F$39 -> 292 | R48: -148 | S48: -33.63636364
L50: Års Total | M50: ='2006'!$F$41 -> 5117 | O50: Års Total | P50: ='2007'!$F$40 -> 4994 | R50: -123 | S50: =R50/(M50/100) -> -2.403752199

Sheet 2008 (hidden)
B1: MÅNEDLIG PEJLING AF OLIETANK | H1: Olie | I1: Dage | J1: Liter pr dag | L1: 2007 | O1: 2008 | R1: +/- | S1: %
H2: Januar | I2: =A6-A5 -> 32 | J2: =F6/I2 -> 5.9375 | L2: Olie | M2: Liter | P2: Liter | R2: Liter
A3: Dato | C3: Fyldt på | E3: Plads til | H3: Februar | I3: 30 | J3: 4.166666667 | L3: Januar | M3: ='2007'!$F$6 -> 126 | O3: Januar | P3: ='2008'!$F$6 -> 190 | R3: =P3-M3 -> 64 | S3: =R3/(M3/100) -> 50.79365079
B4: Pejling | C4: Liter | D4: Beholdning | E4: Liter | F4: Forbrugt | H4: marts | I4: 32 | J4: 5.40625 | L4: Februar | M4: ='2007'!$F$7 -> 190 | O4: Februar | P4: ='2008'!$F$7 -> 125 | R4: =P4-M4 -> -65 | S4: =R4/(M4/100) -> -34.21052632
A5: 2008-01-01 | B5: 422 | D5: =B5 -> 422 | E5: =IF(D5<>"",1200-D5,"") -> 778 | H5: april | I5: 30 | J5: 3.766666667 | L5: Marts | M5: ='2007'!$F$8 -> 140 | O5: Marts | P5: ='2008'!$F$8 -> 173 | R5: =P5-M5 -> 33 | S5: =R5/(M5/100) -> 23.57142857
A6: 2008-02-02 | B6: 232 | C6: 853 | D6: =IF(B6<>"",B6+C6,"") -> 1085 | E6: =IF(D6<>"",1200-D6,"") -> 115 | F6: =IF(B6<>"",D5-B6,"") -> 190 | H6: maj | I6: 31 | J6: 2.064516129 | L6: April | M6: ='2007'!$F$9 -> 110 | O6: April | P6: ='2008'!$F$9 -> 113 | R6: =P6-M6 -> 3 | S6: =R6/(M6/100) -> 2.727272727
A7: 2008-03-03 | B7: 960 | D7: =IF(B7<>"",B7+C7,"") -> 960 | E7: =IF(D7<>"",1200-D7,"") -> 240 | F7: =IF(B7<>"",D6-B7,"") -> 125 | H7: juni | I7: 30 | J7: 1.1 | L7: Maj | M7: ='2007'!$F$10 -> 31 | O7: Maj | P7: ='2008'!$F$10 -> 64 | R7: =P7-M7 -> 33 | S7: =R7/(M7/100) -> 106.4516129
A8: 2008-04-04 | B8: 787 | D8: 787 | E8: 413 | F8: 173 | H8: juli | I8: 31 | J8: =IF(F12<>"",F12/I8,"") -> 1.290322581 | L8: Juni | M8: ='2007'!$F$11 -> 40 | O8: Juni | P8: ='2008'!$F$11 -> 33 | R8: =P8-M8 -> -7 | S8: =R8/(M8/100) -> -17.5
A9: 2008-05-04 | B9: 674 | D9: 674 | E9: 526 | F9: 113 | H9: august | I9: 31 | J9: =IF(F13<>"",F13/I9,"") -> 1.290322581 | L9: Juli | M9: ='2007'!$F$12 -> 52 | O9: Juli | P9: ='2008'!$F$12 -> 40 | R9: -12 | S9: -23.07692308
A10: 2008-06-04 | B10: 610 | D10: 610 | E10: 590 | F10: 64 | H10: september | I10: 30 | J10: 2.366666667 | L10: August | M10: ='2007'!$F$13 -> 38 | O10: August | P10: ='2008'!$F$13 -> 40 | R10: 2 | S10: 5.263157895
A11: 2008-07-04 | B11: 577 | D11: 577 | E11: 623 | F11: 33 | H11: oktober | I11: 29 | J11: 2.793103448 | L11: September | M11: ='2007'!$F$14 -> 78 | O11: September | P11: ='2008'!$F$14 -> 71 | R11: -7 | S11: -8.974358974
A12: 2008-08-04 | B12: 537 | D12: 537 | E12: 663 | F12: 40 | H12: november | I12: 32 | J12: 4.71875 | L12: Oktober | M12: ='2007'!$F$15 -> 115 | O12: Oktober | P12: ='2008'!$F$15 -> 81 | R12: -34 | S12: -29.56521739
A13: 2008-09-04 | B13: 497 | D13: 497 | E13: 703 | F13: 40 | H13: december | I13: 28 | J13: 5.428571429 | L13: November | M13: ='2007'!$F$16 -> 145 | O13: November | P13: ='2008'!$F$16 -> 151 | R13: 6 | S13: 4.137931034
A14: 2008-10-04 | B14: 426 | D14: 426 | E14: 774 | F14: 71 | L14: December | M14: ='2007'!$F$17 -> 160 | O14: December | P14: ='2008'!$F$17 -> 152 | R14: -8 | S14: -5
A15: 2008-11-02 | B15: 345 | C15: 744 | D15: 1089 | E15: 111 | F15: 81 | H15: Hele året | I15: =A17-A5 -> 366 | J15: =F18/I15 -> 3.368852459
A16: 2008-12-04 | B16: 938 | D16: 938 | E16: 262 | F16: 151 | L16: Års Total | M16: ='2007'!$F$18 -> 1225 | O16: Års Total | P16: ='2008'!$F$18 -> 1233 | R16: 8 | S16: =R16/(M16/100) -> 0.6530612245
A17: 2009-01-01 | B17: 786 | D17: 786 | E17: 414 | F17: 152 | H17: Vand | I17: Dage | J17: m³ pr. dag
D18: Års forbrug | F18: =SUM(F6:F17) -> 1233 | H18: januar | I18: =A24-A23 -> 39480 | J18: =C24/I18 -> 0.0002532928065 | L18: 2007 | O18: 2008 | R18: +/- | S18: %
B19: MÅNEDLIG AFLÆSNING AF VANDMÅLER | H19: februar | I19: 30 | J19: 0.3 | L19: Vand | M19: m3 | P19: m3 | R19: m3
H20: marts | I20: 32 | J20: 0.3125 | L20: Januar | M20: ='2007'!$C$24 -> 20 | O20: Januar | P20: ='2008'!$C$24 -> 10 | R20: =P20-M20 -> -10 | S20: =R20/(M20/100) -> -50
A21: Dato | C21: forbrug | D21: Dato | F21: forbrug | H21: april | I21: 30 | J21: 0.3 | L21: Februar | M21: ='2007'!$C$25 -> 8 | O21: Februar | P21: ='2008'!$C$25 -> 9 | R21: 1 | S21: =R21/(M21/100) -> 12.5
B22: m³ | C22: m³ | E22: m³ | F22: m³ | H22: maj | I22: 31 | J22: 0.3225806452 | L22: Marts | M22: ='2007'!$C$26 -> 9 | O22: Marts | P22: ='2008'!$C$26 -> 10 | R22: 1 | S22: =R22/(M22/100) -> 11.11111111
B23: 837 | D23: 2008-08-04 | E23: 904 | F23: =IF(E23<>"",E23-B29,"") -> 10 | H23: juni | I23: 30 | J23: 0.3 | L23: April | M23: ='2007'!$C$27 -> 11 | O23: April | P23: ='2008'!$C$27 -> 9 | R23: -2 | S23: =R23/(M23/100) -> -18.18181818
A24: 2008-02-02 | B24: 847 | C24: =IF(B24<>"",B24-B23,"") -> 10 | D24: 2008-09-04 | E24: 912 | F24: =IF(E24<>"",E24-E23,"") -> 8 | H24: juli | I24: =D23-A29 -> 31 | J24: =IF(F23<>"",F23/I24,"") -> 0.3225806452 | L24: Maj | M24: ='2007'!$C$28 -> 9 | O24: Maj | P24: ='2008'!$C$28 -> 10 | R24: 1 | S24: 11.11111111
A25: 2008-03-03 | B25: 856 | C25: 9 | D25: 2008-10-04 | E25: 921 | F25: =IF(E25<>"",E25-E24,"") -> 9 | H25: august | I25: =D24-D23 -> 31 | J25: =IF(F24<>"",F24/I25,"") -> 0.2580645161 | L25: Juni | M25: ='2007'!$C$29 -> 10 | O25: Juni | P25: ='2008'!$C$29 -> 9 | R25: -1 | S25: -10
A26: 2008-04-04 | B26: 866 | C26: 10 | D26: 2008-11-02 | E26: 931 | F26: =IF(E26<>"",E26-E25,"") -> 10 | H26: september | I26: =D25-D24 -> 30 | J26: 0.3 | L26: Juli | M26: ='2007'!$F$23 -> 8 | O26: Juli | P26: ='2008'!$F$23 -> 10 | R26: 2 | S26: 25
A27: 2008-05-04 | B27: 875 | C27: 9 | D27: 2008-12-04 | E27: 936 | F27: =IF(E27<>"",E27-E26,"") -> 5 | H27: oktober | I27: =D26-D25 -> 29 | J27: 0.3448275862 | L27: August | M27: ='2007'!$F$24 -> 9 | O27: August | P27: ='2008'!$F$24 -> 8 | R27: -1 | S27: -11.11111111
A28: 2008-06-04 | B28: 885 | C28: 10 | D28: 2008-12-27 | E28: 941 | F28: =IF(E28<>"",E28-E27,"") -> 5 | H28: november | I28: =D27-D26 -> 32 | J28: 0.15625 | L28: September | M28: ='2007'!$F$25 -> 10 | O28: September | P28: ='2008'!$F$25 -> 9 | R28: -1 | S28: -10
A29: 2008-07-04 | B29: 894 | C29: 9 | D29: Års forbrug | F29: =SUM(C24:C29,F23:F28) -> 104 | H29: december | I29: =D28-D27 -> 23 | J29: 0.2173913043 | L29: Oktober | M29: ='2007'!$F$26 -> 9 | O29: Oktober | P29: ='2008'!$F$26 -> 10 | R29: 1 | S29: 11.11111111
B30: MÅNEDLIG AFLÆSNING AF ELMÅLER | L30: November | M30: ='2007'!$F$27 -> 9 | O30: November | P30: ='2008'!$F$27 -> 5 | R30: -4 | S30: -44.44444444
H31: hele året | I31: =D28-A23 -> 39809 | J31: =F29/I31 -> 0.002612474566 | L31: December | M31: ='2007'!$F$28 -> 10 | O31: December | P31: ='2008'!$F$28 -> 5 | R31: -5 | S31: -50
A32: Dato | C32: forbrug | D32: Dato | F32: forbrug
B33: Kw | C33: Kw | E33: Kw | F33: Kw | H33: EL | I33: Dage | J33: Kw pr. dag | L33: Års Total | M33: ='2007'!$F$29 -> 122 | O33: Års Total | P33: ='2008'!$F$29 -> 104 | R33: -18 | S33: =R33/(M33/100) -> -14.75409836
A34: 2007-05-28 | B34: 38588 | D34: 2008-01-01 | E34: 41511 | F34: =IF(E34<>"",E34-B40,"") -> 628 | H34: Juni | I34: =A35-A34 -> 31 | J34: =C35/I34 -> 10.03225806
A35: 2007-06-28 | B35: 38899 | C35: =IF(B35<>"",B35-B34,"") -> 311 | D35: 2008-02-02 | E35: 42145 | F35: =IF(E35<>"",E35-E34,"") -> 634 | H35: Juli | I35: 31 | J35: 9.806451613 | L35: 2006/2007 | O35: 2007/2008 | R35: +/- | S35: %
A36: 2007-07-29 | B36: 39203 | C36: 304 | D36: 2008-03-03 | E36: 42699 | F36: =IF(E36<>"",E36-E35,"") -> 554 | H36: August | I36: 32 | J36: 9.3125 | L36: EL | M36: Kw | P36: Kw | R36: Kw
A37: 2007-08-30 | B37: 39501 | C37: 298 | D37: 2008-04-04 | E37: 43228 | F37: =IF(E37<>"",E37-E36,"") -> 529 | H37: September | I37: 31 | J37: 12.87096774 | L37: Juni | M37: ='2007'!$C$35 -> 369 | O37: Juni | P37: ='2008'!$C$35 -> 311 | R37: =P37-M37 -> -58 | S37: =R37/(P37/100) -> -18.64951768
A38: 2007-09-30 | B38: 39900 | C38: 399 | D38: 2008-05-04 | E38: 43645 | F38: =IF(E38<>"",E38-E37,"") -> 417 | H38: Oktober | I38: 32 | J38: 14.375 | L38: Juli | M38: ='2007'!$C$36 -> 255 | O38: Juli | P38: ='2008'!$C$36 -> 304 | R38: 49 | S38: =R38/(P38/100) -> 16.11842105
A39: 2007-11-01 | B39: 40360 | C39: 460 | D39: 2008-06-04 | E39: 43960 | F39: =IF(E39<>"",E39-E38,"") -> 315 | H39: November | I39: 30 | J39: 17.43333333 | L39: August | M39: ='2007'!$C$37 -> 265 | O39: August | P39: ='2008'!$C$37 -> 298 | R39: 33 | S39: 11.0738255
A40: 2007-12-01 | B40: 40883 | C40: 523 | D40: Års forbrug | F40: =SUM(C35:C40,F34:F39) -> 5372 | H40: December | I40: =D34-A40 -> 31 | J40: =F34/I40 -> 20.25806452 | L40: September | M40: ='2007'!$C$38 -> 284 | O40: September | P40: ='2008'!$C$38 -> 399 | R40: 115 | S40: 28.82205514
A41: Bemærkning: | H41: Januar | I41: =D35-D34 -> 32 | J41: 19.8125 | L41: Oktober | M41: ='2007'!$C$39 -> 389 | O41: Oktober | P41: ='2008'!$C$39 -> 460 | R41: 71 | S41: 15.43478261
H42: Februar | I42: =D36-D35 -> 30 | J42: 18.46666667 | L42: November | M42: ='2007'!$C$40 -> 527 | O42: November | P42: ='2008'!$C$40 -> 523 | R42: -4 | S42: -0.7648183556
H43: Marts | I43: =D37-D36 -> 32 | J43: 16.53125 | L43: December | M43: ='2007'!$F$34 -> 580 | O43: December | P43: ='2008'!$F$34 -> 628 | R43: 48 | S43: 7.643312102
H44: April | I44: =D38-D37 -> 30 | J44: 13.9 | L44: Januar | M44: ='2007'!$F$35 -> 635 | O44: Januar | P44: ='2008'!$F$35 -> 634 | R44: -1 | S44: -0.1577287066
H45: Maj | I45: =D39-D38 -> 31 | J45: 10.16129032 | L45: Februar | M45: ='2007'!$F$36 -> 521 | O45: Februar | P45: ='2008'!$F$36 -> 554 | R45: 33 | S45: 5.9566787
L46: Marts | M46: ='2007'!$F$37 -> 486 | O46: Marts | P46: ='2008'!$F$37 -> 529 | R46: 43 | S46: 8.128544423
H47: Hele året | I47: =D39-A34 -> 373 | J47: =F40/I47 -> 14.40214477 | L47: April | M47: ='2007'!$F$38 -> 391 | O47: April | P47: ='2008'!$F$38 -> 417 | R47: 26 | S47: 6.23501199
L48: Maj | M48: ='2007'!$F$39 -> 292 | O48: Maj | P48: ='2008'!$F$39 -> 315 | R48: 23 | S48: 7.301587302
L50: Års Total | M50: ='2007'!$F$40 -> 4994 | O50: Års Total | P50: ='2008'!$F$40 -> 5372 | R50: 378 | S50: =R50/(M50/100) -> 7.569082899

Sheet 2009 (hidden)
B1: MÅNEDLIG PEJLING AF OLIETANK | H1: Olie | I1: Dage | J1: Liter pr dag | L1: 2008 | O1: 2009 | R1: +/- | S1: %
H2: Januar | I2: =A6-A5 -> 34 | J2: =F6/I2 -> 5.5 | L2: Olie | M2: Liter | P2: Liter | R2: Liter
A3: Dato | C3: Fyldt på | E3: Plads til | H3: Februar | I3: 28 | J3: 6.392857143 | L3: Januar | M3: ='2008'!$F$6 -> 190 | O3: Januar | P3: =F6 -> 187 | R3: =P3-M3 -> -3 | S3: =R3/(M3/100) -> -1.578947368
B4: Pejling | C4: Liter | D4: Beholdning | E4: Liter | F4: Forbrugt | H4: marts | I4: 31 | J4: 5.64516129 | L4: Februar | M4: ='2008'!$F$7 -> 125 | O4: Februar | P4: 179 | R4: =P4-M4 -> 54 | S4: =R4/(M4/100) -> 43.2
A5: 2009-01-01 | B5: 786 | D5: =B5 -> 786 | E5: =IF(D5<>"",1200-D5,"") -> 414 | H5: april | I5: 30 | J5: 2.4 | L5: Marts | M5: ='2008'!$F$8 -> 173 | O5: Marts | P5: 175 | R5: =P5-M5 -> 2 | S5: =R5/(M5/100) -> 1.156069364
A6: 2009-02-04 | B6: 599 | D6: =IF(B6<>"",B6+C6,"") -> 599 | E6: =IF(D6<>"",1200-D6,"") -> 601 | F6: =IF(B6<>"",D5-B6,"") -> 187 | H6: maj | I6: 31 | J6: 2.258064516 | L6: April | M6: ='2008'!$F$9 -> 113 | O6: April | P6: 72 | R6: =P6-M6 -> -41 | S6: =R6/(M6/100) -> -36.28318584
A7: 2009-03-04 | B7: 420 | D7: =IF(B7<>"",B7+C7,"") -> 420 | E7: =IF(D7<>"",1200-D7,"") -> 780 | F7: =IF(B7<>"",D6-B7,"") -> 179 | H7: juni | I7: 30 | J7: 1.533333333 | L7: Maj | M7: ='2008'!$F$10 -> 64 | O7: Maj | P7: 70 | R7: =P7-M7 -> 6 | S7: =R7/(M7/100) -> 9.375
A8: 2009-04-04 | B8: 245 | D8: 245 | E8: 955 | F8: 175 | H8: juli | I8: 31 | J8: =IF(F12<>"",F12/I8,"") -> 1.580645161 | L8: Juni | M8: ='2008'!$F$11 -> 33 | O8: Juni | P8: 46 | R8: =P8-M8 -> 13 | S8: =R8/(M8/100) -> 39.39393939
A9: 2009-05-04 | B9: 173 | C9: 927 | D9: 1100 | E9: 100 | F9: 72 | H9: august | I9: 31 | J9: =IF(F13<>"",F13/I9,"") -> 1.129032258 | L9: Juli | M9: ='2008'!$F$12 -> 40 | O9: Juli | P9: 49 | R9: 9 | S9: 22.5
A10: 2009-06-04 | B10: 1030 | D10: 1030 | E10: 170 | F10: 70 | H10: september | I10: 30 | J10: 1.5 | L10: August | M10: ='2008'!$F$13 -> 40 | O10: August | P10: 35 | R10: -5 | S10: -12.5
A11: 2009-07-04 | B11: 984 | D11: 984 | E11: 216 | F11: 46 | H11: oktober | I11: 31 | J11: 4.35483871 | L11: September | M11: ='2008'!$F$14 -> 71 | O11: September | P11: 45 | R11: -26 | S11: -36.61971831
A12: 2009-08-04 | B12: 935 | D12: 935 | E12: 265 | F12: 49 | H12: november | I12: 30 | J12: 4.6 | L12: Oktober | M12: ='2008'!$F$15 -> 81 | O12: Oktober | P12: 135 | R12: 54 | S12: 66.66666667
A13: 2009-09-04 | B13: 900 | D13: 900 | E13: 300 | F13: 35 | H13: december | I13: 31 | J13: 6.35483871 | L13: November | M13: ='2008'!$F$16 -> 151 | O13: November | P13: 138 | R13: -13 | S13: -8.609271523
A14: 2009-10-04 | B14: 855 | D14: 855 | E14: 345 | F14: 45 | L14: December | M14: ='2008'!$F$17 -> 152 | O14: December | P14: 197 | R14: 45 | S14: 29.60526316
A15: 2009-11-04 | B15: 720 | D15: 720 | E15: 480 | F15: 135 | H15: Hele året | I15: =A17-A5 -> 368 | J15: =F18/I15 -> 3.608695652
A16: 2009-12-04 | B16: 582 | D16: 582 | E16: 618 | F16: 138 | L16: Års Total | M16: ='2008'!$F$18 -> 1233 | O16: Års Total | P16: =F18 -> 1328 | R16: 95 | S16: =R16/(M16/100) -> 7.704785077
A17: 2010-01-04 | B17: 385 | D17: 385 | E17: 815 | F17: 197 | H17: Vand | I17: Dage | J17: m³ pr. dag
D18: Års forbrug | F18: =SUM(F6:F17) -> 1328 | H18: januar | I18: =A24-A23 -> 39 | J18: =C24/I18 -> 0.2820512821 | L18: 2008 | O18: 2009 | R18: +/- | S18: %
B19: MÅNEDLIG AFLÆSNING AF VANDMÅLER | H19: februar | I19: 28 | J19: 0.25 | L19: Vand | M19: m3 | P19: m3 | R19: m3
H20: marts | I20: 31 | J20: 0.2580645161 | L20: Januar | M20: ='2008'!$C$24 -> 10 | O20: Januar | P20: 11 | R20: =P20-M20 -> 1 | S20: =R20/(M20/100) -> 10
A21: Dato | C21: forbrug | D21: Dato | F21: forbrug | H21: april | I21: 30 | J21: 0.2666666667 | L21: Februar | M21: ='2008'!$C$25 -> 9 | O21: Februar | P21: 7 | R21: -2 | S21: =R21/(M21/100) -> -22.22222222
B22: m³ | C22: m³ | E22: m³ | F22: m³ | H22: maj | I22: 31 | J22: 0.2903225806 | L22: Marts | M22: ='2008'!$C$26 -> 10 | O22: Marts | P22: 8 | R22: -2 | S22: =R22/(M22/100) -> -20
A23: 2008-12-27 | B23: 941 | D23: 2009-08-04 | E23: 1002 | F23: =IF(E23<>"",E23-B29,"") -> 9 | H23: juni | I23: 30 | J23: 0.3 | L23: April | M23: ='2008'!$C$27 -> 9 | O23: April | P23: 8 | R23: -1 | S23: -11.11111111
A24: 2009-02-04 | B24: 952 | C24: =IF(B24<>"",B24-B23,"") -> 11 | D24: 2009-09-04 | E24: 1009 | F24: =IF(E24<>"",E24-E23,"") -> 7 | H24: juli | I24: =D23-A29 -> 31 | J24: =IF(F23<>"",F23/I24,"") -> 0.2903225806 | L24: Maj | M24: ='2008'!$C$28 -> 10 | O24: Maj | P24: 9 | R24: -1 | S24: -10
A25: 2009-03-04 | B25: 959 | C25: 7 | D25: 2009-10-04 | E25: 1017 | F25: =IF(E25<>"",E25-E24,"") -> 8 | H25: august | I25: =D24-D23 -> 31 | J25: =IF(F24<>"",F24/I25,"") -> 0.2258064516 | L25: Juni | M25: ='2008'!$C$29 -> 9 | O25: Juni | P25: 9 | R25: 0 | S25: 0
A26: 2009-04-04 | B26: 967 | C26: 8 | D26: 2009-11-04 | E26: 1026 | F26: =IF(E26<>"",E26-E25,"") -> 9 | H26: september | I26: =D25-D24 -> 30 | J26: 0.2666666667 | L26: Juli | M26: ='2008'!$F$23 -> 10 | O26: Juli | P26: 9 | R26: -1 | S26: -10
A27: 2009-05-04 | B27: 975 | C27: 8 | D27: 2009-12-04 | E27: 1034 | F27: =IF(E27<>"",E27-E26,"") -> 8 | H27: oktober | I27: =D26-D25 -> 31 | J27: 0.2903225806 | L27: August | M27: ='2008'!$F$24 -> 8 | O27: August | P27: 7 | R27: -1 | S27: -12.5
A28: 2009-06-04 | B28: 984 | C28: 9 | D28: 2009-12-29 | E28: 1040 | F28: =IF(E28<>"",E28-E27,"") -> 6 | H28: november | I28: =D27-D26 -> 30 | J28: 0.2666666667 | L28: September | M28: ='2008'!$F$25 -> 9 | O28: September | P28: 8 | R28: -1 | S28: -11.11111111
A29: 2009-07-04 | B29: 993 | C29: 9 | D29: Års forbrug | F29: =SUM(C24:C29,F23:F28) -> 99 | H29: december | I29: =D28-D27 -> 25 | J29: 0.24 | L29: Oktober | M29: ='2008'!$F$26 -> 10 | O29: Oktober | P29: 9 | R29: -1 | S29: -10
B30: MÅNEDLIG AFLÆSNING AF ELMÅLER | L30: November | M30: ='2008'!$F$27 -> 5 | O30: November | P30: 8 | R30: 3 | S30: 60
H31: hele året | I31: =D28-A23 -> 367 | J31: =F29/I31 -> 0.2697547684 | L31: December | M31: ='2008'!$F$28 -> 5 | O31: December | P31: 6 | R31: 1 | S31: 20
A32: Dato | C32: forbrug | D32: Dato | F32: forbrug
B33: Kw | C33: Kw | E33: Kw | F33: Kw | H33: EL | I33: Dage | J33: Kw pr. dag | L33: Års Total | M33: ='2008'!$F$29 -> 104 | O33: Års Total | P33: 99 | R33: -5 | S33: =R33/(M33/100) -> -4.807692308
A34: 2008-06-04 | B34: 43960 | D34: 2009-01-04 | E34: 46597 | F34: =IF(E34<>"",E34-B40,"") -> 506 | H34: Juni | I34: =A35-A34 -> 30 | J34: =C35/I34 -> 8.733333333
A35: 2008-07-04 | B35: 44222 | C35: =IF(B35<>"",B35-B34,"") -> 262 | D35: 2009-02-04 | E35: 47268 | F35: =IF(E35<>"",E35-E34,"") -> 671 | H35: Juli | I35: 31 | J35: 8.451612903 | L35: 2008/2009 | O35: 2008/2009 | R35: +/- | S35: %
A36: 2008-08-04 | B36: 44484 | C36: 262 | D36: 2009-03-04 | E36: 47833 | F36: =IF(E36<>"",E36-E35,"") -> 565 | H36: August | I36: 31 | J36: 8.967741935 | L36: EL | M36: Kw | P36: Kw | R36: Kw
A37: 2008-09-04 | B37: 44762 | C37: 278 | D37: 2009-04-04 | E37: 48401 | F37: =IF(E37<>"",E37-E36,"") -> 568 | H37: September | I37: 30 | J37: 12.8 | L37: Juni | M37: ='2008'!$C$35 -> 311 | O37: Juni | P37: 262 | R37: =P37-M37 -> -49 | S37: =R37/(M37/100) -> -15.75562701
A38: 2008-10-04 | B38: 45146 | C38: 384 | D38: 2009-05-04 | E38: 48813 | F38: =IF(E38<>"",E38-E37,"") -> 412 | H38: Oktober | I38: 29 | J38: 15.10344828 | L38: Juli | M38: ='2008'!$C$36 -> 304 | O38: Juli | P38: 262 | R38: -42 | S38: =R38/(M38/100) -> -13.81578947
A39: 2008-11-02 | B39: 45584 | C39: 438 | D39: 2009-06-04 | E39: 49173 | F39: =IF(E39<>"",E39-E38,"") -> 360 | H39: November | I39: 32 | J39: 15.84375 | L39: August | M39: ='2008'!$C$37 -> 298 | O39: August | P39: 278 | R39: -20 | S39: -6.711409396
A40: 2008-12-04 | B40: 46091 | C40: 507 | D40: Års forbrug | F40: =SUM(C35:C40,F34:F39) -> 5213 | H40: December | I40: =D34-A40 -> 31 | J40: =F34/I40 -> 16.32258065 | L40: September | M40: ='2008'!$C$38 -> 399 | O40: September | P40: 384 | R40: -15 | S40: -3.759398496
A41: Bemærkning: | H41: Januar | I41: =D35-D34 -> 31 | J41: 21.64516129 | L41: Oktober | M41: ='2008'!$C$39 -> 460 | O41: Oktober | P41: 438 | R41: -22 | S41: -4.782608696
H42: Februar | I42: =D36-D35 -> 28 | J42: 20.17857143 | L42: November | M42: ='2008'!$C$40 -> 523 | O42: November | P42: 507 | R42: -16 | S42: -3.059273423
H43: Marts | I43: =D37-D36 -> 31 | J43: 18.32258065 | L43: December | M43: ='2008'!$F$34 -> 628 | O43: December | P43: 506 | R43: -122 | S43: -19.42675159
H44: April | I44: =D38-D37 -> 30 | J44: 13.73333333 | L44: Januar | M44: ='2008'!$F$35 -> 634 | O44: Januar | P44: 671 | R44: 37 | S44: 5.835962145
H45: Maj | I45: =D39-D38 -> 31 | J45: 11.61290323 | L45: Februar | M45: ='2008'!$F$36 -> 554 | O45: Februar | P45: 565 | R45: 11 | S45: 1.985559567
L46: Marts | M46: ='2008'!$F$37 -> 529 | O46: Marts | P46: 568 | R46: 39 | S46: 7.372400756
H47: Hele året | I47: =D39-A34 -> 365 | J47: =F40/I47 -> 14.28219178 | L47: April | M47: ='2008'!$F$38 -> 417 | O47: April | P47: 412 | R47: -5 | S47: -1.199040767
L48: Maj | M48: ='2008'!$F$39 -> 315 | O48: Maj | P48: 360 | R48: 45 | S48: 14.28571429
L50: Års Total | M50: ='2008'!$F$40 -> 5372 | O50: Års Total | P50: 5213 | R50: -159 | S50: =R50/(M50/100) -> -2.959791512

Sheet 2010 (hidden)
C1: MÅNEDLIG PEJLING AF OLIETANK | L1: 2009 | O1: 2010 | R1: +/- | S1: % | T1: Forventet forbrug
H2: Olie | I2: Dage | J2: Liter pr dag | L2: Olie | M2: Liter | N2: % | P2: Liter | Q2: % | R2: Liter | T2: % | U2: Liter
A3: Dato | C3: Fyldt på | E3: Plads til | H3: Januar | I3: =A6-A5 -> 31 | J3: =F6/I3 -> 6.774193548 | L3: Januar | M3: 187 | N3: =IF(M3="","",M3/(M$16/100)) -> 14.0813253 | O3: Januar | P3: 210 | Q3: =IF(P3="","",P3/(P$16/100)) -> 13.96276596 | R3: =P3-M3 -> 23 | S3: =R3/(M3/100) -> 12.29946524 | T3: =IF(A6="","",VLOOKUP(MONTH(A6),'Beregn varme 2010'!A$2:G$13,7,FALSE)) -> 15.04619364 | U3: =IF(P3="","",VLOOKUP(MONTH(A6),'Beregn varme 2010'!A$2:F$13,6,FALSE)) -> 199.8134516
B4: Pejling | C4: Liter | D4: Beholdning | E4: Liter | F4: Forbrug | H4: Februar | I4: 28 | J4: 6.142857143 | L4: Februar | M4: 179 | N4: =IF(M4="","",M4/(M$16/100)) -> 13.47891566 | O4: Februar | P4: 172 | Q4: =IF(P4="","",P4/(P$16/100)) -> 11.43617021 | R4: =P4-M4 -> -7 | S4: =R4/(M4/100) -> -3.910614525 | T4: =IF(A7="","",VLOOKUP(MONTH(A7),'Beregn varme 2010'!A$2:G$13,7,FALSE)) -> 13.72690318 | U4: =IF(P4="","",VLOOKUP(MONTH(A7),'Beregn varme 2010'!A$2:F$13,6,FALSE)) -> 182.2932742
A5: 2009-12-31 | B5: 385 | D5: =B5 -> 385 | E5: =IF(D5<>"",1200-D5,"") -> 815 | H5: marts | I5: 31 | J5: 5.451612903 | L5: Marts | M5: 175 | N5: 13.17771084 | O5: Marts | P5: 169 | Q5: 11.23670213 | R5: =P5-M5 -> -6 | S5: =R5/(M5/100) -> -3.428571429 | T5: =IF(A8="","",VLOOKUP(MONTH(A8),'Beregn varme 2010'!A$2:G$13,7,FALSE)) -> 13.59756098 | U5: =IF(P5="","",VLOOKUP(MONTH(A8),'Beregn varme 2010'!A$2:F$13,6,FALSE)) -> 180.5756098
A6: 2010-01-31 | B6: 175 | C6: 895 | D6: =IF(B6<>"",B6+C6,"") -> 1070 | E6: =IF(D6<>"",1200-D6,"") -> 130 | F6: =IF(B6<>"",D5-B6,"") -> 210 | H6: april | I6: 30 | J6: 5.033333333 | L6: April | M6: 72 | N6: 5.421686747 | O6: April | P6: 151 | Q6: 10.03989362 | R6: =P6-M6 -> 79 | S6: =R6/(M6/100) -> 109.7222222 | T6: =IF(A9="","",VLOOKUP(MONTH(A9),'Beregn varme 2010'!A$2:G$13,7,FALSE)) -> 8.941241685 | U6: =IF(P6="","",VLOOKUP(MONTH(A9),'Beregn varme 2010'!A$2:F$13,6,FALSE)) -> 118.7396896
A7: 2010-02-28 | B7: 898 | D7: =IF(B7<>"",B7+C7,"") -> 898 | E7: =IF(D7<>"",1200-D7,"") -> 302 | F7: =IF(B7<>"",D6-B7,"") -> 172 | H7: maj | I7: 31 | J7: 3.096774194 | L7: Maj | M7: 70 | N7: 5.271084337 | O7: Maj | P7: 96 | Q7: 6.382978723 | R7: =P7-M7 -> 26 | S7: =R7/(M7/100) -> 37.14285714 | T7: =IF(A10="","",VLOOKUP(MONTH(A10),'Beregn varme 2010'!A$2:G$13,7,FALSE)) -> 4.000369549 | U7: =IF(P7="","",VLOOKUP(MONTH(A10),'Beregn varme 2010'!A$2:F$13,6,FALSE)) -> 53.12490761
A8: 2010-03-31 | B8: 729 | D8: 729 | E8: 471 | F8: 169 | H8: juni | I8: 30 | J8: 2.066666667 | L8: Juni | M8: 46 | N8: 3.463855422 | O8: Juni | P8: 62 | Q8: 4.122340426 | R8: =IF(P8<>0,P8-M8,"") -> 16 | S8: =IF(P8<>0,R8/(M8/100),"") -> 34.7826087 | T8: =IF(A11="","",VLOOKUP(MONTH(A11),'Beregn varme 2010'!A$2:G$13,7,FALSE)) -> 2.5 | U8: =IF(P8="","",VLOOKUP(MONTH(A11),'Beregn varme 2010'!A$2:F$13,6,FALSE)) -> 33.2
A9: 2010-04-30 | B9: 578 | D9: 578 | E9: 622 | F9: 151 | H9: juli | I9: 31 | J9: =IF(F12<>"",F12/I9,"") -> 1.290322581 | L9: Juli | M9: 49 | N9: 3.689759036 | O9: Juli | P9: =F12 -> 40 | Q9: 2.659574468 | R9: =IF(P9<>"",P9-M9,"") -> -9 | S9: =IF(P9<>"",R9/(M9/100),"") -> -18.36734694 | T9: =IF(A12="","",VLOOKUP(MONTH(A12),'Beregn varme 2010'!A$2:G$13,7,FALSE)) -> 2.5 | U9: =IF(P9="","",VLOOKUP(MONTH(A12),'Beregn varme 2010'!A$2:F$13,6,FALSE)) -> 33.2
A10: 2010-05-31 | B10: 482 | D10: 482 | E10: 718 | F10: 96 | H10: august | I10: 31 | J10: 1.35483871 | L10: August | M10: 35 | N10: 2.635542169 | O10: August | P10: 42 | Q10: 2.792553191 | R10: =IF(P10<>"",P10-M10,"") -> 7 | S10: =IF(P10<>"",R10/(M10/100),"") -> 20 | T10: =IF(A13="","",VLOOKUP(MONTH(A13),'Beregn varme 2010'!A$2:G$13,7,FALSE)) -> 2.5 | U10: =IF(P10="","",VLOOKUP(MONTH(A13),'Beregn varme 2010'!A$2:F$13,6,FALSE)) -> 33.2
A11: 2010-06-30 | B11: 420 | D11: 420 | E11: 780 | F11: 62 | H11: september | I11: 30 | J11: 2.833333333 | L11: September | M11: 45 | N11: 3.388554217 | O11: September | P11: 85 | Q11: 5.651595745 | R11: 40 | S11: 88.88888889 | T11: =IF(A14="","",VLOOKUP(MONTH(A14),'Beregn varme 2010'!A$2:G$13,7,FALSE)) -> 3.172579453 | U11: =IF(P11="","",VLOOKUP(MONTH(A14),'Beregn varme 2010'!A$2:F$13,6,FALSE)) -> 42.13185514
A12: 2010-07-31 | B12: 380 | D12: 380 | E12: 820 | F12: =IF(B12="","",D11-B12) -> 40 | H12: oktober | I12: 31 | J12: 3.290322581 | L12: Oktober | M12: 135 | N12: 10.16566265 | O12: Oktober | P12: 102 | Q12: 6.781914894 | R12: -33 | S12: -24.44444444 | T12: =IF(A15="","",VLOOKUP(MONTH(A15),'Beregn varme 2010'!A$2:G$13,7,FALSE)) -> 7.751293422 | U12: =IF(P12="","",VLOOKUP(MONTH(A15),'Beregn varme 2010'!A$2:F$13,6,FALSE)) -> 102.9371766
A13: 2010-08-31 | B13: 338 | D13: 338 | E13: 862 | F13: =IF(B13="","",D12-B13) -> 42 | H13: november | I13: 30 | J13: 5.566666667 | L13: November | M13: 138 | N13: 10.39156627 | O13: November | P13: 167 | Q13: 11.1037234 | R13: 29 | S13: 21.01449275 | T13: =IF(P13="","",VLOOKUP(MONTH(A16),'Beregn varme 2010'!A$2:G$13,7,FALSE)) -> 11.6315595 | U13: =IF(P13="","",VLOOKUP(MONTH(A16),'Beregn varme 2010'!A$2:F$13,6,FALSE)) -> 154.4671101
A14: 2010-09-30 | B14: 253 | C14: 914 | D14: 1167 | E14: 33 | F14: 85 | H14: december | I14: 31 | J14: 6.709677419 | L14: December | M14: 197 | N14: 14.83433735 | O14: December | P14: 208 | Q14: 13.82978723 | R14: 11 | S14: 5.583756345 | T14: =IF(P14="","",VLOOKUP(MONTH(A17),'Beregn varme 2010'!A$2:G$13,7,FALSE)) -> 14.6322986 | U14: =IF(P14="","",VLOOKUP(MONTH(A17),'Beregn varme 2010'!A$2:F$13,6,FALSE)) -> 194.3169254
A15: 2010-10-31 | B15: 1065 | D15: 1065 | E15: 135 | F15: 102
A16: 2010-11-30 | B16: 898 | D16: 898 | E16: 302 | F16: 167 | H16: Hele året | I16: =A17-A5 -> 365 | J16: =F18/I16 -> 4.120547945 | L16: Års Total | M16: =SUM(M3:M15) -> 1328 | N16: =SUM(N3:N14) -> 100 | P16: =F18 -> 1504 | Q16: =SUM(Q3:Q14) -> 100 | R16: =P16-M16 -> 176 | S16: =R16/(M16/100) -> 13.25301205 | T16: =SUM(T3:T14) -> 100 | U16: =SUM(U3:U14) -> 1328
A17: 2010-12-31 | B17: 690 | D17: 690 | E17: 510 | F17: 208
D18: Års forbrug | F18: =SUM(F6:F17) -> 1504 | L18: 2009 | O18: 2010 | R18: +/- | S18: % | T18: Forventet forbrug
B19: MÅNEDLIG AFLÆSNING AF VANDMÅLER | H19: Vand | I19: Dage | J19: m³ pr. dag | L19: Vand | M19: m3 | P19: m3 | R19: m3 | T19: % | U19: m3
H20: januar | I20: =A24-A23 -> 37 | J20: =C24/I20 -> 0.2702702703 | L20: Januar | M20: 11 | O20: Januar | P20: =C24 -> 10 | R20: =P20-M20 -> -1 | S20: =IF(R20<>"",R20/(M20/100),"") -> -9.090909091 | T20: =IF(A23="","",VLOOKUP(MONTH(A23),'Beregn varme 2010'!A$2:H$13,8,FALSE)) -> 8.493150685 | U20: =M$33/100*T20 -> 8.408219178
A21: Dato | C21: Forbrug | D21: Dato | F21: Forbrug | H21: februar | I21: 28 | J21: 0.3214285714 | L21: Februar | M21: 7 | O21: Februar | P21: 9 | R21: 2 | S21: =IF(R21<>"",R21/(M21/100),"") -> 28.57142857 | T21: =IF(A24="","",VLOOKUP(MONTH(A24),'Beregn varme 2010'!A$2:H$13,8,FALSE)) -> 7.671232877 | U21: =M$33/100*T21 -> 7.594520548
B22: m³ | C22: m³ | E22: m³ | F22: m³ | H22: marts | I22: 31 | J22: 0.3225806452 | L22: Marts | M22: 8 | O22: Marts | P22: 10 | R22: 2 | S22: 25 | T22: =IF(A25="","",VLOOKUP(MONTH(A25),'Beregn varme 2010'!A$2:H$13,8,FALSE)) -> 8.493150685 | U22: 8.408219178
A23: 2009-12-29 | B23: 1040 | F23: =IF(E23<>"",E23-B29,"") ->  | H23: april | I23: 30 | J23: 0.3 | L23: April | M23: 8 | O23: April | P23: 9 | R23: 1 | S23: 12.5 | T23: =IF(A26="","",VLOOKUP(MONTH(A26),'Beregn varme 2010'!A$2:H$13,8,FALSE)) -> 8.219178082 | U23: 8.136986301
A24: 2010-02-04 | B24: 1050 | C24: =IF(B24<>"",B24-B23,"") -> 10 | D24: 2010-08-04 | E24: 1105 | F24: =IF(E24<>"",E24-B29,"") -> 10 | H24: maj | I24: 31 | J24: 0.2580645161 | L24: Maj | M24: 9 | O24: Maj | P24: 8 | R24: -1 | S24: -11.11111111 | T24: =IF(A27="","",VLOOKUP(MONTH(A27),'Beregn varme 2010'!A$2:H$13,8,FALSE)) -> 8.493150685 | U24: 8.408219178
A25: 2010-03-04 | B25: 1059 | C25: 9 | D25: 2010-09-04 | E25: 1112 | F25: =IF(E25<>"",E25-E24,"") -> 7 | H25: juni | I25: 30 | J25: 0.3 | L25: Juni | M25: 9 | O25: Juni | P25: 9 | R25: =IF(P25<>0,P25-M25,"") -> 0 | S25: 0 | T25: =IF(A28="","",VLOOKUP(MONTH(A28),'Beregn varme 2010'!A$2:H$13,8,FALSE)) -> 8.219178082 | U25: 8.136986301
A26: 2010-04-04 | B26: 1069 | C26: 10 | D26: 2010-10-04 | E26: 1119 | F26: =IF(E26<>"",E26-E25,"") -> 7 | H26: juli | I26: =D24-A29 -> 31 | J26: =IF(F24<>"",F24/I26,"") -> 0.3225806452 | L26: Juli | M26: 9 | O26: Juli | P26: =F24 -> 10 | R26: =IF(P26<>"",P26-M26,"") -> 1 | S26: =IF(R26<>"",R26/(M26/100),"") -> 11.11111111 | T26: =IF(A29="","",VLOOKUP(MONTH(A29),'Beregn varme 2010'!A$2:H$13,8,FALSE)) -> 8.493150685 | U26: 8.408219178
A27: 2010-05-04 | B27: 1078 | C27: 9 | D27: 2010-11-04 | E27: 1127 | F27: =IF(E27<>"",E27-E26,"") -> 8 | H27: august | I27: =D25-D24 -> 31 | J27: 0.2258064516 | L27: August | M27: 7 | O27: August | P27: 7 | R27: 0 | S27: =IF(R27<>"",R27/(M27/100),"") -> 0 | T27: =IF(D24="","",VLOOKUP(MONTH(D24),'Beregn varme 2010'!A$2:H$13,8,FALSE)) -> 8.493150685 | U27: 8.408219178
A28: 2010-06-04 | B28: 1086 | C28: 8 | D28: 2010-12-04 | E28: 1134 | F28: =IF(E28<>"",E28-E27,"") -> 7 | H28: september | I28: =D26-D25 -> 30 | J28: 0.2333333333 | L28: September | M28: 8 | O28: September | P28: 7 | R28: -1 | S28: =IF(R28<>"",R28/(M28/100),"") -> -12.5 | T28: =IF(D25="","",VLOOKUP(MONTH(D25),'Beregn varme 2010'!A$2:H$13,8,FALSE)) -> 8.219178082 | U28: 8.136986301
A29: 2010-07-04 | B29: 1095 | C29: 9 | D29: 2010-12-21 | E29: 1138 | F29: =IF(E29<>"",E29-E28,"") -> 4 | H29: oktober | I29: =D27-D26 -> 31 | J29: 0.2580645161 | L29: Oktober | M29: 9 | O29: Oktober | P29: 8 | R29: -1 | S29: -11.11111111 | T29: =IF(D26="","",VLOOKUP(MONTH(D26),'Beregn varme 2010'!A$2:H$13,8,FALSE)) -> 8.493150685 | U29: 8.408219178
D30: Års forbrug | F30: =SUM(C24:C29,F24:F29) -> 98 | H30: november | I30: =D28-D27 -> 30 | J30: 0.2333333333 | L30: November | M30: 8 | O30: November | P30: 7 | R30: -1 | S30: -12.5 | T30: =IF(D27="","",VLOOKUP(MONTH(D27),'Beregn varme 2010'!A$2:H$13,8,FALSE)) -> 8.219178082 | U30: 8.136986301
B31: MÅNEDLIG AFLÆSNING AF ELMÅLER | H31: december | I31: =D29-D28 -> 17 | J31: 0.2352941176 | L31: December | M31: 6 | O31: December | P31: 4 | R31: -2 | S31: -33.33333333 | T31: =IF(D28="","",VLOOKUP(MONTH(D28),'Beregn varme 2010'!A$2:H$13,8,FALSE)) -> 8.493150685 | U31: 8.408219178
A33: Dato | C33: Forbrug | D33: Dato | F33: Forbrug | H33: hele året | I33: =D29-A23 -> 357 | J33: =F30/I33 -> 0.2745098039 | L33: Års Total | M33: =SUM(M20:M31) -> 99 | P33: =SUM(P20:P31) -> 98 | R33: -1 | S33: =R33/(M33/100) -> -1.01010101 | T33: =SUM(T20:T31) -> 100 | U33: =SUM(U20:U31) -> 99
B34: Kw | C34: Kw | E34: Kw | F34: Kw
A35: 2009-06-04 | B35: 49173 | L35: 2008/2009 | O35: 2009/2010 | R35: +/- | S35: % | T35: Forventet forbrug
A36: 2009-07-04 | B36: 49507 | C36: =IF(B36<>"",B36-B35,"") -> 334 | D36: 2010-01-04 | E36: 51867 | F36: =IF(E36<>"",E36-B41,"") -> 549 | H36: EL | I36: Dage | J36: Kw pr. dag | L36: EL | M36: Kw | P36: Kw | R36: Kw | T36: % | U36: Kw
A37: 2009-08-04 | B37: 49798 | C37: 291 | D37: 2010-02-04 | E37: 52481 | F37: =IF(E37<>"",E37-E36,"") -> 614 | H37: Juni | I37: =A36-A35 -> 30 | J37: =C36/I37 -> 11.13333333 | L37: Juni | M37: 262 | O37: Juni | P37: 334 | R37: =P37-M37 -> 72 | S37: =R37/(M37/100) -> 27.48091603 | T37: =IF(A36="","",VLOOKUP(MONTH(A36),'Beregn varme 2010'!A$2:I$13,9,FALSE)) -> 7 | U37: =M$50/100*T37 -> 364.91
A38: 2009-09-04 | B38: 50062 | C38: 264 | D38: 2010-03-04 | E38: 53077 | F38: =IF(E38<>"",E38-E37,"") -> 596 | H38: Juli | I38: 31 | J38: 9.387096774 | L38: Juli | M38: 262 | O38: Juli | P38: 291 | R38: 29 | S38: =R38/(M38/100) -> 11.06870229 | T38: =IF(A37="","",VLOOKUP(MONTH(A37),'Beregn varme 2010'!A$2:I$13,9,FALSE)) -> 7 | U38: =M$50/100*T38 -> 364.91
A39: 2009-10-04 | B39: 50388 | C39: 326 | D39: 2010-04-04 | E39: 53663 | F39: =IF(E39<>"",E39-E38,"") -> 586 | H39: August | I39: 31 | J39: 8.516129032 | L39: August | M39: 278 | O39: August | P39: 264 | R39: -14 | S39: -5.035971223 | T39: =IF(A38="","",VLOOKUP(MONTH(A38),'Beregn varme 2010'!A$2:I$13,9,FALSE)) -> 8 | U39: 417.04
A40: 2009-11-04 | B40: 50841 | C40: 453 | D40: 2010-05-04 | E40: 54140 | F40: =IF(E40<>"",E40-E39,"") -> 477 | H40: September | I40: 30 | J40: 10.86666667 | L40: September | M40: 384 | O40: September | P40: 326 | R40: -58 | S40: -15.10416667 | T40: =IF(A39="","",VLOOKUP(MONTH(A39),'Beregn varme 2010'!A$2:I$13,9,FALSE)) -> 9 | U40: 469.17
A41: 2009-12-04 | B41: 51318 | C41: 477 | D41: 2010-06-04 | E41: 54577 | F41: =IF(E41<>"",E41-E40,"") -> 437 | H41: Oktober | I41: 31 | J41: 14.61290323 | L41: Oktober | M41: 438 | O41: Oktober | P41: 453 | R41: 15 | S41: 3.424657534 | T41: =IF(A40="","",VLOOKUP(MONTH(A40),'Beregn varme 2010'!A$2:I$13,9,FALSE)) -> 9 | U41: 469.17
D42: Års forbrug | F42: =SUM(C36:C41,F36:F41) -> 5404 | H42: November | I42: 30 | J42: 15.9 | L42: November | M42: 507 | O42: November | P42: 477 | R42: -30 | S42: -5.917159763 | T42: =IF(A41="","",VLOOKUP(MONTH(A41),'Beregn varme 2010'!A$2:I$13,9,FALSE)) -> 10 | U42: 521.3
A43: Bemærkning: | H43: December | I43: =D36-A41 -> 31 | J43: =F36/I43 -> 17.70967742 | L43: December | M43: 506 | O43: December | P43: 549 | R43: 43 | S43: 8.498023715 | T43: =IF(D36="","",VLOOKUP(MONTH(D36),'Beregn varme 2010'!A$2:I$13,9,FALSE)) -> 10 | U43: 521.3
A44: Juni fik nyt Toilet | H44: Januar | I44: =D37-D36 -> 31 | J44: 19.80645161 | L44: Januar | M44: 671 | O44: Januar | P44: 614 | R44: -57 | S44: -8.494783905 | T44: =IF(D37="","",VLOOKUP(MONTH(D37),'Beregn varme 2010'!A$2:I$13,9,FALSE)) -> 9 | U44: 469.17
A45: 4/7 - 10 skiftet til S | H45: Februar | I45: =D38-D37 -> 28 | J45: 21.28571429 | L45: Februar | M45: 565 | O45: Februar | P45: 596 | R45: 31 | S45: 5.486725664 | T45: =IF(D38="","",VLOOKUP(MONTH(D38),'Beregn varme 2010'!A$2:I$13,9,FALSE)) -> 9 | U45: 469.17
A46: 4/9 - 10 skiftet til v | H46: Marts | I46: =D39-D38 -> 31 | J46: 18.90322581 | L46: Marts | M46: 568 | O46: Marts | P46: 586 | R46: 18 | S46: 3.169014085 | T46: =IF(D39="","",VLOOKUP(MONTH(D39),'Beregn varme 2010'!A$2:I$13,9,FALSE)) -> 8 | U46: 417.04
H47: April | I47: =D40-D39 -> 30 | J47: 15.9 | L47: April | M47: 412 | O47: April | P47: 477 | R47: 65 | S47: 15.77669903 | T47: =IF(D40="","",VLOOKUP(MONTH(D40),'Beregn varme 2010'!A$2:I$13,9,FALSE)) -> 7 | U47: 364.91
H48: Maj | I48: =D41-D40 -> 31 | J48: 14.09677419 | L48: Maj | M48: 360 | O48: Maj | P48: 437 | R48: 77 | S48: 21.38888889 | T48: =IF(D41="","",VLOOKUP(MONTH(D41),'Beregn varme 2010'!A$2:I$13,9,FALSE)) -> 7 | U48: 364.91
H50: Hele året | I50: =D41-A35 -> 365 | J50: =F42/I50 -> 14.80547945 | L50: Års Total | M50: =SUM(M37:M49) -> 5213 | P50: =SUM(P37:P49) -> 5404 | R50: 191 | S50: =R50/(M50/100) -> 3.66391713 | T50: =SUM(T37:T48) -> 100 | U50: =SUM(U37:U48) -> 5213

Sheet Beregn varme 2010 (hidden)
A1: måned | B1: Normal års graddage fra HNG | C1: % | D1: liter pr mdr til opvarmnig | E1: pr md til varmt vand | F1: liter i alt pr md | G1: % pr md | H1: % pr md vand | I1: % pr md EL | J1: Normal års graddage fra DTI | K1: % | L1: RVV | M1: %
A2: 1 | B2: 485 | C2: =B2/(B$14/100) -> 17.92313378 | D2: =('2009'!F$18-('2009'!F$18/100*$P$6))/100*C2 -> 166.6134516 | E2: =P$5/100*P$6/12 -> 33.2 | F2: =SUM(D2:E2) -> 199.8134516 | G2: =F2/(F$14/100) -> 15.04619364 | H2: =31*R7 -> 8.493150685 | I2: 10 | J2: 525 | K2: =J2/(J$14/100) -> 18.0660702 | L2: 519 | M2: =L2/(L$14/100) -> 16.67737789
A3: 2 | B3: 434 | C3: =B3/(B$14/100) -> 16.03843311 | D3: =('2009'!F$18-('2009'!F$18/100*$P$6))/100*C3 -> 149.0932742 | E3: =P$5/100*P$6/12 -> 33.2 | F3: =SUM(D3:E3) -> 182.2932742 | G3: =F3/(F$14/100) -> 13.72690318 | H3: =28*R7 -> 7.671232877 | I3: 9 | J3: 480 | K3: =J3/(J$14/100) -> 16.5175499 | L3: 486 | M3: =L3/(L$14/100) -> 15.61696658
A4: 3 | B4: 429 | C4: 15.85365854 | D4: =('2009'!F$18-('2009'!F$18/100*$P$6))/100*C4 -> 147.3756098 | E4: 33.2 | F4: 180.5756098 | G4: 13.59756098 | H4: =31*R7 -> 8.493150685 | I4: 9 | J4: 460 | K4: 15.82931865 | L4: 444 | M4: 14.26735219
A5: 4 | B5: 249 | C5: 9.201773836 | D5: =('2009'!F$18-('2009'!F$18/100*$P$6))/100*C5 -> 85.53968958 | E5: 33.2 | F5: 118.7396896 | G5: 8.941241685 | H5: =30*R7 -> 8.219178082 | I5: 8 | J5: 302 | K5: 10.39229181 | L5: 311 | M5: 9.993573265 | N5: forventetforbrug | P5: ='2009'!F18 -> 1328 | Q5: liter
A6: 5 | B6: 58 | C6: 2.14338507 | D6: =('2009'!F$18-('2009'!F$18/100*$P$6))/100*C6 -> 19.92490761 | E6: 33.2 | F6: 53.12490761 | G6: 4.000369549 | H6: =31*R7 -> 8.493150685 | I6: 7 | J6: 79 | K6: 2.718513421 | L6: 154 | M6: 4.948586118 | N6: % til varmt vand | P6: 30
A7: 6 | B7: 0 | C7: 0 | D7: =('2009'!F$18-('2009'!F$18/100*$P$6))/100*C7 -> 0 | E7: 33.2 | F7: 33.2 | G7: 2.5 | H7: =30*R7 -> 8.219178082 | I7: 7 | J7: 1 | K7: 0.03441156228 | L7: 58 | M7: 1.863753213 | N7: til varmt vand | P7: =P5/100*P6/12 -> 33.2 | Q7: =P7/12 -> 2.766666667 | R7: =100/365 -> 0.2739726027
A8: 7 | B8: 0 | C8: 0 | D8: =('2009'!F$18-('2009'!F$18/100*$P$6))/100*C8 -> 0 | E8: 33.2 | F8: 33.2 | G8: 2.5 | H8: =31*R7 -> 8.493150685 | I8: 7 | J8: 0 | K8: 0 | L8: 22 | M8: 0.706940874 | N8: til varme | P8: =$P$9-($P$9/100*$P$10) -> 0
A9: 8 | B9: 0 | C9: 0 | D9: =('2009'!F$18-('2009'!F$18/100*$P$6))/100*C9 -> 0 | E9: 33.2 | F9: 33.2 | G9: 2.5 | H9: =31*R7 -> 8.493150685 | I9: 7 | J9: 0 | K9: 0 | L9: 18 | M9: 0.5784061697
A10: 9 | B10: 26 | C10: 0.9608277901 | D10: =('2009'!F$18-('2009'!F$18/100*$P$6))/100*C10 -> 8.931855137 | E10: 33.2 | F10: 42.13185514 | G10: 3.172579453 | H10: =30*R7 -> 8.219178082 | I10: 8 | J10: 36 | K10: 1.238816242 | L10: 91 | M10: 2.924164524
A11: 10 | B11: 203 | C11: 7.501847746 | D11: =('2009'!F$18-('2009'!F$18/100*$P$6))/100*C11 -> 69.73717664 | E11: 33.2 | F11: 102.9371766 | G11: 7.751293422 | H11: =31*R7 -> 8.493150685 | I11: 9 | J11: 219 | K11: 7.53613214 | L11: 207 | M11: 6.651670951
A12: 11 | B12: 353 | C12: 13.045085 | D12: =('2009'!F$18-('2009'!F$18/100*$P$6))/100*C12 -> 121.2671101 | E12: 33.2 | F12: 154.4671101 | G12: 11.6315595 | H12: =30*R7 -> 8.219178082 | I12: 9 | J12: 349 | K12: 12.00963524 | L12: 341 | M12: 10.95758355
A13: 12 | B13: 469 | C13: 17.33185514 | D13: =('2009'!F$18-('2009'!F$18/100*$P$6))/100*C13 -> 161.1169254 | E13: 33.2 | F13: 194.3169254 | G13: 14.6322986 | H13: =31*R7 -> 8.493150685 | I13: 10 | J13: 455 | K13: 15.65726084 | L13: 461 | M13: 14.81362468
A14: check | B14: =SUM(B2:B13) -> 2706 | C14: =SUM(C2:C13) -> 100 | D14: 929.6 | E14: 398.4 | F14: 1328 | G14: 100 | H14: =SUM(H2:H13) -> 100 | I14: 100 | J14: =SUM(J2:J13) -> 2906 | K14: 100 | L14: 3112 | M14: 100

Sheet 2011 (hidden)
M1: 2010 | P1: 2011 | S1: +/- | T1: % | U1: Forventet forbrug
A2: =System!A19 -> Version: 2.0.2 / Bjarne Hansen | I2: Olie | J2: Dage | K2: Liter pr dag | M2: Olie | N2: Liter | O2: % | Q2: Liter | R2: % | S2: Liter | U2: % | V2: Liter
A3: Aflæsningsskema til Olieforbrug samt EL og Vand | I3: =IF(A11="","",VLOOKUP(MONTH(A11),T!A1:B12,2,FALSE)) -> Januar | J3: =A11-A10 -> 31 | K3: =IF(F11<>"",F11/J3,"") -> 7.483870968 | M3: =IF(A11="","",VLOOKUP(MONTH(A11),T!A$1:B$12,2,FALSE)) -> Januar | N3: 210 | O3: =IF(N3="","",N3/(N$16/100)) -> 13.96276596 | P3: =IF(A11="","",VLOOKUP(MONTH(A11),T!A$1:B$12,2,FALSE)) -> Januar | Q3: =F11 -> 232 | R3: =IF(Q3="","",Q3/(Q$16/100)) -> 14.25937308 | S3: =IF(Q3<>"",Q3-N3,"") -> 22 | T3: =IF(Q3<>"",S3/(N3/100),"") -> 10.47619048 | U3: =IF(A11="","",VLOOKUP(MONTH(A11),'Beregn varme 2011'!A$2:G$13,7,FALSE)) -> 15.04619364 | V3: =IF(Q3="","",VLOOKUP(MONTH(A11),'Beregn varme 2011'!A$2:F$13,6,FALSE)) -> 226.2947524
A4: Navn : | B4: Bjarne Hansen, Pilegade 9 | I4: =IF(A12="","",VLOOKUP(MONTH(A12),T!A2:B13,2,FALSE)) -> Februar | J4: 28 | K4: 8.035714286 | M4: =IF(A12="","",VLOOKUP(MONTH(A12),T!A$1:B$12,2,FALSE)) -> Februar | N4: 172 | O4: 11.43617021 | P4: =IF(A12="","",VLOOKUP(MONTH(A12),T!A$1:B$12,2,FALSE)) -> Februar | Q4: 225 | R4: 13.82913337 | S4: =IF(Q4<>"",Q4-N4,"") -> 53 | T4: =IF(Q4<>"",S4/(N4/100),"") -> 30.81395349 | U4: =IF(A12="","",VLOOKUP(MONTH(A12),'Beregn varme 2011'!A$2:G$13,7,FALSE)) -> 13.72690318 | V4: =IF(Q4="","",VLOOKUP(MONTH(A12),'Beregn varme 2011'!A$2:F$13,6,FALSE)) -> 206.4526238
I5: =IF(A13="","",VLOOKUP(MONTH(A13),T!A3:B14,2,FALSE)) -> Marts | J5: 31 | K5: 6.096774194 | M5: =IF(A13="","",VLOOKUP(MONTH(A13),T!A$1:B$12,2,FALSE)) -> Marts | N5: 169 | O5: 11.23670213 | P5: =IF(A13="","",VLOOKUP(MONTH(A13),T!A$1:B$12,2,FALSE)) -> Marts | Q5: 189 | R5: 11.61647203 | S5: 20 | T5: 11.83431953 | U5: =IF(A13="","",VLOOKUP(MONTH(A13),'Beregn varme 2011'!A$2:G$13,7,FALSE)) -> 13.59756098 | V5: =IF(Q5="","",VLOOKUP(MONTH(A13),'Beregn varme 2011'!A$2:F$13,6,FALSE)) -> 204.5073171
A6: MÅNEDLIG PEJLING AF OLIETANK | I6: =IF(A14="","",VLOOKUP(MONTH(A14),T!A4:B15,2,FALSE)) -> April | J6: 30 | K6: 3.433333333 | M6: =IF(A14="","",VLOOKUP(MONTH(A14),T!A$1:B$12,2,FALSE)) -> April | N6: 151 | O6: 10.03989362 | P6: =IF(A14="","",VLOOKUP(MONTH(A14),T!A$1:B$12,2,FALSE)) -> April | Q6: 103 | R6: 6.330669945 | S6: -48 | T6: -31.78807947 | U6: =IF(A14="","",VLOOKUP(MONTH(A14),'Beregn varme 2011'!A$2:G$13,7,FALSE)) -> 8.941241685 | V6: =IF(Q6="","",VLOOKUP(MONTH(A14),'Beregn varme 2011'!A$2:F$13,6,FALSE)) -> 134.4762749
I7: =IF(A15="","",VLOOKUP(MONTH(A15),T!A5:B16,2,FALSE)) -> Maj | J7: 31 | K7: 3 | M7: =IF(A15="","",VLOOKUP(MONTH(A15),T!A$1:B$12,2,FALSE)) -> Maj | N7: 96 | O7: 6.382978723 | P7: =IF(A15="","",VLOOKUP(MONTH(A15),T!A$1:B$12,2,FALSE)) -> Maj | Q7: 93 | R7: 5.716041795 | S7: -3 | T7: -3.125 | U7: =IF(A15="","",VLOOKUP(MONTH(A15),'Beregn varme 2011'!A$2:G$13,7,FALSE)) -> 4.000369549 | V7: =IF(Q7="","",VLOOKUP(MONTH(A15),'Beregn varme 2011'!A$2:F$13,6,FALSE)) -> 60.16555802
A8: Dato | B8: Pejling | C8: Fyldt på | D8: Beholdning | E8: Plads til | F8: Forbrug | G8: Bemærkning. | I8: =IF(A16="","",VLOOKUP(MONTH(A16),T!A6:B17,2,FALSE)) -> Juni | J8: 30 | K8: 0 | M8: =IF(A16="","",VLOOKUP(MONTH(A16),T!A$1:B$12,2,FALSE)) -> Juni | N8: 62 | O8: 4.122340426 | P8: =IF(A16="","",VLOOKUP(MONTH(A16),T!A$1:B$12,2,FALSE)) -> Juni | Q8: 0 | R8: 0 | S8: -62 | T8: -100 | U8: =IF(A16="","",VLOOKUP(MONTH(A16),'Beregn varme 2011'!A$2:G$13,7,FALSE)) -> 2.5 | V8: =IF(Q8="","",VLOOKUP(MONTH(A16),'Beregn varme 2011'!A$2:F$13,6,FALSE)) -> 37.6
C9: Liter | E9: Liter | F9: Liter | I9: =IF(A17="","",VLOOKUP(MONTH(A17),T!A7:B18,2,FALSE)) -> Juli | J9: 31 | K9: 0 | M9: =IF(A17="","",VLOOKUP(MONTH(A17),T!A$1:B$12,2,FALSE)) -> Juli | N9: ='2010'!F12 -> 40 | O9: 2.659574468 | P9: =IF(A17="","",VLOOKUP(MONTH(A17),T!A$1:B$12,2,FALSE)) -> Juli | Q9: 0 | R9: 0 | S9: -40 | T9: -100 | U9: =IF(A17="","",VLOOKUP(MONTH(A17),'Beregn varme 2011'!A$2:G$13,7,FALSE)) -> 2.5 | V9: =IF(Q9="","",VLOOKUP(MONTH(A17),'Beregn varme 2011'!A$2:F$13,6,FALSE)) -> 37.6
A10: 2010-12-31 | B10: ='2010'!B17 -> 690 | D10: =IF(B10<>"",SUM(B10:C10),"") -> 690 | E10: =IF(D10<>"",1200-D10,"") -> 510 | I10: =IF(A18="","",VLOOKUP(MONTH(A18),T!A8:B19,2,FALSE)) -> August | J10: 31 | K10: 0 | M10: =IF(A18="","",VLOOKUP(MONTH(A18),T!A$1:B$12,2,FALSE)) -> August | N10: ='2010'!F13 -> 42 | O10: 2.792553191 | P10: =IF(A18="","",VLOOKUP(MONTH(A18),T!A$1:B$12,2,FALSE)) -> August | Q10: 0 | R10: 0 | S10: -42 | T10: -100 | U10: =IF(A18="","",VLOOKUP(MONTH(A18),'Beregn varme 2011'!A$2:G$13,7,FALSE)) -> 2.5 | V10: =IF(Q10="","",VLOOKUP(MONTH(A18),'Beregn varme 2011'!A$2:F$13,6,FALSE)) -> 37.6
A11: 2011-01-31 | B11: 458 | D11: =IF(B11<>"",B11+C11,"") -> 458 | E11: =IF(D11<>"",1200-D11,"") -> 742 | F11: =IF(B11<>"",D10-B11,"") -> 232 | I11: =IF(A19="","",VLOOKUP(MONTH(A19),T!A9:B20,2,FALSE)) -> September | J11: 30 | K11: 2.133333333 | M11: =IF(A19="","",VLOOKUP(MONTH(A19),T!A$1:B$12,2,FALSE)) -> September | N11: ='2010'!F14 -> 85 | O11: 5.651595745 | P11: =IF(A19="","",VLOOKUP(MONTH(A19),T!A$1:B$12,2,FALSE)) -> September | Q11: 64 | R11: 3.93362016 | S11: -21 | T11: -24.70588235 | U11: =IF(A19="","",VLOOKUP(MONTH(A19),'Beregn varme 2011'!A$2:G$13,7,FALSE)) -> 3.172579453 | V11: =IF(Q11="","",VLOOKUP(MONTH(A19),'Beregn varme 2011'!A$2:F$13,6,FALSE)) -> 47.71559497
A12: 2011-02-28 | B12: 233 | C12: 864 | D12: =IF(B12<>"",B12+C12,"") -> 1097 | E12: =IF(D12<>"",1200-D12,"") -> 103 | F12: =IF(B12<>"",D11-B12,"") -> 225 | I12: =IF(A20="","",VLOOKUP(MONTH(A20),T!A10:B21,2,FALSE)) -> Oktober | J12: 31 | K12: 3.258064516 | M12: =IF(A20="","",VLOOKUP(MONTH(A20),T!A$1:B$12,2,FALSE)) -> Oktober | N12: ='2010'!F15 -> 102 | O12: 6.781914894 | P12: =IF(A20="","",VLOOKUP(MONTH(A20),T!A$1:B$12,2,FALSE)) -> Oktober | Q12: 101 | R12: 6.207744315 | S12: -1 | T12: -0.9803921569 | U12: =IF(A20="","",VLOOKUP(MONTH(A20),'Beregn varme 2011'!A$2:G$13,7,FALSE)) -> 7.751293422 | V12: =IF(Q12="","",VLOOKUP(MONTH(A20),'Beregn varme 2011'!A$2:F$13,6,FALSE)) -> 116.5794531
A13: 2011-03-31 | B13: 908 | D13: =IF(B13<>"",B13+C13,"") -> 908 | E13: 292 | F13: 189 | I13: =IF(A21="","",VLOOKUP(MONTH(A21),T!A11:B22,2,FALSE)) -> November | J13: 30 | K13: 5.333333333 | M13: =IF(A21="","",VLOOKUP(MONTH(A21),T!A$1:B$12,2,FALSE)) -> November | N13: ='2010'!F16 -> 167 | O13: 11.1037234 | P13: =IF(A21="","",VLOOKUP(MONTH(A21),T!A$1:B$12,2,FALSE)) -> November | Q13: 160 | R13: 9.8340504 | S13: -7 | T13: -4.191616766 | U13: =IF(A21="","",VLOOKUP(MONTH(A21),'Beregn varme 2011'!A$2:G$13,7,FALSE)) -> 11.6315595 | V13: =IF(Q13="","",VLOOKUP(MONTH(A21),'Beregn varme 2011'!A$2:F$13,6,FALSE)) -> 174.9386548
A14: 2011-04-30 | B14: 805 | D14: 805 | E14: 395 | F14: 103 | I14: =IF(A22="","",VLOOKUP(MONTH(A22),T!A12:B23,2,FALSE)) -> December | J14: 31 | K14: =IF(F22<>"",'2011 2'!G11/J14,"") -> 6.35483871 | M14: =IF(A22="","",VLOOKUP(MONTH(A22),T!A$1:B$12,2,FALSE)) -> December | N14: ='2010'!F17 -> 208 | O14: 13.82978723 | P14: =IF(A22="","",VLOOKUP(MONTH(A22),T!A$1:B$12,2,FALSE)) -> December | Q14: =F22 -> 460 | R14: 28.2728949 | S14: 252 | T14: 121.1538462 | U14: =IF(A22="","",VLOOKUP(MONTH(A22),'Beregn varme 2011'!A$2:G$13,7,FALSE)) -> 14.6322986 | V14: =IF(Q14="","",VLOOKUP(MONTH(A22),'Beregn varme 2011'!A$2:F$13,6,FALSE)) -> 220.0697709
A15: 2011-05-31 | B15: 712 | D15: 712 | E15: 488 | F15: 93 | G15: Slukket fyret
A16: 2011-06-30 | B16: 712 | D16: 712 | E16: 488 | F16: 0 | I16: Hele året | J16: =A22-A10 -> 365 | K16: =F23/J16 -> 4.457534247 | M16: Års Total | N16: ='2010'!F18 -> 1504 | O16: =SUM(O3:O14) -> 100 | Q16: =F23 -> 1627 | S16: =IF(Q16<>0,Q16-N16,"") -> 123 | T16: =IF(Q16<>0,S16/(Q16/100),"") -> 7.559926245 | U16: =SUM(U3:U14) -> 100 | V16: =SUM(V3:V14) -> 1504
A17: 2011-07-31 | B17: 712 | D17: 712 | E17: 488 | F17: 0
A18: 2011-08-31 | B18: 712 | D18: 712 | E18: 488 | F18: 0 | G18: Tændt fyret | M18: 2010 | P18: 2011 | S18: +/- | T18: % | U18: Forventet forbrug
A19: 2011-09-30 | B19: 648 | D19: 648 | E19: 552 | F19: 64 | I19: Vand | J19: Dage | K19: m³ pr. dag | M19: Vand | N19: m3 | Q19: m3 | S19: m3 | U19: % | V19: m3
A20: 2011-10-31 | B20: 547 | D20: 547 | E20: 653 | F20: 101 | I20: =IF(A29="","",VLOOKUP(MONTH(A29),T!A$1:B$12,2,FALSE)) -> Januar | J20: =A29-A28 -> 41 | K20: =IF(C29<>"",C29/J20,"") -> 0.243902439 | M20: Januar | N20: 10 | P20: Januar | Q20: =C29 -> 10 | S20: =IF(Q20<>"",Q20-N20,"") -> 0 | T20: =IF(S20<>"",S20/(N20/100),"") -> 0 | U20: =IF(A28="","",VLOOKUP(MONTH(A28),'Beregn varme 2011'!A$2:H$13,8,FALSE)) -> 8.493150685 | V20: =IF(Q20="","",N$33/100*U20) -> 8.323287671
A21: 2011-11-30 | B21: 387 | D21: 387 | E21: 813 | F21: 160 | I21: =IF(A30="","",VLOOKUP(MONTH(A30),T!A$1:B$12,2,FALSE)) -> Februar | J21: 28 | K21: 0.25 | M21: Februar | N21: 9 | P21: Februar | Q21: 7 | S21: =IF(Q21<>"",Q21-N21,"") -> -2 | T21: =IF(S21<>"",S21/(N21/100),"") -> -22.22222222 | U21: =IF(A29="","",VLOOKUP(MONTH(A29),'Beregn varme 2011'!A$2:H$13,8,FALSE)) -> 8.493150685 | V21: 8.323287671
A22: 2011-12-31 | F22: ='2011 2'!G23 -> 460 | G22: Brugt på Lyrsbyvej 31 | I22: =IF(A31="","",VLOOKUP(MONTH(A31),T!A$1:B$12,2,FALSE)) -> Marts | J22: 31 | K22: 0.2580645161 | M22: Marts | N22: 10 | P22: Marts | Q22: 8 | S22: -2 | T22: -20 | U22: =IF(A30="","",VLOOKUP(MONTH(A30),'Beregn varme 2011'!A$2:H$13,8,FALSE)) -> 7.671232877 | V22: 7.517808219
D23: Års forbrug | F23: =SUM(F11:F22) -> 1627 | I23: =IF(A32="","",VLOOKUP(MONTH(A32),T!A$1:B$12,2,FALSE)) -> April | J23: 30 | K23: 0.2 | M23: April | N23: 9 | P23: April | Q23: 6 | S23: -3 | T23: -33.33333333 | U23: =IF(A31="","",VLOOKUP(MONTH(A31),'Beregn varme 2011'!A$2:H$13,8,FALSE)) -> 8.493150685 | V23: 8.323287671
A24: MÅNEDLIG AFLÆSNING AF VANDMÅLER | I24: =IF(A33="","",VLOOKUP(MONTH(A33),T!A$1:B$12,2,FALSE)) -> Maj | J24: 31 | K24: 0.1935483871 | M24: Maj | N24: 8 | P24: Maj | Q24: 6 | S24: -2 | T24: -25 | U24: =IF(A32="","",VLOOKUP(MONTH(A32),'Beregn varme 2011'!A$2:H$13,8,FALSE)) -> 8.219178082 | V24: 8.054794521
I25: =IF(A34="","",VLOOKUP(MONTH(A34),T!A$1:B$12,2,FALSE)) -> Juni | J25: 30 | K25: 0.2666666667 | M25: Juni | N25: 9 | P25: Juni | Q25: 8 | S25: -1 | T25: -11.11111111 | U25: =IF(A33="","",VLOOKUP(MONTH(A33),'Beregn varme 2011'!A$2:H$13,8,FALSE)) -> 8.493150685 | V25: 8.323287671
A26: Dato | B26: Aflæst | C26: Forbrug | D26: Dato | E26: Aflæst | F26: Forbrug | G26: Bemærkning. | I26: =IF(D29="","",VLOOKUP(MONTH(D29),T!A$1:B$12,2,FALSE)) -> Juli | J26: =D29-A34 -> 31 | K26: =IF(F29<>"",F29/J26,"") -> 0.2258064516 | M26: Juli | N26: ='2010'!F24 -> 10 | P26: Juli | Q26: =F29 -> 7 | S26: -3 | T26: -30 | U26: =IF(A34="","",VLOOKUP(MONTH(A34),'Beregn varme 2011'!A$2:H$13,8,FALSE)) -> 8.219178082 | V26: 8.054794521
B27: m³ | C27: m³ | E27: m³ | F27: m³ | I27: =IF(D30="","",VLOOKUP(MONTH(D30),T!A$1:B$12,2,FALSE)) -> August | J27: =D30-D29 -> 31 | K27: 0.1935483871 | M27: August | N27: ='2010'!F25 -> 7 | P27: August | Q27: 6 | S27: -1 | T27: -14.28571429 | U27: =IF(D29="","",VLOOKUP(MONTH(D29),'Beregn varme 2011'!A$2:H$13,8,FALSE)) -> 8.493150685 | V27: 8.323287671
A28: 2010-12-21 | B28: ='2010'!E29 -> 1138 | I28: =IF(D31="","",VLOOKUP(MONTH(D31),T!A$1:B$12,2,FALSE)) -> September | J28: =D31-D30 -> 30 | K28: 0.2 | M28: September | N28: ='2010'!P28 -> 7 | P28: September | Q28: 6 | S28: -1 | T28: -14.28571429 | U28: =IF(D30="","",VLOOKUP(MONTH(D30),'Beregn varme 2011'!A$2:H$13,8,FALSE)) -> 8.493150685 | V28: 8.323287671
A29: 2011-01-31 | B29: 1148 | C29: =IF(B29<>"",B29-B28,"") -> 10 | D29: 2011-07-31 | E29: 1190 | F29: =IF(E29<>"",E29-B34,"") -> 7 | I29: =IF(D32="","",VLOOKUP(MONTH(D32),T!A$1:B$12,2,FALSE)) -> Oktober | J29: =D32-D31 -> 31 | K29: 0.2258064516 | M29: Oktober | N29: ='2010'!P29 -> 8 | P29: Oktober | Q29: 7 | S29: -1 | T29: -12.5 | U29: =IF(D31="","",VLOOKUP(MONTH(D31),'Beregn varme 2011'!A$2:H$13,8,FALSE)) -> 8.219178082 | V29: 8.054794521
A30: 2011-02-28 | B30: 1155 | C30: 7 | D30: 2011-08-31 | E30: 1196 | F30: =IF(E30<>"",E30-E29,"") -> 6 | I30: =IF(D33="","",VLOOKUP(MONTH(D33),T!A$1:B$12,2,FALSE)) -> November | J30: =D33-D32 -> 30 | K30: 0.2 | M30: November | N30: ='2010'!P30 -> 7 | P30: November | Q30: 6 | S30: -1 | T30: -14.28571429 | U30: =IF(D32="","",VLOOKUP(MONTH(D32),'Beregn varme 2011'!A$2:H$13,8,FALSE)) -> 8.493150685 | V30: 8.323287671
A31: 2011-03-31 | B31: 1163 | C31: 8 | D31: 2011-09-30 | E31: 1202 | F31: =IF(E31<>"",E31-E30,"") -> 6 | I31: =IF(D34="","",VLOOKUP(MONTH(D34),T!A$1:B$12,2,FALSE)) -> December | J31: =D34-D33 -> 31 | K31: 0.1935483871 | M31: December | N31: ='2010'!P31 -> 4 | P31: December | Q31: 6 | S31: 2 | T31: 50 | U31: =IF(D33="","",VLOOKUP(MONTH(D33),'Beregn varme 2011'!A$2:H$13,8,FALSE)) -> 8.219178082 | V31: 8.054794521
A32: 2011-04-30 | B32: 1169 | C32: 6 | D32: 2011-10-31 | E32: 1209 | F32: =IF(E32<>"",E32-E31,"") -> 7
A33: 2011-05-31 | B33: 1175 | C33: 6 | D33: 2011-11-30 | E33: 1215 | F33: =IF(E33<>"",E33-E32,"") -> 6 | I33: hele året | J33: =D34-A28 -> 375 | K33: =F35/J33 -> 0.2213333333 | M33: Års Total | N33: =SUM(N20:N31) -> 98 | Q33: =F35 -> 83 | S33: =IF(Q33<>0,Q33-N33,"") -> -15 | T33: =IF(S33<>"",S33/(Q33/100),"") -> -18.07228916 | U33: =SUM(U20:U31) -> 100 | V33: =SUM(V20:V31) -> 98
A34: 2011-06-30 | B34: 1183 | C34: 8 | D34: 2011-12-31 | E34: 1525 | F34: ='2011 2'!G35 -> 6 | G34: Brugt på Lyrsbyvej 31
D35: Års forbrug | F35: =SUM(C29:C34,F29:F34) -> 83 | M35: 2009/2010 | P35: 2010/2011 | S35: +/- | T35: % | U35: Forventet forbrug
A36: MÅNEDLIG AFLÆSNING AF ELMÅLER | I36: EL | J36: Dage | K36: KWh pr. dag | M36: EL | N36: Kw | Q36: Kw | S36: Kw | U36: % | V36: Kw
I37: =IF(A41="","",VLOOKUP(MONTH(A41),T!A$1:B$12,2,FALSE)) -> Juni | J37: =A41-A40 -> 26 | K37: =IF(C41<>"",C41/J37,"") -> 13.11538462 | M37: Juni | N37: 334 | P37: Juni | Q37: =C41 -> 341 | S37: =Q37-N37 -> 7 | T37: =IF(Q37<>0,S37/(N37/100),"") -> 2.095808383 | U37: =IF(A41="","",VLOOKUP(MONTH(A41),'Beregn varme 2011'!A$2:I$13,9,FALSE)) -> 7 | V37: =IF(Q37="","",N$50/100*U37) -> 378.28
A38: Dato | B38: Aflæst | C38: Forbrug | D38: Dato | E38: Aflæst | F38: Forbrug | G38: Bemærkning. | I38: =IF(A42="","",VLOOKUP(MONTH(A42),T!A$1:B$12,2,FALSE)) -> Juli | J38: 31 | K38: 8.903225806 | M38: Juli | N38: 291 | P38: Juli | Q38: =IF(C42<>"",C42,"") -> 276 | S38: =IF(Q38<>"",Q38-N38,"") -> -15 | T38: =IF(Q38<>"",S38/(N38/100),"") -> -5.154639175 | U38: =IF(A42="","",VLOOKUP(MONTH(A42),'Beregn varme 2011'!A$2:I$13,9,FALSE)) -> 7 | V38: 378.28
B39: KWh | C39: KWh | E39: KWh | F39: KWh | I39: =IF(A43="","",VLOOKUP(MONTH(A43),T!A$1:B$12,2,FALSE)) -> August | J39: 31 | K39: 8.870967742 | M39: August | N39: 264 | P39: August | Q39: =IF(C43<>"",C43,"") -> 275 | S39: =IF(Q39<>"",Q39-N39,"") -> 11 | T39: =IF(Q39<>"",S39/(N39/100),"") -> 4.166666667 | U39: =IF(A43="","",VLOOKUP(MONTH(A43),'Beregn varme 2011'!A$2:I$13,9,FALSE)) -> 7 | V39: 378.28
A40: 2010-06-04 | B40: ='2010'!E41 -> 54577 | I40: =IF(A44="","",VLOOKUP(MONTH(A44),T!A$1:B$12,2,FALSE)) -> September | J40: 30 | K40: 11.2 | M40: September | N40: 326 | P40: September | Q40: =IF(C44<>"",C44,"") -> 336 | S40: =IF(Q40<>"",Q40-N40,"") -> 10 | T40: =IF(Q40<>"",S40/(N40/100),"") -> 3.067484663 | U40: =IF(A44="","",VLOOKUP(MONTH(A44),'Beregn varme 2011'!A$2:I$13,9,FALSE)) -> 8 | V40: 432.32
A41: 2010-06-30 | B41: 54918 | C41: =IF(B41<>"",B41-B40,"") -> 341 | D41: 2010-12-31 | E41: 57388 | F41: =IF(E41<>"",E41-B46,"") -> 618 | I41: =IF(A45="","",VLOOKUP(MONTH(A45),T!A$1:B$12,2,FALSE)) -> Oktober | J41: 31 | K41: 13.58064516 | M41: Oktober | N41: 453 | P41: Oktober | Q41: =IF(C45<>"",C45,"") -> 421 | S41: =IF(Q41<>"",Q41-N41,"") -> -32 | T41: =IF(Q41<>"",S41/(N41/100),"") -> -7.06401766 | U41: =IF(A45="","",VLOOKUP(MONTH(A45),'Beregn varme 2011'!A$2:I$13,9,FALSE)) -> 9 | V41: 486.36
A42: 2010-07-31 | B42: 55194 | C42: 276 | D42: 2011-01-31 | E42: 58036 | F42: =IF(E42<>"",E42-E41,"") -> 648 | I42: =IF(A46="","",VLOOKUP(MONTH(A46),T!A$1:B$12,2,FALSE)) -> November | J42: 30 | K42: 18.13333333 | M42: November | N42: 477 | P42: November | Q42: =IF(C46<>"",C46,"") -> 544 | S42: =IF(Q42<>"",Q42-N42,"") -> 67 | T42: 14.04612159 | U42: =IF(A46="","",VLOOKUP(MONTH(A46),'Beregn varme 2011'!A$2:I$13,9,FALSE)) -> 9 | V42: 486.36
A43: 2010-08-31 | B43: 55469 | C43: 275 | D43: 2011-02-28 | E43: 58642 | F43: =IF(E43<>"",E43-E42,"") -> 606 | I43: =IF(D41="","",VLOOKUP(MONTH(D41),T!A$1:B$12,2,FALSE)) -> December | J43: =D41-A46 -> 31 | K43: =IF(F41<>"",F41/J43,"") -> 19.93548387 | M43: December | N43: 549 | P43: December | Q43: =IF(F41<>"",F41,"") -> 618 | S43: 69 | T43: 12.56830601 | U43: =IF(D41="","",VLOOKUP(MONTH(D41),'Beregn varme 2011'!A$2:I$13,9,FALSE)) -> 10 | V43: 540.4
A44: 2010-09-30 | B44: 55805 | C44: 336 | D44: 2011-03-31 | E44: 59267 | F44: =IF(E44<>"",E44-E43,"") -> 625 | I44: =IF(D42="","",VLOOKUP(MONTH(D42),T!A$1:B$12,2,FALSE)) -> Januar | J44: =D42-D41 -> 31 | K44: 20.90322581 | M44: Januar | N44: 614 | P44: Januar | Q44: 648 | S44: 34 | T44: 5.537459283 | U44: =IF(D42="","",VLOOKUP(MONTH(D42),'Beregn varme 2011'!A$2:I$13,9,FALSE)) -> 10 | V44: 540.4
A45: 2010-10-31 | B45: 56226 | C45: 421 | D45: 2011-04-30 | E45: 59675 | F45: =IF(E45<>"",E45-E44,"") -> 408 | I45: =IF(D43="","",VLOOKUP(MONTH(D43),T!A$1:B$12,2,FALSE)) -> Februar | J45: =D43-D42 -> 28 | K45: 21.64285714 | M45: Februar | N45: 596 | P45: Februar | Q45: 606 | S45: 10 | T45: 1.677852349 | U45: =IF(D43="","",VLOOKUP(MONTH(D43),'Beregn varme 2011'!A$2:I$13,9,FALSE)) -> 9 | V45: 486.36
A46: 2010-11-30 | B46: 56770 | C46: 544 | D46: 2011-05-31 | E46: 60055 | F46: =IF(E46<>"",E46-E45,"") -> 380 | I46: =IF(D44="","",VLOOKUP(MONTH(D44),T!A$1:B$12,2,FALSE)) -> Marts | J46: =D44-D43 -> 31 | K46: 20.16129032 | M46: Marts | N46: 586 | P46: Marts | Q46: 625 | S46: 39 | T46: 6.655290102 | U46: =IF(D44="","",VLOOKUP(MONTH(D44),'Beregn varme 2011'!A$2:I$13,9,FALSE)) -> 9 | V46: 486.36
D47: Års forbrug | F47: =SUM(C41:C46,F41:F46) -> 5478 | I47: =IF(D45="","",VLOOKUP(MONTH(D45),T!A$1:B$12,2,FALSE)) -> April | J47: =D45-D44 -> 30 | K47: 13.6 | M47: April | N47: 477 | P47: April | Q47: 408 | S47: -69 | T47: -14.46540881 | U47: =IF(D45="","",VLOOKUP(MONTH(D45),'Beregn varme 2011'!A$2:I$13,9,FALSE)) -> 8 | V47: 432.32
I48: =IF(D46="","",VLOOKUP(MONTH(D46),T!A$1:B$12,2,FALSE)) -> Maj | J48: =D46-D45 -> 31 | K48: 12.25806452 | M48: Maj | N48: 437 | P48: Maj | Q48: 380 | S48: -57 | T48: =IF(Q48<>"",S48/(Q48/100),"") -> -15 | U48: =IF(D46="","",VLOOKUP(MONTH(D46),'Beregn varme 2011'!A$2:I$13,9,FALSE)) -> 7 | V48: 378.28
I50: Hele året | J50: =D46-A40 -> 361 | K50: =F47/J50 -> 15.17451524 | M50: Års Total | N50: 5404 | Q50: =SUM(Q37:Q48) -> 5478 | S50: 74 | T50: =S50/(Q50/100) -> 1.350857977 | U50: =SUM(U37:U48) -> 100 | V50: =SUM(V37:V48) -> 5404

Sheet 2011 2 (hidden)
N1: 2010 | Q1: 2011 | T1: +/- | U1: % | V1: Forventet forbrug
A2: =System!A19 -> Version: 2.0.2 / Bjarne Hansen | J2: Olie | K2: Dage | L2: Liter pr dag | N2: Olie | O2: Liter | P2: % | R2: Liter | S2: % | T2: Liter | V2: % | W2: Liter
A3: Aflæsningsskema til Olieforbrug samt EL og Vand | J3: =IF(A11="","",VLOOKUP(MONTH(A11),T!A$1:B$12,2,FALSE)) -> November | K3: =A11-A10 -> 7 | L3: =IF(G11<>"",G11/K3,"") -> 28.14285714 | N3: =IF(A11="","",VLOOKUP(MONTH(A11),T!$A$1:$B$12,2,FALSE)) -> November | O3: 210 | P3: =IF(O3="","",O3/(O$16/100)) -> 13.96276596 | Q3: =IF(A11="","",VLOOKUP(MONTH(A11),T!$A$1:$B$12,2,FALSE)) -> November | R3: =G11 -> 197 | S3: =IF(R3="","",R3/(R$16/100)) -> 42.82608696 | T3: =IF(R3<>"",R3-O3,"") -> -13 | U3: =IF(R3<>"",T3/(O3/100),"") -> -6.19047619 | V3: =IF(A11="","",VLOOKUP(MONTH(A11),'Beregn varme 2011'!A$2:G$13,7,FALSE)) -> 11.6315595 | W3: =IF(R3="","",VLOOKUP(MONTH(A11),'Beregn varme 2011'!A$2:F$13,6,FALSE)) -> 174.9386548
A4: Navn : | B4: Bjarne Hansen, Lyrsbyvej 31 | J4: =IF(A12="","",VLOOKUP(MONTH(A12),T!A$1:B$12,2,FALSE)) -> December | K4: =IF(A12="","",A12-A11) -> 31 | L4: 8.483870968 | N4: =IF(A12="","",VLOOKUP(MONTH(A12),T!A$1:B$12,2,FALSE)) -> December | O4: 172 | P4: 11.43617021 | Q4: =IF(A12="","",VLOOKUP(MONTH(A12),T!$A$1:$B$12,2,FALSE)) -> December | R4: 263 | S4: 57.17391304 | T4: =IF(R4<>"",R4-O4,"") -> 91 | U4: =IF(R4<>"",T4/(O4/100),"") -> 52.90697674 | V4: =IF(A12="","",VLOOKUP(MONTH(A12),'Beregn varme 2011'!A$2:G$13,7,FALSE)) -> 14.6322986 | W4: =IF(R4="","",VLOOKUP(MONTH(A12),'Beregn varme 2011'!A$2:F$13,6,FALSE)) -> 220.0697709
J5: =IF(A13="","",VLOOKUP(MONTH(A13),T!A$1:B$12,2,FALSE)) ->  | N5: =IF(A13="","",VLOOKUP(MONTH(A13),T!A$1:B$12,2,FALSE)) ->  | O5: 169 | P5: 11.23670213 | Q5: =IF(A13="","",VLOOKUP(MONTH(A13),T!$A$1:$B$12,2,FALSE)) ->  | V5: =IF(A13="","",VLOOKUP(MONTH(A13),'Beregn varme 2011'!A$2:G$13,7,FALSE)) ->  | W5: =IF(R5="","",VLOOKUP(MONTH(A13),'Beregn varme 2011'!A$2:F$13,6,FALSE)) -> 
A6: MÅNEDLIG PEJLING AF OLIETANK | J6: =IF(A14="","",VLOOKUP(MONTH(A14),T!A$1:B$12,2,FALSE)) ->  | N6: =IF(A14="","",VLOOKUP(MONTH(A14),T!A$1:B$12,2,FALSE)) ->  | O6: 151 | P6: 10.03989362 | Q6: =IF(A14="","",VLOOKUP(MONTH(A14),T!$A$1:$B$12,2,FALSE)) ->  | V6: =IF(A14="","",VLOOKUP(MONTH(A14),'Beregn varme 2011'!A$2:G$13,7,FALSE)) ->  | W6: =IF(R6="","",VLOOKUP(MONTH(A14),'Beregn varme 2011'!A$2:F$13,6,FALSE)) -> 
J7: =IF(A15="","",VLOOKUP(MONTH(A15),T!A$1:B$12,2,FALSE)) ->  | N7: =IF(A15="","",VLOOKUP(MONTH(A15),T!A$1:B$12,2,FALSE)) ->  | O7: 96 | P7: 6.382978723 | Q7: =IF(A15="","",VLOOKUP(MONTH(A15),T!$A$1:$B$12,2,FALSE)) ->  | V7: =IF(A15="","",VLOOKUP(MONTH(A15),'Beregn varme 2011'!A$2:G$13,7,FALSE)) ->  | W7: =IF(R7="","",VLOOKUP(MONTH(A15),'Beregn varme 2011'!A$2:F$13,6,FALSE)) -> 
A8: Dato | B8: Pejling | D8: Fyldt på | E8: Beholdning | F8: Plads til | G8: Forbrug | H8: Bemærkning: | J8: =IF(A16="","",VLOOKUP(MONTH(A16),T!A$1:B$12,2,FALSE)) ->  | N8: =IF(A16="","",VLOOKUP(MONTH(A16),T!A$1:B$12,2,FALSE)) ->  | O8: 62 | P8: 4.122340426 | Q8: =IF(A16="","",VLOOKUP(MONTH(A16),T!$A$1:$B$12,2,FALSE)) ->  | V8: =IF(A16="","",VLOOKUP(MONTH(A16),'Beregn varme 2011'!A$2:G$13,7,FALSE)) ->  | W8: =IF(R8="","",VLOOKUP(MONTH(A16),'Beregn varme 2011'!A$2:F$13,6,FALSE)) -> 
B9: i cm | C9: Liter | D9: Liter | F9: Liter | G9: Liter | J9: =IF(A17="","",VLOOKUP(MONTH(A17),T!A$1:B$12,2,FALSE)) ->  | N9: =IF(A17="","",VLOOKUP(MONTH(A17),T!A$1:B$12,2,FALSE)) ->  | O9: ='2010'!F12 -> 40 | P9: 2.659574468 | Q9: =IF(A17="","",VLOOKUP(MONTH(A17),T!$A$1:$B$12,2,FALSE)) ->  | V9: =IF(A17="","",VLOOKUP(MONTH(A17),'Beregn varme 2011'!A$2:G$13,7,FALSE)) ->  | W9: =IF(R9="","",VLOOKUP(MONTH(A17),'Beregn varme 2011'!A$2:F$13,6,FALSE)) -> 
A10: 2011-11-23 | B10: 111 | C10: =IF(B10="","",VLOOKUP(B10,Pejletabel1800!A$3:B$201,2,FALSE)) -> 1361 | E10: =IF(C10<>"",SUM(C10:D10),"") -> 1361 | F10: =IF(E10<>"",1800-E10,"") -> 439 | H10: Beholdning 30 cm ved indflytning | J10: =IF(A18="","",VLOOKUP(MONTH(A18),T!A$1:B$12,2,FALSE)) ->  | N10: =IF(A18="","",VLOOKUP(MONTH(A18),T!A$1:B$12,2,FALSE)) ->  | O10: ='2010'!F13 -> 42 | P10: 2.792553191 | Q10: =IF(A18="","",VLOOKUP(MONTH(A18),T!$A$1:$B$12,2,FALSE)) ->  | V10: =IF(A18="","",VLOOKUP(MONTH(A18),'Beregn varme 2011'!A$2:G$13,7,FALSE)) ->  | W10: =IF(R10="","",VLOOKUP(MONTH(A18),'Beregn varme 2011'!A$2:F$13,6,FALSE)) -> 
A11: 2011-11-30 | B11: 96 | C11: =IF(B11="","",VLOOKUP(B11,Pejletabel1800!A$3:B$201,2,FALSE)) -> 1164 | E11: =IF(C11<>"",C11+D11,"") -> 1164 | F11: =IF(E11<>"",1800-E11,"") -> 636 | G11: =IF(C11<>"",E10-C11,"") -> 197 | J11: =IF(A19="","",VLOOKUP(MONTH(A19),T!A$1:B$12,2,FALSE)) ->  | N11: =IF(A19="","",VLOOKUP(MONTH(A19),T!A$1:B$12,2,FALSE)) ->  | O11: ='2010'!F14 -> 85 | P11: 5.651595745 | Q11: =IF(A19="","",VLOOKUP(MONTH(A19),T!$A$1:$B$12,2,FALSE)) ->  | V11: =IF(A19="","",VLOOKUP(MONTH(A19),'Beregn varme 2011'!A$2:G$13,7,FALSE)) ->  | W11: =IF(R11="","",VLOOKUP(MONTH(A19),'Beregn varme 2011'!A$2:F$13,6,FALSE)) -> 
A12: 2011-12-31 | B12: 76 | C12: =IF(B12="","",VLOOKUP(B12,Pejletabel1800!A$3:B$201,2,FALSE)) -> 901 | E12: =IF(C12<>"",C12+D12,"") -> 901 | F12: =IF(E12<>"",1800-E12,"") -> 899 | G12: =IF(C12<>"",E11-C12,"") -> 263 | J12: =IF(A20="","",VLOOKUP(MONTH(A20),T!A$1:B$12,2,FALSE)) ->  | N12: =IF(A20="","",VLOOKUP(MONTH(A20),T!A$1:B$12,2,FALSE)) ->  | O12: ='2010'!F15 -> 102 | P12: 6.781914894 | Q12: =IF(A20="","",VLOOKUP(MONTH(A20),T!$A$1:$B$12,2,FALSE)) ->  | V12: =IF(A20="","",VLOOKUP(MONTH(A20),'Beregn varme 2011'!A$2:G$13,7,FALSE)) ->  | W12: =IF(R12="","",VLOOKUP(MONTH(A20),'Beregn varme 2011'!A$2:F$13,6,FALSE)) -> 
C13: =IF(B13="","",VLOOKUP(B13,Pejletabel1800!A$3:B$201,2,FALSE)) ->  | E13: =IF(C13<>"",C13+D13,"") ->  | J13: =IF(A21="","",VLOOKUP(MONTH(A21),T!A$1:B$12,2,FALSE)) ->  | N13: =IF(A21="","",VLOOKUP(MONTH(A21),T!A$1:B$12,2,FALSE)) ->  | O13: ='2010'!F16 -> 167 | P13: 11.1037234 | Q13: =IF(A21="","",VLOOKUP(MONTH(A21),T!$A$1:$B$12,2,FALSE)) ->  | V13: =IF(A21="","",VLOOKUP(MONTH(A21),'Beregn varme 2011'!A$2:G$13,7,FALSE)) ->  | W13: =IF(R13="","",VLOOKUP(MONTH(A21),'Beregn varme 2011'!A$2:F$13,6,FALSE)) -> 
C14: =IF(B14="","",VLOOKUP(B14,Pejletabel1800!A$3:B$201,2,FALSE)) ->  | J14: =IF(A22="","",VLOOKUP(MONTH(A22),T!A$1:B$12,2,FALSE)) ->  | N14: =IF(A22="","",VLOOKUP(MONTH(A22),T!A$1:B$12,2,FALSE)) ->  | O14: ='2010'!F17 -> 208 | P14: 13.82978723 | Q14: =IF(A22="","",VLOOKUP(MONTH(A22),T!$A$1:$B$12,2,FALSE)) ->  | V14: =IF(A22="","",VLOOKUP(MONTH(A22),'Beregn varme 2011'!A$2:G$13,7,FALSE)) ->  | W14: =IF(R14="","",VLOOKUP(MONTH(A22),'Beregn varme 2011'!A$2:F$13,6,FALSE)) -> 
C15: =IF(B15="","",VLOOKUP(B15,Pejletabel1800!A$3:B$201,2,FALSE)) -> 
C16: =IF(B16="","",VLOOKUP(B16,Pejletabel1800!A$3:B$201,2,FALSE)) ->  | J16: Hele året | K16: =A12-A10 -> 38 | L16: =G23/K16 -> 12.10526316 | N16: Års Total | O16: ='2010'!F18 -> 1504 | P16: =SUM(P3:P14) -> 100 | R16: =G23 -> 460 | T16: =IF(R16<>0,R16-O16,"") -> -1044 | U16: =IF(R16<>0,T16/(R16/100),"") -> -226.9565217 | V16: =SUM(V3:V14) -> 26.26385809 | W16: =SUM(W3:W14) -> 395.0084257
C17: =IF(B17="","",VLOOKUP(B17,Pejletabel1800!A$3:B$201,2,FALSE)) -> 
C18: =IF(B18="","",VLOOKUP(B18,Pejletabel1800!A$3:B$201,2,FALSE)) ->  | N18: 2010 | Q18: 2011 | T18: +/- | U18: % | V18: Forventet forbrug
C19: =IF(B19="","",VLOOKUP(B19,Pejletabel1800!A$3:B$201,2,FALSE)) ->  | J19: Vand | K19: Dage | L19: m³ pr. dag | N19: Vand | O19: m³ | R19: m³ | T19: m³ | V19: % | W19: m³
C20: =IF(B20="","",VLOOKUP(B20,Pejletabel1800!A$3:B$201,2,FALSE)) ->  | J20: =IF(A29="","",VLOOKUP(MONTH(A29),T!A$1:B$12,2,FALSE)) -> November | K20: =A29-A28 -> 7 | L20: =IF(D29<>"",D29/K20,"") -> 0.1428571429 | N20: =IF(A29="","",VLOOKUP(MONTH(A29),T!A$1:B$12,2,FALSE)) -> November | O20: 10 | Q20: Januar | R20: =D29 -> 1 | T20: =IF(R20<>"",R20-O20,"") -> -9 | U20: =IF(T20<>"",T20/(O20/100),"") -> -90 | V20: =IF(A28="","",VLOOKUP(MONTH(A28),'Beregn varme 2011'!A$2:H$13,8,FALSE)) -> 8.219178082 | W20: =IF(R20="","",O$33/100*V20) -> 8.054794521
C21: =IF(B21="","",VLOOKUP(B21,Pejletabel1800!A$3:B$201,2,FALSE)) ->  | F21: =IF(E21<>"",1200-E21,"") ->  | J21: =IF(A30="","",VLOOKUP(MONTH(A30),T!A$1:B$12,2,FALSE)) -> December | K21: =IF(A30="","",A30-A29) -> 31 | L21: 0.1612903226 | N21: =IF(A30="","",VLOOKUP(MONTH(A30),T!A$1:B$12,2,FALSE)) -> December | O21: 9 | Q21: Februar | R21: 5 | T21: =IF(R21<>"",R21-O21,"") -> -4 | U21: =IF(T21<>"",T21/(O21/100),"") -> -44.44444444 | V21: =IF(A29="","",VLOOKUP(MONTH(A29),'Beregn varme 2011'!A$2:H$13,8,FALSE)) -> 8.219178082 | W21: 8.054794521
C22: =IF(B22="","",VLOOKUP(B22,Pejletabel1800!A$3:B$201,2,FALSE)) ->  | J22: =IF(A31="","",VLOOKUP(MONTH(A31),T!A$1:B$12,2,FALSE)) ->  | K22: =IF(A31="","",A31-A30) ->  | N22: =IF(A31="","",VLOOKUP(MONTH(A31),T!A$1:B$12,2,FALSE)) ->  | O22: 10 | Q22: Marts | V22: =IF(A30="","",VLOOKUP(MONTH(A30),'Beregn varme 2011'!A$2:H$13,8,FALSE)) -> 8.493150685
E23: Års forbrug | G23: =SUM(G11:G22) -> 460 | J23: =IF(A32="","",VLOOKUP(MONTH(A32),T!A$1:B$12,2,FALSE)) ->  | K23: =IF(A32="","",A32-A31) ->  | N23: =IF(A32="","",VLOOKUP(MONTH(A32),T!A$1:B$12,2,FALSE)) ->  | O23: 9 | Q23: April | V23: =IF(A31="","",VLOOKUP(MONTH(A31),'Beregn varme 2011'!A$2:H$13,8,FALSE)) -> 
A24: MÅNEDLIG AFLÆSNING AF VANDMÅLER | J24: =IF(A33="","",VLOOKUP(MONTH(A33),T!A$1:B$12,2,FALSE)) ->  | K24: =IF(A33="","",A33-A32) ->  | N24: =IF(A33="","",VLOOKUP(MONTH(A33),T!A$1:B$12,2,FALSE)) ->  | O24: 8 | Q24: Maj | V24: =IF(A32="","",VLOOKUP(MONTH(A32),'Beregn varme 2011'!A$2:H$13,8,FALSE)) -> 
J25: =IF(A34="","",VLOOKUP(MONTH(A34),T!A$1:B$12,2,FALSE)) ->  | K25: =IF(E29="","",A34-E29) ->  | N25: Juni | O25: 9 | Q25: Juni | V25: =IF(A33="","",VLOOKUP(MONTH(A33),'Beregn varme 2011'!A$2:H$13,8,FALSE)) -> 
A26: Dato | B26: Aflæst | D26: Forbrug | E26: Dato | F26: Aflæst | G26: Forbrug | H26: Bemærkning: | J26: =IF(E29="","",VLOOKUP(MONTH(E29),T!A$1:B$12,2,FALSE)) ->  | K26: =IF(E29="","",E29-A34) ->  | L26: =IF(G29<>"",G29/K26,"") ->  | N26: Juli | O26: ='2010'!F24 -> 10 | Q26: Juli | R26: =G29 ->  | V26: =IF(A34="","",VLOOKUP(MONTH(A34),'Beregn varme 2011'!A$2:H$13,8,FALSE)) -> 
B27: m³ | D27: m³ | F27: m³ | G27: m³ | J27: =IF(E30="","",VLOOKUP(MONTH(E30),T!A$1:B$12,2,FALSE)) ->  | K27: =IF(E30="","",E30-E29) ->  | N27: August | O27: ='2010'!F25 -> 7 | Q27: August | V27: =IF(E29="","",VLOOKUP(MONTH(E29),'Beregn varme 2011'!A$2:H$13,8,FALSE)) -> 
A28: 2011-11-23 | B28: 1519 | J28: =IF(E31="","",VLOOKUP(MONTH(E31),T!A$1:B$12,2,FALSE)) ->  | K28: =IF(E31="","",E31-E30) ->  | N28: September | O28: ='2010'!P28 -> 7 | Q28: September | V28: =IF(E30="","",VLOOKUP(MONTH(E30),'Beregn varme 2011'!A$2:H$13,8,FALSE)) -> 
A29: 2011-11-30 | B29: 1520 | D29: =IF(B29<>"",B29-B28,"") -> 1 | G29: =IF(F29<>"",F29-C34,"") ->  | J29: =IF(E32="","",VLOOKUP(MONTH(E32),T!A$1:B$12,2,FALSE)) ->  | K29: =IF(E32="","",E32-E31) ->  | N29: Oktober | O29: ='2010'!P29 -> 8 | Q29: Oktober | V29: =IF(E31="","",VLOOKUP(MONTH(E31),'Beregn varme 2011'!A$2:H$13,8,FALSE)) -> 
A30: 2011-12-31 | B30: 1525 | D30: =IF(B30<>"",B30-B29,"") -> 5 | G30: =IF(F30<>"",F30-F29,"") ->  | J30: =IF(E33="","",VLOOKUP(MONTH(E33),T!A$1:B$12,2,FALSE)) ->  | K30: =IF(E33="","",E33-E32) ->  | N30: November | O30: ='2010'!P30 -> 7 | Q30: November | V30: =IF(E32="","",VLOOKUP(MONTH(E32),'Beregn varme 2011'!A$2:H$13,8,FALSE)) -> 
G31: =IF(F31<>"",F31-F30,"") ->  | J31: =IF(E34="","",VLOOKUP(MONTH(E34),T!A$1:B$12,2,FALSE)) ->  | K31: =IF(E34="","",E34-E33) ->  | N31: December | O31: ='2010'!P31 -> 4 | Q31: December | V31: =IF(E33="","",VLOOKUP(MONTH(E33),'Beregn varme 2011'!A$2:H$13,8,FALSE)) -> 
G32: =IF(F32<>"",F32-F31,"") -> 
G33: =IF(F33<>"",F33-F32,"") ->  | J33: Hele året | K33: =A30-A28 -> 38 | L33: =G35/K33 -> 0.1578947368 | N33: Års Total | O33: =SUM(O20:O31) -> 98 | R33: =G35 -> 6 | T33: =IF(R33<>0,R33-O33,"") -> -92 | U33: =IF(T33<>"",T33/(R33/100),"") -> -1533.333333 | V33: =SUM(V20:V31) -> 24.93150685 | W33: =SUM(W20:W31) -> 16.10958904
D34: =IF(C34<>"",C34-C33,"") ->  | G34: =IF(F34<>"",F34-F33,"") -> 
E35: Års forbrug | G35: =SUM(D29:D34,G29:G34) -> 6 | N35: 2009/2010 | Q35: 2010/2011 | T35: +/- | U35: % | V35: Forventet forbrug
A36: MÅNEDLIG AFLÆSNING AF ELMÅLER | J36: EL | K36: Dage | L36: KWh pr. dag | N36: EL | O36: KWh | R36: KWh | T36: KWh | V36: % | W36: KWh
J37: =IF(A41="","",VLOOKUP(MONTH(A41),T!A$1:B$12,2,FALSE)) -> November | K37: =A41-A40 -> 7 | L37: =IF(D41<>"",D41/K37,"") -> 9.285714286 | N37: Juni | O37: 334 | Q37: Juni | R37: =D41 -> 65 | T37: =IF(R37="","",R37-O37) -> -269 | U37: =IF(R37<>"",T37/(O37/100),"") -> -80.53892216 | V37: =IF(A41="","",VLOOKUP(MONTH(A41),'Beregn varme 2011'!A$2:I$13,9,FALSE)) -> 9 | W37: =IF(R37="","",O$50/100*V37) -> 486.36
A38: Dato | B38: Aflæst | D38: Forbrug | E38: Dato | F38: Aflæst | G38: Forbrug | H38: Bemærkning: | J38: =IF(A42="","",VLOOKUP(MONTH(A42),T!A$1:B$12,2,FALSE)) -> December | K38: 31 | L38: 10.61290323 | N38: Juli | O38: 291 | Q38: Juli | R38: =IF(D42<>"",D42,"") -> 329 | T38: =IF(R38<>"",R38-O38,"") -> 38 | U38: =IF(R38<>"",T38/(O38/100),"") -> 13.05841924 | V38: =IF(A42="","",VLOOKUP(MONTH(A42),'Beregn varme 2011'!A$2:I$13,9,FALSE)) -> 10 | W38: 540.4
B39: KWh | D39: KWh | F39: KWh | G39: KWh | J39: =IF(A43="","",VLOOKUP(MONTH(A43),T!A$1:B$12,2,FALSE)) -> Januar | K39: =IF(A43="","",A43-A42) -> 31 | L39: 13.41935484 | N39: August | O39: 264 | Q39: August | R39: =IF(D43<>"",D43,"") -> 416 | T39: =IF(R39<>"",R39-O39,"") -> 152 | U39: =IF(R39<>"",T39/(O39/100),"") -> 57.57575758 | V39: =IF(A43="","",VLOOKUP(MONTH(A43),'Beregn varme 2011'!A$2:I$13,9,FALSE)) -> 10 | W39: 540.4
A40: 2011-11-23 | B40: 14803 | H40: =IF(G40<>"",G40-D45,"") ->  | J40: =IF(A44="","",VLOOKUP(MONTH(A44),T!A$1:B$12,2,FALSE)) -> Februar | K40: =IF(A44="","",A44-A43) -> 29 | L40: 13.93103448 | N40: September | O40: 326 | Q40: September | R40: =IF(D44<>"",D44,"") -> 404 | T40: =IF(R40<>"",R40-O40,"") -> 78 | U40: =IF(R40<>"",T40/(O40/100),"") -> 23.92638037 | V40: =IF(A44="","",VLOOKUP(MONTH(A44),'Beregn varme 2011'!A$2:I$13,9,FALSE)) -> 9 | W40: 486.36
A41: 2011-11-30 | B41: 14868 | D41: =IF(B41<>"",B41-B40,"") -> 65 | E41: 2012-05-31 | G41: =IF(F41<>"",F41-C46,"") ->  | J41: =IF(A45="","",VLOOKUP(MONTH(A45),T!A$1:B$12,2,FALSE)) -> Marts | K41: =IF(A45="","",A45-A44) -> 31 | N41: Oktober | O41: 453 | Q41: Oktober | R41: =IF(D45<>"",D45,"") ->  | T41: =IF(R41<>"",R41-O41,"") ->  | U41: =IF(R41<>"",T41/(O41/100),"") ->  | V41: =IF(A45="","",VLOOKUP(MONTH(A45),'Beregn varme 2011'!A$2:I$13,9,FALSE)) -> 9
A42: 2011-12-31 | B42: 15197 | D42: =IF(B42<>"",B42-B41,"") -> 329 | E42: 2012-06-30 | G42: =IF(F42<>"",F42-F41,"") ->  | J42: =IF(A46="","",VLOOKUP(MONTH(A46),T!A$1:B$12,2,FALSE)) -> April | K42: 30 | N42: November | O42: 477 | Q42: November | R42: =IF(D46<>"",D46,"") ->  | T42: =IF(R42<>"",R42-O42,"") ->  | V42: =IF(A46="","",VLOOKUP(MONTH(A46),'Beregn varme 2011'!A$2:I$13,9,FALSE)) -> 8
A43: 2012-01-31 | B43: 15613 | D43: =IF(B43<>"",B43-B42,"") -> 416 | E43: 2012-07-31 | G43: =IF(F43<>"",F43-F42,"") ->  | J43: =IF(E41="","",VLOOKUP(MONTH(E41),T!A$1:B$12,2,FALSE)) -> Maj | K43: =IF(E41="","",E41-A46) -> 31 | L43: =IF(G41<>"",G41/K43,"") ->  | N43: December | O43: 549 | Q43: December | R43: =IF(G41<>"",G41,"") ->  | V43: =IF(E41="","",VLOOKUP(MONTH(E41),'Beregn varme 2011'!A$2:I$13,9,FALSE)) -> 7
A44: 2012-02-29 | B44: 16017 | D44: =IF(B44<>"",B44-B43,"") -> 404 | G44: =IF(F44<>"",F44-F43,"") ->  | J44: =IF(E42="","",VLOOKUP(MONTH(E42),T!A$1:B$12,2,FALSE)) -> Juni | K44: =IF(E42="","",E42-E41) -> 30 | N44: Januar | O44: 614 | Q44: Januar | V44: =IF(E42="","",VLOOKUP(MONTH(E42),'Beregn varme 2011'!A$2:I$13,9,FALSE)) -> 7
A45: 2012-03-31 | D45: =IF(C45<>"",C45-C44,"") ->  | G45: =IF(F45<>"",F45-F44,"") ->  | J45: =IF(E43="","",VLOOKUP(MONTH(E43),T!A$1:B$12,2,FALSE)) -> Juli | K45: =IF(E43="","",E43-E42) -> 31 | N45: Februar | O45: 596 | Q45: Februar | V45: =IF(E43="","",VLOOKUP(MONTH(E43),'Beregn varme 2011'!A$2:I$13,9,FALSE)) -> 7
A46: 2012-04-30 | G46: =IF(F46<>"",F46-F45,"") ->  | J46: =IF(E44="","",VLOOKUP(MONTH(E44),T!A$1:B$12,2,FALSE)) ->  | K46: =IF(E44="","",E44-E43) ->  | N46: Marts | O46: 586 | Q46: Marts | V46: =IF(E44="","",VLOOKUP(MONTH(E44),'Beregn varme 2011'!A$2:I$13,9,FALSE)) -> 
E47: Års forbrug | G47: =SUM(D41:D46,G41:G46) -> 1214 | J47: =IF(E45="","",VLOOKUP(MONTH(E45),T!A$1:B$12,2,FALSE)) ->  | K47: =IF(E45="","",E45-E44) ->  | N47: April | O47: 477 | Q47: April | V47: =IF(E45="","",VLOOKUP(MONTH(E45),'Beregn varme 2011'!A$2:I$13,9,FALSE)) -> 
J48: =IF(E46="","",VLOOKUP(MONTH(E46),T!A$1:B$12,2,FALSE)) ->  | K48: =IF(E46="","",E46-E45) ->  | N48: Maj | O48: 437 | Q48: Maj | U48: =IF(R48<>"",T48/(R48/100),"") ->  | V48: =IF(E46="","",VLOOKUP(MONTH(E46),'Beregn varme 2011'!A$2:I$13,9,FALSE)) -> 
J50: Hele året | K50: =SUM(K37:K48) -> 251 | L50: =G47/K50 -> 4.836653386 | N50: Års Total | O50: 5404 | R50: =SUM(R37:R48) -> 1214 | T50: =R50-O50 -> -4190 | U50: =T50/(R50/100) -> -345.1400329 | V50: =SUM(V37:V48) -> 76 | W50: =SUM(W37:W48) -> 2053.52

Sheet Beregn varme 2011 (hidden)
A1: måned | B1: Normal års graddage fra HNG | C1: % | D1: liter pr mdr til opvarmnig | E1: pr md til varmt vand | F1: liter i alt pr md | G1: % pr md | H1: % pr md vand | I1: % pr md EL | J1: Normal års graddage fra DTI | K1: % | L1: RVV | M1: %
A2: 1 | B2: 485 | C2: =B2/(B$14/100) -> 17.92313378 | D2: =('2010'!F$18-('2010'!F$18/100*$P$6))/100*C2 -> 188.6947524 | E2: =P$5/100*P$6/12 -> 37.6 | F2: =SUM(D2:E2) -> 226.2947524 | G2: =F2/(F$14/100) -> 15.04619364 | H2: =31*R7 -> 8.493150685 | I2: 10 | J2: 525 | K2: =J2/(J$14/100) -> 18.0660702 | L2: 519 | M2: =L2/(L$14/100) -> 16.67737789
A3: 2 | B3: 434 | C3: =B3/(B$14/100) -> 16.03843311 | D3: =('2010'!F$18-('2010'!F$18/100*$P$6))/100*C3 -> 168.8526238 | E3: =P$5/100*P$6/12 -> 37.6 | F3: =SUM(D3:E3) -> 206.4526238 | G3: =F3/(F$14/100) -> 13.72690318 | H3: =28*R7 -> 7.671232877 | I3: 9 | J3: 480 | K3: =J3/(J$14/100) -> 16.5175499 | L3: 486 | M3: =L3/(L$14/100) -> 15.61696658
A4: 3 | B4: 429 | C4: 15.85365854 | D4: =('2010'!F$18-('2010'!F$18/100*$P$6))/100*C4 -> 166.9073171 | E4: 37.6 | F4: 204.5073171 | G4: 13.59756098 | H4: =31*R7 -> 8.493150685 | I4: 9 | J4: 460 | K4: 15.82931865 | L4: 444 | M4: 14.26735219
A5: 4 | B5: 249 | C5: 9.201773836 | D5: =('2010'!F$18-('2010'!F$18/100*$P$6))/100*C5 -> 96.87627494 | E5: 37.6 | F5: 134.4762749 | G5: 8.941241685 | H5: =30*R7 -> 8.219178082 | I5: 8 | J5: 302 | K5: 10.39229181 | L5: 311 | M5: 9.993573265 | N5: forventetforbrug | P5: ='2010'!F18 -> 1504 | Q5: liter
A6: 5 | B6: 58 | C6: 2.14338507 | D6: =('2010'!F$18-('2010'!F$18/100*$P$6))/100*C6 -> 22.56555802 | E6: 37.6 | F6: 60.16555802 | G6: 4.000369549 | H6: =31*R7 -> 8.493150685 | I6: 7 | J6: 79 | K6: 2.718513421 | L6: 154 | M6: 4.948586118 | N6: % til varmt vand | P6: 30
A7: 6 | B7: 0 | C7: 0 | D7: =('2010'!F$18-('2010'!F$18/100*$P$6))/100*C7 -> 0 | E7: 37.6 | F7: 37.6 | G7: 2.5 | H7: =30*R7 -> 8.219178082 | I7: 7 | J7: 1 | K7: 0.03441156228 | L7: 58 | M7: 1.863753213 | N7: til varmt vand | P7: =P5/100*P6/12 -> 37.6 | Q7: =P7/12 -> 3.133333333 | R7: =100/365 -> 0.2739726027
A8: 7 | B8: 0 | C8: 0 | D8: =('2010'!F$18-('2010'!F$18/100*$P$6))/100*C8 -> 0 | E8: 37.6 | F8: 37.6 | G8: 2.5 | H8: =31*R7 -> 8.493150685 | I8: 7 | J8: 0 | K8: 0 | L8: 22 | M8: 0.706940874 | N8: til varme | P8: =$P$9-($P$9/100*$P$10) -> 0
A9: 8 | B9: 0 | C9: 0 | D9: =('2010'!F$18-('2010'!F$18/100*$P$6))/100*C9 -> 0 | E9: 37.6 | F9: 37.6 | G9: 2.5 | H9: =31*R7 -> 8.493150685 | I9: 7 | J9: 0 | K9: 0 | L9: 18 | M9: 0.5784061697
A10: 9 | B10: 26 | C10: 0.9608277901 | D10: =('2010'!F$18-('2010'!F$18/100*$P$6))/100*C10 -> 10.11559497 | E10: 37.6 | F10: 47.71559497 | G10: 3.172579453 | H10: =30*R7 -> 8.219178082 | I10: 8 | J10: 36 | K10: 1.238816242 | L10: 91 | M10: 2.924164524
A11: 10 | B11: 203 | C11: 7.501847746 | D11: =('2010'!F$18-('2010'!F$18/100*$P$6))/100*C11 -> 78.97945307 | E11: 37.6 | F11: 116.5794531 | G11: 7.751293422 | H11: =31*R7 -> 8.493150685 | I11: 9 | J11: 219 | K11: 7.53613214 | L11: 207 | M11: 6.651670951
A12: 11 | B12: 353 | C12: 13.045085 | D12: =('2010'!F$18-('2010'!F$18/100*$P$6))/100*C12 -> 137.3386548 | E12: 37.6 | F12: 174.9386548 | G12: 11.6315595 | H12: =30*R7 -> 8.219178082 | I12: 9 | J12: 349 | K12: 12.00963524 | L12: 341 | M12: 10.95758355
A13: 12 | B13: 469 | C13: 17.33185514 | D13: =('2010'!F$18-('2010'!F$18/100*$P$6))/100*C13 -> 182.4697709 | E13: 37.6 | F13: 220.0697709 | G13: 14.6322986 | H13: =31*R7 -> 8.493150685 | I13: 10 | J13: 455 | K13: 15.65726084 | L13: 461 | M13: 14.81362468
A14: check | B14: =SUM(B2:B13) -> 2706 | C14: =SUM(C2:C13) -> 100 | D14: 1052.8 | E14: 451.2 | F14: 1504 | G14: 100 | H14: =SUM(H2:H13) -> 100 | I14: 100 | J14: =SUM(J2:J13) -> 2906 | K14: 100 | L14: 3112 | M14: 100

Sheet 2017
A1: Vælg årstal: | D1: 2017 | J1: Olie | N1: =Q1-1 -> 2016 | Q1: =D1 -> 2017 | T1: +/- | U1: % | V1: Forventet forbrug
A2: =System!A19 -> Version: 2.0.2 / Bjarne Hansen | J2: Måned | K2: Dage | L2: Liter pr dag | N2: Olie | O2: Liter | P2: % | R2: Liter | S2: % | T2: Liter | V2: % | W2: Liter
A3: Aflæsningsskema til Olieforbrug samt EL og Vand | J3: =IF(A11="","",VLOOKUP(MONTH(A11),T!A$1:B$12,2,FALSE)) -> Januar | K3: =A11-A10 -> 31 | L3: =IF(G11<>"",G11/K3,"") ->  | N3: =IF(A11="","",VLOOKUP(MONTH(A11),T!$A$1:$B$12,2,FALSE)) -> Januar | O3: =INDIRECT("'"&$N$1&"'!g11") ->  | P3: =IF(O3="","",O3/(O$16/100)) ->  | Q3: =IF(A11="","",VLOOKUP(MONTH(A11),T!$A$1:$B$12,2,FALSE)) -> Januar | R3: =G11 ->  | S3: =IF(R3="","",R3/(R$16/100)) ->  | T3: =IF(R3<>"",R3-O3,"") ->  | U3: =IF(AND(R3<>"",O3<>0),T3/(O3/100)," - ") -> - | V3: =IF(A11="","",VLOOKUP(MONTH(A11),INDIRECT("'Beregn varme "&$Q$1&"'!A2:R13"),15,FALSE)) -> 15.36636013 | W3: =IF(R3="","",VLOOKUP(MONTH(A11),INDIRECT("'Beregn varme "&Q1&"'!A2:R13"),16,FALSE)) -> 
A4: Navn : | B4: Bjarne Hansen, Lyrsbyvej 31 | J4: =IF(A12="","",VLOOKUP(MONTH(A12),T!A$1:B$12,2,FALSE)) -> Februar | K4: =IF(A12="","",A12-A11) -> 28 | N4: =IF(A12="","",VLOOKUP(MONTH(A12),T!A$1:B$12,2,FALSE)) -> Februar | O4: =INDIRECT("'"&$N$1&"'!g12") ->  | Q4: =IF(A12="","",VLOOKUP(MONTH(A12),T!$A$1:$B$12,2,FALSE)) -> Februar | T4: =IF(R4<>"",R4-O4,"") ->  | U4: =IF(AND(R4<>"",O4<>0),T4/(O4/100)," - ") -> - | V4: =IF(A12="","",VLOOKUP(MONTH(A12),INDIRECT("'Beregn varme "&$Q$1&"'!A2:R13"),15,FALSE)) -> 14.68407001 | W4: =IF(R4="","",VLOOKUP(MONTH(A12),INDIRECT("'Beregn varme "&$Q$1&"'!A2:R13"),16,FALSE)) -> 
A5: Tankstørrelse: | C5: =System!F8 -> 1800 | D5: Liter | J5: =IF(A13="","",VLOOKUP(MONTH(A13),T!A$1:B$12,2,FALSE)) -> Marts | K5: 31 | N5: =IF(A13="","",VLOOKUP(MONTH(A13),T!A$1:B$12,2,FALSE)) -> Marts | O5: =INDIRECT("'"&$N$1&"'!g13") ->  | Q5: =IF(A13="","",VLOOKUP(MONTH(A13),T!$A$1:$B$12,2,FALSE)) -> Marts | U5: - | V5: 14.26876298 | W5: =IF(R5="","",VLOOKUP(MONTH(A13),INDIRECT("'Beregn varme "&$Q$1&"'!A2:R13"),16,FALSE)) -> 
A6: MÅNEDLIG PEJLING AF OLIETANK | J6: =IF(A14="","",VLOOKUP(MONTH(A14),T!A$1:B$12,2,FALSE)) -> April | K6: 30 | N6: =IF(A14="","",VLOOKUP(MONTH(A14),T!A$1:B$12,2,FALSE)) -> April | O6: =INDIRECT("'"&$N$1&"'!g14") ->  | Q6: =IF(A14="","",VLOOKUP(MONTH(A14),T!$A$1:$B$12,2,FALSE)) -> April | U6: - | V6: 11.09463067 | W6: =IF(R6="","",VLOOKUP(MONTH(A14),INDIRECT("'Beregn varme "&$Q$1&"'!A2:R13"),16,FALSE)) -> 
J7: =IF(A15="","",VLOOKUP(MONTH(A15),T!A$1:B$12,2,FALSE)) -> Maj | K7: 31 | N7: =IF(A15="","",VLOOKUP(MONTH(A15),T!A$1:B$12,2,FALSE)) -> Maj | O7: =INDIRECT("'"&$N$1&"'!g15") ->  | Q7: =IF(A15="","",VLOOKUP(MONTH(A15),T!$A$1:$B$12,2,FALSE)) -> Maj | U7: - | V7: 7.000889944 | W7: =IF(R7="","",VLOOKUP(MONTH(A15),INDIRECT("'Beregn varme "&$Q$1&"'!A2:R13"),16,FALSE)) -> 
A8: Dato | B8: Pejling | D8: Fyldt på | E8: Beholdning | F8: Plads til | G8: Forbrug | H8: Bemærkning: | J8: =IF(A16="","",VLOOKUP(MONTH(A16),T!A$1:B$12,2,FALSE)) -> Juni | K8: 30 | N8: =IF(A16="","",VLOOKUP(MONTH(A16),T!A$1:B$12,2,FALSE)) -> Juni | O8: =INDIRECT("'"&$N$1&"'!g16") ->  | Q8: =IF(A16="","",VLOOKUP(MONTH(A16),T!$A$1:$B$12,2,FALSE)) -> Juni | U8: - | V8: 2.669830911
B9: i cm | C9: Liter | D9: Liter | F9: Liter | G9: Liter | J9: =IF(A17="","",VLOOKUP(MONTH(A17),T!A$1:B$12,2,FALSE)) -> Juli | K9: 31 | N9: =IF(A17="","",VLOOKUP(MONTH(A17),T!A$1:B$12,2,FALSE)) -> Juli | O9: =INDIRECT("'"&$N$1&"'!g17") ->  | Q9: =IF(A17="","",VLOOKUP(MONTH(A17),T!$A$1:$B$12,2,FALSE)) -> Juli | U9: - | V9: 0.5932957579
A10: =DATE($D$1-1,Setup!$D$2,Setup!$C$2) -> 2016-12-31 | B10: =INDIRECT("'"&$N$1&"'!b22") -> 0 | C10: =IF(B10="","",IF(System!E$8=1,VLOOKUP(B10,Pejletabel!A$3:G$336,2,FALSE),IF(System!E$8=2,VLOOKUP(B10,Pejletabel!A$3:G$357,3,FALSE),IF(System!E$8=3,VLOOKUP(B10,Pejletabel!A$3:G$357,4,FALSE),IF(System!E$8=4,VLOOKUP(B10,Pejletabel!A$3:G$357,5,FALSE),IF(System!E8=5,VLOOKUP(B10,Pejletabel!A3:G358,6,FALSE),IF(System!E$8=6,VLOOKUP(B10,Pejletabel!A$3:G$357,7,FALSE)))))))) -> 0 | E10: =IF(C10<>"",SUM(C10:D10),"") -> 0 | F10: =IF(E10<>"",System!F$8-E10,"") -> 1800 | J10: =IF(A18="","",VLOOKUP(MONTH(A18),T!A$1:B$12,2,FALSE)) -> August | K10: 31 | N10: =IF(A18="","",VLOOKUP(MONTH(A18),T!A$1:B$12,2,FALSE)) -> August | O10: =INDIRECT("'"&$N$1&"'!g18") ->  | Q10: =IF(A18="","",VLOOKUP(MONTH(A18),T!$A$1:$B$12,2,FALSE)) -> August | U10: - | V10: 0.6822901216
A11: =EDATE($A$10,ROWS($1:1)) -> 2017-01-31 | C11: =IF(B11="","",IF(System!E$8=1,VLOOKUP(B11,Pejletabel!A$3:G$336,2,FALSE),IF(System!E$8=2,VLOOKUP(B11,Pejletabel!A$3:G$357,3,FALSE),IF(System!E$8=3,VLOOKUP(B11,Pejletabel!A$3:G$357,4,FALSE),IF(System!E$8=4,VLOOKUP(B11,Pejletabel!A$3:G$357,5,FALSE),IF(System!E$8=5,VLOOKUP(B11,Pejletabel!A$3:G$357,6,FALSE),IF(System!E8=6,VLOOKUP(B11,Pejletabel!A3:G357,7,FALSE)))))))) ->  | E11: =IF(C11<>"",C11,"") ->  | F11: =IF(E11<>"",1800-E11,"") ->  | G11: =IF(C11<>"",C10-C11+D11,"") ->  | J11: =IF(A19="","",VLOOKUP(MONTH(A19),T!A$1:B$12,2,FALSE)) -> September | K11: 30 | N11: =IF(A19="","",VLOOKUP(MONTH(A19),T!A$1:B$12,2,FALSE)) -> September | O11: =INDIRECT("'"&$N$1&"'!g19") ->  | Q11: =IF(A19="","",VLOOKUP(MONTH(A19),T!$A$1:$B$12,2,FALSE)) -> September | U11: - | V11: 3.233461881
A12: =EDATE($A$10,ROWS($1:2)) -> 2017-02-28 | C12: =IF(B12="","",IF(System!E$8=1,VLOOKUP(B12,Pejletabel!A$3:G$336,2,FALSE),IF(System!E$8=2,VLOOKUP(B12,Pejletabel!A$3:G$357,3,FALSE),IF(System!E$8=3,VLOOKUP(B12,Pejletabel!A$3:G$357,4,FALSE),IF(System!E$8=4,VLOOKUP(B12,Pejletabel!A$3:G$357,5,FALSE),IF(System!E$8=5,VLOOKUP(B12,Pejletabel!A$3:G$357,6,FALSE),IF(System!E13=6,VLOOKUP(B12,Pejletabel!A4:G358,7,FALSE)))))))) ->  | E12: =IF(C12<>"",C12,"") ->  | F12: =IF(E12<>"",1800-E12,"") ->  | G12: =IF(C12<>"",C11-C12+D12,"") ->  | J12: =IF(A20="","",VLOOKUP(MONTH(A20),T!A$1:B$12,2,FALSE)) -> Oktober | K12: 31 | N12: =IF(A20="","",VLOOKUP(MONTH(A20),T!A$1:B$12,2,FALSE)) -> Oktober | O12: =INDIRECT("'"&$N$1&"'!g20") ->  | Q12: =IF(A20="","",VLOOKUP(MONTH(A20),T!$A$1:$B$12,2,FALSE)) -> Oktober | U12: - | V12: 6.76357164
A13: =EDATE($A$10,ROWS($1:3)) -> 2017-03-31 | C13: =IF(B13="","",IF(System!E$8=1,VLOOKUP(B13,Pejletabel!A$3:G$336,2,FALSE),IF(System!E$8=2,VLOOKUP(B13,Pejletabel!A$3:G$357,3,FALSE),IF(System!E$8=3,VLOOKUP(B13,Pejletabel!A$3:G$357,4,FALSE),IF(System!E$8=4,VLOOKUP(B13,Pejletabel!A$3:G$357,5,FALSE),IF(System!E$8=5,VLOOKUP(B13,Pejletabel!A$3:G$357,6,FALSE),IF(System!E19=6,VLOOKUP(B13,Pejletabel!A5:G359,7,FALSE)))))))) ->  | J13: =IF(A21="","",VLOOKUP(MONTH(A21),T!A$1:B$12,2,FALSE)) -> November | K13: 30 | N13: =IF(A21="","",VLOOKUP(MONTH(A21),T!A$1:B$12,2,FALSE)) -> November | O13: =INDIRECT("'"&$N$1&"'!g21") ->  | Q13: =IF(A21="","",VLOOKUP(MONTH(A21),T!$A$1:$B$12,2,FALSE)) -> November | U13: - | V13: 10.0563631
A14: =EDATE($A$10,ROWS($1:4)) -> 2017-04-30 | C14: =IF(B14="","",IF(System!E$8=1,VLOOKUP(B14,Pejletabel!A$3:G$336,2,FALSE),IF(System!E$8=2,VLOOKUP(B14,Pejletabel!A$3:G$357,3,FALSE),IF(System!E$8=3,VLOOKUP(B14,Pejletabel!A$3:G$357,4,FALSE),IF(System!E$8=4,VLOOKUP(B14,Pejletabel!A$3:G$357,5,FALSE),IF(System!E$8=5,VLOOKUP(B14,Pejletabel!A$3:G$357,6,FALSE),IF(System!E20=6,VLOOKUP(B14,Pejletabel!A6:G360,7,FALSE)))))))) ->  | J14: =IF(A22="","",VLOOKUP(MONTH(A22),T!A$1:B$12,2,FALSE)) -> December | K14: 31 | N14: =IF(A22="","",VLOOKUP(MONTH(A22),T!A$1:B$12,2,FALSE)) -> December | O14: =INDIRECT("'"&$N$1&"'!g22") ->  | Q14: =IF(A22="","",VLOOKUP(MONTH(A22),T!$A$1:$B$12,2,FALSE)) -> December | U14: - | V14: 13.58647286
A15: =EDATE($A$10,ROWS($1:5)) -> 2017-05-31 | C15: =IF(B15="","",IF(System!E$8=1,VLOOKUP(B15,Pejletabel!A$3:G$336,2,FALSE),IF(System!E$8=2,VLOOKUP(B15,Pejletabel!A$3:G$357,3,FALSE),IF(System!E$8=3,VLOOKUP(B15,Pejletabel!A$3:G$357,4,FALSE),IF(System!E$8=4,VLOOKUP(B15,Pejletabel!A$3:G$357,5,FALSE),IF(System!E$8=5,VLOOKUP(B15,Pejletabel!A$3:G$357,6,FALSE),IF(System!E21=6,VLOOKUP(B15,Pejletabel!A7:G361,7,FALSE)))))))) -> 
A16: =EDATE($A$10,ROWS($1:6)) -> 2017-06-30 | C16: =IF(B16="","",IF(System!E$8=1,VLOOKUP(B16,Pejletabel!A$3:G$336,2,FALSE),IF(System!E$8=2,VLOOKUP(B16,Pejletabel!A$3:G$357,3,FALSE),IF(System!E$8=3,VLOOKUP(B16,Pejletabel!A$3:G$357,4,FALSE),IF(System!E$8=4,VLOOKUP(B16,Pejletabel!A$3:G$357,5,FALSE),IF(System!E$8=5,VLOOKUP(B16,Pejletabel!A$3:G$357,6,FALSE),IF(System!E22=6,VLOOKUP(B16,Pejletabel!A8:G362,7,FALSE)))))))) ->  | J16: Hele året | K16: =SUM(K3:K14) -> 365 | L16: =G23/K16 -> 0 | N16: Års Total | O16: =SUM(O3:O14) -> 0 | P16: =SUM(P3:P14) -> 0 | R16: =G23 -> 0 | T16: =IF(R16<>0,R16-O16,"") ->  | U16: =IF(R16<>0,T16/(O16/100),"") ->  | V16: =SUM(V3:V14) -> 100 | W16: =SUM(W3:W14) -> 0
A17: =EDATE($A$10,ROWS($1:7)) -> 2017-07-31 | C17: =IF(B17="","",IF(System!E$8=1,VLOOKUP(B17,Pejletabel!A$3:G$336,2,FALSE),IF(System!E$8=2,VLOOKUP(B17,Pejletabel!A$3:G$357,3,FALSE),IF(System!E$8=3,VLOOKUP(B17,Pejletabel!A$3:G$357,4,FALSE),IF(System!E$8=4,VLOOKUP(B17,Pejletabel!A$3:G$357,5,FALSE),IF(System!E$8=5,VLOOKUP(B17,Pejletabel!A$3:G$357,6,FALSE),IF(System!E23=6,VLOOKUP(B17,Pejletabel!A9:G363,7,FALSE)))))))) -> 
A18: =EDATE($A$10,ROWS($1:8)) -> 2017-08-31 | C18: =IF(B18="","",IF(System!E$8=1,VLOOKUP(B18,Pejletabel!A$3:G$336,2,FALSE),IF(System!E$8=2,VLOOKUP(B18,Pejletabel!A$3:G$357,3,FALSE),IF(System!E$8=3,VLOOKUP(B18,Pejletabel!A$3:G$357,4,FALSE),IF(System!E$8=4,VLOOKUP(B18,Pejletabel!A$3:G$357,5,FALSE),IF(System!E$8=5,VLOOKUP(B18,Pejletabel!A$3:G$357,6,FALSE),IF(System!E24=6,VLOOKUP(B18,Pejletabel!A10:G364,7,FALSE)))))))) ->  | J18: Vand | N18: =N1 -> 2016 | Q18: =Q1 -> 2017 | T18: +/- | U18: % | V18: Forventet forbrug
A19: =EDATE($A$10,ROWS($1:9)) -> 2017-09-30 | C19: =IF(B19="","",IF(System!E$8=1,VLOOKUP(B19,Pejletabel!A$3:G$336,2,FALSE),IF(System!E$8=2,VLOOKUP(B19,Pejletabel!A$3:G$357,3,FALSE),IF(System!E$8=3,VLOOKUP(B19,Pejletabel!A$3:G$357,4,FALSE),IF(System!E$8=4,VLOOKUP(B19,Pejletabel!A$3:G$357,5,FALSE),IF(System!E$8=5,VLOOKUP(B19,Pejletabel!A$3:G$357,6,FALSE),IF(System!E25=6,VLOOKUP(B19,Pejletabel!A11:G365,7,FALSE)))))))) ->  | J19: Måned | K19: Dage | L19: m³ pr. dag | N19: Vand | O19: m³ | R19: m³ | T19: m³ | V19: % | W19: m³
A20: =EDATE($A$10,ROWS($1:10)) -> 2017-10-31 | C20: =IF(B20="","",IF(System!E$8=1,VLOOKUP(B20,Pejletabel!A$3:G$336,2,FALSE),IF(System!E$8=2,VLOOKUP(B20,Pejletabel!A$3:G$357,3,FALSE),IF(System!E$8=3,VLOOKUP(B20,Pejletabel!A$3:G$357,4,FALSE),IF(System!E$8=4,VLOOKUP(B20,Pejletabel!A$3:G$357,5,FALSE),IF(System!E$8=5,VLOOKUP(B20,Pejletabel!A$3:G$357,6,FALSE),IF(System!E26=6,VLOOKUP(B20,Pejletabel!A12:G366,7,FALSE)))))))) ->  | J20: =IF(A29="","",VLOOKUP(MONTH(A29),T!A$1:B$12,2,FALSE)) -> Januar | K20: =A29-A28 -> 31 | L20: =IF(D29<>"",D29/K20,"") ->  | N20: =IF(A29="","",VLOOKUP(MONTH(A29),T!A$1:B$12,2,FALSE)) -> Januar | O20: =INDIRECT("'"&$N$1&"'!d29") ->  | Q20: Januar | R20: =D29 ->  | T20: =IF(R20<>"",R20-O20,"") ->  | U20: =IF(T20<>"",T20/(O20/100),"") ->  | V20: =IF(A29="","",VLOOKUP(MONTH(A29),'Beregn varme 2015'!A$2:I$13,9,FALSE)) -> 8.493150685 | W20: =IF(R20="","",O$33*V20%) -> 
A21: =EDATE($A$10,ROWS($1:11)) -> 2017-11-30 | C21: =IF(B21="","",IF(System!E$8=1,VLOOKUP(B21,Pejletabel!A$3:G$336,2,FALSE),IF(System!E$8=2,VLOOKUP(B21,Pejletabel!A$3:G$357,3,FALSE),IF(System!E$8=3,VLOOKUP(B21,Pejletabel!A$3:G$357,4,FALSE),IF(System!E$8=4,VLOOKUP(B21,Pejletabel!A$3:G$357,5,FALSE),IF(System!E$8=5,VLOOKUP(B21,Pejletabel!A$3:G$357,6,FALSE),IF(System!E27=6,VLOOKUP(B21,Pejletabel!A13:G367,7,FALSE)))))))) ->  | F21: =IF(E21<>"",1800-E21,"") ->  | J21: =IF(A30="","",VLOOKUP(MONTH(A30),T!A$1:B$12,2,FALSE)) -> Februar | K21: =IF(A30="","",A30-A29) -> 28 | N21: =IF(A30="","",VLOOKUP(MONTH(A30),T!A$1:B$12,2,FALSE)) -> Februar | O21: =INDIRECT("'"&$N$1&"'!d30") ->  | Q21: Februar | T21: =IF(R21<>"",R21-O21,"") ->  | U21: =IF(T21<>"",T21/(O21/100),"") ->  | V21: =IF(A30="","",VLOOKUP(MONTH(A30),'Beregn varme 2015'!A$2:I$13,9,FALSE)) -> 7.671232877 | W21: =IF(R21="","",O$33*V21%) -> 
A22: =EDATE($A$10,ROWS($1:12)) -> 2017-12-31 | C22: =IF(B22="","",IF(System!E$8=1,VLOOKUP(B22,Pejletabel!A$3:G$336,2,FALSE),IF(System!E$8=2,VLOOKUP(B22,Pejletabel!A$3:G$357,3,FALSE),IF(System!E$8=3,VLOOKUP(B22,Pejletabel!A$3:G$357,4,FALSE),IF(System!E$8=4,VLOOKUP(B22,Pejletabel!A$3:G$357,5,FALSE),IF(System!E$8=5,VLOOKUP(B22,Pejletabel!A$3:G$357,6,FALSE),IF(System!E28=6,VLOOKUP(B22,Pejletabel!A14:G368,7,FALSE)))))))) ->  | F22: =IF(E22<>"",1800-E22,"") ->  | J22: =IF(A31="","",VLOOKUP(MONTH(A31),T!A$1:B$12,2,FALSE)) -> Marts | K22: =IF(A31="","",A31-A30) -> 31 | N22: =IF(A31="","",VLOOKUP(MONTH(A31),T!A$1:B$12,2,FALSE)) -> Marts | O22: =INDIRECT("'"&$N$1&"'!d31") ->  | Q22: Marts | V22: =IF(A31="","",VLOOKUP(MONTH(A31),'Beregn varme 2015'!A$2:I$13,9,FALSE)) -> 8.493150685
E23: Års forbrug | G23: =SUM(G11:G22) -> 0 | J23: =IF(A32="","",VLOOKUP(MONTH(A32),T!A$1:B$12,2,FALSE)) -> April | K23: =IF(A32="","",A32-A31) -> 30 | N23: =IF(A32="","",VLOOKUP(MONTH(A32),T!A$1:B$12,2,FALSE)) -> April | O23: =INDIRECT("'"&$N$1&"'!d32") ->  | Q23: April | V23: =IF(A32="","",VLOOKUP(MONTH(A32),'Beregn varme 2015'!A$2:I$13,9,FALSE)) -> 8.219178082
A24: MÅNEDLIG AFLÆSNING AF VANDMÅLER | E24: MÅNEDLIG AFLÆSNING AF ELMÅLER | H24: Bemærkning: | J24: =IF(A33="","",VLOOKUP(MONTH(A33),T!A$1:B$12,2,FALSE)) -> Maj | K24: =IF(A33="","",A33-A32) -> 31 | N24: =IF(A33="","",VLOOKUP(MONTH(A33),T!A$1:B$12,2,FALSE)) -> Maj | O24: =INDIRECT("'"&$N$1&"'!d33") ->  | Q24: Maj | V24: =IF(A33="","",VLOOKUP(MONTH(A33),'Beregn varme 2015'!A$2:I$13,9,FALSE)) -> 8.493150685
J25: =IF(A34="","",VLOOKUP(MONTH(A34),T!A$1:B$12,2,FALSE)) -> Juni | K25: =IF(A34="","",A34-A33) -> 30 | N25: Juni | O25: =INDIRECT("'"&$N$1&"'!d34") ->  | Q25: Juni | U25: =IF(T25<>"",T25/(O25/100)," - ") -> - | V25: =IF(A34="","",VLOOKUP(MONTH(A34),'Beregn varme 2015'!A$2:I$13,9,FALSE)) -> 8.219178082
A26: Dato | B26: Aflæst | D26: Forbrug | E26: Dato | F26: Aflæst | G26: Forbrug | J26: =IF(A35="","",VLOOKUP(MONTH(A35),T!A$1:B$12,2,FALSE)) -> Juli | K26: =IF(A35="","",A35-A34) -> 31 | N26: Juli | O26: =INDIRECT("'"&$N$1&"'!d34") ->  | Q26: Juli | U26: =IF(T26<>"",T26/(O26/100)," - ") -> - | V26: =IF(A35="","",VLOOKUP(MONTH(A35),'Beregn varme 2015'!A$2:I$13,9,FALSE)) -> 8.493150685
B27: m³ | D27: m³ | F27: KWh | G27: KWh | J27: =IF(A36="","",VLOOKUP(MONTH(A36),T!A$1:B$12,2,FALSE)) -> August | K27: 31 | N27: August | O27: =INDIRECT("'"&$N$1&"'!d34") ->  | Q27: August | V27: =IF(A36="","",VLOOKUP(MONTH(A36),'Beregn varme 2015'!A$2:I$13,9,FALSE)) -> 8.493150685
A28: =DATE($D$1-1,Setup!$D$3,Setup!$C$3) -> 2016-12-31 | B28: =INDIRECT("'"&$N$1&"'!b40") -> 0 | E28: =DATE($D$1-1,Setup!$D$4,Setup!$C$4) -> 2016-07-31 | F28: =INDIRECT("'"&$N$1&"'!f40") -> 0 | J28: =IF(A37="","",VLOOKUP(MONTH(A37),T!A$1:B$12,2,FALSE)) -> September | K28: 30 | N28: September | Q28: September | V28: =IF(A37="","",VLOOKUP(MONTH(A37),'Beregn varme 2015'!A$2:I$13,9,FALSE)) -> 8.219178082
A29: =EDATE($A$28,ROWS($1:1)) -> 2017-01-31 | D29: =IF(B29<>"",B29-B28,"") ->  | E29: =EDATE($E$28,ROWS($1:1)) -> 2016-08-31 | G29: =IF(F29<>"",F29-F28,"") ->  | J29: =IF(A38="","",VLOOKUP(MONTH(A38),T!A$1:B$12,2,FALSE)) -> Oktober | K29: 31 | N29: Oktober | Q29: Oktober | V29: =IF(A38="","",VLOOKUP(MONTH(A38),'Beregn varme 2015'!A$2:I$13,9,FALSE)) -> 8.493150685
A30: =EDATE($A$28,ROWS($1:2)) -> 2017-02-28 | D30: =IF(B30<>"",B30-B29,"") ->  | E30: =EDATE($E$28,ROWS($1:2)) -> 2016-09-30 | J30: =IF(A39="","",VLOOKUP(MONTH(A39),T!A$1:B$12,2,FALSE)) -> November | K30: 30 | N30: November | Q30: November | V30: =IF(A39="","",VLOOKUP(MONTH(A39),'Beregn varme 2015'!A$2:I$13,9,FALSE)) -> 8.219178082
A31: =EDATE($A$28,ROWS($1:3)) -> 2017-03-31 | E31: =EDATE($E$28,ROWS($1:3)) -> 2016-10-31 | J31: =IF(A40="","",VLOOKUP(MONTH(A40),T!A$1:B$12,2,FALSE)) -> December | K31: 31 | N31: December | Q31: December | V31: =IF(A40="","",VLOOKUP(MONTH(A40),'Beregn varme 2015'!A$2:I$13,9,FALSE)) -> 8.493150685
A32: =EDATE($A$28,ROWS($1:4)) -> 2017-04-30 | E32: =EDATE($E$28,ROWS($1:4)) -> 2016-11-30
A33: =EDATE($A$28,ROWS($1:5)) -> 2017-05-31 | E33: =EDATE($E$28,ROWS($1:5)) -> 2016-12-31 | J33: Hele året | K33: =SUM(K20:K31) -> 365 | L33: =D41/K33 -> 0 | N33: Års Total | O33: =SUM(O20:O31) -> 0 | R33: =D41 -> 0 | T33: =IF(R33<>0,R33-O33,"") ->  | U33: =IF(T33<>"",T33/(O33/100),"") ->  | V33: =SUM(V20:V31) -> 100 | W33: =SUM(W20:W31) -> 0
A34: =EDATE($A$28,ROWS($1:6)) -> 2017-06-30 | E34: =EDATE($E$28,ROWS($1:6)) -> 2017-01-31
A35: =EDATE($A$28,ROWS($1:7)) -> 2017-07-31 | E35: =EDATE($E$28,ROWS($1:7)) -> 2017-02-28 | J35: EL | N35: =N1-1&"/"&N1 -> 2015/2016 | Q35: =N1&"/"&Q1 -> 2016/2017 | T35: +/- | U35: % | V35: Forventet forbrug
A36: =EDATE($A$28,ROWS($1:8)) -> 2017-08-31 | E36: =EDATE($E$28,ROWS($1:8)) -> 2017-03-31 | J36: Måned | K36: Dage | L36: KWh pr. dag | N36: EL | O36: KWh | R36: KWh | T36: KWh | V36: % | W36: KWh
A37: =EDATE($A$28,ROWS($1:9)) -> 2017-09-30 | E37: =EDATE($E$28,ROWS($1:9)) -> 2017-04-30 | J37: =IF(E29="","",VLOOKUP(MONTH(E29),T!A$1:B$12,2,FALSE)) -> August | K37: =E29-E28 -> 31 | L37: =IF(G29<>"",G29/K37,"") ->  | N37: =J37 -> August | O37: =INDIRECT("'"&$N$1&"'!g29") ->  | Q37: =J37 -> August | R37: =G29 ->  | T37: =IF(R37="","",R37-O37) ->  | U37: =IF(R37<>"",T37/(O37/100),"") ->  | V37: =IF(E29="","",VLOOKUP(MONTH(E29),'Beregn varme 2015'!A$2:J$13,10,FALSE)) -> 7 | W37: =IF(R37="","",O$50/100*V37) -> 
A38: =EDATE($A$28,ROWS($1:10)) -> 2017-10-31 | E38: =EDATE($E$28,ROWS($1:10)) -> 2017-05-31 | J38: =IF(E30="","",VLOOKUP(MONTH(E30),T!A$1:B$12,2,FALSE)) -> September | K38: =E30-E29 -> 30 | N38: =J38 -> September | O38: =INDIRECT("'"&$N$1&"'!g30") ->  | Q38: =J38 -> September | R38: =IF(G30<>"",G30,"") ->  | T38: =IF(R38<>"",R38-O38,"") ->  | U38: =IF(R38<>"",T38/(O38/100),"") ->  | V38: =IF(E30="","",VLOOKUP(MONTH(E30),'Beregn varme 2015'!A$2:J$13,10,FALSE)) -> 7
A39: =EDATE($A$28,ROWS($1:11)) -> 2017-11-30 | E39: =EDATE($E$28,ROWS($1:11)) -> 2017-06-30 | J39: =IF(E31="","",VLOOKUP(MONTH(E31),T!A$1:B$12,2,FALSE)) -> Oktober | K39: =IF(E31="","",E31-E30) -> 31 | N39: Oktober | O39: =INDIRECT("'"&$N$1&"'!g31") ->  | Q39: Oktober | T39: =IF(R39<>"",R39-O39,"") ->  | U39: =IF(R39<>"",T39/(O39/100),"") ->  | V39: =IF(E31="","",VLOOKUP(MONTH(E31),'Beregn varme 2015'!A$2:J$13,10,FALSE)) -> 9
A40: =EDATE($A$28,ROWS($1:12)) -> 2017-12-31 | E40: =EDATE($E$28,ROWS($1:12)) -> 2017-07-31 | J40: =IF(E32="","",VLOOKUP(MONTH(E32),T!A$1:B$12,2,FALSE)) -> November | K40: 30 | N40: November | O40: =INDIRECT("'"&$N$1&"'!g32") ->  | Q40: November | T40: =IF(R40<>"",R40-O40,"") ->  | U40: =IF(R40<>"",T40/(O40/100),"") ->  | V40: =IF(E32="","",VLOOKUP(MONTH(E32),'Beregn varme 2015'!A$2:J$13,10,FALSE)) -> 9
A41: Års forbrug | D41: =SUM(D29:D34,D35:D40) -> 0 | E41: Års forbrug | G41: =SUM(G29:G34,G35:G40) -> 0 | J41: =IF(E33="","",VLOOKUP(MONTH(E33),T!A$1:B$12,2,FALSE)) -> December | K41: 31 | N41: December | O41: =INDIRECT("'"&$N$1&"'!g33") ->  | Q41: December | T41: =IF(R41<>"",R41-O41,"") ->  | U41: =IF(R41<>"",T41/(O41/100),"") ->  | V41: =IF(E33="","",VLOOKUP(MONTH(E33),'Beregn varme 2015'!A$2:J$13,10,FALSE)) -> 11
J42: =IF(E34="","",VLOOKUP(MONTH(E34),T!A$1:B$12,2,FALSE)) -> Januar | K42: 31 | N42: Januar | O42: =INDIRECT("'"&$N$1&"'!g34") ->  | Q42: Januar | T42: =IF(R42<>"",R42-O42,"") ->  | V42: =IF(E34="","",VLOOKUP(MONTH(E34),'Beregn varme 2015'!A$2:J$13,10,FALSE)) -> 10
J43: =IF(E35="","",VLOOKUP(MONTH(E35),T!A$1:B$12,2,FALSE)) -> Februar | K43: 28 | N43: Februar | O43: =INDIRECT("'"&$N$1&"'!g35") ->  | Q43: Februar | V43: =IF(E35="","",VLOOKUP(MONTH(E35),'Beregn varme 2015'!A$2:J$13,10,FALSE)) -> 9
J44: =IF(E36="","",VLOOKUP(MONTH(E36),T!A$1:B$12,2,FALSE)) -> Marts | K44: 31 | N44: Marts | O44: =INDIRECT("'"&$N$1&"'!g36") ->  | Q44: Marts | V44: =IF(E36="","",VLOOKUP(MONTH(E36),'Beregn varme 2015'!A$2:J$13,10,FALSE)) -> 9
J45: =IF(E37="","",VLOOKUP(MONTH(E37),T!A$1:B$12,2,FALSE)) -> April | K45: 30 | N45: April | O45: =INDIRECT("'"&$N$1&"'!g37") ->  | Q45: April | V45: =IF(E37="","",VLOOKUP(MONTH(E37),'Beregn varme 2015'!A$2:J$13,10,FALSE)) -> 8
J46: =IF(E38="","",VLOOKUP(MONTH(E38),T!A$1:B$12,2,FALSE)) -> Maj | K46: 31 | N46: Maj | O46: =INDIRECT("'"&$N$1&"'!g38") ->  | Q46: Maj | V46: =IF(E38="","",VLOOKUP(MONTH(E38),'Beregn varme 2015'!A$2:J$13,10,FALSE)) -> 8
J47: =IF(E39="","",VLOOKUP(MONTH(E39),T!A$1:B$12,2,FALSE)) -> Juni | K47: 30 | N47: Juni | O47: =INDIRECT("'"&$N$1&"'!g39") ->  | Q47: Juni | V47: =IF(E39="","",VLOOKUP(MONTH(E39),'Beregn varme 2015'!A$2:J$13,10,FALSE)) -> 7
J48: =IF(E40="","",VLOOKUP(MONTH(E40),T!A$1:B$12,2,FALSE)) -> Juli | K48: 31 | N48: =J48 -> Juli | O48: =INDIRECT("'"&$N$1&"'!g40") ->  | Q48: =J48 -> Juli | U48: =IF(R48<>"",T48/(R48/100),"") ->  | V48: =IF(E40="","",VLOOKUP(MONTH(E40),'Beregn varme 2015'!A$2:J$13,10,FALSE)) -> 6
J50: Hele året | K50: =SUM(K37:K48) -> 365 | L50: =G41/K50 -> 0 | N50: Års Total | O50: =SUM(O37:O48) -> 0 | R50: =SUM(R37:R48) -> 0 | T50: =IF(R50<>0,R50-O50,"") ->  | U50: =IF(T50<>"",T50/(O50/100),"") ->  | V50: =SUM(V37:V48) -> 100 | W50: =SUM(W37:W48) -> 0

Sheet 2016
A1: Vælg årstal: | D1: 2016 | J1: Olie | N1: =Q1-1 -> 2015 | Q1: =D1 -> 2016 | T1: +/- | U1: % | V1: Forventet forbrug
A2: =System!A19 -> Version: 2.0.2 / Bjarne Hansen | J2: Måned | K2: Dage | L2: Liter pr dag | N2: Olie | O2: Liter | P2: % | R2: Liter | S2: % | T2: Liter | V2: % | W2: Liter
A3: Aflæsningsskema til Olieforbrug samt EL og Vand | J3: =IF(A11="","",VLOOKUP(MONTH(A11),T!A$1:B$12,2,FALSE)) -> Januar | K3: =A11-A10 -> 31 | L3: =IF(G11<>"",G11/K3,"") ->  | N3: =IF(A11="","",VLOOKUP(MONTH(A11),T!$A$1:$B$12,2,FALSE)) -> Januar | O3: =INDIRECT("'"&$N$1&"'!g11") -> 336 | P3: =IF(O3="","",O3/(O$16/100)) -> 23.69534556 | Q3: =IF(A11="","",VLOOKUP(MONTH(A11),T!$A$1:$B$12,2,FALSE)) -> Januar | R3: =G11 ->  | S3: =IF(R3="","",R3/(R$16/100)) ->  | T3: =IF(R3<>"",R3-O3,"") ->  | U3: =IF(AND(R3<>"",O3<>0),T3/(O3/100)," - ") -> - | V3: =IF(A11="","",VLOOKUP(MONTH(A11),INDIRECT("'Beregn varme "&$Q$1&"'!A2:R13"),15,FALSE)) -> 15.36636013 | W3: =IF(R3="","",VLOOKUP(MONTH(A11),INDIRECT("'Beregn varme "&Q1&"'!A2:R13"),16,FALSE)) -> 
A4: Navn : | B4: Bjarne Hansen, Lyrsbyvej 31 | J4: =IF(A12="","",VLOOKUP(MONTH(A12),T!A$1:B$12,2,FALSE)) -> Februar | K4: =IF(A12="","",A12-A11) -> 29 | N4: =IF(A12="","",VLOOKUP(MONTH(A12),T!A$1:B$12,2,FALSE)) -> Februar | O4: =INDIRECT("'"&$N$1&"'!g12") -> 329 | P4: 23.20169252 | Q4: =IF(A12="","",VLOOKUP(MONTH(A12),T!$A$1:$B$12,2,FALSE)) -> Februar | T4: =IF(R4<>"",R4-O4,"") ->  | U4: =IF(AND(R4<>"",O4<>0),T4/(O4/100)," - ") -> - | V4: =IF(A12="","",VLOOKUP(MONTH(A12),INDIRECT("'Beregn varme "&$Q$1&"'!A2:R13"),15,FALSE)) -> 14.68407001 | W4: =IF(R4="","",VLOOKUP(MONTH(A12),INDIRECT("'Beregn varme "&$Q$1&"'!A2:R13"),16,FALSE)) -> 
A5: Tankstørrelse: | C5: =System!F8 -> 1800 | D5: Liter | J5: =IF(A13="","",VLOOKUP(MONTH(A13),T!A$1:B$12,2,FALSE)) -> Marts | K5: 31 | N5: =IF(A13="","",VLOOKUP(MONTH(A13),T!A$1:B$12,2,FALSE)) -> Marts | O5: =INDIRECT("'"&$N$1&"'!g13") -> 299 | P5: 21.08603667 | Q5: =IF(A13="","",VLOOKUP(MONTH(A13),T!$A$1:$B$12,2,FALSE)) -> Marts | U5: - | V5: =IF(A13="","",VLOOKUP(MONTH(A13),INDIRECT("'Beregn varme "&$Q$1&"'!A2:R13"),15,FALSE)) -> 14.26876298 | W5: =IF(R5="","",VLOOKUP(MONTH(A13),INDIRECT("'Beregn varme "&$Q$1&"'!A2:R13"),16,FALSE)) -> 
A6: MÅNEDLIG PEJLING AF OLIETANK | J6: =IF(A14="","",VLOOKUP(MONTH(A14),T!A$1:B$12,2,FALSE)) -> April | K6: 30 | N6: =IF(A14="","",VLOOKUP(MONTH(A14),T!A$1:B$12,2,FALSE)) -> April | O6: =INDIRECT("'"&$N$1&"'!g14") -> 218 | P6: 15.37376587 | Q6: =IF(A14="","",VLOOKUP(MONTH(A14),T!$A$1:$B$12,2,FALSE)) -> April | U6: - | V6: 11.09463067 | W6: =IF(R6="","",VLOOKUP(MONTH(A14),INDIRECT("'Beregn varme "&$Q$1&"'!A2:R13"),16,FALSE)) -> 
J7: =IF(A15="","",VLOOKUP(MONTH(A15),T!A$1:B$12,2,FALSE)) -> Maj | K7: =IF(A15="","",A15-A14) -> 31 | N7: =IF(A15="","",VLOOKUP(MONTH(A15),T!A$1:B$12,2,FALSE)) -> Maj | O7: =INDIRECT("'"&$N$1&"'!g15") -> 150 | P7: 10.57827927 | Q7: =IF(A15="","",VLOOKUP(MONTH(A15),T!$A$1:$B$12,2,FALSE)) -> Maj | U7: - | V7: 7.000889944 | W7: =IF(R7="","",VLOOKUP(MONTH(A15),INDIRECT("'Beregn varme "&$Q$1&"'!A2:R13"),16,FALSE)) -> 
A8: Dato | B8: Pejling | D8: Fyldt på | E8: Beholdning | F8: Plads til | G8: Forbrug | H8: Bemærkning: | J8: =IF(A16="","",VLOOKUP(MONTH(A16),T!A$1:B$12,2,FALSE)) -> Juni | K8: =IF(A16="","",A16-A15) -> 30 | N8: =IF(A16="","",VLOOKUP(MONTH(A16),T!A$1:B$12,2,FALSE)) -> Juni | O8: =INDIRECT("'"&$N$1&"'!g16") -> 46 | P8: 3.244005642 | Q8: =IF(A16="","",VLOOKUP(MONTH(A16),T!$A$1:$B$12,2,FALSE)) -> Juni | U8: - | V8: 2.669830911
B9: i cm | C9: Liter | D9: Liter | F9: Liter | G9: Liter | J9: =IF(A17="","",VLOOKUP(MONTH(A17),T!A$1:B$12,2,FALSE)) -> Juli | K9: 31 | N9: =IF(A17="","",VLOOKUP(MONTH(A17),T!A$1:B$12,2,FALSE)) -> Juli | O9: =INDIRECT("'"&$N$1&"'!g17") -> 33 | P9: 2.327221439 | Q9: =IF(A17="","",VLOOKUP(MONTH(A17),T!$A$1:$B$12,2,FALSE)) -> Juli | U9: - | V9: 0.5932957579
A10: =DATE(D1-1,Setup!D2,Setup!C2) -> 2015-12-31 | B10: =INDIRECT("'"&$N$1&"'!b22") -> 0 | C10: =IF(B10="","",IF(System!E$8=1,VLOOKUP(B10,Pejletabel!A$3:G$336,2,FALSE),IF(System!E$8=2,VLOOKUP(B10,Pejletabel!A$3:G$357,3,FALSE),IF(System!E$8=3,VLOOKUP(B10,Pejletabel!A$3:G$357,4,FALSE),IF(System!E$8=4,VLOOKUP(B10,Pejletabel!A$3:G$357,5,FALSE),IF(System!E8=5,VLOOKUP(B10,Pejletabel!A3:G358,6,FALSE),IF(System!E$8=6,VLOOKUP(B10,Pejletabel!A$3:G$357,7,FALSE)))))))) -> 0 | E10: =IF(C10<>"",SUM(C10:D10),"") -> 0 | F10: =IF(E10<>"",System!F$8-E10,"") -> 1800 | J10: =IF(A18="","",VLOOKUP(MONTH(A18),T!A$1:B$12,2,FALSE)) -> August | K10: 31 | N10: =IF(A18="","",VLOOKUP(MONTH(A18),T!A$1:B$12,2,FALSE)) -> August | O10: =INDIRECT("'"&$N$1&"'!g18") -> 7 | P10: 0.4936530324 | Q10: =IF(A18="","",VLOOKUP(MONTH(A18),T!$A$1:$B$12,2,FALSE)) -> August | U10: - | V10: 0.6822901216
A11: =EDATE($A$10,ROWS($1:1)) -> 2016-01-31 | C11: =IF(B11="","",IF(System!E$8=1,VLOOKUP(B11,Pejletabel!A$3:G$336,2,FALSE),IF(System!E$8=2,VLOOKUP(B11,Pejletabel!A$3:G$357,3,FALSE),IF(System!E$8=3,VLOOKUP(B11,Pejletabel!A$3:G$357,4,FALSE),IF(System!E$8=4,VLOOKUP(B11,Pejletabel!A$3:G$357,5,FALSE),IF(System!E$8=5,VLOOKUP(B11,Pejletabel!A$3:G$357,6,FALSE),IF(System!E8=6,VLOOKUP(B11,Pejletabel!A3:G357,7,FALSE)))))))) ->  | E11: =IF(C11<>"",C11,"") ->  | F11: =IF(E11<>"",1800-E11,"") ->  | G11: =IF(C11<>"",C10-C11+D11,"") ->  | J11: =IF(A19="","",VLOOKUP(MONTH(A19),T!A$1:B$12,2,FALSE)) -> September | K11: 30 | N11: =IF(A19="","",VLOOKUP(MONTH(A19),T!A$1:B$12,2,FALSE)) -> September | O11: =INDIRECT("'"&$N$1&"'!g19") ->  | Q11: =IF(A19="","",VLOOKUP(MONTH(A19),T!$A$1:$B$12,2,FALSE)) -> September | U11: - | V11: 3.233461881
A12: =EDATE($A$10,ROWS($1:2)) -> 2016-02-29 | C12: =IF(B12="","",IF(System!E$8=1,VLOOKUP(B12,Pejletabel!A$3:G$336,2,FALSE),IF(System!E$8=2,VLOOKUP(B12,Pejletabel!A$3:G$357,3,FALSE),IF(System!E$8=3,VLOOKUP(B12,Pejletabel!A$3:G$357,4,FALSE),IF(System!E$8=4,VLOOKUP(B12,Pejletabel!A$3:G$357,5,FALSE),IF(System!E$8=5,VLOOKUP(B12,Pejletabel!A$3:G$357,6,FALSE),IF(System!E13=6,VLOOKUP(B12,Pejletabel!A4:G358,7,FALSE)))))))) ->  | E12: =IF(C12<>"",C12,"") ->  | F12: =IF(E12<>"",1800-E12,"") ->  | G12: =IF(C12<>"",C11-C12+D12,"") ->  | J12: =IF(A20="","",VLOOKUP(MONTH(A20),T!A$1:B$12,2,FALSE)) -> Oktober | K12: 31 | N12: =IF(A20="","",VLOOKUP(MONTH(A20),T!A$1:B$12,2,FALSE)) -> Oktober | O12: =INDIRECT("'"&$N$1&"'!g20") ->  | Q12: =IF(A20="","",VLOOKUP(MONTH(A20),T!$A$1:$B$12,2,FALSE)) -> Oktober | U12: - | V12: 6.76357164
A13: =EDATE($A$10,ROWS($1:3)) -> 2016-03-31 | C13: =IF(B13="","",IF(System!E$8=1,VLOOKUP(B13,Pejletabel!A$3:G$336,2,FALSE),IF(System!E$8=2,VLOOKUP(B13,Pejletabel!A$3:G$357,3,FALSE),IF(System!E$8=3,VLOOKUP(B13,Pejletabel!A$3:G$357,4,FALSE),IF(System!E$8=4,VLOOKUP(B13,Pejletabel!A$3:G$357,5,FALSE),IF(System!E$8=5,VLOOKUP(B13,Pejletabel!A$3:G$357,6,FALSE),IF(System!E19=6,VLOOKUP(B13,Pejletabel!A5:G359,7,FALSE)))))))) ->  | J13: =IF(A21="","",VLOOKUP(MONTH(A21),T!A$1:B$12,2,FALSE)) -> November | K13: 30 | N13: =IF(A21="","",VLOOKUP(MONTH(A21),T!A$1:B$12,2,FALSE)) -> November | O13: =INDIRECT("'"&$N$1&"'!g21") ->  | Q13: =IF(A21="","",VLOOKUP(MONTH(A21),T!$A$1:$B$12,2,FALSE)) -> November | U13: - | V13: 10.0563631
A14: =EDATE($A$10,ROWS($1:4)) -> 2016-04-30 | C14: =IF(B14="","",IF(System!E$8=1,VLOOKUP(B14,Pejletabel!A$3:G$336,2,FALSE),IF(System!E$8=2,VLOOKUP(B14,Pejletabel!A$3:G$357,3,FALSE),IF(System!E$8=3,VLOOKUP(B14,Pejletabel!A$3:G$357,4,FALSE),IF(System!E$8=4,VLOOKUP(B14,Pejletabel!A$3:G$357,5,FALSE),IF(System!E$8=5,VLOOKUP(B14,Pejletabel!A$3:G$357,6,FALSE),IF(System!E20=6,VLOOKUP(B14,Pejletabel!A6:G360,7,FALSE)))))))) ->  | J14: =IF(A22="","",VLOOKUP(MONTH(A22),T!A$1:B$12,2,FALSE)) -> December | K14: 31 | N14: =IF(A22="","",VLOOKUP(MONTH(A22),T!A$1:B$12,2,FALSE)) -> December | O14: =INDIRECT("'"&$N$1&"'!g22") ->  | Q14: =IF(A22="","",VLOOKUP(MONTH(A22),T!$A$1:$B$12,2,FALSE)) -> December | U14: - | V14: 13.58647286
A15: =EDATE($A$10,ROWS($1:5)) -> 2016-05-31 | C15: =IF(B15="","",IF(System!E$8=1,VLOOKUP(B15,Pejletabel!A$3:G$336,2,FALSE),IF(System!E$8=2,VLOOKUP(B15,Pejletabel!A$3:G$357,3,FALSE),IF(System!E$8=3,VLOOKUP(B15,Pejletabel!A$3:G$357,4,FALSE),IF(System!E$8=4,VLOOKUP(B15,Pejletabel!A$3:G$357,5,FALSE),IF(System!E$8=5,VLOOKUP(B15,Pejletabel!A$3:G$357,6,FALSE),IF(System!E21=6,VLOOKUP(B15,Pejletabel!A7:G361,7,FALSE)))))))) -> 
A16: =EDATE($A$10,ROWS($1:6)) -> 2016-06-30 | C16: =IF(B16="","",IF(System!E$8=1,VLOOKUP(B16,Pejletabel!A$3:G$336,2,FALSE),IF(System!E$8=2,VLOOKUP(B16,Pejletabel!A$3:G$357,3,FALSE),IF(System!E$8=3,VLOOKUP(B16,Pejletabel!A$3:G$357,4,FALSE),IF(System!E$8=4,VLOOKUP(B16,Pejletabel!A$3:G$357,5,FALSE),IF(System!E$8=5,VLOOKUP(B16,Pejletabel!A$3:G$357,6,FALSE),IF(System!E22=6,VLOOKUP(B16,Pejletabel!A8:G362,7,FALSE)))))))) ->  | J16: Hele året | K16: =SUM(K3:K14) -> 366 | L16: =IFERROR(G23/K16,"") -> 0 | N16: Års Total | O16: =SUM(O3:O14) -> 1418 | P16: =SUM(P3:P14) -> 100 | R16: =G23 -> 0 | T16: =IF(R16<>0,R16-O16,"") ->  | U16: =IF(R16<>0,T16/(O16/100),"") ->  | V16: =SUM(V3:V14) -> 100 | W16: =SUM(W3:W14) -> 0
A17: =EDATE($A$10,ROWS($1:7)) -> 2016-07-31 | C17: =IF(B17="","",IF(System!E$8=1,VLOOKUP(B17,Pejletabel!A$3:G$336,2,FALSE),IF(System!E$8=2,VLOOKUP(B17,Pejletabel!A$3:G$357,3,FALSE),IF(System!E$8=3,VLOOKUP(B17,Pejletabel!A$3:G$357,4,FALSE),IF(System!E$8=4,VLOOKUP(B17,Pejletabel!A$3:G$357,5,FALSE),IF(System!E$8=5,VLOOKUP(B17,Pejletabel!A$3:G$357,6,FALSE),IF(System!E23=6,VLOOKUP(B17,Pejletabel!A9:G363,7,FALSE)))))))) -> 
A18: =EDATE($A$10,ROWS($1:8)) -> 2016-08-31 | C18: =IF(B18="","",IF(System!E$8=1,VLOOKUP(B18,Pejletabel!A$3:G$336,2,FALSE),IF(System!E$8=2,VLOOKUP(B18,Pejletabel!A$3:G$357,3,FALSE),IF(System!E$8=3,VLOOKUP(B18,Pejletabel!A$3:G$357,4,FALSE),IF(System!E$8=4,VLOOKUP(B18,Pejletabel!A$3:G$357,5,FALSE),IF(System!E$8=5,VLOOKUP(B18,Pejletabel!A$3:G$357,6,FALSE),IF(System!E24=6,VLOOKUP(B18,Pejletabel!A10:G364,7,FALSE)))))))) ->  | J18: Vand | N18: =N1 -> 2015 | Q18: =Q1 -> 2016 | T18: +/- | U18: % | V18: Forventet forbrug
A19: =EDATE($A$10,ROWS($1:9)) -> 2016-09-30 | C19: =IF(B19="","",IF(System!E$8=1,VLOOKUP(B19,Pejletabel!A$3:G$336,2,FALSE),IF(System!E$8=2,VLOOKUP(B19,Pejletabel!A$3:G$357,3,FALSE),IF(System!E$8=3,VLOOKUP(B19,Pejletabel!A$3:G$357,4,FALSE),IF(System!E$8=4,VLOOKUP(B19,Pejletabel!A$3:G$357,5,FALSE),IF(System!E$8=5,VLOOKUP(B19,Pejletabel!A$3:G$357,6,FALSE),IF(System!E25=6,VLOOKUP(B19,Pejletabel!A11:G365,7,FALSE)))))))) ->  | J19: Måned | K19: Dage | L19: m³ pr. dag | N19: Vand | O19: m³ | R19: m³ | T19: m³ | V19: % | W19: m³
A20: =EDATE($A$10,ROWS($1:10)) -> 2016-10-31 | C20: =IF(B20="","",IF(System!E$8=1,VLOOKUP(B20,Pejletabel!A$3:G$336,2,FALSE),IF(System!E$8=2,VLOOKUP(B20,Pejletabel!A$3:G$357,3,FALSE),IF(System!E$8=3,VLOOKUP(B20,Pejletabel!A$3:G$357,4,FALSE),IF(System!E$8=4,VLOOKUP(B20,Pejletabel!A$3:G$357,5,FALSE),IF(System!E$8=5,VLOOKUP(B20,Pejletabel!A$3:G$357,6,FALSE),IF(System!E26=6,VLOOKUP(B20,Pejletabel!A12:G366,7,FALSE)))))))) ->  | J20: =IF(A29="","",VLOOKUP(MONTH(A29),T!A$1:B$12,2,FALSE)) -> Januar | K20: =A29-A28 -> 31 | L20: =IF(D29<>"",D29/K20,"") ->  | N20: =IF(A29="","",VLOOKUP(MONTH(A29),T!A$1:B$12,2,FALSE)) -> Januar | O20: =INDIRECT("'"&$N$1&"'!d29") -> 7 | Q20: Januar | R20: =D29 ->  | T20: =IF(R20<>"",R20-O20,"") ->  | U20: =IF(T20<>"",T20/(O20/100),"") ->  | V20: =IF(A29="","",VLOOKUP(MONTH(A29),'Beregn varme 2015'!A$2:I$13,9,FALSE)) -> 8.493150685 | W20: =IF(R20="","",O$33*V20%) -> 
A21: =EDATE($A$10,ROWS($1:11)) -> 2016-11-30 | C21: =IF(B21="","",IF(System!E$8=1,VLOOKUP(B21,Pejletabel!A$3:G$336,2,FALSE),IF(System!E$8=2,VLOOKUP(B21,Pejletabel!A$3:G$357,3,FALSE),IF(System!E$8=3,VLOOKUP(B21,Pejletabel!A$3:G$357,4,FALSE),IF(System!E$8=4,VLOOKUP(B21,Pejletabel!A$3:G$357,5,FALSE),IF(System!E$8=5,VLOOKUP(B21,Pejletabel!A$3:G$357,6,FALSE),IF(System!E27=6,VLOOKUP(B21,Pejletabel!A13:G367,7,FALSE)))))))) ->  | F21: =IF(E21<>"",1800-E21,"") ->  | J21: =IF(A30="","",VLOOKUP(MONTH(A30),T!A$1:B$12,2,FALSE)) -> Februar | K21: =IF(A30="","",A30-A29) -> 29 | N21: =IF(A30="","",VLOOKUP(MONTH(A30),T!A$1:B$12,2,FALSE)) -> Februar | O21: =INDIRECT("'"&$N$1&"'!d30") -> 7 | Q21: Februar | T21: =IF(R21<>"",R21-O21,"") ->  | U21: =IF(T21<>"",T21/(O21/100),"") ->  | V21: =IF(A30="","",VLOOKUP(MONTH(A30),'Beregn varme 2015'!A$2:I$13,9,FALSE)) -> 7.671232877 | W21: =IF(R21="","",O$33*V21%) -> 
A22: =EDATE($A$10,ROWS($1:12)) -> 2016-12-31 | C22: =IF(B22="","",IF(System!E$8=1,VLOOKUP(B22,Pejletabel!A$3:G$336,2,FALSE),IF(System!E$8=2,VLOOKUP(B22,Pejletabel!A$3:G$357,3,FALSE),IF(System!E$8=3,VLOOKUP(B22,Pejletabel!A$3:G$357,4,FALSE),IF(System!E$8=4,VLOOKUP(B22,Pejletabel!A$3:G$357,5,FALSE),IF(System!E$8=5,VLOOKUP(B22,Pejletabel!A$3:G$357,6,FALSE),IF(System!E28=6,VLOOKUP(B22,Pejletabel!A14:G368,7,FALSE)))))))) ->  | F22: =IF(E22<>"",1800-E22,"") ->  | J22: =IF(A31="","",VLOOKUP(MONTH(A31),T!A$1:B$12,2,FALSE)) -> Marts | K22: =IF(A31="","",A31-A30) -> 31 | N22: =IF(A31="","",VLOOKUP(MONTH(A31),T!A$1:B$12,2,FALSE)) -> Marts | O22: =INDIRECT("'"&$N$1&"'!d31") -> 8 | Q22: Marts | V22: =IF(A31="","",VLOOKUP(MONTH(A31),'Beregn varme 2015'!A$2:I$13,9,FALSE)) -> 8.493150685
E23: Års forbrug | G23: =SUM(G11:G22) -> 0 | J23: =IF(A32="","",VLOOKUP(MONTH(A32),T!A$1:B$12,2,FALSE)) -> April | K23: =IF(A32="","",A32-A31) -> 30 | N23: =IF(A32="","",VLOOKUP(MONTH(A32),T!A$1:B$12,2,FALSE)) -> April | O23: =INDIRECT("'"&$N$1&"'!d32") -> 6 | Q23: April | V23: =IF(A32="","",VLOOKUP(MONTH(A32),'Beregn varme 2015'!A$2:I$13,9,FALSE)) -> 8.219178082
A24: MÅNEDLIG AFLÆSNING AF VANDMÅLER | E24: MÅNEDLIG AFLÆSNING AF ELMÅLER | H24: Bemærkning: | J24: =IF(A33="","",VLOOKUP(MONTH(A33),T!A$1:B$12,2,FALSE)) -> Maj | K24: =IF(A33="","",A33-A32) -> 31 | N24: =IF(A33="","",VLOOKUP(MONTH(A33),T!A$1:B$12,2,FALSE)) -> Maj | O24: =INDIRECT("'"&$N$1&"'!d33") -> 7 | Q24: Maj | V24: =IF(A33="","",VLOOKUP(MONTH(A33),'Beregn varme 2015'!A$2:I$13,9,FALSE)) -> 8.493150685
J25: =IF(A34="","",VLOOKUP(MONTH(A34),T!A$1:B$12,2,FALSE)) -> Juni | K25: =IF(A34="","",A34-A33) -> 30 | N25: Juni | O25: =INDIRECT("'"&$N$1&"'!d34") -> 6 | Q25: Juni | U25: =IF(T25<>"",T25/(O25/100)," - ") -> - | V25: =IF(A34="","",VLOOKUP(MONTH(A34),'Beregn varme 2015'!A$2:I$13,9,FALSE)) -> 8.219178082
A26: Dato | B26: Aflæst | D26: Forbrug | E26: Dato | F26: Aflæst | G26: Forbrug | J26: =IF(A35="","",VLOOKUP(MONTH(A35),T!A$1:B$12,2,FALSE)) -> Juli | K26: =IF(A35="","",A35-A34) -> 31 | N26: Juli | O26: =INDIRECT("'"&$N$1&"'!d34") -> 6 | Q26: Juli | U26: =IF(T26<>"",T26/(O26/100)," - ") -> - | V26: =IF(A35="","",VLOOKUP(MONTH(A35),'Beregn varme 2015'!A$2:I$13,9,FALSE)) -> 8.493150685
B27: m³ | D27: m³ | F27: KWh | G27: KWh | J27: =IF(A36="","",VLOOKUP(MONTH(A36),T!A$1:B$12,2,FALSE)) -> August | K27: 31 | N27: August | O27: =INDIRECT("'"&$N$1&"'!d34") -> 6 | Q27: August | V27: =IF(A36="","",VLOOKUP(MONTH(A36),'Beregn varme 2015'!A$2:I$13,9,FALSE)) -> 8.493150685
A28: =DATE(D1-1,Setup!D3,Setup!C3) -> 2015-12-31 | B28: =INDIRECT("'"&$N$1&"'!b40") -> 0 | E28: =DATE(D1-1,12,31) -> 2015-12-31 | F28: =INDIRECT("'"&$N$1&"'!f40") -> 0 | J28: =IF(A37="","",VLOOKUP(MONTH(A37),T!A$1:B$12,2,FALSE)) -> September | K28: 30 | N28: September | O28: 6 | Q28: September | V28: =IF(A37="","",VLOOKUP(MONTH(A37),'Beregn varme 2015'!A$2:I$13,9,FALSE)) -> 8.219178082
A29: =EDATE($A$28,ROWS($1:1)) -> 2016-01-31 | D29: =IF(B29<>"",B29-B28,"") ->  | E29: =EDATE($E$28,ROWS($1:1)) -> 2016-01-31 | G29: =IF(F29<>"",F29-F28,"") ->  | J29: =IF(A38="","",VLOOKUP(MONTH(A38),T!A$1:B$12,2,FALSE)) -> Oktober | K29: 31 | N29: Oktober | O29: 6 | Q29: Oktober | V29: =IF(A38="","",VLOOKUP(MONTH(A38),'Beregn varme 2015'!A$2:I$13,9,FALSE)) -> 8.493150685
A30: =EDATE($A$28,ROWS($1:2)) -> 2016-02-29 | D30: =IF(B30<>"",B30-B29,"") ->  | E30: =EDATE($E$28,ROWS($1:2)) -> 2016-02-29 | J30: =IF(A39="","",VLOOKUP(MONTH(A39),T!A$1:B$12,2,FALSE)) -> November | K30: 30 | N30: November | O30: 6 | Q30: November | V30: =IF(A39="","",VLOOKUP(MONTH(A39),'Beregn varme 2015'!A$2:I$13,9,FALSE)) -> 8.219178082
A31: =EDATE($A$28,ROWS($1:3)) -> 2016-03-31 | E31: =EDATE($E$28,ROWS($1:3)) -> 2016-03-31 | J31: =IF(A40="","",VLOOKUP(MONTH(A40),T!A$1:B$12,2,FALSE)) -> December | K31: 31 | N31: December | O31: 6 | Q31: December | V31: =IF(A40="","",VLOOKUP(MONTH(A40),'Beregn varme 2015'!A$2:I$13,9,FALSE)) -> 8.493150685
A32: =EDATE($A$28,ROWS($1:4)) -> 2016-04-30 | E32: =EDATE($E$28,ROWS($1:4)) -> 2016-04-30
A33: =EDATE($A$28,ROWS($1:5)) -> 2016-05-31 | E33: =EDATE($E$28,ROWS($1:5)) -> 2016-05-31 | J33: Hele året | K33: =SUM(K20:K31) -> 366 | L33: =IFERROR(D41/K33,"") -> 0 | N33: Års Total | O33: =SUM(O20:O31) -> 77 | R33: =D41 -> 0 | T33: =IF(R33<>0,R33-O33,"") ->  | U33: =IF(T33<>"",T33/(O33/100),"") ->  | V33: =SUM(V20:V31) -> 100 | W33: =SUM(W20:W31) -> 0
A34: =EDATE($A$28,ROWS($1:6)) -> 2016-06-30 | E34: =EDATE($E$28,ROWS($1:6)) -> 2016-06-30
A35: =EDATE($A$28,ROWS($1:7)) -> 2016-07-31 | E35: =EDATE($E$28,ROWS($1:7)) -> 2016-07-31 | J35: EL | N35: =N1-1&"/"&N1 -> 2014/2015 | Q35: =N1&"/"&Q1 -> 2015/2016 | T35: +/- | U35: % | V35: Forventet forbrug
A36: =EDATE($A$28,ROWS($1:8)) -> 2016-08-31 | E36: =EDATE($E$28,ROWS($1:8)) -> 2016-08-31 | J36: Måned | K36: Dage | L36: KWh pr. dag | N36: EL | O36: KWh | R36: KWh | T36: KWh | V36: % | W36: KWh
A37: =EDATE($A$28,ROWS($1:9)) -> 2016-09-30 | E37: =EDATE($E$28,ROWS($1:9)) -> 2016-09-30 | J37: =IF(E29="","",VLOOKUP(Y37,T!A$1:B$12,2,FALSE)) -> August | K37: =DAY(X37) -> 31 | L37: =IF(R37<>"",R37/K37,"") -> 9.806451613 | N37: =J37 -> August | O37: =INDIRECT("'"&$N$1-1&"'!g36") -> 375 | Q37: =J37 -> August | R37: =INDIRECT("'"&$N$1&"'!g36") -> 304 | T37: =IF(R37="","",R37-O37) -> -71 | U37: =IF(R37<>"",T37/(O37/100),"") -> -18.93333333 | V37: =IF(E29="","",VLOOKUP(MONTH(E29),'Beregn varme 2015'!A$2:J$13,10,FALSE)) -> 10 | W37: =IF(R37="","",O$50/100*V37) -> 496 | X37: =DATE(N1,Setup!D4+1,Setup!C4) -> 2015-08-31 | Y37: =MONTH(X37) -> 8
A38: =EDATE($A$28,ROWS($1:10)) -> 2016-10-31 | E38: =EDATE($E$28,ROWS($1:10)) -> 2016-10-31 | J38: =IF(E30="","",VLOOKUP(Y38,T!A$1:B$12,2,FALSE)) -> September | K38: =DAY(X38) -> 30 | L38: =IF(R38<>"",R38/K38,"") ->  | N38: =J38 -> September | O38: =INDIRECT("'"&$N$1-1&"'!g37") -> 376 | Q38: =J38 -> September | R38: =INDIRECT("'"&$N$1&"'!g37") ->  | T38: =IF(R38<>"",R38-O38,"") ->  | U38: =IF(R38<>"",T38/(O38/100),"") ->  | V38: =IF(E30="","",VLOOKUP(MONTH(E30),'Beregn varme 2015'!A$2:J$13,10,FALSE)) -> 9 | X38: =EDATE($X$37,ROW(1:1)) -> 2015-09-30 | Y38: =MONTH(X38) -> 9
A39: =EDATE($A$28,ROWS($1:11)) -> 2016-11-30 | E39: =EDATE($E$28,ROWS($1:11)) -> 2016-11-30 | J39: =IF(E31="","",VLOOKUP(Y39,T!A$1:B$12,2,FALSE)) -> Oktober | K39: 31 | L39: =IF(R39<>"",R39/K39,"") ->  | N39: Oktober | O39: =INDIRECT("'"&$N$1-1&"'!g38") -> 401 | Q39: Oktober | R39: =INDIRECT("'"&$N$1&"'!g38") ->  | T39: =IF(R39<>"",R39-O39,"") ->  | U39: =IF(R39<>"",T39/(O39/100),"") ->  | V39: =IF(E31="","",VLOOKUP(MONTH(E31),'Beregn varme 2015'!A$2:J$13,10,FALSE)) -> 9 | X39: =EDATE($X$37,ROW(2:2)) -> 2015-10-31 | Y39: 10
A40: =EDATE($A$28,ROWS($1:12)) -> 2016-12-31 | E40: =EDATE($E$28,ROWS($1:12)) -> 2016-12-31 | J40: =IF(E32="","",VLOOKUP(Y40,T!A$1:B$12,2,FALSE)) -> November | K40: 30 | N40: November | O40: =INDIRECT("'"&$N$1-1&"'!g39") -> 433 | Q40: November | R40: =INDIRECT("'"&$N$1&"'!g39") ->  | T40: =IF(R40<>"",R40-O40,"") ->  | U40: =IF(R40<>"",T40/(O40/100),"") ->  | V40: =IF(E32="","",VLOOKUP(MONTH(E32),'Beregn varme 2015'!A$2:J$13,10,FALSE)) -> 8 | X40: =EDATE($X$37,ROW(3:3)) -> 2015-11-30 | Y40: 11
A41: Års forbrug | D41: =SUM(D29:D34,D35:D40) -> 0 | E41: Års forbrug | G41: =SUM(G29:G34,G35:G40) -> 0 | J41: =IF(E33="","",VLOOKUP(Y41,T!A$1:B$12,2,FALSE)) -> December | K41: 31 | N41: December | O41: =INDIRECT("'"&$N$1-1&"'!g40") -> 513 | Q41: December | R41: =INDIRECT("'"&$N$1&"'!g40") ->  | T41: =IF(R41<>"",R41-O41,"") ->  | U41: =IF(R41<>"",T41/(O41/100),"") ->  | V41: =IF(E33="","",VLOOKUP(MONTH(E33),'Beregn varme 2015'!A$2:J$13,10,FALSE)) -> 8 | X41: 2015-12-31 | Y41: 12
J42: =IF(E34="","",VLOOKUP(Y42,T!A$1:B$12,2,FALSE)) -> Januar | K42: 31 | N42: Januar | O42: =INDIRECT("'"&$N$1&"'!g29") -> 523 | Q42: Januar | R42: =IF(G34<>"",G34,"") ->  | T42: =IF(R42<>"",R42-O42,"") ->  | V42: =IF(E34="","",VLOOKUP(MONTH(E34),'Beregn varme 2015'!A$2:J$13,10,FALSE)) -> 7 | X42: 2016-01-31 | Y42: 1
J43: =IF(E35="","",VLOOKUP(Y43,T!A$1:B$12,2,FALSE)) -> Februar | K43: 29 | N43: Februar | O43: =INDIRECT("'"&$N$1&"'!g30") -> 460 | Q43: Februar | V43: =IF(E35="","",VLOOKUP(MONTH(E35),'Beregn varme 2015'!A$2:J$13,10,FALSE)) -> 6 | X43: 2016-02-29 | Y43: 2
J44: =IF(E36="","",VLOOKUP(Y44,T!A$1:B$12,2,FALSE)) -> Marts | K44: 31 | N44: Marts | O44: =INDIRECT("'"&$N$1&"'!g31") -> 513 | Q44: Marts | V44: =IF(E36="","",VLOOKUP(MONTH(E36),'Beregn varme 2015'!A$2:J$13,10,FALSE)) -> 7 | X44: 2016-03-31 | Y44: 3
J45: =IF(E37="","",VLOOKUP(Y45,T!A$1:B$12,2,FALSE)) -> April | K45: 30 | N45: April | O45: =INDIRECT("'"&$N$1&"'!g32") -> 369 | Q45: April | V45: =IF(E37="","",VLOOKUP(MONTH(E37),'Beregn varme 2015'!A$2:J$13,10,FALSE)) -> 7 | X45: 2016-04-30 | Y45: 4
J46: =IF(E38="","",VLOOKUP(Y46,T!A$1:B$12,2,FALSE)) -> Maj | K46: 31 | N46: Maj | O46: =INDIRECT("'"&$N$1&"'!g33") -> 358 | Q46: Maj | V46: =IF(E38="","",VLOOKUP(MONTH(E38),'Beregn varme 2015'!A$2:J$13,10,FALSE)) -> 9 | X46: 2016-05-31 | Y46: 5
J47: =IF(E39="","",VLOOKUP(Y47,T!A$1:B$12,2,FALSE)) -> Juni | K47: 30 | N47: Juni | O47: =INDIRECT("'"&$N$1&"'!g34") -> 310 | Q47: Juni | V47: =IF(E39="","",VLOOKUP(MONTH(E39),'Beregn varme 2015'!A$2:J$13,10,FALSE)) -> 9 | X47: 2016-06-30 | Y47: 6
J48: =IF(E40="","",VLOOKUP(Y48,T!A$1:B$12,2,FALSE)) -> Juli | K48: 31 | N48: =J48 -> Juli | O48: =INDIRECT("'"&$N$1&"'!g35") -> 329 | Q48: =J48 -> Juli | U48: =IF(R48<>"",T48/(R48/100),"") ->  | V48: =IF(E40="","",VLOOKUP(MONTH(E40),'Beregn varme 2015'!A$2:J$13,10,FALSE)) -> 11 | X48: 2016-07-31 | Y48: 7
J50: Hele året | K50: =SUM(K37:K48) -> 366 | L50: =IFERROR(R50/K50,"") -> 0.8306010929 | N50: Års Total | O50: =SUM(O37:O48) -> 4960 | R50: =SUM(R37:R48) -> 304 | T50: =IF(R50<>0,R50-O50,"") -> -4656 | U50: =IF(T50<>"",T50/(O50/100),"") -> -93.87096774 | V50: =SUM(V37:V48) -> 100 | W50: =SUM(W37:W48) -> 496

Sheet 2015
A1: Vælg årstal: | D1: 2015 | J1: Olie | N1: =Q1-1 -> 2014 | Q1: =D1 -> 2015 | T1: +/- | U1: % | V1: Forventet forbrug
A2: =System!A19 -> Version: 2.0.2 / Bjarne Hansen | J2: Måned | K2: Dage | L2: Liter pr dag | N2: Olie | O2: Liter | P2: % | R2: Liter | S2: % | T2: Liter | V2: % | W2: Liter
A3: Aflæsningsskema til Olieforbrug samt EL og Vand | J3: =IF(A11="","",VLOOKUP(MONTH(A11),T!A$1:B$12,2,FALSE)) -> Januar | K3: =A11-A10 -> 31 | L3: =IF(G11<>"",G11/K3,"") -> 10.83870968 | N3: =IF(A11="","",VLOOKUP(MONTH(A11),T!$A$1:$B$12,2,FALSE)) -> Januar | O3: =INDIRECT("'"&$N$1&"'!g11") -> 421 | P3: =IF(O3="","",O3/(O$16/100)) -> 19.6087564 | Q3: =IF(A11="","",VLOOKUP(MONTH(A11),T!$A$1:$B$12,2,FALSE)) -> Januar | R3: =G11 -> 336 | S3: =IF(R3="","",R3/(R$16/100)) -> 23.69534556 | T3: =IF(R3<>"",R3-O3,"") -> -85 | U3: =IF(AND(R3<>"",O3<>0),T3/(O3/100)," - ") -> -20.19002375 | V3: =IF(A11="","",VLOOKUP(MONTH(A11),'Beregn varme 2015'!A$2:R$13,15,FALSE)) -> 15.36636013 | W3: =IF(R3="","",VLOOKUP(MONTH(A11),INDIRECT("'Beregn varme "&Q1&"'!A2:R13"),16,FALSE)) -> 329.915752
A4: Navn : | B4: Bjarne Hansen, Lyrsbyvej 31 | J4: =IF(A12="","",VLOOKUP(MONTH(A12),T!A$1:B$12,2,FALSE)) -> Februar | K4: =IF(A12="","",A12-A11) -> 28 | L4: 11.75 | N4: =IF(A12="","",VLOOKUP(MONTH(A12),T!A$1:B$12,2,FALSE)) -> Februar | O4: =INDIRECT("'"&$N$1&"'!g12") -> 315 | P4: 14.67163484 | Q4: =IF(A12="","",VLOOKUP(MONTH(A12),T!$A$1:$B$12,2,FALSE)) -> Februar | R4: 329 | S4: 23.20169252 | T4: =IF(R4<>"",R4-O4,"") -> 14 | U4: =IF(AND(R4<>"",O4<>0),T4/(O4/100)," - ") -> 4.444444444 | V4: =IF(A12="","",VLOOKUP(MONTH(A12),'Beregn varme 2015'!A$2:R$13,15,FALSE)) -> 14.68407001 | W4: =IF(R4="","",VLOOKUP(MONTH(A12),INDIRECT("'Beregn varme "&$Q$1&"'!A2:R13"),16,FALSE)) -> 315.2669831
A5: Tankstørrelse: | C5: =System!F8 -> 1800 | D5: Liter | J5: =IF(A13="","",VLOOKUP(MONTH(A13),T!A$1:B$12,2,FALSE)) -> Marts | K5: 31 | L5: 9.64516129 | N5: =IF(A13="","",VLOOKUP(MONTH(A13),T!A$1:B$12,2,FALSE)) -> Marts | O5: =INDIRECT("'"&$N$1&"'!g13") -> 291 | P5: 13.55379599 | Q5: =IF(A13="","",VLOOKUP(MONTH(A13),T!$A$1:$B$12,2,FALSE)) -> Marts | R5: 299 | S5: 21.08603667 | T5: 8 | U5: 2.749140893 | V5: =IF(A13="","",VLOOKUP(MONTH(A13),'Beregn varme 2015'!A$2:R$13,15,FALSE)) -> 14.26876298 | W5: =IF(R5="","",VLOOKUP(MONTH(A13),INDIRECT("'Beregn varme "&$Q$1&"'!A2:R13"),16,FALSE)) -> 306.3503411
A6: MÅNEDLIG PEJLING AF OLIETANK | J6: =IF(A14="","",VLOOKUP(MONTH(A14),T!A$1:B$12,2,FALSE)) -> April | K6: 30 | L6: 7.266666667 | N6: =IF(A14="","",VLOOKUP(MONTH(A14),T!A$1:B$12,2,FALSE)) -> April | O6: =INDIRECT("'"&$N$1&"'!g14") -> 191 | P6: 8.896134141 | Q6: =IF(A14="","",VLOOKUP(MONTH(A14),T!$A$1:$B$12,2,FALSE)) -> April | R6: 218 | S6: 15.37376587 | T6: 27 | U6: 14.13612565 | V6: =IF(A14="","",VLOOKUP(MONTH(A14),'Beregn varme 2015'!A$2:R$13,15,FALSE)) -> 11.09463067 | W6: =IF(R6="","",VLOOKUP(MONTH(A14),INDIRECT("'Beregn varme "&$Q$1&"'!A2:R13"),16,FALSE)) -> 238.2017206
J7: =IF(A15="","",VLOOKUP(MONTH(A15),T!A$1:B$12,2,FALSE)) -> Maj | K7: 31 | L7: 4.838709677 | N7: =IF(A15="","",VLOOKUP(MONTH(A15),T!A$1:B$12,2,FALSE)) -> Maj | O7: =INDIRECT("'"&$N$1&"'!g15") -> 91 | P7: 4.238472287 | Q7: =IF(A15="","",VLOOKUP(MONTH(A15),T!$A$1:$B$12,2,FALSE)) -> Maj | R7: 150 | S7: 10.57827927 | T7: 59 | U7: 64.83516484 | V7: =IF(A15="","",VLOOKUP(MONTH(A15),'Beregn varme 2015'!A$2:R$13,15,FALSE)) -> 7.000889944 | W7: =IF(R7="","",VLOOKUP(MONTH(A15),INDIRECT("'Beregn varme "&$Q$1&"'!A2:R13"),16,FALSE)) -> 150.3091071
A8: Dato | B8: Pejling | D8: Fyldt på | E8: Beholdning | F8: Plads til | G8: Forbrug | H8: Bemærkning: | J8: =IF(A16="","",VLOOKUP(MONTH(A16),T!A$1:B$12,2,FALSE)) -> Juni | K8: 30 | L8: 1.533333333 | N8: =IF(A16="","",VLOOKUP(MONTH(A16),T!A$1:B$12,2,FALSE)) -> Juni | O8: =INDIRECT("'"&$N$1&"'!g16") -> 7 | P8: 0.3260363298 | Q8: =IF(A16="","",VLOOKUP(MONTH(A16),T!$A$1:$B$12,2,FALSE)) -> Juni | R8: 46 | S8: 3.244005642 | T8: 39 | U8: 557.1428571 | V8: =IF(A16="","",VLOOKUP(MONTH(A16),'Beregn varme 2015'!A$2:R$13,15,FALSE)) -> 2.669830911 | W8: 57.32126965
B9: i cm | C9: Liter | D9: Liter | F9: Liter | G9: Liter | J9: =IF(A17="","",VLOOKUP(MONTH(A17),T!A$1:B$12,2,FALSE)) -> Juli | K9: 31 | L9: 1.064516129 | N9: =IF(A17="","",VLOOKUP(MONTH(A17),T!A$1:B$12,2,FALSE)) -> Juli | O9: =INDIRECT("'"&$N$1&"'!g17") -> 0 | P9: 0 | Q9: =IF(A17="","",VLOOKUP(MONTH(A17),T!$A$1:$B$12,2,FALSE)) -> Juli | R9: 33 | S9: 2.327221439 | T9: 33 | U9: - | V9: =IF(A17="","",VLOOKUP(MONTH(A17),'Beregn varme 2015'!A$2:R$13,15,FALSE)) -> 0.5932957579 | W9: 12.73805992
A10: =DATE(D1-1,12,31) -> 2014-12-31 | B10: =INDIRECT("'"&N1&"'!b22") -> 101.7 | C10: =IF(B10="","",IF(System!E$8=1,VLOOKUP(B10,Pejletabel!A$3:G$336,2,FALSE),IF(System!E$8=2,VLOOKUP(B10,Pejletabel!A$3:G$357,3,FALSE),IF(System!E$8=3,VLOOKUP(B10,Pejletabel!A$3:G$357,4,FALSE),IF(System!E$8=4,VLOOKUP(B10,Pejletabel!A$3:G$357,5,FALSE),IF(System!E8=5,VLOOKUP(B10,Pejletabel!A3:G358,6,FALSE),IF(System!E$8=6,VLOOKUP(B10,Pejletabel!A$3:G$357,7,FALSE)))))))) -> 1240 | E10: =IF(C10<>"",SUM(C10:D10),"") -> 1240 | F10: =IF(E10<>"",System!F$8-E10,"") -> 560 | J10: =IF(A18="","",VLOOKUP(MONTH(A18),T!A$1:B$12,2,FALSE)) -> August | K10: 31 | L10: 0.2258064516 | N10: =IF(A18="","",VLOOKUP(MONTH(A18),T!A$1:B$12,2,FALSE)) -> August | O10: =INDIRECT("'"&$N$1&"'!g18") -> 0 | P10: 0 | Q10: =IF(A18="","",VLOOKUP(MONTH(A18),T!$A$1:$B$12,2,FALSE)) -> August | R10: 7 | S10: 0.4936530324 | T10: 7 | U10: - | V10: =IF(A18="","",VLOOKUP(MONTH(A18),'Beregn varme 2015'!A$2:R$13,15,FALSE)) -> 0.6822901216 | W10: 14.64876891
A11: =EDATE($A$10,ROWS($1:1)) -> 2015-01-31 | B11: 76.2 | C11: =IF(B11="","",IF(System!E$8=1,VLOOKUP(B11,Pejletabel!A$3:G$336,2,FALSE),IF(System!E$8=2,VLOOKUP(B11,Pejletabel!A$3:G$357,3,FALSE),IF(System!E$8=3,VLOOKUP(B11,Pejletabel!A$3:G$357,4,FALSE),IF(System!E$8=4,VLOOKUP(B11,Pejletabel!A$3:G$357,5,FALSE),IF(System!E$8=5,VLOOKUP(B11,Pejletabel!A$3:G$357,6,FALSE),IF(System!E8=6,VLOOKUP(B11,Pejletabel!A3:G357,7,FALSE)))))))) -> 904 | E11: =IF(C11<>"",C11,"") -> 904 | F11: =IF(E11<>"",1800-E11,"") -> 896 | G11: =IF(C11<>"",C10-C11+D11,"") -> 336 | H11: skruede fyret op til 60° | J11: =IF(A19="","",VLOOKUP(MONTH(A19),T!A$1:B$12,2,FALSE)) -> September | K11: 30 | N11: =IF(A19="","",VLOOKUP(MONTH(A19),T!A$1:B$12,2,FALSE)) -> September | O11: =INDIRECT("'"&$N$1&"'!g19") -> 43 | P11: 2.002794597 | Q11: =IF(A19="","",VLOOKUP(MONTH(A19),T!$A$1:$B$12,2,FALSE)) -> September | U11: - | V11: =IF(A19="","",VLOOKUP(MONTH(A19),'Beregn varme 2015'!A$2:R$13,15,FALSE)) -> 3.233461881
A12: =EDATE($A$10,ROWS($1:2)) -> 2015-02-28 | B12: 51.2 | C12: =IF(B12="","",IF(System!E$8=1,VLOOKUP(B12,Pejletabel!A$3:G$336,2,FALSE),IF(System!E$8=2,VLOOKUP(B12,Pejletabel!A$3:G$357,3,FALSE),IF(System!E$8=3,VLOOKUP(B12,Pejletabel!A$3:G$357,4,FALSE),IF(System!E$8=4,VLOOKUP(B12,Pejletabel!A$3:G$357,5,FALSE),IF(System!E$8=5,VLOOKUP(B12,Pejletabel!A$3:G$357,6,FALSE),IF(System!E13=6,VLOOKUP(B12,Pejletabel!A4:G358,7,FALSE)))))))) -> 575 | E12: =IF(C12<>"",C12,"") -> 575 | F12: =IF(E12<>"",1800-E12,"") -> 1225 | G12: =IF(C12<>"",C11-C12+D12,"") -> 329 | J12: =IF(A20="","",VLOOKUP(MONTH(A20),T!A$1:B$12,2,FALSE)) -> Oktober | K12: 31 | N12: =IF(A20="","",VLOOKUP(MONTH(A20),T!A$1:B$12,2,FALSE)) -> Oktober | O12: =INDIRECT("'"&$N$1&"'!g20") -> 161 | P12: 7.498835585 | Q12: =IF(A20="","",VLOOKUP(MONTH(A20),T!$A$1:$B$12,2,FALSE)) -> Oktober | U12: - | V12: =IF(A20="","",VLOOKUP(MONTH(A20),'Beregn varme 2015'!A$2:R$13,15,FALSE)) -> 6.76357164
A13: =EDATE($A$10,ROWS($1:3)) -> 2015-03-31 | B13: 28.5 | C13: =IF(B13="","",IF(System!E$8=1,VLOOKUP(B13,Pejletabel!A$3:G$336,2,FALSE),IF(System!E$8=2,VLOOKUP(B13,Pejletabel!A$3:G$357,3,FALSE),IF(System!E$8=3,VLOOKUP(B13,Pejletabel!A$3:G$357,4,FALSE),IF(System!E$8=4,VLOOKUP(B13,Pejletabel!A$3:G$357,5,FALSE),IF(System!E$8=5,VLOOKUP(B13,Pejletabel!A$3:G$357,6,FALSE),IF(System!E19=6,VLOOKUP(B13,Pejletabel!A5:G359,7,FALSE)))))))) -> 276 | E13: 276 | F13: 1524 | G13: 299 | H13: 1/4 fyldt vand på og fået | J13: =IF(A21="","",VLOOKUP(MONTH(A21),T!A$1:B$12,2,FALSE)) -> November | K13: 30 | N13: =IF(A21="","",VLOOKUP(MONTH(A21),T!A$1:B$12,2,FALSE)) -> November | O13: =INDIRECT("'"&$N$1&"'!g21") -> 285 | P13: 13.27433628 | Q13: =IF(A21="","",VLOOKUP(MONTH(A21),T!$A$1:$B$12,2,FALSE)) -> November | U13: - | V13: =IF(A21="","",VLOOKUP(MONTH(A21),'Beregn varme 2015'!A$2:R$13,15,FALSE)) -> 10.0563631
A14: =EDATE($A$10,ROWS($1:4)) -> 2015-04-30 | B14: 125.5 | C14: =IF(B14="","",IF(System!E$8=1,VLOOKUP(B14,Pejletabel!A$3:G$336,2,FALSE),IF(System!E$8=2,VLOOKUP(B14,Pejletabel!A$3:G$357,3,FALSE),IF(System!E$8=3,VLOOKUP(B14,Pejletabel!A$3:G$357,4,FALSE),IF(System!E$8=4,VLOOKUP(B14,Pejletabel!A$3:G$357,5,FALSE),IF(System!E$8=5,VLOOKUP(B14,Pejletabel!A$3:G$357,6,FALSE),IF(System!E20=6,VLOOKUP(B14,Pejletabel!A6:G360,7,FALSE)))))))) -> 1551 | D14: 1493 | E14: 1551 | F14: 249 | G14: 218 | H14: skiftet kontrolboks og | J14: =IF(A22="","",VLOOKUP(MONTH(A22),T!A$1:B$12,2,FALSE)) -> December | K14: 31 | N14: =IF(A22="","",VLOOKUP(MONTH(A22),T!A$1:B$12,2,FALSE)) -> December | O14: =INDIRECT("'"&$N$1&"'!g22") -> 342 | P14: 15.92920354 | Q14: =IF(A22="","",VLOOKUP(MONTH(A22),T!$A$1:$B$12,2,FALSE)) -> December | U14: - | V14: =IF(A22="","",VLOOKUP(MONTH(A22),'Beregn varme 2015'!A$2:R$13,15,FALSE)) -> 13.58647286
A15: =EDATE($A$10,ROWS($1:5)) -> 2015-05-31 | B15: 114 | C15: =IF(B15="","",IF(System!E$8=1,VLOOKUP(B15,Pejletabel!A$3:G$336,2,FALSE),IF(System!E$8=2,VLOOKUP(B15,Pejletabel!A$3:G$357,3,FALSE),IF(System!E$8=3,VLOOKUP(B15,Pejletabel!A$3:G$357,4,FALSE),IF(System!E$8=4,VLOOKUP(B15,Pejletabel!A$3:G$357,5,FALSE),IF(System!E$8=5,VLOOKUP(B15,Pejletabel!A$3:G$357,6,FALSE),IF(System!E21=6,VLOOKUP(B15,Pejletabel!A7:G361,7,FALSE)))))))) -> 1401 | E15: 1401 | F15: 399 | G15: 150 | H15: fotocelle på brænderen
A16: =EDATE($A$10,ROWS($1:6)) -> 2015-06-30 | B16: 110.5 | C16: =IF(B16="","",IF(System!E$8=1,VLOOKUP(B16,Pejletabel!A$3:G$336,2,FALSE),IF(System!E$8=2,VLOOKUP(B16,Pejletabel!A$3:G$357,3,FALSE),IF(System!E$8=3,VLOOKUP(B16,Pejletabel!A$3:G$357,4,FALSE),IF(System!E$8=4,VLOOKUP(B16,Pejletabel!A$3:G$357,5,FALSE),IF(System!E$8=5,VLOOKUP(B16,Pejletabel!A$3:G$357,6,FALSE),IF(System!E22=6,VLOOKUP(B16,Pejletabel!A8:G362,7,FALSE)))))))) -> 1355 | E16: 1355 | F16: 445 | G16: 46 | H16: 7/6 slukket fyret | J16: Hele året | K16: =SUM(K3:K14) -> 365 | L16: =G23/K16 -> 3.884931507 | N16: Års Total | O16: =SUM(O3:O14) -> 2147 | P16: =SUM(P3:P14) -> 100 | R16: =G23 -> 1418 | T16: =IF(R16<>0,R16-O16,"") -> -729 | U16: =IF(R16<>0,T16/(O16/100),"") -> -33.95435491 | V16: =SUM(V3:V14) -> 100 | W16: =SUM(W3:W14) -> 1424.752002
A17: =EDATE($A$10,ROWS($1:7)) -> 2015-07-31 | B17: 108 | C17: =IF(B17="","",IF(System!E$8=1,VLOOKUP(B17,Pejletabel!A$3:G$336,2,FALSE),IF(System!E$8=2,VLOOKUP(B17,Pejletabel!A$3:G$357,3,FALSE),IF(System!E$8=3,VLOOKUP(B17,Pejletabel!A$3:G$357,4,FALSE),IF(System!E$8=4,VLOOKUP(B17,Pejletabel!A$3:G$357,5,FALSE),IF(System!E$8=5,VLOOKUP(B17,Pejletabel!A$3:G$357,6,FALSE),IF(System!E23=6,VLOOKUP(B17,Pejletabel!A9:G363,7,FALSE)))))))) -> 1322 | E17: 1322 | F17: 478 | G17: 33 | H17: 17/6 Tændt fyret igen
A18: =EDATE($A$10,ROWS($1:8)) -> 2015-08-31 | B18: 107.5 | C18: =IF(B18="","",IF(System!E$8=1,VLOOKUP(B18,Pejletabel!A$3:G$336,2,FALSE),IF(System!E$8=2,VLOOKUP(B18,Pejletabel!A$3:G$357,3,FALSE),IF(System!E$8=3,VLOOKUP(B18,Pejletabel!A$3:G$357,4,FALSE),IF(System!E$8=4,VLOOKUP(B18,Pejletabel!A$3:G$357,5,FALSE),IF(System!E$8=5,VLOOKUP(B18,Pejletabel!A$3:G$357,6,FALSE),IF(System!E24=6,VLOOKUP(B18,Pejletabel!A10:G364,7,FALSE)))))))) -> 1315 | E18: 1315 | F18: 485 | G18: 7 | H18: og fyldt vand på | J18: Vand | N18: =N1 -> 2014 | Q18: =Q1 -> 2015 | T18: +/- | U18: % | V18: Forventet forbrug
A19: =EDATE($A$10,ROWS($1:9)) -> 2015-09-30 | B19: =IFERROR(VLOOKUP(A19,Tabel1[#All],4,0),"") ->  | C19: =IF(B19="","",IF(System!E$8=1,VLOOKUP(B19,Pejletabel!A$3:G$336,2,FALSE),IF(System!E$8=2,VLOOKUP(B19,Pejletabel!A$3:G$357,3,FALSE),IF(System!E$8=3,VLOOKUP(B19,Pejletabel!A$3:G$357,4,FALSE),IF(System!E$8=4,VLOOKUP(B19,Pejletabel!A$3:G$357,5,FALSE),IF(System!E$8=5,VLOOKUP(B19,Pejletabel!A$3:G$357,6,FALSE),IF(System!E25=6,VLOOKUP(B19,Pejletabel!A11:G365,7,FALSE)))))))) ->  | H19: 29/6 slukket fyret | J19: Måned | K19: Dage | L19: m³ pr. dag | N19: Vand | O19: m³ | R19: m³ | T19: m³ | V19: % | W19: m³
A20: =EDATE($A$10,ROWS($1:10)) -> 2015-10-31 | B20: =IFERROR(VLOOKUP(A20,Tabel1[#All],4,0),"") ->  | C20: =IF(B20="","",IF(System!E$8=1,VLOOKUP(B20,Pejletabel!A$3:G$336,2,FALSE),IF(System!E$8=2,VLOOKUP(B20,Pejletabel!A$3:G$357,3,FALSE),IF(System!E$8=3,VLOOKUP(B20,Pejletabel!A$3:G$357,4,FALSE),IF(System!E$8=4,VLOOKUP(B20,Pejletabel!A$3:G$357,5,FALSE),IF(System!E$8=5,VLOOKUP(B20,Pejletabel!A$3:G$357,6,FALSE),IF(System!E26=6,VLOOKUP(B20,Pejletabel!A12:G366,7,FALSE)))))))) ->  | H20: 17/7 tændt fyret | J20: =IF(A29="","",VLOOKUP(MONTH(A29),T!A$1:B$12,2,FALSE)) -> Januar | K20: =A29-A28 -> 31 | L20: =IF(D29<>"",D29/K20,"") -> 0.2258064516 | N20: =IF(A29="","",VLOOKUP(MONTH(A29),T!A$1:B$12,2,FALSE)) -> Januar | O20: =INDIRECT("'"&$N$1&"'!d29") -> 7 | Q20: Januar | R20: =D29 -> 7 | T20: =IF(R20<>"",R20-O20,"") -> 0 | U20: =IF(T20<>"",T20/(O20/100),"") -> 0 | V20: =IF(A29="","",VLOOKUP(MONTH(A29),'Beregn varme 2015'!A$2:I$13,9,FALSE)) -> 8.493150685 | W20: =IF(R20="","",O$33*V20%) -> 6.709589041
A21: =EDATE($A$10,ROWS($1:11)) -> 2015-11-30 | B21: =IFERROR(VLOOKUP(A21,Tabel1[#All],4,0),"") ->  | C21: =IF(B21="","",IF(System!E$8=1,VLOOKUP(B21,Pejletabel!A$3:G$336,2,FALSE),IF(System!E$8=2,VLOOKUP(B21,Pejletabel!A$3:G$357,3,FALSE),IF(System!E$8=3,VLOOKUP(B21,Pejletabel!A$3:G$357,4,FALSE),IF(System!E$8=4,VLOOKUP(B21,Pejletabel!A$3:G$357,5,FALSE),IF(System!E$8=5,VLOOKUP(B21,Pejletabel!A$3:G$357,6,FALSE),IF(System!E27=6,VLOOKUP(B21,Pejletabel!A13:G367,7,FALSE)))))))) ->  | F21: =IF(E21<>"",1800-E21,"") ->  | H21: 4/8 slukket fyret | J21: =IF(A30="","",VLOOKUP(MONTH(A30),T!A$1:B$12,2,FALSE)) -> Februar | K21: =IF(A30="","",A30-A29) -> 28 | L21: 0.25 | N21: =IF(A30="","",VLOOKUP(MONTH(A30),T!A$1:B$12,2,FALSE)) -> Februar | O21: =INDIRECT("'"&$N$1&"'!d30") -> 6 | Q21: Februar | R21: 7 | T21: =IF(R21<>"",R21-O21,"") -> 1 | U21: =IF(T21<>"",T21/(O21/100),"") -> 16.66666667 | V21: =IF(A30="","",VLOOKUP(MONTH(A30),'Beregn varme 2015'!A$2:I$13,9,FALSE)) -> 7.671232877 | W21: =IF(R21="","",O$33*V21%) -> 6.060273973
A22: =EDATE($A$10,ROWS($1:12)) -> 2015-12-31 | C22: =IF(B22="","",IF(System!E$8=1,VLOOKUP(B22,Pejletabel!A$3:G$336,2,FALSE),IF(System!E$8=2,VLOOKUP(B22,Pejletabel!A$3:G$357,3,FALSE),IF(System!E$8=3,VLOOKUP(B22,Pejletabel!A$3:G$357,4,FALSE),IF(System!E$8=4,VLOOKUP(B22,Pejletabel!A$3:G$357,5,FALSE),IF(System!E$8=5,VLOOKUP(B22,Pejletabel!A$3:G$357,6,FALSE),IF(System!E28=6,VLOOKUP(B22,Pejletabel!A14:G368,7,FALSE)))))))) ->  | F22: =IF(E22<>"",1800-E22,"") ->  | H22: 4/9 tændt fyret | J22: =IF(A31="","",VLOOKUP(MONTH(A31),T!A$1:B$12,2,FALSE)) -> Marts | K22: =IF(A31="","",A31-A30) -> 31 | L22: 0.2580645161 | N22: =IF(A31="","",VLOOKUP(MONTH(A31),T!A$1:B$12,2,FALSE)) -> Marts | O22: =INDIRECT("'"&$N$1&"'!d31") -> 7 | Q22: Marts | R22: 8 | T22: 1 | U22: 14.28571429 | V22: =IF(A31="","",VLOOKUP(MONTH(A31),'Beregn varme 2015'!A$2:I$13,9,FALSE)) -> 8.493150685 | W22: 6.709589041
E23: Års forbrug | G23: =SUM(G11:G22) -> 1418 | J23: =IF(A32="","",VLOOKUP(MONTH(A32),T!A$1:B$12,2,FALSE)) -> April | K23: =IF(A32="","",A32-A31) -> 30 | L23: 0.2 | N23: =IF(A32="","",VLOOKUP(MONTH(A32),T!A$1:B$12,2,FALSE)) -> April | O23: =INDIRECT("'"&$N$1&"'!d32") -> 6 | Q23: April | R23: 6 | T23: 0 | U23: 0 | V23: =IF(A32="","",VLOOKUP(MONTH(A32),'Beregn varme 2015'!A$2:I$13,9,FALSE)) -> 8.219178082 | W23: 6.493150685
A24: MÅNEDLIG AFLÆSNING AF VANDMÅLER | E24: MÅNEDLIG AFLÆSNING AF ELMÅLER | H24: Bemærkning: | J24: =IF(A33="","",VLOOKUP(MONTH(A33),T!A$1:B$12,2,FALSE)) -> Maj | K24: =IF(A33="","",A33-A32) -> 31 | L24: 0.2258064516 | N24: =IF(A33="","",VLOOKUP(MONTH(A33),T!A$1:B$12,2,FALSE)) -> Maj | O24: =INDIRECT("'"&$N$1&"'!d33") -> 7 | Q24: Maj | R24: 7 | T24: 0 | U24: 0 | V24: =IF(A33="","",VLOOKUP(MONTH(A33),'Beregn varme 2015'!A$2:I$13,9,FALSE)) -> 8.493150685 | W24: 6.709589041
J25: =IF(A34="","",VLOOKUP(MONTH(A34),T!A$1:B$12,2,FALSE)) -> Juni | K25: =IF(A34="","",A34-A33) -> 30 | L25: 0.2 | N25: Juni | O25: =INDIRECT("'"&$N$1&"'!d34") -> 6 | Q25: Juni | R25: 6 | T25: 0 | U25: =IF(T25<>"",T25/(O25/100)," - ") -> 0 | V25: =IF(A34="","",VLOOKUP(MONTH(A34),'Beregn varme 2015'!A$2:I$13,9,FALSE)) -> 8.219178082 | W25: 6.493150685
A26: Dato | B26: Aflæst | D26: Forbrug | E26: Dato | F26: Aflæst | G26: Forbrug | J26: =IF(A35="","",VLOOKUP(MONTH(A35),T!A$1:B$12,2,FALSE)) -> Juli | K26: =IF(A35="","",A35-A34) -> 31 | L26: =IF(D35<>"",D35/K26,"") -> 0.2580645161 | N26: Juli | O26: =INDIRECT("'"&$N$1&"'!d35") -> 7 | Q26: Juli | R26: =D35 -> 8 | T26: 1 | U26: =IF(T26<>"",T26/(O26/100)," - ") -> 14.28571429 | V26: =IF(A35="","",VLOOKUP(MONTH(A35),'Beregn varme 2015'!A$2:I$13,9,FALSE)) -> 8.493150685 | W26: 6.709589041
B27: m³ | D27: m³ | F27: KWh | G27: KWh | J27: =IF(A36="","",VLOOKUP(MONTH(A36),T!A$1:B$12,2,FALSE)) -> August | K27: 31 | L27: 0.2258064516 | N27: August | O27: =INDIRECT("'"&$N$1&"'!d36") -> 7 | Q27: August | R27: 7 | T27: 0 | U27: =IF(T27<>"",T27/(O27/100)," - ") -> 0 | V27: =IF(A36="","",VLOOKUP(MONTH(A36),'Beregn varme 2015'!A$2:I$13,9,FALSE)) -> 8.493150685 | W27: 6.709589041
A28: 2014-12-31 | B28: =INDIRECT("'"&N1&"'!b40") -> 1764 | E28: =DATE($D$1-1,12,31) -> 2014-12-31 | F28: =INDIRECT("'"&N1&"'!f40") -> 30188 | J28: =IF(A37="","",VLOOKUP(MONTH(A37),T!A$1:B$12,2,FALSE)) -> September | K28: 30 | N28: September | O28: =INDIRECT("'"&$N$1&"'!d37") -> 7 | Q28: September | U28: =IF(T28<>"",T28/(O28/100)," - ") -> - | V28: =IF(A37="","",VLOOKUP(MONTH(A37),'Beregn varme 2015'!A$2:I$13,9,FALSE)) -> 8.219178082
A29: =EDATE($A$28,ROWS($1:1)) -> 2015-01-31 | B29: 1771 | D29: =IF(B29<>"",B29-B28,"") -> 7 | E29: =EDATE($E$28,ROWS($1:1)) -> 2015-01-31 | F29: 30711 | G29: =IF(F29<>"",F29-F28,"") -> 523 | J29: =IF(A38="","",VLOOKUP(MONTH(A38),T!A$1:B$12,2,FALSE)) -> Oktober | K29: 31 | N29: Oktober | O29: =INDIRECT("'"&$N$1&"'!d38") -> 6 | Q29: Oktober | U29: - | V29: =IF(A38="","",VLOOKUP(MONTH(A38),'Beregn varme 2015'!A$2:I$13,9,FALSE)) -> 8.493150685
A30: =EDATE($A$28,ROWS($1:2)) -> 2015-02-28 | B30: 1778 | D30: =IF(B30<>"",B30-B29,"") -> 7 | E30: =EDATE($E$28,ROWS($1:2)) -> 2015-02-28 | F30: 31171 | G30: 460 | J30: =IF(A39="","",VLOOKUP(MONTH(A39),T!A$1:B$12,2,FALSE)) -> November | K30: 30 | N30: November | O30: =INDIRECT("'"&$N$1&"'!d39") -> 6 | Q30: November | U30: - | V30: =IF(A39="","",VLOOKUP(MONTH(A39),'Beregn varme 2015'!A$2:I$13,9,FALSE)) -> 8.219178082
A31: =EDATE($A$28,ROWS($1:3)) -> 2015-03-31 | B31: 1786 | D31: 8 | E31: =EDATE($E$28,ROWS($1:3)) -> 2015-03-31 | F31: 31684 | G31: 513 | J31: =IF(A40="","",VLOOKUP(MONTH(A40),T!A$1:B$12,2,FALSE)) -> December | K31: 31 | N31: December | O31: =INDIRECT("'"&$N$1&"'!d40") -> 7 | Q31: December | U31: =IF(T31<>"",T31/(O31/100),"-") -> - | V31: =IF(A40="","",VLOOKUP(MONTH(A40),'Beregn varme 2015'!A$2:I$13,9,FALSE)) -> 8.493150685
A32: =EDATE($A$28,ROWS($1:4)) -> 2015-04-30 | B32: 1792 | D32: 6 | E32: =EDATE($E$28,ROWS($1:4)) -> 2015-04-30 | F32: 32053 | G32: 369
A33: =EDATE($A$28,ROWS($1:5)) -> 2015-05-31 | B33: 1799 | D33: 7 | E33: =EDATE($E$28,ROWS($1:5)) -> 2015-05-31 | F33: 32411 | G33: 358 | J33: Hele året | K33: =SUM(K20:K31) -> 365 | L33: =D41/K33 -> 0.1534246575 | N33: Års Total | O33: =SUM(O20:O31) -> 79 | R33: =D41 -> 56 | T33: =IF(R33<>0,R33-O33,"") -> -23 | U33: =IF(T33<>"",T33/(O33/100),"") -> -29.11392405 | V33: =SUM(V20:V31) -> 100 | W33: =SUM(W20:W31) -> 52.59452055
A34: =EDATE($A$28,ROWS($1:6)) -> 2015-06-30 | B34: 1805 | D34: 6 | E34: =EDATE($E$28,ROWS($1:6)) -> 2015-06-30 | F34: 32721 | G34: 310
A35: =EDATE($A$28,ROWS($1:7)) -> 2015-07-31 | B35: 1813 | D35: 8 | E35: =EDATE($E$28,ROWS($1:7)) -> 2015-07-31 | F35: 33050 | G35: 329 | J35: EL | N35: =N1-1&"/"&N1 -> 2013/2014 | Q35: =N1&"/"&Q1 -> 2014/2015 | T35: +/- | U35: % | V35: Forventet forbrug
A36: =EDATE($A$28,ROWS($1:8)) -> 2015-08-31 | B36: 1820 | D36: 7 | E36: =EDATE($E$28,ROWS($1:8)) -> 2015-08-31 | F36: 33354 | G36: 304 | J36: Måned | K36: Dage | L36: KWh pr. dag | N36: EL | O36: KWh | R36: KWh | T36: KWh | V36: % | W36: KWh
A37: =EDATE($A$28,ROWS($1:9)) -> 2015-09-30 | B37: =IFERROR(VLOOKUP(A37,'Måler aflæsninger'!A1:D4,3,0),"") ->  | E37: =EDATE($E$28,ROWS($1:9)) -> 2015-09-30 | F37: =IFERROR(VLOOKUP(E37,Tabel1[#All],2,0),"") ->  | J37: =IF(E29="","",VLOOKUP(Y37,T!A$1:B$12,2,FALSE)) -> August | K37: =VLOOKUP(J37,$J$3:$K$14,2,0) -> 31 | L37: =IF(G29<>"",R37/K37,"") -> 12.09677419 | N37: =J37 -> August | O37: =INDIRECT("'"&$N$1-1&"'!g36") -> 362 | Q37: =J37 -> August | R37: =INDIRECT("'"&$N$1&"'!g36") -> 375 | T37: =IF(R37="","",R37-O37) -> 13 | U37: =IF(R37<>"",T37/(O37/100),"") -> 3.591160221 | V37: =IF(E29="","",VLOOKUP(MONTH(E29),'Beregn varme 2015'!A$2:J$13,10,FALSE)) -> 10 | W37: =IF(R37="","",O$50/100*V37) -> 476.8 | X37: =DATE(N1,Setup!D4+1,Setup!C4) -> 2014-08-31 | Y37: =MONTH(X37) -> 8
A38: =EDATE($A$28,ROWS($1:10)) -> 2015-10-31 | E38: =EDATE($E$28,ROWS($1:10)) -> 2015-10-31 | J38: =IF(E30="","",VLOOKUP(Setup!$D$4+2,T!A$1:B$12,2,FALSE)) -> September | K38: =VLOOKUP(J38,$J$3:$K$14,2,0) -> 30 | L38: =IF(G30<>"",R38/K38,"") -> 12.53333333 | N38: =J38 -> September | O38: =INDIRECT("'"&$N$1-1&"'!g37") -> 417 | Q38: =J38 -> September | R38: =INDIRECT("'"&$N$1&"'!g37") -> 376 | T38: =IF(R38<>"",R38-O38,"") -> -41 | U38: =IF(R38<>"",T38/(O38/100),"") -> -9.832134293 | V38: =IF(E30="","",VLOOKUP(MONTH(E30),'Beregn varme 2015'!A$2:J$13,10,FALSE)) -> 9 | W38: 429.12 | X38: =EDATE($X$37,ROW(1:1)) -> 2014-09-30 | Y38: =MONTH(X38) -> 9
A39: =EDATE($A$28,ROWS($1:11)) -> 2015-11-30 | E39: =EDATE($E$28,ROWS($1:11)) -> 2015-11-30 | J39: =IF(E31="","",VLOOKUP(Setup!$D$4+3,T!A$1:B$12,2,FALSE)) -> Oktober | K39: =VLOOKUP(J39,$J$3:$K$14,2,0) -> 31 | L39: =IF(G31<>"",R39/K39,"") -> 12.93548387 | N39: Oktober | O39: =INDIRECT("'"&$N$1-1&"'!g38") -> 403 | Q39: Oktober | R39: =INDIRECT("'"&$N$1&"'!g38") -> 401 | T39: =IF(R39<>"",R39-O39,"") -> -2 | U39: =IF(R39<>"",T39/(O39/100),"") -> -0.4962779156 | V39: =IF(E31="","",VLOOKUP(MONTH(E31),'Beregn varme 2015'!A$2:J$13,10,FALSE)) -> 9 | W39: 429.12 | X39: =EDATE($X$37,ROW(2:2)) -> 2014-10-31 | Y39: 10
A40: =EDATE($A$28,ROWS($1:12)) -> 2015-12-31 | E40: =EDATE($E$28,ROWS($1:12)) -> 2015-12-31 | J40: =IF(E32="","",VLOOKUP(Setup!$D$4+4,T!A$1:B$12,2,FALSE)) -> November | K40: 30 | L40: 14.43333333 | N40: November | O40: =INDIRECT("'"&$N$1-1&"'!g39") -> 389 | Q40: November | R40: =INDIRECT("'"&$N$1&"'!g39") -> 433 | T40: =IF(R40<>"",R40-O40,"") -> 44 | U40: =IF(R40<>"",T40/(O40/100),"") -> 11.31105398 | V40: =IF(E32="","",VLOOKUP(MONTH(E32),'Beregn varme 2015'!A$2:J$13,10,FALSE)) -> 8 | W40: 381.44 | X40: =EDATE($X$37,ROW(3:3)) -> 2014-11-30 | Y40: 11
A41: Års forbrug | D41: =SUM(D29:D34,D35:D40) -> 56 | E41: Års forbrug | G41: =SUM(G29:G34,G35:G40) -> 3166 | J41: =IF(E33="","",VLOOKUP(Setup!$D$4+5,T!A$1:B$12,2,FALSE)) -> December | K41: 31 | L41: 16.5483871 | N41: December | O41: =INDIRECT("'"&$N$1-1&"'!g40") -> 447 | Q41: December | R41: =INDIRECT("'"&$N$1&"'!g40") -> 513 | T41: =IF(R41<>"",R41-O41,"") -> 66 | U41: =IF(R41<>"",T41/(O41/100),"") -> 14.76510067 | V41: =IF(E33="","",VLOOKUP(MONTH(E33),'Beregn varme 2015'!A$2:J$13,10,FALSE)) -> 8 | W41: 381.44 | X41: =EDATE($X$37,ROW(4:4)) -> 2014-12-31 | Y41: 12
J42: =IF(E34="","",VLOOKUP(MONTH(E29),T!A$1:B$12,2,FALSE)) -> Januar | K42: 31 | L42: 16.87096774 | N42: Januar | O42: =INDIRECT("'"&$N$1&"'!g29") -> 497 | Q42: Januar | R42: =INDIRECT("'"&$Q$1&"'!g29") -> 523 | T42: =IF(R42<>"",R42-O42,"") -> 26 | U42: 5.23138833 | V42: =IF(E34="","",VLOOKUP(MONTH(E34),'Beregn varme 2015'!A$2:J$13,10,FALSE)) -> 7 | W42: 333.76 | X42: =EDATE($X$37,ROW(5:5)) -> 2015-01-31 | Y42: 1
J43: =IF(E35="","",VLOOKUP(MONTH(E30),T!A$1:B$12,2,FALSE)) -> Februar | K43: 28 | L43: 16.42857143 | N43: Februar | O43: =INDIRECT("'"&$N$1&"'!g30") -> 407 | Q43: Februar | R43: =INDIRECT("'"&$Q$1&"'!g30") -> 460 | T43: 53 | U43: 13.02211302 | V43: =IF(E35="","",VLOOKUP(MONTH(E35),'Beregn varme 2015'!A$2:J$13,10,FALSE)) -> 6 | W43: 286.08 | X43: 2015-02-28 | Y43: 2
J44: =IF(E36="","",VLOOKUP(MONTH(E31),T!A$1:B$12,2,FALSE)) -> Marts | K44: =VLOOKUP(J44,$J$3:$K$14,2,0) -> 31 | L44: 16.5483871 | N44: Marts | O44: =INDIRECT("'"&$N$1&"'!g31") -> 407 | Q44: Marts | R44: =INDIRECT("'"&$Q$1&"'!g31") -> 513 | T44: 106 | U44: 26.04422604 | V44: =IF(E36="","",VLOOKUP(MONTH(E36),'Beregn varme 2015'!A$2:J$13,10,FALSE)) -> 7 | W44: 333.76 | X44: 2015-03-31 | Y44: 3
J45: =IF(E37="","",VLOOKUP(MONTH(E32),T!A$1:B$12,2,FALSE)) -> April | K45: =VLOOKUP(J45,$J$3:$K$14,2,0) -> 30 | L45: =IF(R45<>"",R45/K45,"") -> 12.3 | N45: April | O45: =INDIRECT("'"&$N$1&"'!g32") -> 365 | Q45: April | R45: =INDIRECT("'"&$Q$1&"'!g32") -> 369 | T45: 4 | U45: 1.095890411 | V45: =IF(E37="","",VLOOKUP(MONTH(E37),'Beregn varme 2015'!A$2:J$13,10,FALSE)) -> 7 | W45: 333.76 | X45: 2015-04-30 | Y45: 4
J46: =IF(E38="","",VLOOKUP(MONTH(E33),T!A$1:B$12,2,FALSE)) -> Maj | K46: =VLOOKUP(J46,$J$3:$K$14,2,0) -> 31 | L46: =IF(R46<>"",R46/K46,"") -> 11.5483871 | N46: Maj | O46: =INDIRECT("'"&$N$1&"'!g33") -> 377 | Q46: Maj | R46: =INDIRECT("'"&$Q$1&"'!g33") -> 358 | T46: -19 | U46: -5.039787798 | V46: =IF(E38="","",VLOOKUP(MONTH(E38),'Beregn varme 2015'!A$2:J$13,10,FALSE)) -> 9 | W46: 429.12 | X46: 2015-05-31 | Y46: 5
J47: =IF(E39="","",VLOOKUP(MONTH(E34),T!A$1:B$12,2,FALSE)) -> Juni | K47: 30 | L47: =IF(R47<>"",R47/K47,"") -> 10.33333333 | N47: Juni | O47: =INDIRECT("'"&$N$1&"'!g34") -> 340 | Q47: Juni | R47: =INDIRECT("'"&$Q$1&"'!g34") -> 310 | T47: -30 | U47: -8.823529412 | V47: =IF(E39="","",VLOOKUP(MONTH(E39),'Beregn varme 2015'!A$2:J$13,10,FALSE)) -> 9 | W47: 429.12 | X47: 2015-06-30 | Y47: 6
J48: =IF(E40="","",VLOOKUP(MONTH(E35),T!A$1:B$12,2,FALSE)) -> Juli | K48: 31 | L48: =IF(R48<>"",R48/K48,"") -> 10.61290323 | N48: =J48 -> Juli | O48: =INDIRECT("'"&$N$1&"'!g35") -> 357 | Q48: =J48 -> Juli | R48: =INDIRECT("'"&$Q$1&"'!g35") -> 329 | T48: -28 | U48: =IF(R48<>"",T48/(R48/100),"") -> -8.510638298 | V48: =IF(E40="","",VLOOKUP(MONTH(E40),'Beregn varme 2015'!A$2:J$13,10,FALSE)) -> 11 | W48: 524.48 | X48: 2015-07-31 | Y48: 7
J50: Hele året | K50: =SUM(K37:K48) -> 365 | L50: =R50/K50 -> 13.5890411 | N50: Års Total | O50: =SUM(O37:O48) -> 4768 | R50: =SUM(R37:R48) -> 4960 | T50: =IF(R50<>0,R50-O50,"") -> 192 | U50: =IF(T50<>"",T50/(O50/100),"") -> 4.026845638 | V50: =SUM(V37:V48) -> 100 | W50: =SUM(W37:W48) -> 4768

Sheet 2014
A1: Vælg årstal: | D1: 2014 | J1: Olie | N1: =Q1-1 -> 2013 | Q1: =D1 -> 2014 | T1: +/- | U1: % | V1: Forventet forbrug
A2: =System!A19 -> Version: 2.0.2 / Bjarne Hansen | J2: Måned | K2: Dage | L2: Liter pr dag | N2: Olie | O2: Liter | P2: % | R2: Liter | S2: % | T2: Liter | V2: % | W2: Liter
A3: Aflæsningsskema til Olieforbrug samt EL og Vand | J3: =IF(A11="","",VLOOKUP(MONTH(A11),T!A$1:B$12,2,FALSE)) -> Januar | K3: =A11-A10 -> 31 | L3: =IF(G11<>"",G11/K3,"") -> 13.58064516 | N3: =IF(A11="","",VLOOKUP(MONTH(A11),T!$A$1:$B$12,2,FALSE)) -> Januar | O3: =INDIRECT("'"&$N$1&"'!g11") -> 499 | P3: =IF(O3="","",O3/(O$16/100)) -> 21.22501063 | Q3: =IF(A11="","",VLOOKUP(MONTH(A11),T!$A$1:$B$12,2,FALSE)) -> Januar | R3: =G11 -> 421 | S3: =IF(R3="","",R3/(R$16/100)) -> 19.6087564 | T3: =IF(R3<>"",R3-O3,"") -> -78 | U3: =IF(AND(R3<>"",O3<>0),T3/(O3/100)," - ") -> -15.63126253 | V3: =IF(A11="","",VLOOKUP(MONTH(A11),INDIRECT("'Beregn varme "&$Q$1&"'!A2:R13"),14,FALSE)) -> 15.36636013 | W3: =IF(R3="","",VLOOKUP(MONTH(A11),INDIRECT("'Beregn varme "&$Q$1&"'!A2:R13"),15,FALSE)) -> 361.2631267
A4: Navn : | B4: Bjarne Hansen, Lyrsbyvej 31 | J4: =IF(A12="","",VLOOKUP(MONTH(A12),T!A$1:B$12,2,FALSE)) -> Februar | K4: =IF(A12="","",A12-A11) -> 28 | L4: 11.25 | N4: =IF(A12="","",VLOOKUP(MONTH(A12),T!A$1:B$12,2,FALSE)) -> Februar | O4: =INDIRECT("'"&$N$1&"'!g12") -> 379 | P4: 16.12079966 | Q4: =IF(A12="","",VLOOKUP(MONTH(A12),T!$A$1:$B$12,2,FALSE)) -> Februar | R4: 315 | S4: 14.67163484 | T4: =IF(R4<>"",R4-O4,"") -> -64 | U4: =IF(AND(R4<>"",O4<>0),T4/(O4/100)," - ") -> -16.88654354 | V4: =IF(A12="","",VLOOKUP(MONTH(A12),INDIRECT("'Beregn varme "&$Q$1&"'!A2:R13"),14,FALSE)) -> 14.68407001 | W4: =IF(R4="","",VLOOKUP(MONTH(A12),INDIRECT("'Beregn varme "&$Q$1&"'!A2:R13"),15,FALSE)) -> 345.2224859
A5: Tankstørrelse: | C5: =System!F8 -> 1800 | D5: Liter | J5: =IF(A13="","",VLOOKUP(MONTH(A13),T!A$1:B$12,2,FALSE)) -> Marts | K5: 31 | L5: 9.387096774 | N5: =IF(A13="","",VLOOKUP(MONTH(A13),T!A$1:B$12,2,FALSE)) -> Marts | O5: =INDIRECT("'"&$N$1&"'!g13") -> 393 | P5: 16.71629094 | Q5: =IF(A13="","",VLOOKUP(MONTH(A13),T!$A$1:$B$12,2,FALSE)) -> Marts | R5: 291 | S5: 13.55379599 | T5: -102 | U5: -25.95419847 | V5: =IF(A13="","",VLOOKUP(MONTH(A13),INDIRECT("'Beregn varme "&$Q$1&"'!A2:R13"),14,FALSE)) -> 14.26876298 | W5: 335.4586176
A6: MÅNEDLIG PEJLING AF OLIETANK | J6: =IF(A14="","",VLOOKUP(MONTH(A14),T!A$1:B$12,2,FALSE)) -> April | K6: 30 | L6: 6.366666667 | N6: =IF(A14="","",VLOOKUP(MONTH(A14),T!A$1:B$12,2,FALSE)) -> April | O6: =INDIRECT("'"&$N$1&"'!g14") -> 214 | P6: 9.10250957 | Q6: =IF(A14="","",VLOOKUP(MONTH(A14),T!$A$1:$B$12,2,FALSE)) -> April | R6: 191 | S6: 8.896134141 | T6: -23 | U6: -10.74766355 | V6: 11.09463067 | W6: 260.8347671
J7: =IF(A15="","",VLOOKUP(MONTH(A15),T!A$1:B$12,2,FALSE)) -> Maj | K7: =IF(A15="","",A15-A14) -> 31 | L7: 2.935483871 | N7: =IF(A15="","",VLOOKUP(MONTH(A15),T!A$1:B$12,2,FALSE)) -> Maj | O7: =INDIRECT("'"&$N$1&"'!g15") -> 38 | P7: 1.616333475 | Q7: =IF(A15="","",VLOOKUP(MONTH(A15),T!$A$1:$B$12,2,FALSE)) -> Maj | R7: 91 | S7: 4.238472287 | T7: 53 | U7: 139.4736842 | V7: 7.000889944 | W7: 164.5909226
A8: Dato | B8: Pejling | D8: Fyldt på | E8: Beholdning | F8: Plads til | G8: Forbrug | H8: Bemærkning: | J8: =IF(A16="","",VLOOKUP(MONTH(A16),T!A$1:B$12,2,FALSE)) -> Juni | K8: =IF(A16="","",A16-A15) -> 30 | L8: 0.2333333333 | N8: =IF(A16="","",VLOOKUP(MONTH(A16),T!A$1:B$12,2,FALSE)) -> Juni | O8: =INDIRECT("'"&$N$1&"'!g16") -> 12 | P8: 0.5104210974 | Q8: =IF(A16="","",VLOOKUP(MONTH(A16),T!$A$1:$B$12,2,FALSE)) -> Juni | R8: 7 | S8: 0.3260363298 | T8: -5 | U8: -41.66666667 | V8: 2.669830911 | W8: 62.76772471
B9: i cm | C9: Liter | D9: Liter | F9: Liter | G9: Liter | J9: =IF(A17="","",VLOOKUP(MONTH(A17),T!A$1:B$12,2,FALSE)) -> Juli | K9: 31 | L9: 0 | N9: =IF(A17="","",VLOOKUP(MONTH(A17),T!A$1:B$12,2,FALSE)) -> Juli | O9: =INDIRECT("'"&$N$1&"'!g17") -> 0 | P9: 0 | Q9: =IF(A17="","",VLOOKUP(MONTH(A17),T!$A$1:$B$12,2,FALSE)) -> Juli | R9: 0 | S9: 0 | T9: 0 | U9: - | V9: 0.5932957579 | W9: 13.94838327
A10: =DATE(D1-1,12,31) -> 2013-12-31 | B10: =INDIRECT("'"&$N$1&"'!b22") -> 74.7 | C10: =IF(B10="","",IF(System!E$8=1,VLOOKUP(B10,Pejletabel!A$3:G$336,2,FALSE),IF(System!E$8=2,VLOOKUP(B10,Pejletabel!A$3:G$357,3,FALSE),IF(System!E$8=3,VLOOKUP(B10,Pejletabel!A$3:G$357,4,FALSE),IF(System!E$8=4,VLOOKUP(B10,Pejletabel!A$3:G$357,5,FALSE),IF(System!E8=5,VLOOKUP(B10,Pejletabel!A3:G358,6,FALSE),IF(System!E$8=6,VLOOKUP(B10,Pejletabel!A$3:G$357,7,FALSE)))))))) -> 884 | E10: =IF(C10<>"",SUM(C10:D10),"") -> 884 | F10: =IF(E10<>"",System!F$8-E10,"") -> 916 | J10: =IF(A18="","",VLOOKUP(MONTH(A18),T!A$1:B$12,2,FALSE)) -> August | K10: 31 | L10: 0 | N10: =IF(A18="","",VLOOKUP(MONTH(A18),T!A$1:B$12,2,FALSE)) -> August | O10: =INDIRECT("'"&$N$1&"'!g18") -> 0 | P10: 0 | Q10: =IF(A18="","",VLOOKUP(MONTH(A18),T!$A$1:$B$12,2,FALSE)) -> August | R10: 0 | S10: 0 | T10: 0 | U10: - | V10: 0.6822901216 | W10: 16.04064076
A11: =EDATE($A$10,ROW(1:1)) -> 2014-01-31 | B11: 42.7 | C11: =IF(B11="","",IF(System!E$8=1,VLOOKUP(B11,Pejletabel!A$3:G$336,2,FALSE),IF(System!E$8=2,VLOOKUP(B11,Pejletabel!A$3:G$357,3,FALSE),IF(System!E$8=3,VLOOKUP(B11,Pejletabel!A$3:G$357,4,FALSE),IF(System!E$8=4,VLOOKUP(B11,Pejletabel!A$3:G$357,5,FALSE),IF(System!E$8=5,VLOOKUP(B11,Pejletabel!A$3:G$357,6,FALSE),IF(System!E8=6,VLOOKUP(B11,Pejletabel!A3:G357,7,FALSE)))))))) -> 463 | E11: =IF(C11<>"",C11,"") -> 463 | F11: =IF(E11<>"",1800-E11,"") -> 1337 | G11: =IF(C11<>"",C10-C11+D11,"") -> 421 | J11: =IF(A19="","",VLOOKUP(MONTH(A19),T!A$1:B$12,2,FALSE)) -> September | K11: 30 | L11: 1.433333333 | N11: =IF(A19="","",VLOOKUP(MONTH(A19),T!A$1:B$12,2,FALSE)) -> September | O11: =INDIRECT("'"&$N$1&"'!g19") -> 0 | P11: 0 | Q11: =IF(A19="","",VLOOKUP(MONTH(A19),T!$A$1:$B$12,2,FALSE)) -> September | R11: 43 | S11: 2.002794597 | T11: 43 | U11: - | V11: 3.233461881 | W11: 76.01868882
A12: =EDATE($A$10,ROW(2:2)) -> 2014-02-28 | B12: 18.2 | C12: =IF(B12="","",IF(System!E$8=1,VLOOKUP(B12,Pejletabel!A$3:G$336,2,FALSE),IF(System!E$8=2,VLOOKUP(B12,Pejletabel!A$3:G$357,3,FALSE),IF(System!E$8=3,VLOOKUP(B12,Pejletabel!A$3:G$357,4,FALSE),IF(System!E$8=4,VLOOKUP(B12,Pejletabel!A$3:G$357,5,FALSE),IF(System!E$8=5,VLOOKUP(B12,Pejletabel!A$3:G$357,6,FALSE),IF(System!E13=6,VLOOKUP(B12,Pejletabel!A4:G358,7,FALSE)))))))) -> 148 | E12: =IF(C12<>"",C12,"") -> 148 | F12: =IF(E12<>"",1800-E12,"") -> 1652 | G12: =IF(C12<>"",C11-C12+D12,"") -> 315 | H12: 17/2 fyldt vand på fyret | J12: =IF(A20="","",VLOOKUP(MONTH(A20),T!A$1:B$12,2,FALSE)) -> Oktober | K12: 31 | L12: 5.193548387 | N12: =IF(A20="","",VLOOKUP(MONTH(A20),T!A$1:B$12,2,FALSE)) -> Oktober | O12: =INDIRECT("'"&$N$1&"'!g20") -> 181 | P12: 7.698851553 | Q12: =IF(A20="","",VLOOKUP(MONTH(A20),T!$A$1:$B$12,2,FALSE)) -> Oktober | R12: 161 | S12: 7.498835585 | T12: -20 | U12: -11.04972376 | V12: 6.76357164 | W12: 159.0115693
A13: =EDATE($A$10,ROW(3:3)) -> 2014-03-31 | B13: 72.7 | C13: =IF(B13="","",IF(System!E$8=1,VLOOKUP(B13,Pejletabel!A$3:G$336,2,FALSE),IF(System!E$8=2,VLOOKUP(B13,Pejletabel!A$3:G$357,3,FALSE),IF(System!E$8=3,VLOOKUP(B13,Pejletabel!A$3:G$357,4,FALSE),IF(System!E$8=4,VLOOKUP(B13,Pejletabel!A$3:G$357,5,FALSE),IF(System!E$8=5,VLOOKUP(B13,Pejletabel!A$3:G$357,6,FALSE),IF(System!E19=6,VLOOKUP(B13,Pejletabel!A5:G359,7,FALSE)))))))) -> 857 | D13: 1000 | E13: 857 | F13: 943 | G13: 291 | J13: =IF(A21="","",VLOOKUP(MONTH(A21),T!A$1:B$12,2,FALSE)) -> November | K13: 30 | L13: 9.5 | N13: =IF(A21="","",VLOOKUP(MONTH(A21),T!A$1:B$12,2,FALSE)) -> November | O13: =INDIRECT("'"&$N$1&"'!g21") -> 279 | P13: 11.86729051 | Q13: =IF(A21="","",VLOOKUP(MONTH(A21),T!$A$1:$B$12,2,FALSE)) -> November | R13: 285 | S13: 13.27433628 | T13: 6 | U13: 2.150537634 | V13: 10.0563631 | W13: 236.4250964
A14: 2014-04-30 | B14: 58.2 | C14: =IF(B14="","",IF(System!E$8=1,VLOOKUP(B14,Pejletabel!A$3:G$336,2,FALSE),IF(System!E$8=2,VLOOKUP(B14,Pejletabel!A$3:G$357,3,FALSE),IF(System!E$8=3,VLOOKUP(B14,Pejletabel!A$3:G$357,4,FALSE),IF(System!E$8=4,VLOOKUP(B14,Pejletabel!A$3:G$357,5,FALSE),IF(System!E$8=5,VLOOKUP(B14,Pejletabel!A$3:G$357,6,FALSE),IF(System!E20=6,VLOOKUP(B14,Pejletabel!A6:G360,7,FALSE)))))))) -> 666 | E14: 666 | F14: 1134 | G14: 191 | H14: 12/4 fyldt vand på fyret | J14: =IF(A22="","",VLOOKUP(MONTH(A22),T!A$1:B$12,2,FALSE)) -> December | K14: 31 | L14: 11.03225806 | N14: =IF(A22="","",VLOOKUP(MONTH(A22),T!A$1:B$12,2,FALSE)) -> December | O14: =INDIRECT("'"&$N$1&"'!g22") -> 356 | P14: 15.14249256 | Q14: =IF(A22="","",VLOOKUP(MONTH(A22),T!$A$1:$B$12,2,FALSE)) -> December | R14: 342 | S14: 15.92920354 | T14: -14 | U14: -3.93258427 | V14: 13.58647286 | W14: 319.4179769
A15: 2014-05-31 | B15: 51.2 | C15: =IF(B15="","",IF(System!E$8=1,VLOOKUP(B15,Pejletabel!A$3:G$336,2,FALSE),IF(System!E$8=2,VLOOKUP(B15,Pejletabel!A$3:G$357,3,FALSE),IF(System!E$8=3,VLOOKUP(B15,Pejletabel!A$3:G$357,4,FALSE),IF(System!E$8=4,VLOOKUP(B15,Pejletabel!A$3:G$357,5,FALSE),IF(System!E$8=5,VLOOKUP(B15,Pejletabel!A$3:G$357,6,FALSE),IF(System!E21=6,VLOOKUP(B15,Pejletabel!A7:G361,7,FALSE)))))))) -> 575 | E15: 575 | F15: 1225 | G15: 91 | H15: 30/4 fyldt vand på fyret
A16: 2014-06-30 | B16: 50.7 | C16: =IF(B16="","",IF(System!E$8=1,VLOOKUP(B16,Pejletabel!A$3:G$336,2,FALSE),IF(System!E$8=2,VLOOKUP(B16,Pejletabel!A$3:G$357,3,FALSE),IF(System!E$8=3,VLOOKUP(B16,Pejletabel!A$3:G$357,4,FALSE),IF(System!E$8=4,VLOOKUP(B16,Pejletabel!A$3:G$357,5,FALSE),IF(System!E$8=5,VLOOKUP(B16,Pejletabel!A$3:G$357,6,FALSE),IF(System!E22=6,VLOOKUP(B16,Pejletabel!A8:G362,7,FALSE)))))))) -> 568 | E16: 568 | F16: 1232 | G16: 7 | J16: Hele året | K16: =SUM(K3:K14) -> 365 | L16: =IFERROR(G23/K16,"") -> 5.882191781 | N16: Års Total | O16: =SUM(O3:O14) -> 2351 | P16: =SUM(P3:P14) -> 100 | R16: =G23 -> 2147 | T16: =IF(R16<>0,R16-O16,"") -> -204 | U16: =IF(R16<>0,T16/(O16/100),"") -> -8.677158656 | V16: =SUM(V3:V14) -> 100 | W16: =SUM(W3:W14) -> 2351
A17: 2014-07-31 | B17: 50.7 | C17: =IF(B17="","",IF(System!E$8=1,VLOOKUP(B17,Pejletabel!A$3:G$336,2,FALSE),IF(System!E$8=2,VLOOKUP(B17,Pejletabel!A$3:G$357,3,FALSE),IF(System!E$8=3,VLOOKUP(B17,Pejletabel!A$3:G$357,4,FALSE),IF(System!E$8=4,VLOOKUP(B17,Pejletabel!A$3:G$357,5,FALSE),IF(System!E$8=5,VLOOKUP(B17,Pejletabel!A$3:G$357,6,FALSE),IF(System!E23=6,VLOOKUP(B17,Pejletabel!A9:G363,7,FALSE)))))))) -> 568 | E17: 568 | F17: 1232 | G17: 0
A18: 2014-08-31 | B18: 50.7 | C18: =IF(B18="","",IF(System!E$8=1,VLOOKUP(B18,Pejletabel!A$3:G$336,2,FALSE),IF(System!E$8=2,VLOOKUP(B18,Pejletabel!A$3:G$357,3,FALSE),IF(System!E$8=3,VLOOKUP(B18,Pejletabel!A$3:G$357,4,FALSE),IF(System!E$8=4,VLOOKUP(B18,Pejletabel!A$3:G$357,5,FALSE),IF(System!E$8=5,VLOOKUP(B18,Pejletabel!A$3:G$357,6,FALSE),IF(System!E24=6,VLOOKUP(B18,Pejletabel!A10:G364,7,FALSE)))))))) -> 568 | E18: 568 | F18: 1232 | G18: 0 | H18: 29/8 fyldt vand på fyret | J18: Vand | N18: =N1 -> 2013 | Q18: =Q1 -> 2014 | T18: +/- | U18: % | V18: Forventet forbrug
A19: 2014-09-30 | B19: 47.5 | C19: =IF(B19="","",IF(System!E$8=1,VLOOKUP(B19,Pejletabel!A$3:G$336,2,FALSE),IF(System!E$8=2,VLOOKUP(B19,Pejletabel!A$3:G$357,3,FALSE),IF(System!E$8=3,VLOOKUP(B19,Pejletabel!A$3:G$357,4,FALSE),IF(System!E$8=4,VLOOKUP(B19,Pejletabel!A$3:G$357,5,FALSE),IF(System!E$8=5,VLOOKUP(B19,Pejletabel!A$3:G$357,6,FALSE),IF(System!E25=6,VLOOKUP(B19,Pejletabel!A11:G365,7,FALSE)))))))) -> 525 | E19: 525 | F19: 1275 | G19: 43 | H19: Tændt fyret 22/9 | J19: Måned | K19: Dage | L19: m³ pr. dag | N19: Vand | O19: m³ | R19: m³ | T19: m³ | V19: % | W19: m³
A20: 2014-10-31 | B20: 35.2 | C20: =IF(B20="","",IF(System!E$8=1,VLOOKUP(B20,Pejletabel!A$3:G$336,2,FALSE),IF(System!E$8=2,VLOOKUP(B20,Pejletabel!A$3:G$357,3,FALSE),IF(System!E$8=3,VLOOKUP(B20,Pejletabel!A$3:G$357,4,FALSE),IF(System!E$8=4,VLOOKUP(B20,Pejletabel!A$3:G$357,5,FALSE),IF(System!E$8=5,VLOOKUP(B20,Pejletabel!A$3:G$357,6,FALSE),IF(System!E26=6,VLOOKUP(B20,Pejletabel!A12:G366,7,FALSE)))))))) -> 364 | E20: 364 | F20: 1436 | G20: 161 | J20: =IF(A29="","",VLOOKUP(MONTH(A29),T!A$1:B$12,2,FALSE)) -> Januar | K20: =A29-A28 -> 31 | L20: =IF(D29<>"",D29/K20,"") -> 0.2258064516 | N20: =IF(A29="","",VLOOKUP(MONTH(A29),T!A$1:B$12,2,FALSE)) -> Januar | O20: =INDIRECT("'"&$N$1&"'!d29") -> 7 | Q20: Januar | R20: =D29 -> 7 | T20: =IF(R20<>"",R20-O20,"") -> 0 | U20: =IF(T20<>"",T20/(O20/100),"") -> 0 | V20: =IF(A29="","",VLOOKUP(MONTH(A29),'Beregn varme 2015'!A$2:I$13,9,FALSE)) -> 8.493150685 | W20: =IF(R20="","",O$33*V20%) -> 6.369863014
A21: 2014-11-30 | B21: 128 | C21: =IF(B21="","",IF(System!E$8=1,VLOOKUP(B21,Pejletabel!A$3:G$336,2,FALSE),IF(System!E$8=2,VLOOKUP(B21,Pejletabel!A$3:G$357,3,FALSE),IF(System!E$8=3,VLOOKUP(B21,Pejletabel!A$3:G$357,4,FALSE),IF(System!E$8=4,VLOOKUP(B21,Pejletabel!A$3:G$357,5,FALSE),IF(System!E$8=5,VLOOKUP(B21,Pejletabel!A$3:G$357,6,FALSE),IF(System!E27=6,VLOOKUP(B21,Pejletabel!A13:G367,7,FALSE)))))))) -> 1582 | D21: 1503 | E21: 1582 | F21: =IF(E21<>"",1800-E21,"") -> 218 | G21: 285 | J21: =IF(A30="","",VLOOKUP(MONTH(A30),T!A$1:B$12,2,FALSE)) -> Februar | K21: =IF(A30="","",A30-A29) -> 28 | L21: 0.2142857143 | N21: =IF(A30="","",VLOOKUP(MONTH(A30),T!A$1:B$12,2,FALSE)) -> Februar | O21: =INDIRECT("'"&$N$1&"'!d30") -> 7 | Q21: Februar | R21: 6 | T21: =IF(R21<>"",R21-O21,"") -> -1 | U21: =IF(T21<>"",T21/(O21/100),"") -> -14.28571429 | V21: =IF(A30="","",VLOOKUP(MONTH(A30),'Beregn varme 2015'!A$2:I$13,9,FALSE)) -> 7.671232877 | W21: =IF(R21="","",O$33*V21%) -> 5.753424658
A22: 2014-12-31 | B22: 101.7 | C22: =IF(B22="","",IF(System!E$8=1,VLOOKUP(B22,Pejletabel!A$3:G$336,2,FALSE),IF(System!E$8=2,VLOOKUP(B22,Pejletabel!A$3:G$357,3,FALSE),IF(System!E$8=3,VLOOKUP(B22,Pejletabel!A$3:G$357,4,FALSE),IF(System!E$8=4,VLOOKUP(B22,Pejletabel!A$3:G$357,5,FALSE),IF(System!E$8=5,VLOOKUP(B22,Pejletabel!A$3:G$357,6,FALSE),IF(System!E28=6,VLOOKUP(B22,Pejletabel!A14:G368,7,FALSE)))))))) -> 1240 | E22: 1240 | F22: =IF(E22<>"",1800-E22,"") -> 560 | G22: 342 | J22: =IF(A31="","",VLOOKUP(MONTH(A31),T!A$1:B$12,2,FALSE)) -> Marts | K22: =IF(A31="","",A31-A30) -> 31 | L22: 0.2258064516 | N22: =IF(A31="","",VLOOKUP(MONTH(A31),T!A$1:B$12,2,FALSE)) -> Marts | O22: =INDIRECT("'"&$N$1&"'!d31") -> 8 | Q22: Marts | R22: 7 | T22: -1 | U22: -12.5 | V22: =IF(A31="","",VLOOKUP(MONTH(A31),'Beregn varme 2015'!A$2:I$13,9,FALSE)) -> 8.493150685 | W22: 6.369863014
E23: Års forbrug | G23: =SUM(G11:G22) -> 2147 | J23: =IF(A32="","",VLOOKUP(MONTH(A32),T!A$1:B$12,2,FALSE)) -> April | K23: =IF(A32="","",A32-A31) -> 30 | L23: 0.2 | N23: =IF(A32="","",VLOOKUP(MONTH(A32),T!A$1:B$12,2,FALSE)) -> April | O23: =INDIRECT("'"&$N$1&"'!d32") -> 5 | Q23: April | R23: 6 | T23: 1 | U23: 20 | V23: =IF(A32="","",VLOOKUP(MONTH(A32),'Beregn varme 2015'!A$2:I$13,9,FALSE)) -> 8.219178082 | W23: 6.164383562
A24: MÅNEDLIG AFLÆSNING AF VANDMÅLER | E24: MÅNEDLIG AFLÆSNING AF ELMÅLER | H24: Bemærkning: | J24: =IF(A33="","",VLOOKUP(MONTH(A33),T!A$1:B$12,2,FALSE)) -> Maj | K24: =IF(A33="","",A33-A32) -> 31 | L24: 0.2258064516 | N24: =IF(A33="","",VLOOKUP(MONTH(A33),T!A$1:B$12,2,FALSE)) -> Maj | O24: =INDIRECT("'"&$N$1&"'!d33") -> 6 | Q24: Maj | R24: 7 | T24: 1 | U24: 16.66666667 | V24: =IF(A33="","",VLOOKUP(MONTH(A33),'Beregn varme 2015'!A$2:I$13,9,FALSE)) -> 8.493150685 | W24: 6.369863014
J25: =IF(A34="","",VLOOKUP(MONTH(A34),T!A$1:B$12,2,FALSE)) -> Juni | K25: =IF(A34="","",A34-A33) -> 30 | L25: 0.2 | N25: Juni | O25: =INDIRECT("'"&$N$1&"'!d34") -> 6 | Q25: Juni | R25: 6 | T25: 0 | U25: =IF(T25<>"",T25/(O25/100)," - ") -> 0 | V25: =IF(A34="","",VLOOKUP(MONTH(A34),'Beregn varme 2015'!A$2:I$13,9,FALSE)) -> 8.219178082 | W25: 6.164383562
A26: Dato | B26: Aflæst | D26: Forbrug | E26: Dato | F26: Aflæst | G26: Forbrug | J26: =IF(A35="","",VLOOKUP(MONTH(A35),T!A$1:B$12,2,FALSE)) -> Juli | K26: =IF(A35="","",A35-A34) -> 31 | L26: 0.2258064516 | N26: Juli | O26: =INDIRECT("'"&$N$1&"'!d34") -> 6 | Q26: Juli | R26: 7 | T26: 1 | U26: =IF(T26<>"",T26/(O26/100)," - ") -> 16.66666667 | V26: =IF(A35="","",VLOOKUP(MONTH(A35),'Beregn varme 2015'!A$2:I$13,9,FALSE)) -> 8.493150685 | W26: 6.369863014
B27: m³ | D27: m³ | F27: KWh | G27: KWh | J27: =IF(A36="","",VLOOKUP(MONTH(A36),T!A$1:B$12,2,FALSE)) -> August | K27: 31 | L27: 0.2258064516 | N27: August | O27: =INDIRECT("'"&$N$1&"'!d34") -> 6 | Q27: August | R27: 7 | T27: 1 | U27: 16.66666667 | V27: =IF(A36="","",VLOOKUP(MONTH(A36),'Beregn varme 2015'!A$2:I$13,9,FALSE)) -> 8.493150685 | W27: 6.369863014
A28: =DATE(D1-1,12,31) -> 2013-12-31 | B28: =INDIRECT("'"&$N$1&"'!b40") -> 1685 | E28: =DATE(D1-1,12,31) -> 2013-12-31 | F28: =INDIRECT("'"&$N$1&"'!f40") -> 25340 | J28: =IF(A37="","",VLOOKUP(MONTH(A37),T!A$1:B$12,2,FALSE)) -> September | K28: 30 | L28: 0.2333333333 | N28: September | O28: 6 | Q28: September | R28: 7 | T28: 1 | U28: 16.66666667 | V28: =IF(A37="","",VLOOKUP(MONTH(A37),'Beregn varme 2015'!A$2:I$13,9,FALSE)) -> 8.219178082 | W28: 6.164383562
A29: =EDATE($A$28,ROW(1:1)) -> 2014-01-31 | B29: 1692 | D29: =IF(B29<>"",B29-B28,"") -> 7 | E29: =EDATE($E$28,ROW(1:1)) -> 2014-01-31 | F29: 25837 | G29: =IF(F29<>"",F29-F28,"") -> 497 | J29: =IF(A38="","",VLOOKUP(MONTH(A38),T!A$1:B$12,2,FALSE)) -> Oktober | K29: 31 | L29: 0.1935483871 | N29: Oktober | O29: 6 | Q29: Oktober | R29: 6 | T29: 0 | U29: 0 | V29: =IF(A38="","",VLOOKUP(MONTH(A38),'Beregn varme 2015'!A$2:I$13,9,FALSE)) -> 8.493150685 | W29: 6.369863014
A30: =EDATE($A$28,ROW(2:2)) -> 2014-02-28 | B30: 1698 | D30: =IF(B30<>"",B30-B29,"") -> 6 | E30: =EDATE($E$28,ROW(2:2)) -> 2014-02-28 | F30: 26244 | G30: 407 | J30: =IF(A39="","",VLOOKUP(MONTH(A39),T!A$1:B$12,2,FALSE)) -> November | K30: 30 | L30: 0.2 | N30: November | O30: 6 | Q30: November | R30: 6 | T30: 0 | U30: 0 | V30: =IF(A39="","",VLOOKUP(MONTH(A39),'Beregn varme 2015'!A$2:I$13,9,FALSE)) -> 8.219178082 | W30: 6.164383562
A31: =EDATE($A$28,ROW(3:3)) -> 2014-03-31 | B31: 1705 | D31: 7 | E31: 2014-03-31 | F31: 26651 | G31: 407 | J31: =IF(A40="","",VLOOKUP(MONTH(A40),T!A$1:B$12,2,FALSE)) -> December | K31: 31 | L31: 0.2258064516 | N31: December | O31: 6 | Q31: December | R31: 7 | T31: 1 | U31: 16.66666667 | V31: =IF(A40="","",VLOOKUP(MONTH(A40),'Beregn varme 2015'!A$2:I$13,9,FALSE)) -> 8.493150685 | W31: 6.369863014
A32: 2014-04-30 | B32: 1711 | D32: 6 | E32: 2014-04-30 | F32: 27016 | G32: 365
A33: 2014-05-31 | B33: 1718 | D33: 7 | E33: 2014-05-31 | F33: 27393 | G33: 377 | J33: Hele året | K33: =SUM(K20:K31) -> 365 | L33: =IFERROR(D41/K33,"") -> 0.2164383562 | N33: Års Total | O33: =SUM(O20:O31) -> 75 | R33: =D41 -> 79 | T33: =IF(R33<>0,R33-O33,"") -> 4 | U33: =IF(T33<>"",T33/(O33/100),"") -> 5.333333333 | V33: =SUM(V20:V31) -> 100 | W33: =SUM(W20:W31) -> 75
A34: 2014-06-30 | B34: 1724 | D34: 6 | E34: 2014-06-30 | F34: 27733 | G34: 340
A35: 2014-07-31 | B35: 1731 | D35: 7 | E35: 2014-07-31 | F35: 28090 | G35: 357 | J35: EL | N35: =N1-1&"/"&N1 -> 2012/2013 | Q35: =N1&"/"&Q1 -> 2013/2014 | T35: +/- | U35: % | V35: Forventet forbrug
A36: 2014-08-31 | B36: 1738 | D36: 7 | E36: 2014-08-31 | F36: 28465 | G36: 375 | J36: Måned | K36: Dage | L36: KWh pr. dag | N36: EL | O36: KWh | R36: KWh | T36: KWh | V36: % | W36: KWh
A37: 2014-09-30 | B37: 1745 | D37: 7 | E37: 2014-09-30 | F37: 28841 | G37: 376 | J37: =IF(E29="","",VLOOKUP(MONTH('2013'!E36),T!A$1:B$12,2,FALSE)) -> August | K37: =E29-E28 -> 31 | L37: =IF(G29<>"",G29/K37,"") -> 16.03225806 | N37: =J37 -> August | O37: =INDIRECT("'"&$N$1-1&"'!g36") -> 382 | Q37: =J37 -> August | R37: =INDIRECT("'"&$N$1&"'!g36") -> 362 | T37: =IF(R37="","",R37-O37) -> -20 | U37: =IF(R37<>"",T37/(O37/100),"") -> -5.235602094 | V37: =IF(E29="","",VLOOKUP(MONTH(E29),'Beregn varme 2015'!A$2:J$13,10,FALSE)) -> 10 | W37: =IF(R37="","",O$50/100*V37) -> 539.7 | X37: =DATE(N1,Setup!D4+1,Setup!C4) -> 2013-08-31
A38: 2014-10-31 | B38: 1751 | D38: 6 | E38: 2014-10-31 | F38: 29242 | G38: 401 | J38: =IF(E30="","",VLOOKUP(MONTH('2013'!E37),T!A$1:B$12,2,FALSE)) -> September | K38: =E30-E29 -> 28 | L38: 14.53571429 | N38: =J38 -> September | O38: =INDIRECT("'"&$N$1-1&"'!g37") -> 423 | Q38: =J38 -> September | R38: =INDIRECT("'"&$N$1&"'!g37") -> 417 | T38: =IF(R38<>"",R38-O38,"") -> -6 | U38: =IF(R38<>"",T38/(O38/100),"") -> -1.418439716 | V38: =IF(E30="","",VLOOKUP(MONTH(E30),'Beregn varme 2015'!A$2:J$13,10,FALSE)) -> 9 | W38: 485.73
A39: 2014-11-30 | B39: 1757 | D39: 6 | E39: 2014-11-30 | F39: 29675 | G39: 433 | J39: =IF(E31="","",VLOOKUP(MONTH('2013'!E38),T!A$1:B$12,2,FALSE)) -> Oktober | K39: =IF(E31="","",E31-E30) -> 31 | L39: 13.12903226 | N39: Oktober | O39: =INDIRECT("'"&$N$1-1&"'!g38") -> 481 | Q39: Oktober | R39: =INDIRECT("'"&$N$1&"'!g38") -> 403 | T39: =IF(R39<>"",R39-O39,"") -> -78 | U39: =IF(R39<>"",T39/(O39/100),"") -> -16.21621622 | V39: =IF(E31="","",VLOOKUP(MONTH(E31),'Beregn varme 2015'!A$2:J$13,10,FALSE)) -> 9 | W39: 485.73
A40: 2014-12-31 | B40: 1764 | D40: 7 | E40: 2014-12-31 | F40: 30188 | G40: 513 | J40: =IF(E32="","",VLOOKUP(MONTH('2013'!E39),T!A$1:B$12,2,FALSE)) -> November | K40: 30 | L40: 12.16666667 | N40: November | O40: =INDIRECT("'"&$N$1-1&"'!g39") -> 432 | Q40: November | R40: =INDIRECT("'"&$N$1&"'!g39") -> 389 | T40: =IF(R40<>"",R40-O40,"") -> -43 | U40: =IF(R40<>"",T40/(O40/100),"") -> -9.953703704 | V40: =IF(E32="","",VLOOKUP(MONTH(E32),'Beregn varme 2015'!A$2:J$13,10,FALSE)) -> 8 | W40: 431.76
A41: Års forbrug | D41: =SUM(D29:D34,D35:D40) -> 79 | E41: Års forbrug | G41: =SUM(G29:G34,G35:G40) -> 4848 | J41: =IF(E33="","",VLOOKUP(MONTH('2013'!E40),T!A$1:B$12,2,FALSE)) -> December | K41: 31 | L41: 12.16129032 | N41: December | O41: =INDIRECT("'"&$N$1-1&"'!g40") -> 494 | Q41: December | R41: =INDIRECT("'"&$N$1&"'!g40") -> 447 | T41: =IF(R41<>"",R41-O41,"") -> -47 | U41: =IF(R41<>"",T41/(O41/100),"") -> -9.51417004 | V41: =IF(E33="","",VLOOKUP(MONTH(E33),'Beregn varme 2015'!A$2:J$13,10,FALSE)) -> 8 | W41: 431.76
J42: =IF(E34="","",VLOOKUP(MONTH(E29),T!A$1:B$12,2,FALSE)) -> Januar | K42: 30 | L42: 11.33333333 | N42: Januar | O42: =INDIRECT("'"&$N$1&"'!g29") -> 505 | Q42: Januar | R42: =INDIRECT("'"&$Q$1&"'!g29") -> 497 | T42: =IF(R42<>"",R42-O42,"") -> -8 | U42: -1.584158416 | V42: =IF(E34="","",VLOOKUP(MONTH(E34),'Beregn varme 2015'!A$2:J$13,10,FALSE)) -> 7 | W42: 377.79
J43: =IF(E35="","",VLOOKUP(MONTH(E30),T!A$1:B$12,2,FALSE)) -> Februar | K43: 31 | L43: 11.51612903 | N43: Februar | O43: =INDIRECT("'"&$N$1&"'!g30") -> 478 | Q43: Februar | R43: =INDIRECT("'"&$Q$1&"'!g30") -> 407 | T43: -71 | U43: -14.85355649 | V43: =IF(E35="","",VLOOKUP(MONTH(E35),'Beregn varme 2015'!A$2:J$13,10,FALSE)) -> 6 | W43: 323.82
J44: =IF(E36="","",VLOOKUP(MONTH(E31),T!A$1:B$12,2,FALSE)) -> Marts | K44: 31 | L44: 12.09677419 | N44: Marts | O44: =INDIRECT("'"&$N$1&"'!g31") -> 554 | Q44: Marts | R44: =INDIRECT("'"&$Q$1&"'!g31") -> 407 | T44: -147 | U44: -26.53429603 | V44: =IF(E36="","",VLOOKUP(MONTH(E36),'Beregn varme 2015'!A$2:J$13,10,FALSE)) -> 7 | W44: 377.79
J45: =IF(E37="","",VLOOKUP(MONTH(E32),T!A$1:B$12,2,FALSE)) -> April | K45: 30 | L45: 12.53333333 | N45: April | O45: =INDIRECT("'"&$N$1&"'!g32") -> 450 | Q45: April | R45: =INDIRECT("'"&$Q$1&"'!g32") -> 365 | T45: -85 | U45: -18.88888889 | V45: =IF(E37="","",VLOOKUP(MONTH(E37),'Beregn varme 2015'!A$2:J$13,10,FALSE)) -> 7 | W45: 377.79
J46: =IF(E38="","",VLOOKUP(MONTH(E33),T!A$1:B$12,2,FALSE)) -> Maj | K46: 31 | L46: 12.93548387 | N46: Maj | O46: =INDIRECT("'"&$N$1&"'!g33") -> 449 | Q46: Maj | R46: =INDIRECT("'"&$Q$1&"'!g33") -> 377 | T46: -72 | U46: -16.03563474 | V46: =IF(E38="","",VLOOKUP(MONTH(E38),'Beregn varme 2015'!A$2:J$13,10,FALSE)) -> 9 | W46: 485.73
J47: =IF(E39="","",VLOOKUP(MONTH(E34),T!A$1:B$12,2,FALSE)) -> Juni | K47: 30 | L47: 14.43333333 | N47: Juni | O47: =INDIRECT("'"&$N$1&"'!g34") -> 376 | Q47: Juni | R47: =INDIRECT("'"&$Q$1&"'!g34") -> 340 | T47: -36 | U47: -9.574468085 | V47: =IF(E39="","",VLOOKUP(MONTH(E39),'Beregn varme 2015'!A$2:J$13,10,FALSE)) -> 9 | W47: 485.73
J48: =IF(E40="","",VLOOKUP(MONTH(E35),T!A$1:B$12,2,FALSE)) -> Juli | K48: 31 | L48: 16.5483871 | N48: =J48 -> Juli | O48: =INDIRECT("'"&$N$1&"'!g35") -> 373 | Q48: =J48 -> Juli | R48: =INDIRECT("'"&$Q$1&"'!g35") -> 357 | T48: -16 | U48: =IF(R48<>"",T48/(R48/100),"") -> -4.481792717 | V48: =IF(E40="","",VLOOKUP(MONTH(E40),'Beregn varme 2015'!A$2:J$13,10,FALSE)) -> 11 | W48: 593.67
J50: Hele året | K50: =SUM(K37:K48) -> 365 | L50: =IFERROR(G41/K50,"") -> 13.28219178 | N50: Års Total | O50: =SUM(O37:O48) -> 5397 | R50: =SUM(R37:R48) -> 4768 | T50: =IF(R50<>0,R50-O50,"") -> -629 | U50: =IF(T50<>"",T50/(O50/100),"") -> -11.65462294 | V50: =SUM(V37:V48) -> 100 | W50: =SUM(W37:W48) -> 5397

Sheet 2013
N1: 2012 | Q1: 2013 | T1: +/- | U1: % | V1: Forventet forbrug
A2: =System!A19 -> Version: 2.0.2 / Bjarne Hansen | J2: Olie | K2: Dage | L2: Liter pr dag | N2: Olie | O2: Liter | P2: % | R2: Liter | S2: % | T2: Liter | V2: % | W2: Liter
A3: Aflæsningsskema til Olieforbrug samt EL og Vand | J3: =IF(A11="","",VLOOKUP(MONTH(A11),T!A$1:B$12,2,FALSE)) -> Januar | K3: =A11-A10 -> 31 | L3: =IF(G11<>"",G11/K3,"") -> 16.09677419 | N3: =IF(A11="","",VLOOKUP(MONTH(A11),T!$A$1:$B$12,2,FALSE)) -> Januar | O3: ='2012'!G11 -> 362 | P3: =IF(O3="","",O3/(O$16/100)) -> 16.22590766 | Q3: =IF(A11="","",VLOOKUP(MONTH(A11),T!$A$1:$B$12,2,FALSE)) -> Januar | R3: =G11 -> 499 | S3: =IF(R3="","",R3/(R$16/100)) -> 21.22501063 | T3: =IF(R3<>"",R3-O3,"") -> 137 | U3: =IF(OR(R3="",T3=0),"",IF(O3<>0,T3/(O3/100),"")) -> 37.84530387 | V3: =IF(A11="","",VLOOKUP(MONTH(A11),'Beregn varme 2013'!A$2:G$13,7,FALSE)) -> 13.90884055 | W3: =IF(R3="","",VLOOKUP(MONTH(A11),'Beregn varme 2011'!A$2:F$13,6,FALSE)) -> 226.2947524
A4: Navn : | B4: Bjarne Hansen, Lyrsbyvej 31 | J4: =IF(A12="","",VLOOKUP(MONTH(A12),T!A$1:B$12,2,FALSE)) -> Februar | K4: =IF(A12="","",A12-A11) -> 28 | L4: 13.53571429 | N4: =IF(A12="","",VLOOKUP(MONTH(A12),T!A$1:B$12,2,FALSE)) -> Februar | O4: ='2012'!G12 -> 388 | P4: 17.39130435 | Q4: =IF(A12="","",VLOOKUP(MONTH(A12),T!$A$1:$B$12,2,FALSE)) -> Februar | R4: 379 | S4: 16.12079966 | T4: =IF(R4<>"",R4-O4,"") -> -9 | U4: =IF(OR(R4="",T4=0),"",IF(O4<>0,T4/(O4/100),"")) -> -2.319587629 | V4: =IF(A12="","",VLOOKUP(MONTH(A12),'Beregn varme 2013'!A$2:G$13,7,FALSE)) -> 12.81307613 | W4: =IF(R4="","",VLOOKUP(MONTH(A12),'Beregn varme 2011'!A$2:F$13,6,FALSE)) -> 206.4526238
A5: Tankstørrelse: | C5: =System!F8 -> 1800 | D5: Liter | J5: =IF(A13="","",VLOOKUP(MONTH(A13),T!A$1:B$12,2,FALSE)) -> Marts | K5: 31 | L5: 12.67741935 | N5: =IF(A13="","",VLOOKUP(MONTH(A13),T!A$1:B$12,2,FALSE)) -> Marts | O5: ='2012'!G13 -> 260 | P5: 11.65396683 | Q5: =IF(A13="","",VLOOKUP(MONTH(A13),T!$A$1:$B$12,2,FALSE)) -> Marts | R5: 393 | S5: 16.71629094 | T5: 133 | U5: 51.15384615 | V5: =IF(A13="","",VLOOKUP(MONTH(A13),'Beregn varme 2013'!A$2:G$13,7,FALSE)) -> 12.70564824 | W5: =IF(R5="","",VLOOKUP(MONTH(A13),'Beregn varme 2011'!A$2:F$13,6,FALSE)) -> 204.5073171
A6: MÅNEDLIG PEJLING AF OLIETANK | J6: =IF(A14="","",VLOOKUP(MONTH(A14),T!A$1:B$12,2,FALSE)) -> April | K6: 30 | L6: 7.133333333 | N6: =IF(A14="","",VLOOKUP(MONTH(A14),T!A$1:B$12,2,FALSE)) -> April | O6: ='2012'!G14 -> 201 | P6: 9.009412819 | Q6: =IF(A14="","",VLOOKUP(MONTH(A14),T!$A$1:$B$12,2,FALSE)) -> April | R6: 214 | S6: 9.10250957 | T6: 13 | U6: 6.467661692 | V6: =IF(A14="","",VLOOKUP(MONTH(A14),'Beregn varme 2013'!A$2:G$13,7,FALSE)) -> 8.838244392 | W6: =IF(R6="","",VLOOKUP(MONTH(A14),'Beregn varme 2011'!A$2:F$13,6,FALSE)) -> 134.4762749
J7: =IF(A15="","",VLOOKUP(MONTH(A15),T!A$1:B$12,2,FALSE)) -> Maj | K7: 31 | L7: 1.225806452 | N7: =IF(A15="","",VLOOKUP(MONTH(A15),T!A$1:B$12,2,FALSE)) -> Maj | O7: ='2012'!G15 -> 82 | P7: 3.675481847 | Q7: =IF(A15="","",VLOOKUP(MONTH(A15),T!$A$1:$B$12,2,FALSE)) -> Maj | R7: 38 | S7: 1.616333475 | T7: -44 | U7: -53.65853659 | V7: =IF(A15="","",VLOOKUP(MONTH(A15),'Beregn varme 2013'!A$2:G$13,7,FALSE)) -> 4.734499194 | W7: =IF(R7="","",VLOOKUP(MONTH(A15),'Beregn varme 2011'!A$2:F$13,6,FALSE)) -> 60.16555802
A8: Dato | B8: Pejling | D8: Fyldt på | E8: Beholdning | F8: Plads til | G8: Forbrug | H8: Bemærkning: | J8: =IF(A16="","",VLOOKUP(MONTH(A16),T!A$1:B$12,2,FALSE)) -> Juni | K8: 30 | L8: 0.4 | N8: =IF(A16="","",VLOOKUP(MONTH(A16),T!A$1:B$12,2,FALSE)) -> Juni | O8: ='2012'!G16 -> 43 | P8: 1.927386822 | Q8: =IF(A16="","",VLOOKUP(MONTH(A16),T!$A$1:$B$12,2,FALSE)) -> Juni | R8: 12 | S8: 0.5104210974 | T8: -31 | U8: -72.09302326 | V8: =IF(A16="","",VLOOKUP(MONTH(A16),'Beregn varme 2013'!A$2:G$13,7,FALSE)) -> 3.488335731 | W8: =IF(R8="","",VLOOKUP(MONTH(A16),'Beregn varme 2011'!A$2:F$13,6,FALSE)) -> 37.6
B9: i cm | C9: Liter | D9: Liter | F9: Liter | G9: Liter | J9: =IF(A17="","",VLOOKUP(MONTH(A17),T!A$1:B$12,2,FALSE)) -> Juli | K9: 31 | L9: 0 | N9: =IF(A17="","",VLOOKUP(MONTH(A17),T!A$1:B$12,2,FALSE)) -> Juli | O9: ='2012'!G17 -> 6 | P9: 0.2689376961 | Q9: =IF(A17="","",VLOOKUP(MONTH(A17),T!$A$1:$B$12,2,FALSE)) -> Juli | R9: 0 | S9: 0 | T9: -6 | U9: =IF(OR(R9="",T9=0),"",IF(O9<>0,T9/(O9/100),"")) -> -100 | V9: =IF(A17="","",VLOOKUP(MONTH(A17),'Beregn varme 2013'!A$2:G$13,7,FALSE)) -> 3.488335731 | W9: =IF(R9="","",VLOOKUP(MONTH(A17),'Beregn varme 2011'!A$2:F$13,6,FALSE)) -> 37.6
A10: 2012-12-31 | B10: ='2012'!B22 -> 58.5 | C10: =IF(B10="","",IF(System!E$8=1,VLOOKUP(B10,Pejletabel!A$3:G$336,2,FALSE),IF(System!E$8=2,VLOOKUP(B10,Pejletabel!A$3:G$357,3,FALSE),IF(System!E$8=3,VLOOKUP(B10,Pejletabel!A$3:G$357,4,FALSE),IF(System!E$8=4,VLOOKUP(B10,Pejletabel!A$3:G$357,5,FALSE),IF(System!E8=5,VLOOKUP(B10,Pejletabel!A3:G358,6,FALSE),IF(System!E$8=6,VLOOKUP(B10,Pejletabel!A$3:G$357,7,FALSE)))))))) -> 670 | E10: =IF(C10<>"",SUM(C10:D10),"") -> 670 | F10: =IF(E10<>"",System!F$8-E10,"") -> 1130 | J10: =IF(A18="","",VLOOKUP(MONTH(A18),T!A$1:B$12,2,FALSE)) -> August | K10: 31 | L10: 0 | N10: =IF(A18="","",VLOOKUP(MONTH(A18),T!A$1:B$12,2,FALSE)) -> August | O10: ='2012'!G18 -> 0 | P10: 0 | Q10: =IF(A18="","",VLOOKUP(MONTH(A18),T!$A$1:$B$12,2,FALSE)) -> August | R10: 0 | S10: 0 | T10: 0 | U10: =IF(OR(R10="",T10=0),"",IF(O10<>0,T10/(O10/100),"")) ->  | V10: =IF(A18="","",VLOOKUP(MONTH(A18),'Beregn varme 2013'!A$2:G$13,7,FALSE)) -> 3.488335731 | W10: =IF(R10="","",VLOOKUP(MONTH(A18),'Beregn varme 2011'!A$2:F$13,6,FALSE)) -> 37.6
A11: 2013-01-31 | B11: 20.2 | C11: =IF(B11="","",IF(System!E$8=1,VLOOKUP(B11,Pejletabel!A$3:G$336,2,FALSE),IF(System!E$8=2,VLOOKUP(B11,Pejletabel!A$3:G$357,3,FALSE),IF(System!E$8=3,VLOOKUP(B11,Pejletabel!A$3:G$357,4,FALSE),IF(System!E$8=4,VLOOKUP(B11,Pejletabel!A$3:G$357,5,FALSE),IF(System!E$8=5,VLOOKUP(B11,Pejletabel!A$3:G$357,6,FALSE),IF(System!E8=6,VLOOKUP(B11,Pejletabel!A3:G357,7,FALSE)))))))) -> 171 | D11: 1004 | E11: =IF(C11<>"",C11+D11,"") -> 1175 | F11: =IF(E11<>"",1800-E11,"") -> 625 | G11: =IF(C11<>"",E10-C11,"") -> 499 | J11: =IF(A19="","",VLOOKUP(MONTH(A19),T!A$1:B$12,2,FALSE)) -> September | K11: 30 | L11: 0 | N11: =IF(A19="","",VLOOKUP(MONTH(A19),T!A$1:B$12,2,FALSE)) -> September | O11: ='2012'!G19 -> 73 | P11: 3.272075303 | Q11: =IF(A19="","",VLOOKUP(MONTH(A19),T!$A$1:$B$12,2,FALSE)) -> September | R11: 0 | S11: 0 | T11: -73 | U11: =IF(OR(R11="",T11=0),"",IF(O11<>0,T11/(O11/100),"")) -> -100 | V11: =IF(A19="","",VLOOKUP(MONTH(A19),'Beregn varme 2013'!A$2:G$13,7,FALSE)) -> 4.046960732 | W11: =IF(R11="","",VLOOKUP(MONTH(A19),'Beregn varme 2011'!A$2:F$13,6,FALSE)) -> 47.71559497
A12: 2013-02-28 | B12: 68 | C12: =IF(B12="","",IF(System!E$8=1,VLOOKUP(B12,Pejletabel!A$3:G$336,2,FALSE),IF(System!E$8=2,VLOOKUP(B12,Pejletabel!A$3:G$357,3,FALSE),IF(System!E$8=3,VLOOKUP(B12,Pejletabel!A$3:G$357,4,FALSE),IF(System!E$8=4,VLOOKUP(B12,Pejletabel!A$3:G$357,5,FALSE),IF(System!E$8=5,VLOOKUP(B12,Pejletabel!A$3:G$357,6,FALSE),IF(System!E13=6,VLOOKUP(B12,Pejletabel!A4:G358,7,FALSE)))))))) -> 796 | E12: =IF(C12<>"",C12+D12,"") -> 796 | F12: =IF(E12<>"",1800-E12,"") -> 1004 | G12: =IF(C12<>"",E11-C12,"") -> 379 | J12: =IF(A20="","",VLOOKUP(MONTH(A20),T!A$1:B$12,2,FALSE)) -> Oktober | K12: 31 | L12: 5.838709677 | N12: =IF(A20="","",VLOOKUP(MONTH(A20),T!A$1:B$12,2,FALSE)) -> Oktober | O12: ='2012'!G20 -> 188 | P12: 8.426714478 | Q12: =IF(A20="","",VLOOKUP(MONTH(A20),T!$A$1:$B$12,2,FALSE)) -> Oktober | R12: 181 | S12: 7.698851553 | T12: -7 | U12: -3.723404255 | V12: =IF(A20="","",VLOOKUP(MONTH(A20),'Beregn varme 2013'!A$2:G$13,7,FALSE)) -> 7.849907852 | W12: =IF(R12="","",VLOOKUP(MONTH(A20),'Beregn varme 2011'!A$2:F$13,6,FALSE)) -> 116.5794531
A13: 2013-03-31 | B13: 38.2 | C13: =IF(B13="","",IF(System!E$8=1,VLOOKUP(B13,Pejletabel!A$3:G$336,2,FALSE),IF(System!E$8=2,VLOOKUP(B13,Pejletabel!A$3:G$357,3,FALSE),IF(System!E$8=3,VLOOKUP(B13,Pejletabel!A$3:G$357,4,FALSE),IF(System!E$8=4,VLOOKUP(B13,Pejletabel!A$3:G$357,5,FALSE),IF(System!E$8=5,VLOOKUP(B13,Pejletabel!A$3:G$357,6,FALSE),IF(System!E19=6,VLOOKUP(B13,Pejletabel!A5:G359,7,FALSE)))))))) -> 403 | E13: =IF(C13<>"",C13+D13,"") -> 403 | F13: 1397 | G13: 393 | J13: =IF(A21="","",VLOOKUP(MONTH(A21),T!A$1:B$12,2,FALSE)) -> November | K13: 30 | L13: 9.3 | N13: =IF(A21="","",VLOOKUP(MONTH(A21),T!A$1:B$12,2,FALSE)) -> November | O13: ='2012'!G21 -> 289 | P13: 12.95383236 | Q13: =IF(A21="","",VLOOKUP(MONTH(A21),T!$A$1:$B$12,2,FALSE)) -> November | R13: 279 | S13: 11.86729051 | T13: -10 | U13: -3.460207612 | V13: =IF(A21="","",VLOOKUP(MONTH(A21),'Beregn varme 2013'!A$2:G$13,7,FALSE)) -> 11.07274439 | W13: =IF(R13="","",VLOOKUP(MONTH(A21),'Beregn varme 2011'!A$2:F$13,6,FALSE)) -> 174.9386548
A14: 2013-04-30 | B14: 21.7 | C14: =IF(B14="","",IF(System!E$8=1,VLOOKUP(B14,Pejletabel!A$3:G$336,2,FALSE),IF(System!E$8=2,VLOOKUP(B14,Pejletabel!A$3:G$357,3,FALSE),IF(System!E$8=3,VLOOKUP(B14,Pejletabel!A$3:G$357,4,FALSE),IF(System!E$8=4,VLOOKUP(B14,Pejletabel!A$3:G$357,5,FALSE),IF(System!E$8=5,VLOOKUP(B14,Pejletabel!A$3:G$357,6,FALSE),IF(System!E20=6,VLOOKUP(B14,Pejletabel!A6:G360,7,FALSE)))))))) -> 189 | E14: 189 | F14: 1611 | G14: 214 | J14: =IF(A22="","",VLOOKUP(MONTH(A22),T!A$1:B$12,2,FALSE)) -> December | K14: 31 | L14: 11.48387097 | N14: =IF(A22="","",VLOOKUP(MONTH(A22),T!A$1:B$12,2,FALSE)) -> December | O14: ='2012'!G22 -> 339 | P14: 15.19497983 | Q14: =IF(A22="","",VLOOKUP(MONTH(A22),T!$A$1:$B$12,2,FALSE)) -> December | R14: 356 | S14: 15.14249256 | T14: 17 | U14: 5.014749263 | V14: =IF(A22="","",VLOOKUP(MONTH(A22),'Beregn varme 2013'!A$2:G$13,7,FALSE)) -> 13.56507132 | W14: =IF(R14="","",VLOOKUP(MONTH(A22),'Beregn varme 2011'!A$2:F$13,6,FALSE)) -> 220.0697709
A15: 2013-05-31 | B15: 18.5 | C15: =IF(B15="","",IF(System!E$8=1,VLOOKUP(B15,Pejletabel!A$3:G$336,2,FALSE),IF(System!E$8=2,VLOOKUP(B15,Pejletabel!A$3:G$357,3,FALSE),IF(System!E$8=3,VLOOKUP(B15,Pejletabel!A$3:G$357,4,FALSE),IF(System!E$8=4,VLOOKUP(B15,Pejletabel!A$3:G$357,5,FALSE),IF(System!E$8=5,VLOOKUP(B15,Pejletabel!A$3:G$357,6,FALSE),IF(System!E21=6,VLOOKUP(B15,Pejletabel!A7:G361,7,FALSE)))))))) -> 151 | E15: 151 | F15: 1649 | G15: 38 | H15: fyr slukket 10/5
A16: 2013-06-30 | B16: 17.5 | C16: =IF(B16="","",IF(System!E$8=1,VLOOKUP(B16,Pejletabel!A$3:G$336,2,FALSE),IF(System!E$8=2,VLOOKUP(B16,Pejletabel!A$3:G$357,3,FALSE),IF(System!E$8=3,VLOOKUP(B16,Pejletabel!A$3:G$357,4,FALSE),IF(System!E$8=4,VLOOKUP(B16,Pejletabel!A$3:G$357,5,FALSE),IF(System!E$8=5,VLOOKUP(B16,Pejletabel!A$3:G$357,6,FALSE),IF(System!E22=6,VLOOKUP(B16,Pejletabel!A8:G362,7,FALSE)))))))) -> 139 | E16: 139 | F16: 1661 | G16: 12 | H16: fyret kørt en weekend | J16: Hele året | K16: =SUM(K3:K14) -> 365 | L16: =G23/K16 -> 6.44109589 | N16: Års Total | O16: ='2012'!G23 -> 2231 | P16: =SUM(P3:P14) -> 100 | R16: =G23 -> 2351 | T16: =IF(R16<>0,R16-O16,"") -> 120 | U16: =IF(R16<>0,T16/(O16/100),"") -> 5.378753922 | V16: =SUM(V3:V14) -> 100 | W16: =SUM(W3:W14) -> 1504
A17: 2013-07-31 | B17: 17.5 | C17: =IF(B17="","",IF(System!E$8=1,VLOOKUP(B17,Pejletabel!A$3:G$336,2,FALSE),IF(System!E$8=2,VLOOKUP(B17,Pejletabel!A$3:G$357,3,FALSE),IF(System!E$8=3,VLOOKUP(B17,Pejletabel!A$3:G$357,4,FALSE),IF(System!E$8=4,VLOOKUP(B17,Pejletabel!A$3:G$357,5,FALSE),IF(System!E$8=5,VLOOKUP(B17,Pejletabel!A$3:G$357,6,FALSE),IF(System!E23=6,VLOOKUP(B17,Pejletabel!A9:G363,7,FALSE)))))))) -> 139 | E17: 139 | F17: 1661 | G17: 0
A18: 2013-08-31 | B18: 17.5 | C18: =IF(B18="","",IF(System!E$8=1,VLOOKUP(B18,Pejletabel!A$3:G$336,2,FALSE),IF(System!E$8=2,VLOOKUP(B18,Pejletabel!A$3:G$357,3,FALSE),IF(System!E$8=3,VLOOKUP(B18,Pejletabel!A$3:G$357,4,FALSE),IF(System!E$8=4,VLOOKUP(B18,Pejletabel!A$3:G$357,5,FALSE),IF(System!E$8=5,VLOOKUP(B18,Pejletabel!A$3:G$357,6,FALSE),IF(System!E24=6,VLOOKUP(B18,Pejletabel!A10:G364,7,FALSE)))))))) -> 139 | E18: 139 | F18: 1661 | G18: 0 | N18: 2012 | Q18: 2013 | T18: +/- | U18: % | V18: Forventet forbrug
A19: 2013-09-30 | B19: 17.5 | C19: =IF(B19="","",IF(System!E$8=1,VLOOKUP(B19,Pejletabel!A$3:G$336,2,FALSE),IF(System!E$8=2,VLOOKUP(B19,Pejletabel!A$3:G$357,3,FALSE),IF(System!E$8=3,VLOOKUP(B19,Pejletabel!A$3:G$357,4,FALSE),IF(System!E$8=4,VLOOKUP(B19,Pejletabel!A$3:G$357,5,FALSE),IF(System!E$8=5,VLOOKUP(B19,Pejletabel!A$3:G$357,6,FALSE),IF(System!E25=6,VLOOKUP(B19,Pejletabel!A11:G365,7,FALSE)))))))) -> 139 | D19: 1561 | E19: 1700 | F19: 100 | G19: 0 | J19: Vand | K19: Dage | L19: m³ pr. dag | N19: Vand | O19: m³ | R19: m³ | T19: m³ | V19: % | W19: m³
A20: 2013-10-31 | B20: 123 | C20: =IF(B20="","",IF(System!E$8=1,VLOOKUP(B20,Pejletabel!A$3:G$336,2,FALSE),IF(System!E$8=2,VLOOKUP(B20,Pejletabel!A$3:G$357,3,FALSE),IF(System!E$8=3,VLOOKUP(B20,Pejletabel!A$3:G$357,4,FALSE),IF(System!E$8=4,VLOOKUP(B20,Pejletabel!A$3:G$357,5,FALSE),IF(System!E$8=5,VLOOKUP(B20,Pejletabel!A$3:G$357,6,FALSE),IF(System!E26=6,VLOOKUP(B20,Pejletabel!A12:G366,7,FALSE)))))))) -> 1519 | E20: 1519 | F20: 281 | G20: 181 | H20: tændt fyret 3/10 | J20: =IF(A29="","",VLOOKUP(MONTH(A29),T!A$1:B$12,2,FALSE)) -> Januar | K20: =A29-A28 -> 31 | L20: =IF(D29<>"",D29/K20,"") -> 0.2258064516 | N20: =IF(A29="","",VLOOKUP(MONTH(A29),T!A$1:B$12,2,FALSE)) -> Januar | O20: ='2012'!D29 -> 7 | Q20: Januar | R20: =D29 -> 7 | T20: =IF(R20<>"",R20-O20,"") -> 0 | U20: =IF(T20<>"",T20/(O20/100),"") -> 0 | V20: =IF(A29="","",VLOOKUP(MONTH(A29),'Beregn varme 2013'!A$2:H$13,8,FALSE)) -> 8.493150685 | W20: =IF(R20="","",O$33/100*V20) -> 204.8547945
A21: 2013-11-30 | B21: 101.7 | C21: =IF(B21="","",IF(System!E$8=1,VLOOKUP(B21,Pejletabel!A$3:G$336,2,FALSE),IF(System!E$8=2,VLOOKUP(B21,Pejletabel!A$3:G$357,3,FALSE),IF(System!E$8=3,VLOOKUP(B21,Pejletabel!A$3:G$357,4,FALSE),IF(System!E$8=4,VLOOKUP(B21,Pejletabel!A$3:G$357,5,FALSE),IF(System!E$8=5,VLOOKUP(B21,Pejletabel!A$3:G$357,6,FALSE),IF(System!E27=6,VLOOKUP(B21,Pejletabel!A13:G367,7,FALSE)))))))) -> 1240 | E21: 1240 | F21: =IF(E21<>"",1800-E21,"") -> 560 | G21: 279 | J21: =IF(A30="","",VLOOKUP(MONTH(A30),T!A$1:B$12,2,FALSE)) -> Februar | K21: =IF(A30="","",A30-A29) -> 28 | L21: 0.25 | N21: =IF(A30="","",VLOOKUP(MONTH(A30),T!A$1:B$12,2,FALSE)) -> Februar | O21: ='2012'!D30 -> 7 | Q21: Februar | R21: 7 | T21: =IF(R21<>"",R21-O21,"") -> 0 | U21: =IF(T21<>"",T21/(O21/100),"") -> 0 | V21: =IF(A30="","",VLOOKUP(MONTH(A30),'Beregn varme 2013'!A$2:H$13,8,FALSE)) -> 7.671232877 | W21: 185.030137
A22: 2013-12-31 | B22: 74.7 | C22: =IF(B22="","",IF(System!E$8=1,VLOOKUP(B22,Pejletabel!A$3:G$336,2,FALSE),IF(System!E$8=2,VLOOKUP(B22,Pejletabel!A$3:G$357,3,FALSE),IF(System!E$8=3,VLOOKUP(B22,Pejletabel!A$3:G$357,4,FALSE),IF(System!E$8=4,VLOOKUP(B22,Pejletabel!A$3:G$357,5,FALSE),IF(System!E$8=5,VLOOKUP(B22,Pejletabel!A$3:G$357,6,FALSE),IF(System!E28=6,VLOOKUP(B22,Pejletabel!A14:G368,7,FALSE)))))))) -> 884 | E22: 884 | F22: =IF(E22<>"",1800-E22,"") -> 916 | G22: 356 | J22: =IF(A31="","",VLOOKUP(MONTH(A31),T!A$1:B$12,2,FALSE)) -> Marts | K22: =IF(A31="","",A31-A30) -> 31 | L22: 0.2580645161 | N22: =IF(A31="","",VLOOKUP(MONTH(A31),T!A$1:B$12,2,FALSE)) -> Marts | O22: ='2012'!D31 -> 6 | Q22: Marts | R22: 8 | T22: 2 | U22: 33.33333333 | V22: =IF(A31="","",VLOOKUP(MONTH(A31),'Beregn varme 2013'!A$2:H$13,8,FALSE)) -> 8.493150685 | W22: 204.8547945
E23: Års forbrug | G23: =SUM(G11:G22) -> 2351 | J23: =IF(A32="","",VLOOKUP(MONTH(A32),T!A$1:B$12,2,FALSE)) -> April | K23: =IF(A32="","",A32-A31) -> 30 | L23: 0.1666666667 | N23: =IF(A32="","",VLOOKUP(MONTH(A32),T!A$1:B$12,2,FALSE)) -> April | O23: ='2012'!D32 -> 8 | Q23: April | R23: 5 | T23: -3 | U23: -37.5 | V23: =IF(A32="","",VLOOKUP(MONTH(A32),'Beregn varme 2013'!A$2:H$13,8,FALSE)) -> 8.219178082 | W23: 198.2465753
A24: MÅNEDLIG AFLÆSNING AF VANDMÅLER | E24: MÅNEDLIG AFLÆSNING AF ELMÅLER | J24: =IF(A33="","",VLOOKUP(MONTH(A33),T!A$1:B$12,2,FALSE)) -> Maj | K24: =IF(A33="","",A33-A32) -> 31 | L24: 0.1935483871 | N24: =IF(A33="","",VLOOKUP(MONTH(A33),T!A$1:B$12,2,FALSE)) -> Maj | O24: ='2012'!D33 -> 7 | Q24: Maj | R24: 6 | T24: -1 | U24: -14.28571429 | V24: =IF(A33="","",VLOOKUP(MONTH(A33),'Beregn varme 2013'!A$2:H$13,8,FALSE)) -> 8.493150685 | W24: 204.8547945
J25: =IF(A34="","",VLOOKUP(MONTH(A34),T!A$1:B$12,2,FALSE)) -> Juni | K25: =IF(E29="","",A34-A33) -> 30 | L25: 0.2 | N25: Juni | O25: ='2012'!D34 -> 7 | Q25: Juni | R25: 6 | T25: -1 | U25: -14.28571429 | V25: =IF(A34="","",VLOOKUP(MONTH(A34),'Beregn varme 2013'!A$2:H$13,8,FALSE)) -> 8.219178082 | W25: 198.2465753
A26: Dato | B26: Aflæst | D26: Forbrug | E26: Dato | F26: Aflæst | G26: Forbrug | H26: Bemærkning: | J26: =IF(E29="","",VLOOKUP(MONTH(E29),T!A$1:B$12,2,FALSE)) -> Januar | K26: =IF(E29="","",E29-A34) -> -150 | L26: =IF(G29<>"",G29/K26,"") -> -3.366666667 | N26: Juli | O26: ='2012'!G29 -> 416 | Q26: Juli | R26: 6 | T26: -410 | U26: -98.55769231 | V26: =IF(E29="","",VLOOKUP(MONTH(E29),'Beregn varme 2013'!A$2:H$13,8,FALSE)) -> 8.493150685 | W26: 204.8547945
B27: m³ | D27: m³ | F27: KWh | G27: KWh | J27: =IF(E30="","",VLOOKUP(MONTH(E30),T!A$1:B$12,2,FALSE)) -> Februar | K27: =IF(E30="","",E30-E29) -> 28 | L27: 17.07142857 | N27: August | O27: ='2012'!G30 -> 404 | Q27: August | R27: 6 | T27: -398 | U27: -98.51485149 | V27: =IF(E30="","",VLOOKUP(MONTH(E30),'Beregn varme 2013'!A$2:H$13,8,FALSE)) -> 7.671232877 | W27: 185.030137
A28: 2012-12-31 | B28: ='2012'!B40 -> 1609 | E28: 2012-12-31 | F28: 20137 | J28: =IF(E31="","",VLOOKUP(MONTH(E31),T!A$1:B$12,2,FALSE)) -> Marts | K28: =IF(E31="","",E31-E30) -> 31 | L28: 17.87096774 | N28: September | O28: ='2012'!G31 -> 403 | Q28: September | R28: 6 | T28: -397 | U28: -98.51116625 | V28: =IF(E31="","",VLOOKUP(MONTH(E31),'Beregn varme 2013'!A$2:H$13,8,FALSE)) -> 8.493150685 | W28: 204.8547945
A29: 2013-01-31 | B29: 1616 | D29: =IF(B29<>"",B29-B28,"") -> 7 | E29: 2013-01-31 | F29: 20642 | G29: =IF(F29<>"",F29-F28,"") -> 505 | J29: =IF(E32="","",VLOOKUP(MONTH(E32),T!A$1:B$12,2,FALSE)) -> April | K29: =IF(E32="","",E32-E31) -> 30 | L29: 15 | N29: Oktober | O29: ='2012'!G32 -> 403 | Q29: Oktober | R29: 6 | T29: -397 | U29: -98.51116625 | V29: =IF(E32="","",VLOOKUP(MONTH(E32),'Beregn varme 2013'!A$2:H$13,8,FALSE)) -> 8.219178082 | W29: 198.2465753
A30: 2013-02-28 | B30: 1623 | D30: =IF(B30<>"",B30-B29,"") -> 7 | E30: 2013-02-28 | F30: 21120 | G30: 478 | J30: =IF(E33="","",VLOOKUP(MONTH(E33),T!A$1:B$12,2,FALSE)) -> Maj | K30: =IF(E33="","",E33-E32) -> 31 | L30: 14.48387097 | N30: November | O30: ='2012'!G33 -> 375 | Q30: November | R30: 6 | T30: -369 | U30: -98.4 | V30: =IF(E33="","",VLOOKUP(MONTH(E33),'Beregn varme 2013'!A$2:H$13,8,FALSE)) -> 8.493150685 | W30: 204.8547945
A31: 2013-03-31 | B31: 1631 | D31: 8 | E31: 2013-03-31 | F31: 21674 | G31: 554 | J31: =IF(E34="","",VLOOKUP(MONTH(E34),T!A$1:B$12,2,FALSE)) -> Juni | K31: =IF(E34="","",E34-E33) -> 30 | L31: 12.53333333 | N31: December | O31: ='2012'!G34 -> 369 | Q31: December | R31: 7 | T31: -362 | U31: -98.10298103 | V31: =IF(E34="","",VLOOKUP(MONTH(E34),'Beregn varme 2013'!A$2:H$13,8,FALSE)) -> 8.219178082 | W31: 198.2465753
A32: 2013-04-30 | B32: 1636 | D32: 5 | E32: 2013-04-30 | F32: 22124 | G32: 450
A33: 2013-05-31 | B33: 1642 | D33: 6 | E33: 2013-05-31 | F33: 22573 | G33: 449 | J33: Hele året | K33: =SUM(K20:K31) -> 181 | L33: =G41/K33 -> 28.74585635 | N33: Års Total | O33: =SUM(O20:O31) -> 2412 | R33: =D41 -> 76 | T33: =IF(R33<>0,R33-O33,"") -> -2336 | U33: =IF(T33<>"",T33/(O33/100),"") -> -96.84908789 | V33: =SUM(V20:V31) -> 99.17808219 | W33: =SUM(W20:W31) -> 2392.175342
A34: 2013-06-30 | B34: 1648 | D34: 6 | E34: 2013-06-30 | F34: 22949 | G34: 376
A35: 2013-07-31 | B35: 1654 | D35: 6 | E35: 2013-07-31 | F35: 23322 | G35: 373 | N35: 2011/2012 | Q35: 2012/2013 | T35: +/- | U35: % | V35: Forventet forbrug
A36: 2013-08-31 | B36: 1660 | D36: 6 | E36: 2013-08-31 | F36: 23684 | G36: 362 | J36: EL | K36: Dage | L36: KWh pr. dag | N36: EL | O36: KWh | R36: KWh | T36: KWh | V36: % | W36: KWh
A37: 2013-09-30 | B37: 1666 | D37: 6 | E37: 2013-09-30 | F37: 24101 | G37: =IF(F37<>"",F37-F36,"") -> 417 | J37: =IF(E29="","",VLOOKUP(Y37,T!A$1:B$12,2,FALSE)) -> August | K37: =A47-A46 -> 0 | L37: =IF(D47<>"",D47/K37,"") ->  | N37: =J37 -> August | O37: ='2012'!D63 -> 335 | Q37: =J37 -> August | R37: ='2012'!G36 -> 382 | T37: =IF(R37="","",R37-O37) -> 47 | U37: =IF(R37<>"",T37/(O37/100),"") -> 14.02985075 | V37: =IF(R37="","",VLOOKUP(Y37,'Beregn varme 2013'!A$2:I$13,9,FALSE)) -> 7 | W37: =IF(R37="","",O$50/100*V37) -> 323.96 | X37: =DATE(N1,Setup!D4+1,Setup!C4) -> 2012-08-31 | Y37: =MONTH(X37) -> 8
A38: 2013-10-31 | B38: 1672 | D38: 6 | E38: 2013-10-31 | F38: 24504 | G38: 403 | J38: =IF(E30="","",VLOOKUP(Y38,T!A$1:B$12,2,FALSE)) -> September | K38: =A48-A47 -> 0 | N38: =J38 -> September | O38: ='2012'!D64 -> 333 | Q38: =J38 -> September | R38: ='2012'!G37 -> 423 | T38: =IF(R38<>"",R38-O38,"") -> 90 | U38: =IF(R38<>"",T38/(O38/100),"") -> 27.02702703 | V38: =IF(R38="","",VLOOKUP(Y38,'Beregn varme 2013'!A$2:I$13,9,FALSE)) -> 8 | W38: 370.24 | X38: =EDATE($X$37,ROW(1:1)) -> 2012-09-30 | Y38: =MONTH(X38) -> 9
A39: 2013-11-30 | B39: 1678 | D39: 6 | E39: 2013-11-30 | F39: 24893 | G39: 389 | J39: =IF(E31="","",VLOOKUP(Y39,T!A$1:B$12,2,FALSE)) -> Oktober | K39: =IF(A49="","",A49-A48) ->  | N39: Oktober | O39: ='2012'!D65 -> 403 | Q39: Oktober | R39: ='2012'!G38 -> 481 | T39: =IF(R39<>"",R39-O39,"") -> 78 | U39: =IF(R39<>"",T39/(O39/100),"") -> 19.35483871 | V39: =IF(R39="","",VLOOKUP(Y39,'Beregn varme 2013'!A$2:I$13,9,FALSE)) -> 9 | W39: 416.52 | X39: =EDATE($X$37,ROW(2:2)) -> 2012-10-31 | Y39: 10
A40: 2013-12-31 | B40: 1685 | D40: 7 | E40: 2013-12-31 | F40: 25340 | G40: 447 | J40: =IF(E32="","",VLOOKUP(Y40,T!A$1:B$12,2,FALSE)) -> November | K40: =IF(A50="","",A50-A49) ->  | N40: November | O40: ='2012'!D66+'2012 2'!D61 -> 500 | Q40: November | R40: ='2012'!G39 -> 432 | T40: =IF(R40<>"",R40-O40,"") -> -68 | U40: =IF(R40<>"",T40/(O40/100),"") -> -13.6 | V40: =IF(R40="","",VLOOKUP(Y40,'Beregn varme 2013'!A$2:I$13,9,FALSE)) -> 9 | W40: 416.52 | X40: =EDATE($X$37,ROW(3:3)) -> 2012-11-30 | Y40: 11
A41: Års forbrug | D41: =SUM(D29:D40) -> 76 | E41: Års forbrug | G41: =SUM(G29:G40) -> 5203 | J41: =IF(E33="","",VLOOKUP(Y41,T!A$1:B$12,2,FALSE)) -> December | K41: =IF(A51="","",A51-A50) ->  | N41: December | O41: ='2012 2'!D62 -> 329 | Q41: December | R41: ='2012'!G40 -> 494 | T41: =IF(R41<>"",R41-O41,"") -> 165 | U41: =IF(R41<>"",T41/(O41/100),"") -> 50.15197568 | V41: =IF(R41="","",VLOOKUP(Y41,'Beregn varme 2013'!A$2:I$13,9,FALSE)) -> 10 | W41: 462.8 | X41: 2012-12-31 | Y41: 12
J42: =IF(E34="","",VLOOKUP(Y42,T!A$1:B$12,2,FALSE)) -> Januar | K42: =IF(A52="","",A52-A51) ->  | N42: Januar | O42: ='2012 2'!D63 -> 416 | Q42: Januar | R42: =G29 -> 505 | T42: =IF(R42<>"",R42-O42,"") -> 89 | U42: 21.39423077 | V42: =IF(R42="","",VLOOKUP(Y42,'Beregn varme 2013'!A$2:I$13,9,FALSE)) -> 10 | W42: 462.8 | X42: 2013-01-31 | Y42: 1
J43: =IF(E35="","",VLOOKUP(Y43,T!A$1:B$12,2,FALSE)) -> Februar | K43: =IF(E47="","",E47-A52) ->  | L43: =IF(G47<>"",G47/K43,"") ->  | N43: Februar | O43: ='2012 2'!D64 -> 404 | Q43: Februar | R43: =G30 -> 478 | T43: 74 | U43: 18.31683168 | V43: =IF(R43="","",VLOOKUP(Y43,'Beregn varme 2013'!A$2:I$13,9,FALSE)) -> 9 | W43: 416.52 | X43: 2013-02-28 | Y43: 2
J44: =IF(E36="","",VLOOKUP(Y44,T!A$1:B$12,2,FALSE)) -> Marts | K44: =IF(E48="","",E48-E47) ->  | N44: Marts | O44: ='2012 2'!D65 -> 403 | Q44: Marts | R44: 554 | T44: 151 | U44: 37.46898263 | V44: =IF(R44="","",VLOOKUP(Y44,'Beregn varme 2013'!A$2:I$13,9,FALSE)) -> 9 | W44: 416.52 | X44: 2013-03-31 | Y44: 3
J45: =IF(E37="","",VLOOKUP(Y45,T!A$1:B$12,2,FALSE)) -> April | K45: =IF(E49="","",E49-E48) ->  | N45: April | O45: ='2012 2'!D66 -> 403 | Q45: April | R45: 450 | T45: 47 | U45: 11.66253102 | V45: =IF(R45="","",VLOOKUP(Y45,'Beregn varme 2013'!A$2:I$13,9,FALSE)) -> 8 | W45: 370.24 | X45: 2013-04-30 | Y45: 4
J46: =IF(E38="","",VLOOKUP(Y46,T!A$1:B$12,2,FALSE)) -> Maj | K46: =IF(E50="","",E50-E49) ->  | N46: Maj | O46: ='2012 2'!G61 -> 375 | Q46: Maj | R46: 449 | T46: 74 | U46: 19.73333333 | V46: =IF(R46="","",VLOOKUP(Y46,'Beregn varme 2013'!A$2:I$13,9,FALSE)) -> 7 | W46: 323.96 | X46: 2013-05-31 | Y46: 5
J47: =IF(E39="","",VLOOKUP(Y47,T!A$1:B$12,2,FALSE)) -> Juni | K47: =IF(E51="","",E51-E50) ->  | N47: Juni | O47: ='2012 2'!G62 -> 369 | Q47: Juni | R47: 376 | T47: 7 | U47: 1.89701897 | V47: =IF(R47="","",VLOOKUP(Y47,'Beregn varme 2013'!A$2:I$13,9,FALSE)) -> 7 | W47: 323.96 | X47: 2013-06-30 | Y47: 6
J48: =IF(E40="","",VLOOKUP(Y48,T!A$1:B$12,2,FALSE)) -> Juli | K48: =IF(E52="","",E52-E51) ->  | N48: =J48 -> Juli | O48: ='2012 2'!G63 -> 358 | Q48: =J48 -> Juli | R48: 373 | T48: 15 | U48: =IF(R48<>"",T48/(O48/100),"") -> 4.189944134 | V48: =IF(R48="","",VLOOKUP(Y48,'Beregn varme 2013'!A$2:I$13,9,FALSE)) -> 7 | W48: 323.96 | X48: 2013-07-31 | Y48: 7
J50: Hele året | K50: =SUM(K37:K48) -> 0 | L50: =G53/K50 ->  | N50: Års Total | O50: =SUM(O37:O48) -> 4628 | R50: =SUM(R37:R48) -> 5397 | T50: =IF(R50<>0,R50-O50,"") -> 769 | U50: =IF(T50<>"",T50/(O50/100),"") -> 16.61624892 | V50: =SUM(V37:V48) -> 100 | W50: =SUM(W37:W48) -> 4628

Sheet 2012
N1: 2011 | Q1: 2012 | T1: +/- | U1: % | V1: Forventet forbrug
A2: =System!A19 -> Version: 2.0.2 / Bjarne Hansen | J2: Olie | K2: Dage | L2: Liter pr dag | N2: Olie | O2: Liter | P2: % | R2: Liter | S2: % | T2: Liter | V2: % | W2: Liter
A3: Aflæsningsskema til Olieforbrug samt EL og Vand | J3: =IF(A11="","",VLOOKUP(MONTH(A11),T!A$1:B$12,2,FALSE)) -> Januar | K3: =A11-A10 -> 31 | L3: =IF(G11<>"",G11/K3,"") -> 11.67741935 | N3: =IF(A11="","",VLOOKUP(MONTH(A11),T!$A$1:$B$12,2,FALSE)) -> Januar | O3: ='2011'!F11 -> 232 | P3: =IF(O3="","",O3/(O$16/100)) -> 14.25937308 | Q3: =IF(A11="","",VLOOKUP(MONTH(A11),T!$A$1:$B$12,2,FALSE)) -> Januar | R3: =G11 -> 362 | S3: =IF(R3="","",R3/(R$16/100)) -> 16.22590766 | T3: =IF(R3<>"",R3-O3,"") -> 130 | U3: =IF(R3<>"",T3/(O3/100),"") -> 56.03448276 | V3: =IF(A11="","",VLOOKUP(MONTH(A11),'Beregn varme 2011'!A$2:G$13,7,FALSE)) -> 15.04619364 | W3: =IF(R3="","",VLOOKUP(MONTH(A11),'Beregn varme 2011'!A$2:F$13,6,FALSE)) -> 226.2947524
A4: Navn : | B4: Bjarne Hansen, Lyrsbyvej 31 | J4: =IF(A12="","",VLOOKUP(MONTH(A12),T!A$1:B$12,2,FALSE)) -> Februar | K4: =IF(A12="","",A12-A11) -> 29 | L4: 13.37931034 | N4: =IF(A12="","",VLOOKUP(MONTH(A12),T!A$1:B$12,2,FALSE)) -> Februar | O4: ='2011'!F12 -> 225 | P4: 13.82913337 | Q4: =IF(A12="","",VLOOKUP(MONTH(A12),T!$A$1:$B$12,2,FALSE)) -> Februar | R4: 388 | S4: 17.39130435 | T4: =IF(R4<>"",R4-O4,"") -> 163 | U4: =IF(R4<>"",T4/(O4/100),"") -> 72.44444444 | V4: =IF(A12="","",VLOOKUP(MONTH(A12),'Beregn varme 2011'!A$2:G$13,7,FALSE)) -> 13.72690318 | W4: =IF(R4="","",VLOOKUP(MONTH(A12),'Beregn varme 2011'!A$2:F$13,6,FALSE)) -> 206.4526238
A5: Tankstørrelse: | C5: =System!F8 -> 1800 | D5: Liter | J5: =IF(A13="","",VLOOKUP(MONTH(A13),T!A$1:B$12,2,FALSE)) -> Marts | K5: 31 | L5: 8.387096774 | N5: =IF(A13="","",VLOOKUP(MONTH(A13),T!A$1:B$12,2,FALSE)) -> Marts | O5: ='2011'!F13 -> 189 | P5: 11.61647203 | Q5: =IF(A13="","",VLOOKUP(MONTH(A13),T!$A$1:$B$12,2,FALSE)) -> Marts | R5: 260 | S5: 11.65396683 | T5: 71 | U5: 37.56613757 | V5: =IF(A13="","",VLOOKUP(MONTH(A13),'Beregn varme 2011'!A$2:G$13,7,FALSE)) -> 13.59756098 | W5: =IF(R5="","",VLOOKUP(MONTH(A13),'Beregn varme 2011'!A$2:F$13,6,FALSE)) -> 204.5073171
A6: MÅNEDLIG PEJLING AF OLIETANK | J6: =IF(A14="","",VLOOKUP(MONTH(A14),T!A$1:B$12,2,FALSE)) -> April | K6: 30 | L6: 6.7 | N6: =IF(A14="","",VLOOKUP(MONTH(A14),T!A$1:B$12,2,FALSE)) -> April | O6: ='2011'!F14 -> 103 | P6: 6.330669945 | Q6: =IF(A14="","",VLOOKUP(MONTH(A14),T!$A$1:$B$12,2,FALSE)) -> April | R6: 201 | S6: 9.009412819 | T6: 98 | U6: 95.14563107 | V6: =IF(A14="","",VLOOKUP(MONTH(A14),'Beregn varme 2011'!A$2:G$13,7,FALSE)) -> 8.941241685 | W6: =IF(R6="","",VLOOKUP(MONTH(A14),'Beregn varme 2011'!A$2:F$13,6,FALSE)) -> 134.4762749
J7: =IF(A15="","",VLOOKUP(MONTH(A15),T!A$1:B$12,2,FALSE)) -> Maj | K7: 31 | L7: 2.64516129 | N7: =IF(A15="","",VLOOKUP(MONTH(A15),T!A$1:B$12,2,FALSE)) -> Maj | O7: ='2011'!F15 -> 93 | P7: 5.716041795 | Q7: =IF(A15="","",VLOOKUP(MONTH(A15),T!$A$1:$B$12,2,FALSE)) -> Maj | R7: 82 | S7: 3.675481847 | T7: -11 | U7: -11.82795699 | V7: =IF(A15="","",VLOOKUP(MONTH(A15),'Beregn varme 2011'!A$2:G$13,7,FALSE)) -> 4.000369549 | W7: =IF(R7="","",VLOOKUP(MONTH(A15),'Beregn varme 2011'!A$2:F$13,6,FALSE)) -> 60.16555802
A8: Dato | B8: Pejling | D8: Fyldt på | E8: Beholdning | F8: Plads til | G8: Forbrug | H8: Bemærkning: | J8: =IF(A16="","",VLOOKUP(MONTH(A16),T!A$1:B$12,2,FALSE)) -> Juni | K8: 30 | L8: 1.433333333 | N8: =IF(A16="","",VLOOKUP(MONTH(A16),T!A$1:B$12,2,FALSE)) -> Juni | O8: ='2011'!F16 -> 0 | P8: 0 | Q8: =IF(A16="","",VLOOKUP(MONTH(A16),T!$A$1:$B$12,2,FALSE)) -> Juni | R8: 43 | S8: 1.927386822 | T8: 43 | U8: =IF(AND(R8<>"",O8<>0),T8/(O8/100)," - ") -> - | V8: =IF(A16="","",VLOOKUP(MONTH(A16),'Beregn varme 2011'!A$2:G$13,7,FALSE)) -> 2.5 | W8: =IF(R8="","",VLOOKUP(MONTH(A16),'Beregn varme 2011'!A$2:F$13,6,FALSE)) -> 37.6
B9: i cm | C9: Liter | D9: Liter | F9: Liter | G9: Liter | J9: =IF(A17="","",VLOOKUP(MONTH(A17),T!A$1:B$12,2,FALSE)) -> Juli | K9: 31 | L9: 0.1935483871 | N9: =IF(A17="","",VLOOKUP(MONTH(A17),T!A$1:B$12,2,FALSE)) -> Juli | O9: ='2011'!F17 -> 0 | P9: 0 | Q9: =IF(A17="","",VLOOKUP(MONTH(A17),T!$A$1:$B$12,2,FALSE)) -> Juli | R9: 6 | S9: 0.2689376961 | T9: 6 | U9: =IF(AND(R9<>"",O9<>0),T9/(O9/100)," - ") -> - | V9: =IF(A17="","",VLOOKUP(MONTH(A17),'Beregn varme 2011'!A$2:G$13,7,FALSE)) -> 2.5 | W9: =IF(R9="","",VLOOKUP(MONTH(A17),'Beregn varme 2011'!A$2:F$13,6,FALSE)) -> 37.6
A10: 2011-12-31 | B10: 76 | C10: =IF(B10="","",VLOOKUP(B10,Pejletabel1800!A$3:B$201,2,FALSE)) -> 901 | E10: =IF(C10<>"",SUM(C10:D10),"") -> 901 | F10: =IF(E10<>"",1800-E10,"") -> 899 | J10: =IF(A18="","",VLOOKUP(MONTH(A18),T!A$1:B$12,2,FALSE)) -> August | K10: 31 | L10: 0 | N10: =IF(A18="","",VLOOKUP(MONTH(A18),T!A$1:B$12,2,FALSE)) -> August | O10: ='2011'!F18 -> 0 | P10: 0 | Q10: =IF(A18="","",VLOOKUP(MONTH(A18),T!$A$1:$B$12,2,FALSE)) -> August | R10: 0 | S10: 0 | T10: 0 | U10: =IF(AND(R10<>"",O10<>0),T10/(O10/100)," - ") -> - | V10: =IF(A18="","",VLOOKUP(MONTH(A18),'Beregn varme 2011'!A$2:G$13,7,FALSE)) -> 2.5 | W10: =IF(R10="","",VLOOKUP(MONTH(A18),'Beregn varme 2011'!A$2:F$13,6,FALSE)) -> 37.6
A11: 2012-01-31 | B11: 48.5 | C11: =IF(B11="","",VLOOKUP(B11,Pejletabel1800!A$3:B$201,2,FALSE)) -> 539 | E11: =IF(C11<>"",C11+D11,"") -> 539 | F11: =IF(E11<>"",1800-E11,"") -> 1261 | G11: =IF(C11<>"",E10-C11,"") -> 362 | J11: =IF(A19="","",VLOOKUP(MONTH(A19),T!A$1:B$12,2,FALSE)) -> September | K11: 30 | L11: 2.433333333 | N11: =IF(A19="","",VLOOKUP(MONTH(A19),T!A$1:B$12,2,FALSE)) -> September | O11: ='2011'!F19 -> 64 | P11: 3.93362016 | Q11: =IF(A19="","",VLOOKUP(MONTH(A19),T!$A$1:$B$12,2,FALSE)) -> September | R11: 73 | S11: 3.272075303 | T11: 9 | U11: 14.0625 | V11: =IF(A19="","",VLOOKUP(MONTH(A19),'Beregn varme 2011'!A$2:G$13,7,FALSE)) -> 3.172579453 | W11: =IF(R11="","",VLOOKUP(MONTH(A19),'Beregn varme 2011'!A$2:F$13,6,FALSE)) -> 47.71559497
A12: 2012-02-29 | B12: 18.5 | C12: =IF(B12="","",VLOOKUP(B12,Pejletabel1800!A$3:B$201,2,FALSE)) -> 151 | D12: 1000 | E12: =IF(C12<>"",C12+D12,"") -> 1151 | F12: =IF(E12<>"",1800-E12,"") -> 649 | G12: =IF(C12<>"",E11-C12,"") -> 388 | J12: =IF(A20="","",VLOOKUP(MONTH(A20),T!A$1:B$12,2,FALSE)) -> Oktober | K12: 31 | L12: 6.064516129 | N12: =IF(A20="","",VLOOKUP(MONTH(A20),T!A$1:B$12,2,FALSE)) -> Oktober | O12: ='2011'!F20 -> 101 | P12: 6.207744315 | Q12: =IF(A20="","",VLOOKUP(MONTH(A20),T!$A$1:$B$12,2,FALSE)) -> Oktober | R12: 188 | S12: 8.426714478 | T12: 87 | U12: 86.13861386 | V12: =IF(A20="","",VLOOKUP(MONTH(A20),'Beregn varme 2011'!A$2:G$13,7,FALSE)) -> 7.751293422 | W12: =IF(R12="","",VLOOKUP(MONTH(A20),'Beregn varme 2011'!A$2:F$13,6,FALSE)) -> 116.5794531
A13: 2012-03-31 | B13: 75.2 | C13: =IF(B13="","",VLOOKUP(B13,Pejletabel1800!A$3:B$201,2,FALSE)) -> 891 | E13: =IF(C13<>"",C13+D13,"") -> 891 | F13: 909 | G13: 260 | J13: =IF(A21="","",VLOOKUP(MONTH(A21),T!A$1:B$12,2,FALSE)) -> November | K13: 30 | L13: 9.633333333 | N13: =IF(A21="","",VLOOKUP(MONTH(A21),T!A$1:B$12,2,FALSE)) -> November | O13: ='2011'!F21 -> 160 | P13: 9.8340504 | Q13: =IF(A21="","",VLOOKUP(MONTH(A21),T!$A$1:$B$12,2,FALSE)) -> November | R13: 289 | S13: 12.95383236 | T13: 129 | U13: 80.625 | V13: =IF(A21="","",VLOOKUP(MONTH(A21),'Beregn varme 2011'!A$2:G$13,7,FALSE)) -> 11.6315595 | W13: =IF(R13="","",VLOOKUP(MONTH(A21),'Beregn varme 2011'!A$2:F$13,6,FALSE)) -> 174.9386548
A14: 2012-04-30 | B14: 60 | C14: =IF(B14="","",VLOOKUP(B14,Pejletabel1800!A$3:B$201,2,FALSE)) -> 690 | E14: 690 | F14: 1110 | G14: 201 | J14: =IF(A22="","",VLOOKUP(MONTH(A22),T!A$1:B$12,2,FALSE)) -> December | K14: 31 | L14: 10.93548387 | N14: =IF(A22="","",VLOOKUP(MONTH(A22),T!A$1:B$12,2,FALSE)) -> December | O14: ='2011'!F22 -> 460 | P14: 28.2728949 | Q14: =IF(A22="","",VLOOKUP(MONTH(A22),T!$A$1:$B$12,2,FALSE)) -> December | R14: 339 | S14: 15.19497983 | T14: -121 | U14: -26.30434783 | V14: =IF(A22="","",VLOOKUP(MONTH(A22),'Beregn varme 2011'!A$2:G$13,7,FALSE)) -> 14.6322986 | W14: =IF(R14="","",VLOOKUP(MONTH(A22),'Beregn varme 2011'!A$2:F$13,6,FALSE)) -> 220.0697709
A15: 2012-05-31 | B15: 53.7 | C15: =IF(B15="","",VLOOKUP(B15,Pejletabel1800!A$3:B$201,2,FALSE)) -> 608 | E15: 608 | F15: 1192 | G15: 82
A16: 2012-06-30 | B16: 50.5 | C16: =IF(B16="","",VLOOKUP(B16,Pejletabel1800!A$3:B$201,2,FALSE)) -> 565 | E16: 565 | F16: 1235 | G16: 43 | J16: Hele året | K16: =SUM(K3:K14) -> 366 | L16: =G23/K16 -> 6.095628415 | N16: Års Total | O16: ='2011'!F23 -> 1627 | P16: =SUM(P3:P14) -> 100 | R16: =G23 -> 2231 | T16: =IF(R16<>0,R16-O16,"") -> 604 | U16: =IF(R16<>0,T16/(R16/100),"") -> 27.07306141 | V16: =SUM(V3:V14) -> 100 | W16: =SUM(W3:W14) -> 1504
A17: 2012-07-31 | B17: 50 | C17: =IF(B17="","",VLOOKUP(B17,Pejletabel1800!A$3:B$201,2,FALSE)) -> 559 | E17: 559 | F17: 1241 | G17: 6 | H17: slukket fyret
A18: 2012-08-31 | B18: 50 | C18: =IF(B18="","",VLOOKUP(B18,Pejletabel1800!A$3:B$201,2,FALSE)) -> 559 | E18: 559 | F18: 1241 | G18: 0 | N18: 2011 | Q18: 2012 | T18: +/- | U18: % | V18: Forventet forbrug
A19: 2012-09-30 | B19: 44.5 | C19: =IF(B19="","",VLOOKUP(B19,Pejletabel1800!A$3:B$201,2,FALSE)) -> 486 | E19: 486 | F19: 1314 | G19: 73 | J19: Vand | K19: Dage | L19: m³ pr. dag | N19: Vand | O19: m³ | R19: m³ | T19: m³ | V19: % | W19: m³
A20: 2012-10-31 | B20: 30.2 | C20: =IF(B20="","",VLOOKUP(B20,Pejletabel1800!A$3:B$201,2,FALSE)) -> 298 | D20: 1000 | E20: 1298 | F20: 502 | G20: 188 | J20: =IF(A29="","",VLOOKUP(MONTH(A29),T!A$1:B$12,2,FALSE)) -> Januar | K20: =A29-A28 -> 31 | L20: =IF(D29<>"",D29/K20,"") -> 0.2258064516 | N20: =IF(A29="","",VLOOKUP(MONTH(A29),T!A$1:B$12,2,FALSE)) -> Januar | O20: ='2011'!C29 -> 10 | Q20: Januar | R20: =D29 -> 7 | T20: =IF(R20<>"",R20-O20,"") -> -3 | U20: =IF(T20<>"",T20/(O20/100),"") -> -30 | V20: =IF(A28="","",VLOOKUP(MONTH(A28),'Beregn varme 2011'!A$2:H$13,8,FALSE)) -> 8.493150685 | W20: =IF(R20="","",O$33/100*V20) -> 7.049315068
A21: 2012-11-30 | B21: 84.2 | C21: =IF(B21="","",VLOOKUP(B21,Pejletabel1800!A$3:B$201,2,FALSE)) -> 1009 | E21: 1009 | F21: =IF(E21<>"",1200-E21,"") -> 191 | G21: 289 | J21: =IF(A30="","",VLOOKUP(MONTH(A30),T!A$1:B$12,2,FALSE)) -> Februar | K21: =IF(A30="","",A30-A29) -> 29 | L21: 0.2413793103 | N21: =IF(A30="","",VLOOKUP(MONTH(A30),T!A$1:B$12,2,FALSE)) -> Februar | O21: ='2011'!C30 -> 7 | Q21: Februar | R21: 7 | T21: =IF(R21<>"",R21-O21,"") -> 0 | U21: =IF(T21<>"",T21/(O21/100),"") -> 0 | V21: =IF(A29="","",VLOOKUP(MONTH(A29),'Beregn varme 2011'!A$2:H$13,8,FALSE)) -> 8.493150685 | W21: 7.049315068
A22: 2012-12-31 | B22: 58.5 | C22: =IF(B22="","",VLOOKUP(B22,Pejletabel1800!A$3:B$201,2,FALSE)) -> 670 | E22: 670 | F22: 530 | G22: 339 | J22: =IF(A31="","",VLOOKUP(MONTH(A31),T!A$1:B$12,2,FALSE)) -> Marts | K22: =IF(A31="","",A31-A30) -> 31 | L22: 0.1935483871 | N22: =IF(A31="","",VLOOKUP(MONTH(A31),T!A$1:B$12,2,FALSE)) -> Marts | O22: ='2011'!C31 -> 8 | Q22: Marts | R22: 6 | T22: -2 | U22: -25 | V22: =IF(A30="","",VLOOKUP(MONTH(A30),'Beregn varme 2011'!A$2:H$13,8,FALSE)) -> 7.671232877 | W22: 6.367123288
E23: Års forbrug | G23: =SUM(G11:G22) -> 2231 | J23: =IF(A32="","",VLOOKUP(MONTH(A32),T!A$1:B$12,2,FALSE)) -> April | K23: =IF(A32="","",A32-A31) -> 30 | L23: 0.2666666667 | N23: =IF(A32="","",VLOOKUP(MONTH(A32),T!A$1:B$12,2,FALSE)) -> April | O23: ='2011'!C32 -> 6 | Q23: April | R23: 8 | T23: 2 | U23: 33.33333333 | V23: =IF(A31="","",VLOOKUP(MONTH(A31),'Beregn varme 2011'!A$2:H$13,8,FALSE)) -> 8.493150685 | W23: 7.049315068
A24: MÅNEDLIG AFLÆSNING AF VANDMÅLER | E24: MÅNEDLIG AFLÆSNING AF ELMÅLER | J24: =IF(A33="","",VLOOKUP(MONTH(A33),T!A$1:B$12,2,FALSE)) -> Maj | K24: =IF(A33="","",A33-A32) -> 31 | L24: 0.2258064516 | N24: =IF(A33="","",VLOOKUP(MONTH(A33),T!A$1:B$12,2,FALSE)) -> Maj | O24: ='2011'!C33 -> 6 | Q24: Maj | R24: 7 | T24: 1 | U24: 16.66666667 | V24: =IF(A32="","",VLOOKUP(MONTH(A32),'Beregn varme 2011'!A$2:H$13,8,FALSE)) -> 8.219178082 | W24: 6.821917808
J25: =IF(A34="","",VLOOKUP(MONTH(A34),T!A$1:B$12,2,FALSE)) -> Juni | K25: =IF(E29="","",A34-A33) -> 30 | L25: 0.2333333333 | N25: Juni | O25: ='2011'!C34 -> 8 | Q25: Juni | R25: 7 | T25: -1 | U25: -12.5 | V25: =IF(A33="","",VLOOKUP(MONTH(A33),'Beregn varme 2011'!A$2:H$13,8,FALSE)) -> 8.493150685 | W25: 7.049315068
A26: Dato | B26: Aflæst | D26: Forbrug | E26: Dato | F26: Aflæst | G26: Forbrug | H26: Bemærkning: | J26: =IF(E29="","",VLOOKUP(MONTH(E29),T!A$1:B$12,2,FALSE)) -> Januar | K26: =IF(E29="","",E29-A34) -> -151 | L26: -0.04635761589 | N26: Juli | O26: ='2011'!F29 -> 7 | Q26: Juli | R26: 7 | T26: 0 | U26: 0 | V26: =IF(A34="","",VLOOKUP(MONTH(A34),'Beregn varme 2011'!A$2:H$13,8,FALSE)) -> 8.219178082 | W26: 6.821917808
B27: m³ | D27: m³ | F27: m³ | G27: m³ | J27: =IF(E30="","",VLOOKUP(MONTH(E30),T!A$1:B$12,2,FALSE)) -> Februar | K27: =IF(E30="","",E30-E29) -> 29 | L27: 0.2413793103 | N27: August | O27: ='2011'!F30 -> 6 | Q27: August | R27: 7 | T27: 1 | U27: 16.66666667 | V27: =IF(E29="","",VLOOKUP(MONTH(E29),'Beregn varme 2011'!A$2:H$13,8,FALSE)) -> 8.493150685 | W27: 7.049315068
A28: 2011-12-31 | B28: 1525 | E28: =A28 -> 2011-12-31 | F28: 15197 | J28: =IF(E31="","",VLOOKUP(MONTH(E31),T!A$1:B$12,2,FALSE)) -> Marts | K28: =IF(E31="","",E31-E30) -> 31 | L28: 0.2258064516 | N28: September | O28: ='2011'!F31 -> 6 | Q28: September | R28: 7 | T28: 1 | U28: 16.66666667 | V28: =IF(E30="","",VLOOKUP(MONTH(E30),'Beregn varme 2011'!A$2:H$13,8,FALSE)) -> 7.671232877 | W28: 6.367123288
A29: =EDATE($A$28,ROW(1:1)) -> 2012-01-31 | B29: 1532 | D29: =IF(B29<>"",B29-B28,"") -> 7 | E29: =EDATE($E$28,ROW(1:1)) -> 2012-01-31 | F29: 15613 | G29: =IF(F29<>"",F29-F28,"") -> 416 | J29: =IF(E32="","",VLOOKUP(MONTH(E32),T!A$1:B$12,2,FALSE)) -> April | K29: =IF(E32="","",E32-E31) -> 30 | L29: 0.2333333333 | N29: Oktober | O29: ='2011'!F32 -> 7 | Q29: Oktober | R29: 7 | T29: 0 | U29: 0 | V29: =IF(E31="","",VLOOKUP(MONTH(E31),'Beregn varme 2011'!A$2:H$13,8,FALSE)) -> 8.493150685 | W29: 7.049315068
A30: =EDATE($A$28,ROW(2:2)) -> 2012-02-29 | B30: 1539 | D30: =IF(B30<>"",B30-B29,"") -> 7 | E30: =EDATE($E$28,ROW(2:2)) -> 2012-02-29 | F30: 16017 | G30: =IF(F30<>"",F30-F29,"") -> 404 | J30: =IF(E33="","",VLOOKUP(MONTH(E33),T!A$1:B$12,2,FALSE)) -> Maj | K30: =IF(E33="","",E33-E32) -> 31 | L30: 0.1935483871 | N30: November | O30: ='2011'!F33 -> 6 | Q30: November | R30: 6 | T30: 0 | U30: 0 | V30: =IF(E32="","",VLOOKUP(MONTH(E32),'Beregn varme 2011'!A$2:H$13,8,FALSE)) -> 8.219178082 | W30: 6.821917808
A31: =EDATE($A$28,ROW(3:3)) -> 2012-03-31 | B31: 1545 | D31: 6 | E31: =EDATE($E$28,ROW(3:3)) -> 2012-03-31 | F31: 16420 | G31: =IF(F31<>"",F31-F30,"") -> 403 | J31: =IF(E34="","",VLOOKUP(MONTH(E34),T!A$1:B$12,2,FALSE)) -> Juni | K31: =IF(E34="","",E34-E33) -> 30 | L31: 0.2666666667 | N31: December | O31: ='2011'!F34 -> 6 | Q31: December | R31: 8 | T31: 2 | U31: 33.33333333 | V31: =IF(E33="","",VLOOKUP(MONTH(E33),'Beregn varme 2011'!A$2:H$13,8,FALSE)) -> 8.493150685 | W31: 7.049315068
A32: 2012-04-30 | B32: 1553 | D32: 8 | E32: =EDATE($E$28,ROW(4:4)) -> 2012-04-30 | F32: 16823 | G32: =IF(F32<>"",F32-F31,"") -> 403
A33: 2012-05-31 | B33: 1560 | D33: 7 | E33: 2012-05-31 | F33: 17198 | G33: =IF(F33<>"",F33-F32,"") -> 375 | J33: Hele året | K33: =SUM(K20:K31) -> 182 | L33: =G35/K33 -> 1.967032967 | N33: Års Total | O33: =SUM(O20:O31) -> 83 | R33: =D41 -> 84 | T33: =IF(R33<>0,R33-O33,"") -> 1 | U33: =IF(T33<>"",T33/(R33/100),"") -> 1.19047619 | V33: =SUM(V20:V31) -> 99.45205479 | W33: =SUM(W20:W31) -> 82.54520548
A34: 2012-06-30 | B34: 1567 | D34: 7 | E34: 2012-06-30 | F34: 17567 | G34: =IF(F34<>"",F34-F33,"") -> 369
A35: 2012-07-31 | B35: 1574 | D35: 7 | E35: 2012-07-31 | F35: 17925 | G35: 358 | N35: 2010/2011 | Q35: 2011/2012 | T35: +/- | U35: % | V35: Forventet forbrug
A36: 2012-08-31 | B36: 1581 | D36: 7 | E36: 2012-08-31 | F36: 18307 | G36: 382 | J36: EL | K36: Dage | L36: KWh pr. dag | N36: EL | O36: KWh | R36: KWh | T36: KWh | V36: % | W36: KWh
A37: 2012-09-30 | B37: 1588 | D37: 7 | E37: 2012-09-30 | F37: 18730 | G37: 423 | J37: =IF(A61="","",VLOOKUP(MONTH(A61),T!A$1:B$12,2,FALSE)) -> Juni | K37: =A61-A60 -> 30 | L37: =IF(D61<>"",D61/K37,"") -> 11.76666667 | N37: Juni | O37: ='2011'!C41 -> 341 | Q37: Juni | R37: =D61 -> 353 | T37: =IF(R37="","",R37-O37) -> 12 | U37: =IF(R37<>"",T37/(O37/100),"") -> 3.519061584 | V37: =IF(A61="","",VLOOKUP(MONTH(A61),'Beregn varme 2011'!A$2:I$13,9,FALSE)) -> 7 | W37: =IF(R37="","",O$50/100*V37) -> 383.46
A38: 2012-10-31 | B38: 1595 | D38: 7 | E38: 2012-10-31 | F38: 19211 | G38: 481 | J38: =IF(A62="","",VLOOKUP(MONTH(A62),T!A$1:B$12,2,FALSE)) -> Juli | K38: =A62-A61 -> 31 | L38: 12.29032258 | N38: Juli | O38: ='2011'!C42 -> 276 | Q38: Juli | R38: =IF(D62<>"",D62,"") -> 381 | T38: =IF(R38<>"",R38-O38,"") -> 105 | U38: =IF(R38<>"",T38/(O38/100),"") -> 38.04347826 | V38: =IF(A62="","",VLOOKUP(MONTH(A62),'Beregn varme 2011'!A$2:I$13,9,FALSE)) -> 7 | W38: 383.46
A39: 2012-11-30 | B39: 1601 | D39: 6 | E39: 2012-11-30 | F39: 19643 | G39: 432 | J39: =IF(A63="","",VLOOKUP(MONTH(A63),T!A$1:B$12,2,FALSE)) -> August | K39: =IF(A63="","",A63-A62) -> 31 | L39: 10.80645161 | N39: August | O39: ='2011'!C43 -> 275 | Q39: August | R39: =IF(D63<>"",D63,"") -> 335 | T39: =IF(R39<>"",R39-O39,"") -> 60 | U39: =IF(R39<>"",T39/(O39/100),"") -> 21.81818182 | V39: =IF(A63="","",VLOOKUP(MONTH(A63),'Beregn varme 2011'!A$2:I$13,9,FALSE)) -> 7 | W39: 383.46
A40: 2012-12-31 | B40: 1609 | D40: 8 | E40: 2012-12-31 | F40: 20137 | G40: 494 | J40: =IF(A64="","",VLOOKUP(MONTH(A64),T!A$1:B$12,2,FALSE)) -> September | K40: =IF(A64="","",A64-A63) -> 30 | L40: 11.1 | N40: September | O40: ='2011'!C44 -> 336 | Q40: September | R40: =IF(D64<>"",D64,"") -> 333 | T40: =IF(R40<>"",R40-O40,"") -> -3 | U40: =IF(R40<>"",T40/(O40/100),"") -> -0.8928571429 | V40: =IF(A64="","",VLOOKUP(MONTH(A64),'Beregn varme 2011'!A$2:I$13,9,FALSE)) -> 8 | W40: 438.24
A41: Års forbrug | D41: =SUM(D29:D40) -> 84 | E41: Års forbrug | G41: =SUM(G29:G40) -> 4940 | J41: =IF(A65="","",VLOOKUP(MONTH(A65),T!A$1:B$12,2,FALSE)) -> Oktober | K41: =IF(A65="","",A65-A64) -> 31 | L41: 13 | N41: Oktober | O41: ='2011'!C45 -> 421 | Q41: Oktober | R41: =IF(D65<>"",D65,"") -> 403 | T41: =IF(R41<>"",R41-O41,"") -> -18 | U41: =IF(R41<>"",T41/(O41/100),"") -> -4.275534442 | V41: =IF(A65="","",VLOOKUP(MONTH(A65),'Beregn varme 2011'!A$2:I$13,9,FALSE)) -> 9 | W41: 493.02
J42: =IF(A66="","",VLOOKUP(MONTH(A66),T!A$1:B$12,2,FALSE)) -> November | K42: =IF(A66="","",A66-A65) -> 30 | L42: 14.5 | N42: November | O42: ='2011'!C46 -> 544 | Q42: November | R42: =IF(D66<>"",D66,"") -> 435 | T42: =IF(R42<>"",R42-O42,"") -> -109 | U42: -20.03676471 | V42: =IF(A66="","",VLOOKUP(MONTH(A66),'Beregn varme 2011'!A$2:I$13,9,FALSE)) -> 9 | W42: 493.02
J43: =IF(E61="","",VLOOKUP(MONTH(E61),T!A$1:B$12,2,FALSE)) -> Februar | K43: =IF(E61="","",E61-A66) -> 91 | L43: =IF(G61<>"",G61/K43,"") -> 13.34065934 | N43: December | O43: ='2011'!F41 -> 618 | Q43: December | R43: =IF(G61<>"",G61,"") -> 1214 | T43: 596 | U43: 96.44012945 | V43: =IF(E61="","",VLOOKUP(MONTH(E61),'Beregn varme 2011'!A$2:I$13,9,FALSE)) -> 9 | W43: 493.02
J44: =IF(E62="","",VLOOKUP(MONTH(E62),T!A$1:B$12,2,FALSE)) -> Marts | K44: =IF(E62="","",E62-E61) -> 31 | L44: 13 | N44: Januar | O44: ='2011'!F42 -> 648 | Q44: Januar | R44: 403 | T44: -245 | U44: -37.80864198 | V44: =IF(E62="","",VLOOKUP(MONTH(E62),'Beregn varme 2011'!A$2:I$13,9,FALSE)) -> 9 | W44: 493.02
J45: =IF(E63="","",VLOOKUP(MONTH(E63),T!A$1:B$12,2,FALSE)) -> April | K45: =IF(E63="","",E63-E62) -> 30 | L45: 13.43333333 | N45: Februar | O45: ='2011'!F43 -> 606 | Q45: Februar | R45: 403 | T45: -203 | U45: -33.49834983 | V45: =IF(E63="","",VLOOKUP(MONTH(E63),'Beregn varme 2011'!A$2:I$13,9,FALSE)) -> 8 | W45: 438.24
J46: =IF(E64="","",VLOOKUP(MONTH(E64),T!A$1:B$12,2,FALSE)) -> Maj | K46: =IF(E64="","",E64-E63) -> 31 | L46: 12.09677419 | N46: Marts | O46: ='2011'!F44 -> 625 | Q46: Marts | R46: 375 | T46: -250 | U46: -40 | V46: =IF(E64="","",VLOOKUP(MONTH(E64),'Beregn varme 2011'!A$2:I$13,9,FALSE)) -> 7 | W46: 383.46
J47: =IF(E65="","",VLOOKUP(MONTH(E65),T!A$1:B$12,2,FALSE)) -> Juni | K47: =IF(E65="","",E65-E64) -> 30 | L47: 12.3 | N47: April | O47: ='2011'!F45 -> 408 | Q47: April | R47: 369 | T47: -39 | U47: -9.558823529 | V47: =IF(E65="","",VLOOKUP(MONTH(E65),'Beregn varme 2011'!A$2:I$13,9,FALSE)) -> 7 | W47: 383.46
J48: =IF(E66="","",VLOOKUP(MONTH(E66),T!A$1:B$12,2,FALSE)) -> Juli | K48: =IF(E66="","",E66-E65) -> 31 | L48: 11.5483871 | N48: Maj | O48: ='2011'!F46 -> 380 | Q48: Maj | R48: 358 | T48: -22 | U48: =IF(R48<>"",T48/(R48/100),"") -> -6.145251397 | V48: =IF(E66="","",VLOOKUP(MONTH(E66),'Beregn varme 2011'!A$2:I$13,9,FALSE)) -> 7 | W48: 383.46
J50: Hele året | K50: =SUM(K37:K48) -> 427 | L50: =G67/K50 -> 12.55737705 | N50: Års Total | O50: =SUM(O37:O48) -> 5478 | R50: =SUM(R37:R48) -> 5362 | T50: =R50-O50 -> -116 | U50: =T50/(R50/100) -> -2.163371876 | V50: =SUM(V37:V48) -> 94 | W50: =SUM(W37:W48) -> 5149.32
A56: MÅNEDLIG AFLÆSNING AF ELMÅLER
A58: Dato | B58: Aflæst | D58: Forbrug | E58: Dato | F58: Aflæst | G58: Forbrug | H58: Bemærkning:
B59: KWh | D59: KWh | F59: KWh | G59: KWh
A60: 2011-05-31 | B60: 60055
A61: 2011-06-30 | B61: 60408 | D61: =IF(B61<>"",B61-B60,"") -> 353 | E61: 2012-02-29 | F61: 16017 | G61: ='2011 2'!G47 -> 1214 | H61: Brugt på lyrsbyvej 31
A62: 2011-07-31 | B62: 60789 | D62: =IF(B62<>"",B62-B61,"") -> 381 | E62: 2012-03-31 | F62: 16420 | G62: =IF(F62<>"",F62-F61,"") -> 403
A63: 2011-08-31 | B63: 61124 | D63: =IF(B63<>"",B63-B62,"") -> 335 | E63: 2012-04-30 | F63: 16823 | G63: =IF(F63<>"",F63-F62,"") -> 403
A64: 2011-09-30 | B64: 61457 | D64: =IF(B64<>"",B64-B63,"") -> 333 | E64: 2012-05-31 | F64: 17198 | G64: =IF(F64<>"",F64-F63,"") -> 375
A65: 2011-10-31 | B65: 61860 | D65: 403 | E65: 2012-06-30 | F65: 17567 | G65: =IF(F65<>"",F65-F64,"") -> 369
A66: 2011-11-30 | B66: 62295 | D66: 435 | E66: 2012-07-31 | F66: 17925 | G66: =IF(F66<>"",F66-F65,"") -> 358
D67: =SUM(D61:D66) -> 2240 | E67: Års forbrug | G67: =SUM(D61:D66,G61:G66) -> 5362 | H67: =G67-D67 -> 3122

Sheet 2012 a (hidden)
M1: 2011 | P1: 2012 | S1: +/- | T1: % | U1: Forventet forbrug
A2: =System!A19 -> Version: 2.0.2 / Bjarne Hansen | I2: Olie | J2: Dage | K2: Liter pr dag | M2: Olie | N2: Liter | O2: % | Q2: Liter | R2: % | S2: Liter | U2: % | V2: Liter
A3: Aflæsningsskema til Olieforbrug samt EL og Vand | I3: =IF(A11="","",VLOOKUP(MONTH(A11),T!A1:B12,2,FALSE)) -> Januar | J3: =A11-A10 -> 31 | K3: =IF(F11<>"",F11/J3,"") ->  | M3: =IF(A11="","",VLOOKUP(MONTH(A11),T!A$1:B$12,2,FALSE)) -> Januar | N3: ='2011'!F11 -> 232 | O3: =IF(N3="","",N3/(N$16/100)) -> 14.25937308 | P3: =IF(A11="","",VLOOKUP(MONTH(A11),T!A$1:B$12,2,FALSE)) -> Januar | Q3: =F11 ->  | R3: =IF(Q3="","",Q3/(Q$16/100)) ->  | S3: =IF(Q3<>"",Q3-N3,"") ->  | T3: =IF(Q3<>"",S3/(N3/100),"") ->  | U3: =IF(A11="","",VLOOKUP(MONTH(A11),'Beregn varme 2012'!A$2:G$13,7,FALSE)) -> 14.52133544 | V3: =IF(Q3="","",VLOOKUP(MONTH(A11),'Beregn varme 2012'!A$2:F$13,6,FALSE)) -> 
A4: Navn : | B4: Bjarne Hansen, Pilegade 9/Lyrsbyvej 31 | I4: =IF(A12="","",VLOOKUP(MONTH(A12),T!A2:B13,2,FALSE)) -> Februar | J4: 29 | M4: =IF(A12="","",VLOOKUP(MONTH(A12),T!A$1:B$12,2,FALSE)) -> Februar | N4: ='2011'!F12 -> 225 | O4: 13.82913337 | P4: =IF(A12="","",VLOOKUP(MONTH(A12),T!A$1:B$12,2,FALSE)) -> Februar | S4: =IF(Q4<>"",Q4-N4,"") ->  | T4: =IF(Q4<>"",S4/(N4/100),"") ->  | U4: =IF(A12="","",VLOOKUP(MONTH(A12),'Beregn varme 2012'!A$2:G$13,7,FALSE)) -> 13.3051963 | V4: =IF(Q4="","",VLOOKUP(MONTH(A12),'Beregn varme 2012'!A$2:F$13,6,FALSE)) -> 
